Workbook

Sheet Title
A1: The column titles for this worksheet are in row 2. They span cells C2. The data spans cells A3 through C29. There is information in every cell for column A through C inclusive. If you are not using a screen reader, you can press Alt + R, T for the Review Ribbon, Edit Comment to move to and open a Comment once you are on a cell with a Comment. When you are finished reading the Comment, press Escape to close the comment and return to the worksheet. If you are using the JAWS screen reader, press Ctrl + Shift + Apostrophe to get a list of Comments and their cell coordinates in the worksheet. Press Enter on the Comment you want to go to or Escape once you’ve read the Comment for a cell. You are returned to the workbook. Note that there is no keyboard command with JAWS to reread Comments or read Comments once you are on them in a cell. You must use the ability to list Comments in order to read them if you are using the JAWS screen reader.
C2: California Life-Cycle Benefit/Cost Analysis Model (Cal-B/C Corridor) Version 8.1
B22: Office of Transportation Economics
B23: Division of Transportation Planning
B24: May 2022
B27: For questions and comments, please contact:
B29: Transportation Economics Branch | C29: eab@dot.ca.gov

Sheet Instructions

Sheet 1) Project Information
C2: District: | E2: PR | W2: Enter all project costs (in today's dollars) in columns 1 to 7. Costs during construction should be entered in the first eight rows.
P3: EA: | W3: Project costs (including maintenance and operating costs) should be net of costs without project.
C4: PROJECT: | E4: PR-10 | P4: PPNO:
C7: 1A | D7: PROJECT DATA | L7: 1B | M7: MODEL STRUCTURE | V7: 1C | W7: PROJECT COSTS (enter costs in thousands of dollars)
C9: Type of Project | V9: Col. no. | W9: (1) | X9: (2) | Y9: (3) | Z9: (4) | AA9: (5) | AB9: (6) | AC9: (7)
P10: Values In This Model | W10: DIRECT PROJECT COSTS | AC10: Transit
M11: Number of Model Groups | N11: 1 | P11: =MAX('2) Model Inputs'!$D:$D) -> 1 | W11: INITIAL COSTS | Z11: SUBSEQUENT COSTS | AC11: Agency | AD11: TOTAL COSTS (in dollars)
C12: Project Location (enter 1 for So. Cal., 2 for No. Cal., or 3 for rural) | H12: 3 | M12: Number of Safety Groups | N12: =_Segments -> 1 | P12: =MAX('2) Model Inputs'!$AJ:$AJ) -> 1 | V12: Year | W12: Project | Z12: Maint./ | AC12: Cost | AD12: Constant | AE12: Present
M13: Number of Reliability Groups | N13: =_Segments -> 1 | P13: =MAX('2) Model Inputs'!$BN:$BN) -> 1 | W13: Support | X13: R / W | Y13: Construction | Z13: Op. | AA13: Rehab. | AB13: Mitigation | AC13: Savings | AD13: Dollars | AE13: Value
C14: Project Timing | M14: Years | N14: 30 | P14: =COUNT('1) Project Information'!$V24:$V53) -> 30 | V14: Construction Period
V15: =YearStart -> 2022 | W15: $4,000 | Y15: $180,023 | Z15: =IF(V15<YearOpen,IF(SUM(W15:Y15)>0,"","Enter Construction Cost"),IF(SUM(W15:Y15)>0,"After Construction Period","")) ->  | AD15: =SUM(W15:AC15)*1000 -> $184,023,300 | AE15: =$AD15/(1+DiscRate)^($V15-YearCurrent) -> $160,733,077
D16: Current Year | F16: 2020 | V16: =V15+1 -> 2023 | W16: 4,000 | Y16: $180,023 | AD16: =SUM(W16:AC16)*1000 -> 184,023,300 | AE16: 150,217,829
V17: =V16+1 -> 2024 | W17: 4,000 | Y17: $180,023 | AD17: =SUM(W17:AC17)*1000 -> 184,023,300 | AE17: 140,390,494
D18: Year Construction Begins | F18: 2022 | V18: 2025 | AD18: 0 | AE18: 0
V19: 2026 | AD19: 0 | AE19: 0
D20: Year Project Opens | F20: 2025 | V20: 2027 | AD20: 0 | AE20: 0
V21: 2028 | AD21: 0 | AE21: 0
V22: 2029 | AD22: 0 | AE22: 0
V23: Project Open
V24: =YearOpen -> 2025 | Z24: $547 | AD24: =SUM(W24:AC24)*1000 -> $546,800 | AE24: =$AD24/(1+DiscRate)^($V24-YearCurrent) -> $389,861
V25: =V24+1 -> 2026 | Z25: $547 | AD25: 546,800 | AE25: 364,356
V26: =V25+1 -> 2027 | Z26: $547 | AD26: 546,800 | AE26: 340,520
V27: 2028 | Z27: $547 | AD27: 546,800 | AE27: 318,243
V28: 2029 | Z28: $547 | AD28: 546,800 | AE28: 297,423
V29: 2030 | Z29: $756 | AD29: 756,200 | AE29: 384,414
V30: 2031 | Z30: $756 | AD30: 756,200 | AE30: 359,265
V31: 2032 | Z31: $756 | AD31: 756,200 | AE31: 335,762
V32: 2033 | Z32: $756 | AD32: 756,200 | AE32: 313,796
V33: 2034 | Z33: $756 | AD33: 756,200 | AE33: 293,267
V34: 2035 | Z34: $1,658 | AD34: 1,658,000 | AE34: 600,936
V35: 2036 | Z35: $1,658 | AD35: 1,658,000 | AE35: 561,622
V36: 2037 | Z36: $1,658 | AD36: 1,658,000 | AE36: 524,880
V37: 2038 | Z37: $1,658 | AD37: 1,658,000 | AE37: 490,542
V38: 2039 | Z38: $1,658 | AD38: 1,658,000 | AE38: 458,451
V39: 2040 | Z39: $1,658 | AD39: 1,658,000 | AE39: 428,459
V40: 2041 | Z40: $1,658 | AD40: 1,658,000 | AE40: 400,429
V41: 2042 | Z41: $1,658 | AD41: =SUM(W41:AC41)*1000 -> 1,658,000 | AE41: 374,232
V42: 2043 | Z42: $1,658 | AD42: 1,658,000 | AE42: 349,750
V43: 2044 | Z43: $1,658 | AD43: 1,658,000 | AE43: 326,869
V44: 2045 | Z44: $1,658 | AD44: 1,658,000 | AE44: 305,485
V45: 2046 | Z45: $1,658 | AD45: 1,658,000 | AE45: 285,500
V46: 2047 | Z46: $1,658 | AD46: 1,658,000 | AE46: 266,823
V47: 2048 | Z47: $1,658 | AD47: 1,658,000 | AE47: 249,367
V48: 2049 | Z48: $1,658 | AD48: 1,658,000 | AE48: 233,053
V49: 2050 | Z49: $1,658 | AD49: 1,658,000 | AE49: 217,807
V50: 2051 | Z50: $1,658 | AD50: 1,658,000 | AE50: 203,558
V51: 2052 | Z51: $1,658 | AD51: 1,658,000 | AE51: 190,241
V52: 2053 | Z52: $1,658 | AD52: 1,658,000 | AE52: 177,795
V53: 2054 | Z53: $1,658 | AD53: 1,658,000 | AE53: 166,164
V54: Total | W54: =SUM(W15:W53) -> $12,000 | X54: $0 | Y54: $540,070 | Z54: $39,675 | AA54: $0 | AB54: $0 | AC54: $0 | AD54: $591,744,900 | AE54: $461,550,268
AB58: Present Value = Future Value (in Constant Dollars)
AC59: ( 1 + Real Discount Rate) ^ Year

Sheet 2) Model Inputs
D5: 2A | E5: DEFINITIONS OF MODEL GROUPS AND YEARS | T5: 2B | Y5: AVERAGE PROFILE FOR DIVERTED TRIPS/INDUCED TRIPS | AJ5: 2E | AK5: DEFINITIONS OF SAFETY GROUPS AND YEARS | BN5: 2H | BO5: DEFINITIONS OF RELIABILITY GROUPS AND YEARS | CT5: 2K | CU5: TRAVEL TIME RELIABILITY
Y6: Typical 'No Build' conditions for persons 'on the margin' who will divert from highway to transit in Build Scenario, or for induced trips. | CU6: (for adjustments to Reliability Calculations, standard deviation of travel time in seconds/vehicle)
Y7: This profile should reflect a lower cost alternative than the average traffic profile entered in Table 2C and 2D.
V9: For Trips Diverting from Highway to Transit | AA9: Least Cost Alternative (for Induced Trips) | BQ9: Reliability Group Definition | CD9: No-Build | CK9: Build | CW9: Calculated by Model | CX9: Changed by User | CY9: Used for Proj. Eval. | CZ9: Reason for Change | DG9: Calculated by Model | DH9: Changed by User | DI9: Used for Proj. Eval. | DJ9: Reason for Change
F10: Select Mode | G10: Name | I10: Description | M10: Avg. Vehicle Occupancy (AVO) | N10: Percent Trucks | S10: No Build | V10: ="Average Speed in Year "&YearFirst&" (mph)" -> Average Speed in Year 2025 (mph) | W10: ="Average Trip Length in Year "&YearFirst&" (miles)" -> Average Trip Length in Year 2025 (miles) | X10: ="Average Speed in Year "&YearLast&" (mph)" -> Average Speed in Year 2045 (mph) | Y10: ="Average Trip Length in Year "&YearLast&" (miles)" -> Average Trip Length in Year 2045 (miles) | AA10: ="Average Speed in Year "&YearFirst&" (mph)" -> Average Speed in Year 2025 (mph) | AB10: ="Average Trip Length in Year "&YearFirst&" (miles)" -> Average Trip Length in Year 2025 (miles) | AC10: ="Average Speed in Year "&YearLast&" (mph)" -> Average Speed in Year 2045 (mph) | AD10: ="Average Trip Length in Year "&YearLast&" (miles)" -> Average Trip Length in Year 2045 (miles) | AL10: Select Mode | AM10: Name | AN10: Description | AQ10: Fatal Reduction Factor | AR10: Injury Reduction Factor | AS10: PDO Reduction Factor | BQ10: Name | BS10: Description (time period & geography) | CB10: Duration (hours per day) | CD10: Roadway Length (miles) | CE10: # of Lanes | CF10: Lane Miles | CG10: Free Flow Speed (mph) | CH10: Average Passenger Vehicle Occupancy | CK10: Roadway Length (miles) | CL10: Number of Lanes | CM10: Lane Miles | CN10: Free Flow Speed (mph) | CO10: Average Passenger Vehicle Occupancy | CS10: Adjustment Factor
D11: Model Group 1 | F11: Highway | G11: All Vehicles | M11: 1.50 | N11: 20.0% | T11: =D11 -> Model Group 1 | AJ11: Safety Group 1 | AL11: Highway | AQ11: 36.0% | AR11: 36.0% | AS11: 36.0% | BN11: Reliability Group 1 | BP11: Highway | CF11: =CD11*CE11 -> 0 | CM11: =CK11*CL11 -> 0 | CU11: =BN11 -> Reliability Group 1 | CV11: Automobile | CW11: =1 -> 1.00 | CY11: =IF(ISNUMBER(CX11),CX11,CW11) -> 1.00 | DF11: Truck | DG11: =1 -> 1.00 | DI11: =IF(ISNUMBER(DH11),DH11,DG11) -> 1.00
D13: Base Year | F13: 2025 | AJ13: Safety Base Year | AL13: =YearFirst -> 2025 | BN13: Reliability Base Year | BP13: =YearFirst -> 2025
D14: Forecast Year | F14: 2045 | AJ14: Safety Forecast Year | AL14: =YearLast -> 2045 | BN14: Reliability Forecast Year | BP14: =YearLast -> 2045
D20: 2C | E20: ="MODEL DATA - YEAR " & YearFirst -> MODEL DATA - YEAR 2025 | T20: 2D | U20: ="MODEL DATA - YEAR " & YearLast -> MODEL DATA - YEAR 2045 | AJ20: 2F | AK20: ="SAFETY DATA - YEAR " & SafetyYearFirst -> SAFETY DATA - YEAR 2025 | AY20: 2G | AZ20: ="SAFETY DATA - YEAR " & SafetyYearLast -> SAFETY DATA - YEAR 2045 | BN20: 2I | BO20: ="RELIABILITY DATA - YEAR " & $BP$13 -> RELIABILITY DATA - YEAR 2025 | BZ20: 2J | CA20: ="RELIABILITY DATA - YEAR " & $BP$14 -> RELIABILITY DATA - YEAR 2045
F21: REQUIRED FOR | V21: REQUIRED FOR
F22: TRANSIT | V22: TRANSIT
G23: Vehicle | H23: Vehicle | I23: Passenger | J23: Passenger | K23: Out-of- | M23: Average | W23: Vehicle | X23: Vehicle | Y23: Passenger | Z23: Passenger | AA23: Out-of- | AC23: Average | AM23: Vehicle | AN23: Fatal | AO23: Injury | AP23: PDO | AQ23: Number | AR23: Number | AS23: Number | BA23: Vehicle | BB23: Fatal | BC23: Injury | BD23: PDO | BE23: Number | BF23: Number | BG23: Number
F24: Number of | G24: Miles | H24: Hours | I24: Miles | J24: Hours | K24: Pocket | M24: Vehicle | V24: Number of | W24: Miles | X24: Hours | Y24: Miles | Z24: Hours | AA24: Pocket | AC24: Vehicle | AM24: Miles | AN24: Crash | AO24: Crash | AP24: Crash | AQ24: of | AR24: of | AS24: of | BA24: Miles | BB24: Crash | BC24: Crash | BD24: Crash | BE24: of | BF24: of | BG24: of
F25: Trips | G25: Traveled | H25: Traveled | I25: Traveled | J25: Traveled | K25: Cost | M25: Occupancy | N25: Percent | V25: Trips | W25: Traveled | X25: Traveled | Y25: Traveled | Z25: Traveled | AA25: Cost | AC25: Occupancy | AD25: Percent | AM25: Traveled | AN25: Rate | AO25: Rate | AP25: Rate | AQ25: Fatal | AR25: Injury | AS25: PDO | BA25: Traveled | BB25: Rate | BC25: Rate | BD25: Rate | BE25: Fatal | BF25: Injury | BG25: PDO
F26: (Trips) * ** | G26: (VMT) * | H26: (VHT) | I26: (PMT) | J26: (PHT) | K26: ($ per trip) | L26: Speed | M26: (AVO) | N26: Trucks | V26: (Trips) * ** | W26: (VMT) * | X26: (VHT) | Y26: (PMT) | Z26: (PHT) | AA26: ($ per trip) | AB26: Speed | AC26: (AVO) | AD26: Trucks | AM26: (VMT) | AN26: Per MVM | AO26: Per MVM | AP26: Per MVM | AQ26: Crashes | AR26: Crashes | AS26: Crashes | BA26: (VMT) | BB26: Per MVM | BC26: Per MVM | BD26: Per MVM | BE26: Crashes | BF26: Crashes | BG26: Crashes
C27: No Build | S27: No Build | AI27: No Build | AX27: No Build | BM27: No Build | BY27: No Build
BP28: VMT | BQ28: VHT | BR28: % Truck | BS28: Avg. Speed | BT28: Volume | CD28: VMT | CE28: VHT | CF28: % Truck | CG28: Avg. Speed | CH28: Volume
D29: 1 | E29: =IF(ISBLANK(INDEX(HwyTransitModelGroup,D29,2)),"Not Used",INDEX(HwyTransitModelGroup,D29,2)) -> All Vehicles | F29: 10,038 | G29: =F29*L55 -> 90,746 | H29: =F29*N55 -> 5,019 | L29: =IFERROR(IF($F11=Hwy,G29/H29,I29/J29),55) -> 18.1 | M29: =INDEX(HwyTransitModelGroup,D29,8) -> 1.50 | N29: =INDEX(HwyTransitModelGroup,D29,9) -> 20.0% | T29: 1 | U29: =IF(ISBLANK(INDEX(HwyTransitModelGroup,T29,2)),"Not Used",INDEX(HwyTransitModelGroup,T29,2)) -> All Vehicles | V29: 12,249 | W29: =V29*L55 -> 110,727 | X29: =V29*N55 -> 6,124 | AB29: =IFERROR(IF($F11=Hwy,W29/X29,Y29/Z29),55) -> 18.1 | AC29: =INDEX(HwyTransitModelGroup,T29,8) -> 1.50 | AD29: =INDEX(HwyTransitModelGroup,T29,9) -> 20.0% | AJ29: 1 | AK29: =IF(ISBLANK(INDEX(SafetyGroup,AJ29,2)),"Not Used",INDEX(SafetyGroup,AJ29,2)) -> Not Used | AM29: 90,746 | AN29: 0.025 | AO29: 1.38 | AP29: 11.80 | AQ29: =AM29*AN29/10^6 -> 0.0023 | AR29: =AM29*AO29/10^6 -> 0.1252 | AS29: =AM29*AP29/10^6 -> 1.0708 | AY29: 1 | AZ29: =IF(ISBLANK(INDEX(SafetyGroup,AY29,2)),"Not Used",INDEX(SafetyGroup,AY29,2)) -> Not Used | BA29: 110,727 | BB29: 0.025 | BC29: 1.38 | BD29: 11.80 | BE29: =BA29*BB29/10^6 -> 0.0028 | BF29: =BA29*BC29/10^6 -> 0.1528 | BG29: =BA29*BD29/10^6 -> 1.3066 | BN29: 1 | BO29: =IF(ISBLANK(INDEX(ReliabilityGroup,BN29,2)),"Not Used",INDEX(ReliabilityGroup,BN29,2)) -> Not Used | BS29: =IFERROR(BP29/BQ29,0) -> 0 | BT29: =IFERROR(BP29/$CF11/$CB11,"") ->  | BZ29: 1 | CA29: =IF(ISBLANK(INDEX(ReliabilityGroup,BZ29,2)),"Not Used",INDEX(ReliabilityGroup,BZ29,2)) -> Not Used | CG29: =IFERROR(CD29/CE29,0) -> 0 | CH29: =IFERROR(CD29/$CF11/$CB11,"") -> 
E30: TOTAL | F30: =SUM(F29:F29) -> 10,038 | G30: =SUM(G29:G29) -> 90,746 | H30: =SUM(H29:H29) -> 5,019 | I30: =SUM(I29:I29) -> 0 | J30: =SUM(J29:J29) -> 0 | U30: TOTAL | V30: =SUM(V29:V29) -> 12,249 | W30: =SUM(W29:W29) -> 110,727 | X30: =SUM(X29:X29) -> 6,124 | Y30: =SUM(Y29:Y29) -> 0 | Z30: =SUM(Z29:Z29) -> 0 | AK30: TOTAL | AM30: =SUM(AM29:AM29) -> 90,746 | AQ30: =SUM(AQ29:AQ29) -> 0.0023 | AR30: =SUM(AR29:AR29) -> 0.1252 | AS30: =SUM(AS29:AS29) -> 1.0708 | AZ30: TOTAL | BA30: =SUM(BA29:BA29) -> 110,727 | BE30: =SUM(BE29:BE29) -> 0.0028 | BF30: =SUM(BF29:BF29) -> 0.1528 | BG30: =SUM(BG29:BG29) -> 1.3066 | BO30: TOTAL | BP30: =SUM(BP29:BP29) -> 0 | BQ30: =SUM(BQ29:BQ29) -> 0 | BT30: =SUM(BT29:BT29) -> 0 | CA30: TOTAL | CD30: =SUM(CD29:CD29) -> 0 | CE30: =SUM(CE29:CE29) -> 0 | CH30: =SUM(CH29:CH29) -> 0
AK31: =IF(AND(SafetyYearFirst=YearFirst,SafetyYearLast=YearLast),IF(G30=AM30,"Total VMT in model groups equals total VMT in safety groups", "Warning: Total VMT in model groups DOES NOT equal total VMT in safety groups"),"") -> Total VMT in model groups equals total VMT in safety groups | AZ31: =IF(AND(SafetyYearFirst=YearFirst,SafetyYearLast=YearLast),IF(W30=BA30,"Total VMT in traffic inputs equals total VMT in safety inputs", "Warning: Total VMT in traffic inputs DOES NOT equal total VMT in safety inputs"),"") -> Total VMT in traffic inputs equals total VMT in safety inputs | BO31: =IF(AND(RelYearFirst=YearFirst,RelYearLast=YearLast),IF(G30=BP30,"Total VMT in traffic inputs equals total VMT in reliability inputs", "Warning: Total VMT in traffic inputs DOES NOT equal total VMT in reliability inputs"),"") -> Warning: Total VMT in traffic inputs DOES NOT equal total VMT in reliability inputs | CA31: =IF(AND(RelYearFirst=YearFirst,RelYearLast=YearLast),IF(W30=CD30,"Total VMT in traffic inputs equals total VMT in reliability inputs", "Warning: Total VMT in traffic inputs DOES NOT equal total VMT in reliability inputs"),"") -> Warning: Total VMT in traffic inputs DOES NOT equal total VMT in reliability inputs
C33: Build | S33: Build | AI33: Build | AX33: Build | BM33: Build | BY33: Build
BP34: VMT | BQ34: VHT | BR34: % Truck | BS34: Avg. Speed | BT34: Volume | CD34: VMT | CE34: VHT | CF34: % Truck | CG34: Avg. Speed | CH34: Volume
D35: 1 | E35: =IF(ISBLANK(INDEX(HwyTransitModelGroup,D35,2)),"Not Used",INDEX(HwyTransitModelGroup,D35,2)) -> All Vehicles | F35: 10,038 | G35: =F35*U53 -> 47,079 | H35: =F35*V53 -> 1,205 | L35: =IFERROR(IF($F11=Hwy,G35/H35,I35/J35),55) -> 39.1 | M35: =INDEX(HwyTransitModelGroup,D35,8) -> 1.50 | N35: =INDEX(HwyTransitModelGroup,D35,9) -> 20.0% | T35: 1 | U35: =IF(ISBLANK(INDEX(HwyTransitModelGroup,T35,2)),"Not Used",INDEX(HwyTransitModelGroup,T35,2)) -> All Vehicles | V35: 12,249 | W35: =V35*U53 -> 57,446 | X35: =V35*V53 -> 1,470 | AB35: =IFERROR(IF($F11=Hwy,W35/X35,Y35/Z35),55) -> 39.1 | AC35: =INDEX(HwyTransitModelGroup,T35,8) -> 1.50 | AD35: =INDEX(HwyTransitModelGroup,T35,9) -> 20.0% | AJ35: 1 | AK35: =IF(ISBLANK(INDEX(SafetyGroup,AJ35,2)),"Not Used",INDEX(SafetyGroup,AJ35,2)) -> Not Used | AM35: 70,215 | AN35: =IFERROR(INDEX(SafetyData1NB,AJ35,2)*(1-INDEX(SafetyGroup,AJ35,6)),0) -> 0.016 | AO35: =IFERROR(INDEX(SafetyData1NB,AJ35,3)*(1-INDEX(SafetyGroup,AJ35,7)),0) -> 0.88 | AP35: =IFERROR(INDEX(SafetyData1NB,AJ35,4)*(1-INDEX(SafetyGroup,AJ35,8)),0) -> 7.55 | AQ35: =AM35*AN35/10^6 -> 0.0011 | AR35: =AM35*AO35/10^6 -> 0.0620 | AS35: =AM35*AP35/10^6 -> 0.5303 | AY35: 1 | AZ35: =IF(ISBLANK(INDEX(SafetyGroup,AY35,2)),"Not Used",INDEX(SafetyGroup,AY35,2)) -> Not Used | BA35: 57,446 | BB35: =IFERROR(INDEX(SafetyData20NB,AY35,2)*(1-INDEX(SafetyGroup,AY35,6)),0) -> 0.016 | BC35: =IFERROR(INDEX(SafetyData20NB,AY35,3)*(1-INDEX(SafetyGroup,AY35,7)),0) -> 0.88 | BD35: =IFERROR(INDEX(SafetyData20NB,AY35,4)*(1-INDEX(SafetyGroup,AY35,8)),0) -> 7.55 | BE35: =BA35*BB35/10^6 -> 0.0009 | BF35: =BA35*BC35/10^6 -> 0.0507 | BG35: =BA35*BD35/10^6 -> 0.4338 | BN35: 1 | BO35: =IF(ISBLANK(INDEX(ReliabilityGroup,BN35,2)),"Not Used",INDEX(ReliabilityGroup,BN35,2)) -> Not Used | BS35: =IFERROR(BP35/BQ35,0) -> 0 | BT35: =IFERROR(BP35/$CM11/$CB11,"") ->  | BZ35: 1 | CA35: =IF(ISBLANK(INDEX(ReliabilityGroup,BZ35,2)),"Not Used",INDEX(ReliabilityGroup,BZ35,2)) -> Not Used | CG35: =IFERROR(CD35/CE35,0) -> 0 | CH35: =IFERROR(CD35/$CM11/$CB11,"") -> 
E36: TOTAL | F36: =SUM(F35:F35) -> 10,038 | G36: =SUM(G35:G35) -> 47,079 | H36: =SUM(H35:H35) -> 1,205 | I36: =SUM(I35:I35) -> 0 | J36: =SUM(J35:J35) -> 0 | U36: TOTAL | V36: =SUM(V35:V35) -> 12,249 | W36: =SUM(W35:W35) -> 57,446 | X36: =SUM(X35:X35) -> 1,470 | Y36: =SUM(Y35:Y35) -> 0 | Z36: =SUM(Z35:Z35) -> 0 | AK36: TOTAL | AM36: =SUM(AM35:AM35) -> 70,215 | AQ36: =SUM(AQ35:AQ35) -> 0.0011 | AR36: =SUM(AR35:AR35) -> 0.0620 | AS36: =SUM(AS35:AS35) -> 0.5303 | AZ36: TOTAL | BA36: =SUM(BA35:BA35) -> 57,446 | BE36: =SUM(BE35:BE35) -> 0.0009 | BF36: =SUM(BF35:BF35) -> 0.0507 | BG36: =SUM(BG35:BG35) -> 0.4338 | BO36: TOTAL | BP36: =SUM(BP35:BP35) -> 0 | BQ36: =SUM(BQ35:BQ35) -> 0 | BT36: =SUM(BT35:BT35) -> 0 | CA36: TOTAL | CD36: =SUM(CD35:CD35) -> 0 | CE36: =SUM(CE35:CE35) -> 0 | CH36: =SUM(CH35:CH35) -> 0
AK37: =IF(AND(SafetyYearFirst=YearFirst,SafetyYearLast=YearLast),IF(G36=AM36,"Total VMT in model groups equals total VMT in safety groups", "Warning: Total VMT in model groups DOES NOT equal total VMT in safety groups"),"") -> Warning: Total VMT in model groups DOES NOT equal total VMT in safety groups | AZ37: =IF(AND(SafetyYearFirst=YearFirst,SafetyYearLast=YearLast),IF(W36=BA36,"Total VMT in traffic inputs equals total VMT in safety inputs", "Warning: Total VMT in traffic inputs DOES NOT equal total VMT in safety inputs"),"") -> Total VMT in traffic inputs equals total VMT in safety inputs | BO37: =IF(AND(RelYearFirst=YearFirst,RelYearLast=YearLast),IF(G36=BP36,"Total VMT in traffic inputs equals total VMT in reliability inputs", "Warning: Total VMT in traffic inputs DOES NOT equal total VMT in reliability inputs"),"") -> Warning: Total VMT in traffic inputs DOES NOT equal total VMT in reliability inputs | CA37: =IF(AND(RelYearFirst=YearFirst,RelYearLast=YearLast),IF(W36=CD36,"Total VMT in traffic inputs equals total VMT in reliability inputs", "Warning: Total VMT in traffic inputs DOES NOT equal total VMT in reliability inputs"),"") -> Warning: Total VMT in traffic inputs DOES NOT equal total VMT in reliability inputs
E40: * For Highway Model Groups, Trips and VMT refer to vehicle trips and vehicle-miles traveled. For Transit Model Groups, Trips and VMT refer to person (transit) trips and transit vehicle-miles traveled. | U40: * For Highway Model Groups, Trips and VMT refer to vehicle trips and vehicle-miles traveled. For Transit Model Groups, Trips and VMT refer to person (transit) trips and transit vehicle-miles traveled. | AK40: *For Highway Model Groups, VMT refers to vehicle miles traveled. For Transit Model Groups, VMT refers to transit vehicle miles traveled | AZ40: *For Highway Model Groups, VMT refers to vehicle-miles traveled. For Transit Model Groups, VMT refers to transit vehicle-miles traveled
E41: **Number of Trips is an optional field for Highway Model Groups, unless Transit Model Groups are included. This is a required input if induced demand exists. | U41: **Number of Trips is an optional field for Highway Model Groups, unless Transit Model Groups are included. This is a required input if induced demand exists.
U53: 4.69 | V53: 0.12
V54: =V53*60 -> 7.2
L55: 9.04 | N55: 0.5
L56: =F35*L55 -> 90745.61675
AQ62: Segment | AR62: Fatal | AS62: Injury | AT62: Property Damage Only | AU62: Total | AV62: Annual Average Daily Traffic (AADT) | AW62: Miles | AX62: Crash Rate
AX63: (Per 1 million VMT)
AQ64: 1 | AR64: 0 | AS64: 3 | AT64: 33 | AU64: 36 | AV64: 4,800 | AW64: 2.14 | AX64: 2.4 | BA64: =(AR64*EXP(6))/(365*4*$AV64*$AW64) -> 0 | BB64: =(AS64*10^6)/(365*4*$AV64*$AW64) -> 0.2000384074 | BC64: 2.200422481
AQ65: 2 | AR65: 0 | AS65: 11 | AT65: 42 | AU65: 53 | AV65: 3,765 | AW65: 4.12 | AX65: 2.34 | BA65: =(AR65*EXP(6))/(365*4*AV65*AW65) -> 0 | BB65: 0.4857106574 | BC65: 1.854531601
AQ66: 3 | AR66: 0 | AS66: 84 | AT66: 504 | AU66: 588 | AV66: 11,292 | AW66: 18.06 | AX66: 1.98 | BA66: =(AR66*EXP(6))/(365*4*AV66*AW66) -> 0 | BB66: 0.2821225592 | BC66: 1.692735355
AQ67: 4 | AR67: 0 | AS67: 14 | AT67: 141 | AU67: 155 | AV67: 13,800 | AW67: 3.19 | AX67: 2.41 | BA67: =(AR67*EXP(6))/(365*4*AV67*AW67) -> 0 | BB67: 0.2178238403 | BC67: 2.193797248
BB68: =MAX(BB64:BB67) -> 0.4857106574 | BC68: =MAX(BC64:BC67) -> 2.200422481

Sheet 3) Results
B2: District: | E2: =IF('1) Project Information'!E2<>"",'1) Project Information'!E2,"") -> PR
Q3: EA: | R3: ='1) Project Information'!Q3 -> 0
B4: PROJECT: | E4: =IF(ProjName<>"",ProjName,"") -> PR-10 | Q4: PPNO: | R4: ='1) Project Information'!Q4 -> 0
D9: 3 | E9: INVESTMENT ANALYSIS
E10: SUMMARY RESULTS
Q12: Total Over | R12: Average
E13: Life-Cycle Costs (mil. $) | H13: =LifeCycleCost/1000000 -> $461.6 | L13: ITEMIZED BENEFITS (mil. $) | Q13: =_YearsModel& " Years" -> 30 Years | R13: Annual
E14: Life-Cycle Benefits (mil. $) | H14: =LifeCycleBene/1000000 -> $729.3 | L14: Travel Time Savings | Q14: =('Final Calculations'!C65+'Final Calculations'!H65+'Final Calculations'!M65+'Final Calculations'!R65)/1000000 -> $451.9 | R14: =Q14/_YearsModel -> $15.1
E15: Net Present Value (mil. $) | H15: =NetPresentValue/1000000 -> $267.7 | L15: Travel Time Reliability Benefits | Q15: =('Final Calculations'!D65+'Final Calculations'!I65+'Final Calculations'!N65+'Final Calculations'!S65)/1000000 -> $0.0 | R15: $0.0
L16: Veh. Op. Cost Savings | Q16: =('Final Calculations'!E65+'Final Calculations'!J65+'Final Calculations'!O65+'Final Calculations'!T65)/1000000 -> $111.2 | R16: $3.7
L17: Accident Cost Savings | Q17: =('Final Calculations'!F65+'Final Calculations'!K65+'Final Calculations'!P65+'Final Calculations'!U65)/1000000 -> $157.6 | R17: $5.3
E18: Benefit / Cost Ratio: | H18: =IF(LifeCycleCost=0,"N/A",LifeCycleBene/LifeCycleCost) -> 1.58 | L18: Emission Cost Savings | Q18: =('Final Calculations'!G65+'Final Calculations'!L65+'Final Calculations'!Q65+'Final Calculations'!V65)/1000000 -> $8.6 | R18: $0.3
L19: TOTAL BENEFITS | Q19: =SUM(Q14:Q18) -> $729.3 | R19: $24.3
E20: Rate of Return on Investment: | H20: =IFERROR(ReturnOnInvest,"N/A") -> 11.5%
L21: Person-Hours of Time Saved | Q21: ='Final Calculations'!C67+'Final Calculations'!G67+'Final Calculations'!K67+'Final Calculations'!O67 -> 72,655,510 | R21: =Q21/_YearsModel -> 2,421,850
E22: Payback Period: | H22: =Payback -> 8 years | L22: Fatalities Avoided | Q22: ='Final Calculations'!C78+'Final Calculations'!G78+'Final Calculations'!K78+'Final Calculations'!O78 -> 21 | R22: =Q22/_YearsModel -> 1
L23: Injuries Avoided | Q23: ='Final Calculations'!C79+'Final Calculations'!G79+'Final Calculations'!K79+'Final Calculations'!O79 -> 1,521 | R23: =Q23/_YearsModel -> 51
L24: PDO Avoided | Q24: ='Final Calculations'!C80+'Final Calculations'!G80+'Final Calculations'!K80+'Final Calculations'!O80 -> 28,828 | R24: =Q24/_YearsModel -> 961
D27: Should benefit-cost results include: | O27: Tons | Q27: Value (mil. $)
O28: Total Over | P28: Average | Q28: Total Over | R28: Average
E29: 1) Induced Travel? (y/n) | H29: Y | L29: EMISSIONS REDUCTION | O29: =_YearsModel& " Years" -> 30 Years | P29: Annual | Q29: =_YearsModel& " Years" -> 30 Years | R29: Annual
H30: Default = Y | L30: CO Emissions Saved | O30: ='Final Calculations'!C70+'Final Calculations'!G70+'Final Calculations'!K70+'Final Calculations'!O70 -> 449 | P30: =O30/_YearsModel -> 15 | Q30: =IFERROR(('Final Calculations'!D70+'Final Calculations'!H70+'Final Calculations'!L70+'Final Calculations'!P70)/1000000,0) -> $0.0 | R30: =IFERROR(Q30/_YearsModel,0) -> $0.0
E31: 2) Travel Time Reliability? (y/n) | H31: N | L31: CO2 Emissions Saved | O31: ='Final Calculations'!C71+'Final Calculations'!G71+'Final Calculations'!K71+'Final Calculations'!O71 -> 263,006 | P31: =O31/_YearsModel -> 8,767 | Q31: =IFERROR(('Final Calculations'!D71+'Final Calculations'!H71+'Final Calculations'!L71+'Final Calculations'!P71)/1000000,0) -> $7.0 | R31: =IFERROR(Q31/_YearsModel,0) -> $0.2
H32: Default = Y | L32: NOX Emissions Saved | O32: ='Final Calculations'!C72+'Final Calculations'!G72+'Final Calculations'!K72+'Final Calculations'!O72 -> 166 | P32: =O32/_YearsModel -> 6 | Q32: =IFERROR(('Final Calculations'!D72+'Final Calculations'!H72+'Final Calculations'!L72+'Final Calculations'!P72)/1000000,0) -> $0.9 | R32: =IFERROR(Q32/_YearsModel,0) -> $0.0
E33: 3) Vehicle Operating Costs? (y/n) | H33: Y | L33: PM2.5 Emissions Saved | O33: ='Final Calculations'!C73+'Final Calculations'!G73+'Final Calculations'!K73+'Final Calculations'!O73 -> 2 | P33: =O33/_YearsModel -> 0 | Q33: =IFERROR(('Final Calculations'!D73+'Final Calculations'!H73+'Final Calculations'!L73+'Final Calculations'!P73)/1000000,0) -> $0.7 | R33: =IFERROR(Q33/_YearsModel,0) -> $0.0
H34: Default = Y
E35: 3) Accident Costs? (y/n) | H35: Y | L35: SOX Emissions Saved | O35: ='Final Calculations'!C75+'Final Calculations'!G75+'Final Calculations'!K75+'Final Calculations'!O75 -> 3 | P35: =O35/_YearsModel -> 0 | Q35: =IFERROR(('Final Calculations'!D75+'Final Calculations'!H75+'Final Calculations'!L75+'Final Calculations'!P75)/1000000,0) -> $0.0 | R35: =IFERROR(Q35/_YearsModel,0) -> $0.0
H36: Default = Y | L36: VOC Emissions Saved | O36: ='Final Calculations'!C76+'Final Calculations'!G76+'Final Calculations'!K76+'Final Calculations'!O76 -> 21 | P36: =O36/_YearsModel -> 1 | Q36: =IFERROR(('Final Calculations'!D76+'Final Calculations'!H76+'Final Calculations'!L76+'Final Calculations'!P76)/1000000,0) -> $0.0 | R36: =IFERROR(Q36/_YearsModel,0) -> $0.0
E37: 4) Vehicle Emissions? (y/n) | H37: Y
E38: includes value for CO2e | H38: Default = Y

Sheet Travel Time
B1: Travel Time Benefits
B3: This sheet calculates total travel time benefits on highway and transit.
B5: Formulas: | S5: Present Value = Future Value (in Constant Dollars)
H6: Avg. Travel Time = Total PHT / Total Person Trips | L6: for transit | R6: ( 1 + Real Discount Rate) ^ Year
B7: Total Vehicle-Hours Traveled = Daily VHT x Annualization Factor | H7: hrs / person passenger-hrs / yr | J7: trips / yr
B8: vehicle-hrs / yr | D8: vehicle hrs / day | E8: days / yr | H8: Avg. Value of Time (varies by vehicle type)
B10: Avg. Travel Time = Total VHT x AVO / Total Person Trips | G10: for hwy | H10: TT Savings = Travel Time Reduction x Avg. Value of Time | O10: =MATCH(W$20,$A:$A) -> 18
B11: hrs / person vehicle-hrs / yr | D11: people / veh | E11: trips / yr | H11: dollars / year | I11: hours | J11: dollars / hr
B15: A | C15: HIGHWAY AND TRANSIT BENEFITS | V15: B | W15: SUMMARY OF TRAVEL TIME BENEFITS
A18: =MAX($A$1:A17)+1 -> 1 | B18: =IF(ISBLANK(INDEX(ModelGroup,A18,1)),"Not Used",INDEX(ModelGroup,A18,1)) -> All Vehicles
C20: TOTAL VHT | E20: AVERAGE VEH OCC | G20: =IF(INDEX(HwyTransitModelGroup,A18,1)=Hwy,"TOTAL VEHICLE TRIPS","TOTAL PERSON TRIPS") -> TOTAL VEHICLE TRIPS | I20: PERCENT TRUCKS | K20: TOTAL PHT | M20: AVERAGE TRAVEL TIME | O20: =IF(INDEX(HwyTransitModelGroup,A18,1)=Hwy,"TOTAL VEHICLE TRIPS","TOTAL PERSON TRIPS") -> TOTAL VEHICLE TRIPS | P20: TIME BENEFIT | T20: Total Per-Hrs of Time Saved | W20: 1 | Y20: Present | AC20: Total
C21: (veh-hours/yr) | E21: (persons/vehicle) | G21: (trips/yr) | I21: (%) | K21: (per-hours/yr) | M21: (hours/trip) | O21: (trips/yr) | P21: ($/yr) | T21: (per-hours/yr) | W21: =IF(ISBLANK(INDEX(ModelGroup,W20,1)),"Not Used",INDEX(ModelGroup,W20,1)) -> All Vehicles | Y21: Value of | AC21: Per-Hrs
B22: Year | O22: Adjusted (no induced) | P22: Existing | Q22: Constant | R22: Present | T22: Existing | V22: Year | Y22: Travel Time | AA22: Constant | AC22: of Time
C23: No Build | D23: Build | E23: No Build | F23: Build | G23: No Build | H23: Build | I23: No Build | J23: Build | K23: No Build | L23: Build | M23: No Build | N23: Build | O23: Build | P23: Users | Q23: Dollars | R23: Value | T23: Users | Y23: =IF(Induced="Y","Benefits","Benefits*") -> Benefits | AA23: Dollars | AC23: Saved
B24: =YearFirst -> 2025 | C24: =IF(INDEX(HwyTransitModelGroup,A18,1)=Hwy,INDEX(ModelData1NB,A18,3),0)*AnnualFactor -> 1,831,977 | D24: =IF(INDEX(HwyTransitModelGroup,A18,1)=Hwy,INDEX(ModelData1B,A18,3),0)*AnnualFactor -> 439,675 | E24: =IF(INDEX(HwyTransitModelGroup,A18,1)=Hwy,INDEX(ModelData1NB,A18,8),0) -> 1.50 | F24: =IF(INDEX(HwyTransitModelGroup,A18,1)=Hwy,INDEX(ModelData1B,A18,8),0) -> 1.50 | G24: =IF(AND(INDEX(HwyTransitModelGroup,A18,1)=Hwy,INDEX(ModelData1NB,A18,1)=0),1,INDEX(ModelData1NB,A18,1)*AnnualFactor) -> 3,663,955 | H24: =IF(AND(INDEX(HwyTransitModelGroup,A18,1)=Hwy,INDEX(ModelData1B,A18,1)=0),1,INDEX(ModelData1B,A18,1)*AnnualFactor) -> 3,663,955 | I24: =IF(INDEX(HwyTransitModelGroup,A18,1)=Hwy,INDEX(ModelData1NB,A18,9),0) -> 20.0% | J24: =IF(INDEX(HwyTransitModelGroup,A18,1)=Hwy,INDEX(ModelData1B,A18,9),0) -> 20.0% | K24: =IF(INDEX(HwyTransitModelGroup,A18,1)=Hwy,0,INDEX(ModelData1NB,A18,5))*AnnualFactor -> 0 | L24: =IF(INDEX(HwyTransitModelGroup,A18,1)=Hwy,0,INDEX(ModelData1B,A18,5))*AnnualFactor -> 0 | M24: =IFERROR(IF(INDEX(HwyTransitModelGroup,A18,1)=Hwy,C24*E24/G24,K24/G24),0) -> 0.75 | N24: =IFERROR(IF(INDEX(HwyTransitModelGroup,A18,1)=Hwy,D24*F24/H24,L24/H24),0) -> 0.18 | O24: =$H24-INDEX(ModeShare1,A18)*SUMIF('Consumer Surplus'!$C$197:$C$200,INDEX(HwyTransitModelGroup,A18,1),'Consumer Surplus'!$G$197:$G$200) -> 3,663,955 | P24: =IF(INDEX(HwyTransitModelGroup,A18,1)=Hwy,G24*M24*(I24*ValTimeTruck+(1-I24)*ValTimeAuto)-O24*N24*(J24*ValTimeTruck+(1-J24)*ValTimeAuto),G24*IF(INDEX(NoTransit1,A18)=TRUE,INDEX(DivIndTrips,A18,2)/IF(INDEX(DivIndTrips,A18,1)=0,1,INDEX(DivIndTrips,A18,1)),M24)*ValTimeAuto-O24*N24*ValTimeAuto)*(1+TTUprater)^($B24-YearCurrent) -> $43,105,694 | Q24: =SUM(P24) -> $43,105,694 | R24: =Q24/(1+DiscRate)^(B24-YearCurrent) -> $30,733,764 | T24: =IF(INDEX(HwyTransitModelGroup,A18,1)=Hwy,G24*M24-O24*N24,G24*IF(INDEX(NoTransit1,A18)=TRUE,INDEX(DivIndTrips,A18,2)/IF(INDEX(DivIndTrips,A18,1)=0,1,INDEX(DivIndTrips,A18,1)),M24)-O24*N24) -> 2088454 | V24: =YearOpen -> 2025 | W24: =OFFSET($R9,MATCH(W$20,$A:$A),0) -> $30,733,764 | Y24: =SUM($W24:X24) -> $30,733,764 | AA24: =$Y24*(1+DiscRate)^($V24-YearCurrent) -> $43,105,694 | AC24: =SUM($W68:X68) -> 2,088,454
B25: =YearLast -> 2045 | C25: =IF(INDEX(HwyTransitModelGroup,A18,1)=Hwy,INDEX(ModelData20NB,A18,3),0)*AnnualFactor -> 2,235,360 | D25: =IF(INDEX(HwyTransitModelGroup,A18,1)=Hwy,INDEX(ModelData20B,A18,3),0)*AnnualFactor -> 536,487 | E25: =IF(INDEX(HwyTransitModelGroup,A18,1)=Hwy,INDEX(ModelData20NB,A18,8),0) -> 1.50 | F25: =IF(INDEX(HwyTransitModelGroup,A18,1)=Hwy,INDEX(ModelData20B,A18,8),0) -> 1.50 | G25: =IF(AND(INDEX(HwyTransitModelGroup,A18,1)=Hwy,INDEX(ModelData20NB,A18,1)=0),1,INDEX(ModelData20NB,A18,1)*AnnualFactor) -> 4,470,721 | H25: =IF(AND(INDEX(HwyTransitModelGroup,A18,1)=Hwy,INDEX(ModelData20B,A18,1)=0),1,INDEX(ModelData20B,A18,1)*AnnualFactor) -> 4,470,721 | I25: =IF(INDEX(HwyTransitModelGroup,A18,1)=Hwy,INDEX(ModelData20NB,A18,9),0) -> 20.0% | J25: =IF(INDEX(HwyTransitModelGroup,A18,1)=Hwy,INDEX(ModelData20B,A18,9),0) -> 20.0% | K25: =IF(INDEX(HwyTransitModelGroup,A18,1)=Hwy,0,INDEX(ModelData20NB,A18,5))*AnnualFactor -> 0 | L25: =IF(INDEX(HwyTransitModelGroup,A18,1)=Hwy,0,INDEX(ModelData20B,A18,5))*AnnualFactor -> 0 | M25: =IFERROR(IF(INDEX(HwyTransitModelGroup,A18,1)=Hwy,C25*E25/G25,K25/G25),0) -> 0.75 | N25: =IFERROR(IF(INDEX(HwyTransitModelGroup,A18,1)=Hwy,D25*F25/H25,L25/H25),0) -> 0.18 | O25: =$H25-INDEX(ModeShare20,A18)*SUMIF('Consumer Surplus'!$C$197:$C$200,INDEX(HwyTransitModelGroup,A18,1),'Consumer Surplus'!$K$197:$K$200) -> 4,470,721 | P25: =IF(INDEX(HwyTransitModelGroup,A18,1)=Hwy,G25*M25*(I25*ValTimeTruck+(1-I25)*ValTimeAuto)-O25*N25*(J25*ValTimeTruck+(1-J25)*ValTimeAuto),G25*IF(INDEX(NoTransit20,A18)=TRUE,INDEX(DivIndTrips,A18,4)/IF(INDEX(DivIndTrips,A18,3)=0,1,INDEX(DivIndTrips,A18,3)),M25)*ValTimeAuto-O25*N25*ValTimeAuto)*(1+TTUprater)^($B25-YearCurrent) -> $52,597,138 | Q25: =SUM(P25) -> $52,597,138 | R25: =Q25/(1+DiscRate)^(B25-YearCurrent) -> $9,690,979 | T25: =IF(INDEX(HwyTransitModelGroup,A18,1)=Hwy,G25*M25-O25*N25,G25*IF(INDEX(NoTransit1,A18)=TRUE,INDEX(DivIndTrips,A18,2)/IF(INDEX(DivIndTrips,A18,1)=0,1,INDEX(DivIndTrips,A18,1)),M25)-O25*N25) -> 2548311 | V25: =V24+1 -> 2026 | W25: $29,039,371 | Y25: =SUM($W25:X25) -> $29,039,371 | AA25: $43,580,266 | AC25: =SUM($W69:X69) -> 2,111,447
V26: =V25+1 -> 2027 | W26: $27,435,139 | Y26: =SUM($W26:X26) -> $27,435,139 | AA26: $44,054,838 | AC26: =SUM($W70:X70) -> 2,134,440
B27: =YearOpen -> 2025 | C27: =MAX(TREND(C24:C25,B24:B25,B27),0) -> 1,831,977 | D27: =MAX(TREND(D24:D25,B24:B25,B27),0) -> 439,675 | E27: =MAX(TREND(E24:E25,B24:B25,B27),0) -> 1.50 | F27: =MAX(TREND(F24:F25,B24:B25,B27),0) -> 1.50 | G27: =MAX(TREND(G24:G25,$B24:$B25,$B27),0) -> 3,663,955 | H27: =MAX(TREND(H24:H25,$B24:$B25,$B27),0) -> 3,663,955 | I27: =MIN(MAX(TREND(I24:I25,B24:B25,B27),0),1) -> 20.0% | J27: =MIN(MAX(TREND(J24:J25,B24:B25,B27),0),1) -> 20.0% | K27: =MAX(TREND(K24:K25,B24:B25,B27),0) -> 0 | L27: =MAX(TREND(L24:L25,B24:B25,B27),0) -> 0 | M27: =IFERROR(IF(INDEX(HwyTransitModelGroup,A18,1)=Hwy,C27*E27/G27,K27/G27),0) -> 0.75 | N27: =IFERROR(IF(INDEX(HwyTransitModelGroup,A18,1)=Hwy,D27*F27/H27,L27/H27),0) -> 0.18 | O27: =TREND(O24:O25,$B24:$B25,$B27) -> 3,663,955 | P27: =IF(INDEX(HwyTransitModelGroup,A18,1)=Hwy,G27*M27*(I27*ValTimeTruck+(1-I27)*ValTimeAuto)-O27*N27*(J27*ValTimeTruck+(1-J27)*ValTimeAuto),G27*IF(INDEX(NoTransit20,A18)=TRUE,INDEX(DivIndTrips,A18,4)/IF(INDEX(DivIndTrips,A18,3)=0,1,INDEX(DivIndTrips,A18,3)),M27)*ValTimeAuto-O27*N27*ValTimeAuto)*(1+TTUprater)^($B27-YearCurrent) -> $43,105,694 | Q27: =SUM(P27) -> $43,105,694 | R27: =Q27/(1+DiscRate)^(B27-YearCurrent) -> $30,733,764 | T27: =TREND(T24:T25,$B24:$B25,$B27) -> 2,088,454 | V27: 2028 | W27: $25,916,522 | Y27: =SUM($W27:X27) -> $25,916,522 | AA27: $44,529,410 | AC27: =SUM($W71:X71) -> 2,157,433
B28: =B27+1 -> 2026 | C28: =MAX(TREND(C24:C25,B24:B25,B28),0) -> 1,852,146 | D28: =MAX(TREND(D24:D25,B24:B25,B28),0) -> 444,515 | E28: =MAX(TREND(E24:E25,B24:B25,B28),0) -> 1.50 | F28: =MAX(TREND(F24:F25,B24:B25,B28),0) -> 1.50 | G28: =MAX(TREND(G24:G25,$B24:$B25,$B28),0) -> 3,704,293 | H28: =MAX(TREND(H24:H25,$B24:$B25,$B28),0) -> 3,704,293 | I28: =MIN(MAX(TREND(I24:I25,B24:B25,B28),0),1) -> 20.0% | J28: =MIN(MAX(TREND(J24:J25,B24:B25,B28),0),1) -> 20.0% | K28: =MAX(TREND(K24:K25,B24:B25,B28),0) -> 0 | L28: =MAX(TREND(L24:L25,B24:B25,B28),0) -> 0 | M28: =IFERROR(IF(INDEX(HwyTransitModelGroup,A18,1)=Hwy,C28*E28/G28,K28/G28),0) -> 0.75 | N28: =IFERROR(IF(INDEX(HwyTransitModelGroup,A18,1)=Hwy,D28*F28/H28,L28/H28),0) -> 0.18 | O28: =TREND(O24:O25,$B24:$B25,$B28) -> 3,704,293 | P28: =IF(INDEX(HwyTransitModelGroup,A18,1)=Hwy,G28*M28*(I28*ValTimeTruck+(1-I28)*ValTimeAuto)-O28*N28*(J28*ValTimeTruck+(1-J28)*ValTimeAuto),G28*IF(INDEX(NoTransit20,A18)=TRUE,INDEX(DivIndTrips,A18,4)/IF(INDEX(DivIndTrips,A18,3)=0,1,INDEX(DivIndTrips,A18,3)),M28)*ValTimeAuto-O28*N28*ValTimeAuto)*(1+TTUprater)^($B28-YearCurrent) -> $43,580,266 | Q28: $43,580,266 | R28: $29,039,371 | T28: =TREND(T24:T25,$B24:$B25,$B28) -> 2,111,447 | V28: 2029 | W28: $24,479,185 | Y28: =SUM($W28:X28) -> $24,479,185 | AA28: $45,003,983 | AC28: =SUM($W72:X72) -> 2,180,426
B29: =B28+1 -> 2027 | C29: =MAX(TREND(C24:C25,B24:B25,B29),0) -> 1,872,316 | D29: =MAX(TREND(D24:D25,B24:B25,B29),0) -> 449,356 | E29: =MAX(TREND(E24:E25,B24:B25,B29),0) -> 1.50 | F29: =MAX(TREND(F24:F25,B24:B25,B29),0) -> 1.50 | G29: =MAX(TREND(G24:G25,$B24:$B25,$B29),0) -> 3,744,631 | H29: =MAX(TREND(H24:H25,$B24:$B25,$B29),0) -> 3,744,631 | I29: =MIN(MAX(TREND(I24:I25,B24:B25,B29),0),1) -> 20.0% | J29: =MIN(MAX(TREND(J24:J25,B24:B25,B29),0),1) -> 20.0% | K29: =MAX(TREND(K24:K25,B24:B25,B29),0) -> 0 | L29: =MAX(TREND(L24:L25,B24:B25,B29),0) -> 0 | M29: =IFERROR(IF(INDEX(HwyTransitModelGroup,A18,1)=Hwy,C29*E29/G29,K29/G29),0) -> 0.75 | N29: =IFERROR(IF(INDEX(HwyTransitModelGroup,A18,1)=Hwy,D29*F29/H29,L29/H29),0) -> 0.18 | O29: =TREND(O24:O25,$B24:$B25,$B29) -> 3,744,631 | P29: =IF(INDEX(HwyTransitModelGroup,A18,1)=Hwy,G29*M29*(I29*ValTimeTruck+(1-I29)*ValTimeAuto)-O29*N29*(J29*ValTimeTruck+(1-J29)*ValTimeAuto),G29*IF(INDEX(NoTransit20,A18)=TRUE,INDEX(DivIndTrips,A18,4)/IF(INDEX(DivIndTrips,A18,3)=0,1,INDEX(DivIndTrips,A18,3)),M29)*ValTimeAuto-O29*N29*ValTimeAuto)*(1+TTUprater)^($B29-YearCurrent) -> $44,054,838 | Q29: $44,054,838 | R29: $27,435,139 | T29: =TREND(T24:T25,$B24:$B25,$B29) -> 2,134,440 | V29: 2030 | W29: $23,118,991 | Y29: =SUM($W29:X29) -> $23,118,991 | AA29: $45,478,555 | AC29: =SUM($W73:X73) -> 2,203,418
B30: 2028 | C30: =MAX(TREND(C24:C25,B24:B25,B30),0) -> 1,892,485 | D30: =MAX(TREND(D24:D25,B24:B25,B30),0) -> 454,196 | E30: =MAX(TREND(E24:E25,B24:B25,B30),0) -> 1.50 | F30: =MAX(TREND(F24:F25,B24:B25,B30),0) -> 1.50 | G30: =MAX(TREND(G24:G25,$B24:$B25,$B30),0) -> 3,784,970 | H30: =MAX(TREND(H24:H25,$B24:$B25,$B30),0) -> 3,784,970 | I30: =MIN(MAX(TREND(I24:I25,B24:B25,B30),0),1) -> 20.0% | J30: =MIN(MAX(TREND(J24:J25,B24:B25,B30),0),1) -> 20.0% | K30: =MAX(TREND(K24:K25,B24:B25,B30),0) -> 0 | L30: =MAX(TREND(L24:L25,B24:B25,B30),0) -> 0 | M30: =IFERROR(IF(INDEX(HwyTransitModelGroup,A18,1)=Hwy,C30*E30/G30,K30/G30),0) -> 0.75 | N30: =IFERROR(IF(INDEX(HwyTransitModelGroup,A18,1)=Hwy,D30*F30/H30,L30/H30),0) -> 0.18 | O30: =TREND(O24:O25,$B24:$B25,$B30) -> 3,784,970 | P30: =IF(INDEX(HwyTransitModelGroup,A18,1)=Hwy,G30*M30*(I30*ValTimeTruck+(1-I30)*ValTimeAuto)-O30*N30*(J30*ValTimeTruck+(1-J30)*ValTimeAuto),G30*IF(INDEX(NoTransit20,A18)=TRUE,INDEX(DivIndTrips,A18,4)/IF(INDEX(DivIndTrips,A18,3)=0,1,INDEX(DivIndTrips,A18,3)),M30)*ValTimeAuto-O30*N30*ValTimeAuto)*(1+TTUprater)^($B30-YearCurrent) -> $44,529,410 | Q30: $44,529,410 | R30: $25,916,522 | T30: =TREND(T24:T25,$B24:$B25,$B30) -> 2,157,433 | V30: 2031 | W30: $21,832,000 | Y30: =SUM($W30:X30) -> $21,832,000 | AA30: $45,953,127 | AC30: =SUM($W74:X74) -> 2,226,411
B31: 2029 | C31: =MAX(TREND(C24:C25,B24:B25,B31),0) -> 1,912,654 | D31: =MAX(TREND(D24:D25,B24:B25,B31),0) -> 459,037 | E31: =MAX(TREND(E24:E25,B24:B25,B31),0) -> 1.50 | F31: =MAX(TREND(F24:F25,B24:B25,B31),0) -> 1.50 | G31: =MAX(TREND(G24:G25,$B24:$B25,$B31),0) -> 3,825,308 | H31: =MAX(TREND(H24:H25,$B24:$B25,$B31),0) -> 3,825,308 | I31: =MIN(MAX(TREND(I24:I25,B24:B25,B31),0),1) -> 20.0% | J31: =MIN(MAX(TREND(J24:J25,B24:B25,B31),0),1) -> 20.0% | K31: =MAX(TREND(K24:K25,B24:B25,B31),0) -> 0 | L31: =MAX(TREND(L24:L25,B24:B25,B31),0) -> 0 | M31: =IFERROR(IF(INDEX(HwyTransitModelGroup,A18,1)=Hwy,C31*E31/G31,K31/G31),0) -> 0.75 | N31: =IFERROR(IF(INDEX(HwyTransitModelGroup,A18,1)=Hwy,D31*F31/H31,L31/H31),0) -> 0.18 | O31: =TREND(O24:O25,$B24:$B25,$B31) -> 3,825,308 | P31: =IF(INDEX(HwyTransitModelGroup,A18,1)=Hwy,G31*M31*(I31*ValTimeTruck+(1-I31)*ValTimeAuto)-O31*N31*(J31*ValTimeTruck+(1-J31)*ValTimeAuto),G31*IF(INDEX(NoTransit20,A18)=TRUE,INDEX(DivIndTrips,A18,4)/IF(INDEX(DivIndTrips,A18,3)=0,1,INDEX(DivIndTrips,A18,3)),M31)*ValTimeAuto-O31*N31*ValTimeAuto)*(1+TTUprater)^($B31-YearCurrent) -> $45,003,983 | Q31: $45,003,983 | R31: $24,479,185 | T31: =TREND(T24:T25,$B24:$B25,$B31) -> 2,180,426 | V31: 2032 | W31: $20,614,454 | Y31: =SUM($W31:X31) -> $20,614,454 | AA31: $46,427,699 | AC31: =SUM($W75:X75) -> 2,249,404
B32: 2030 | C32: =MAX(TREND(C24:C25,B24:B25,B32),0) -> 1,932,823 | D32: =MAX(TREND(D24:D25,B24:B25,B32),0) -> 463,878 | E32: =MAX(TREND(E24:E25,B24:B25,B32),0) -> 1.50 | F32: =MAX(TREND(F24:F25,B24:B25,B32),0) -> 1.50 | G32: =MAX(TREND(G24:G25,$B24:$B25,$B32),0) -> 3,865,646 | H32: =MAX(TREND(H24:H25,$B24:$B25,$B32),0) -> 3,865,646 | I32: =MIN(MAX(TREND(I24:I25,B24:B25,B32),0),1) -> 20.0% | J32: =MIN(MAX(TREND(J24:J25,B24:B25,B32),0),1) -> 20.0% | K32: =MAX(TREND(K24:K25,B24:B25,B32),0) -> 0 | L32: =MAX(TREND(L24:L25,B24:B25,B32),0) -> 0 | M32: =IFERROR(IF(INDEX(HwyTransitModelGroup,A18,1)=Hwy,C32*E32/G32,K32/G32),0) -> 0.75 | N32: =IFERROR(IF(INDEX(HwyTransitModelGroup,A18,1)=Hwy,D32*F32/H32,L32/H32),0) -> 0.18 | O32: =TREND(O24:O25,$B24:$B25,$B32) -> 3,865,646 | P32: =IF(INDEX(HwyTransitModelGroup,A18,1)=Hwy,G32*M32*(I32*ValTimeTruck+(1-I32)*ValTimeAuto)-O32*N32*(J32*ValTimeTruck+(1-J32)*ValTimeAuto),G32*IF(INDEX(NoTransit20,A18)=TRUE,INDEX(DivIndTrips,A18,4)/IF(INDEX(DivIndTrips,A18,3)=0,1,INDEX(DivIndTrips,A18,3)),M32)*ValTimeAuto-O32*N32*ValTimeAuto)*(1+TTUprater)^($B32-YearCurrent) -> $45,478,555 | Q32: $45,478,555 | R32: $23,118,991 | T32: =TREND(T24:T25,$B24:$B25,$B32) -> 2,203,418 | V32: 2033 | W32: $19,462,775 | Y32: =SUM($W32:X32) -> $19,462,775 | AA32: $46,902,272 | AC32: =SUM($W76:X76) -> 2,272,397
B33: 2031 | C33: =MAX(TREND(C24:C25,B24:B25,B33),0) -> 1,952,992 | D33: =MAX(TREND(D24:D25,B24:B25,B33),0) -> 468,718 | E33: =MAX(TREND(E24:E25,B24:B25,B33),0) -> 1.50 | F33: =MAX(TREND(F24:F25,B24:B25,B33),0) -> 1.50 | G33: =MAX(TREND(G24:G25,$B24:$B25,$B33),0) -> 3,905,985 | H33: =MAX(TREND(H24:H25,$B24:$B25,$B33),0) -> 3,905,985 | I33: =MIN(MAX(TREND(I24:I25,B24:B25,B33),0),1) -> 20.0% | J33: =MIN(MAX(TREND(J24:J25,B24:B25,B33),0),1) -> 20.0% | K33: =MAX(TREND(K24:K25,B24:B25,B33),0) -> 0 | L33: =MAX(TREND(L24:L25,B24:B25,B33),0) -> 0 | M33: =IFERROR(IF(INDEX(HwyTransitModelGroup,A18,1)=Hwy,C33*E33/G33,K33/G33),0) -> 0.75 | N33: =IFERROR(IF(INDEX(HwyTransitModelGroup,A18,1)=Hwy,D33*F33/H33,L33/H33),0) -> 0.18 | O33: =TREND(O24:O25,$B24:$B25,$B33) -> 3,905,985 | P33: =IF(INDEX(HwyTransitModelGroup,A18,1)=Hwy,G33*M33*(I33*ValTimeTruck+(1-I33)*ValTimeAuto)-O33*N33*(J33*ValTimeTruck+(1-J33)*ValTimeAuto),G33*IF(INDEX(NoTransit20,A18)=TRUE,INDEX(DivIndTrips,A18,4)/IF(INDEX(DivIndTrips,A18,3)=0,1,INDEX(DivIndTrips,A18,3)),M33)*ValTimeAuto-O33*N33*ValTimeAuto)*(1+TTUprater)^($B33-YearCurrent) -> $45,953,127 | Q33: $45,953,127 | R33: $21,832,000 | T33: =TREND(T24:T25,$B24:$B25,$B33) -> 2,226,411 | V33: 2034 | W33: $18,373,557 | Y33: =SUM($W33:X33) -> $18,373,557 | AA33: $47,376,844 | AC33: =SUM($W77:X77) -> 2,295,390
B34: 2032 | C34: =MAX(TREND(C24:C25,B24:B25,B34),0) -> 1,973,161 | D34: =MAX(TREND(D24:D25,B24:B25,B34),0) -> 473,559 | E34: =MAX(TREND(E24:E25,B24:B25,B34),0) -> 1.50 | F34: =MAX(TREND(F24:F25,B24:B25,B34),0) -> 1.50 | G34: =MAX(TREND(G24:G25,$B24:$B25,$B34),0) -> 3,946,323 | H34: =MAX(TREND(H24:H25,$B24:$B25,$B34),0) -> 3,946,323 | I34: =MIN(MAX(TREND(I24:I25,B24:B25,B34),0),1) -> 20.0% | J34: =MIN(MAX(TREND(J24:J25,B24:B25,B34),0),1) -> 20.0% | K34: =MAX(TREND(K24:K25,B24:B25,B34),0) -> 0 | L34: =MAX(TREND(L24:L25,B24:B25,B34),0) -> 0 | M34: =IFERROR(IF(INDEX(HwyTransitModelGroup,A18,1)=Hwy,C34*E34/G34,K34/G34),0) -> 0.75 | N34: =IFERROR(IF(INDEX(HwyTransitModelGroup,A18,1)=Hwy,D34*F34/H34,L34/H34),0) -> 0.18 | O34: =TREND(O24:O25,$B24:$B25,$B34) -> 3,946,323 | P34: =IF(INDEX(HwyTransitModelGroup,A18,1)=Hwy,G34*M34*(I34*ValTimeTruck+(1-I34)*ValTimeAuto)-O34*N34*(J34*ValTimeTruck+(1-J34)*ValTimeAuto),G34*IF(INDEX(NoTransit20,A18)=TRUE,INDEX(DivIndTrips,A18,4)/IF(INDEX(DivIndTrips,A18,3)=0,1,INDEX(DivIndTrips,A18,3)),M34)*ValTimeAuto-O34*N34*ValTimeAuto)*(1+TTUprater)^($B34-YearCurrent) -> $46,427,699 | Q34: $46,427,699 | R34: $20,614,454 | T34: =TREND(T24:T25,$B24:$B25,$B34) -> 2,249,404 | V34: 2035 | W34: $17,343,555 | Y34: =SUM($W34:X34) -> $17,343,555 | AA34: $47,851,416 | AC34: =SUM($W78:X78) -> 2,318,383
B35: 2033 | C35: =MAX(TREND(C24:C25,B24:B25,B35),0) -> 1,993,331 | D35: =MAX(TREND(D24:D25,B24:B25,B35),0) -> 478,399 | E35: =MAX(TREND(E24:E25,B24:B25,B35),0) -> 1.50 | F35: =MAX(TREND(F24:F25,B24:B25,B35),0) -> 1.50 | G35: =MAX(TREND(G24:G25,$B24:$B25,$B35),0) -> 3,986,661 | H35: =MAX(TREND(H24:H25,$B24:$B25,$B35),0) -> 3,986,661 | I35: =MIN(MAX(TREND(I24:I25,B24:B25,B35),0),1) -> 20.0% | J35: =MIN(MAX(TREND(J24:J25,B24:B25,B35),0),1) -> 20.0% | K35: =MAX(TREND(K24:K25,B24:B25,B35),0) -> 0 | L35: =MAX(TREND(L24:L25,B24:B25,B35),0) -> 0 | M35: =IFERROR(IF(INDEX(HwyTransitModelGroup,A18,1)=Hwy,C35*E35/G35,K35/G35),0) -> 0.75 | N35: =IFERROR(IF(INDEX(HwyTransitModelGroup,A18,1)=Hwy,D35*F35/H35,L35/H35),0) -> 0.18 | O35: =TREND(O24:O25,$B24:$B25,$B35) -> 3,986,661 | P35: =IF(INDEX(HwyTransitModelGroup,A18,1)=Hwy,G35*M35*(I35*ValTimeTruck+(1-I35)*ValTimeAuto)-O35*N35*(J35*ValTimeTruck+(1-J35)*ValTimeAuto),G35*IF(INDEX(NoTransit20,A18)=TRUE,INDEX(DivIndTrips,A18,4)/IF(INDEX(DivIndTrips,A18,3)=0,1,INDEX(DivIndTrips,A18,3)),M35)*ValTimeAuto-O35*N35*ValTimeAuto)*(1+TTUprater)^($B35-YearCurrent) -> $46,902,272 | Q35: $46,902,272 | R35: $19,462,775 | T35: =TREND(T24:T25,$B24:$B25,$B35) -> 2,272,397 | V35: 2036 | W35: $16,369,684 | Y35: =SUM($W35:X35) -> $16,369,684 | AA35: $48,325,988 | AC35: =SUM($W79:X79) -> 2,341,375
B36: 2034 | C36: =MAX(TREND(C24:C25,B24:B25,B36),0) -> 2,013,500 | D36: =MAX(TREND(D24:D25,B24:B25,B36),0) -> 483,240 | E36: =MAX(TREND(E24:E25,B24:B25,B36),0) -> 1.50 | F36: =MAX(TREND(F24:F25,B24:B25,B36),0) -> 1.50 | G36: =MAX(TREND(G24:G25,$B24:$B25,$B36),0) -> 4,027,000 | H36: =MAX(TREND(H24:H25,$B24:$B25,$B36),0) -> 4,027,000 | I36: =MIN(MAX(TREND(I24:I25,B24:B25,B36),0),1) -> 20.0% | J36: =MIN(MAX(TREND(J24:J25,B24:B25,B36),0),1) -> 20.0% | K36: =MAX(TREND(K24:K25,B24:B25,B36),0) -> 0 | L36: =MAX(TREND(L24:L25,B24:B25,B36),0) -> 0 | M36: =IFERROR(IF(INDEX(HwyTransitModelGroup,A18,1)=Hwy,C36*E36/G36,K36/G36),0) -> 0.75 | N36: =IFERROR(IF(INDEX(HwyTransitModelGroup,A18,1)=Hwy,D36*F36/H36,L36/H36),0) -> 0.18 | O36: =TREND(O24:O25,$B24:$B25,$B36) -> 4,027,000 | P36: =IF(INDEX(HwyTransitModelGroup,A18,1)=Hwy,G36*M36*(I36*ValTimeTruck+(1-I36)*ValTimeAuto)-O36*N36*(J36*ValTimeTruck+(1-J36)*ValTimeAuto),G36*IF(INDEX(NoTransit20,A18)=TRUE,INDEX(DivIndTrips,A18,4)/IF(INDEX(DivIndTrips,A18,3)=0,1,INDEX(DivIndTrips,A18,3)),M36)*ValTimeAuto-O36*N36*ValTimeAuto)*(1+TTUprater)^($B36-YearCurrent) -> $47,376,844 | Q36: $47,376,844 | R36: $18,373,557 | T36: =TREND(T24:T25,$B24:$B25,$B36) -> 2,295,390 | V36: 2037 | W36: $15,449,008 | Y36: =SUM($W36:X36) -> $15,449,008 | AA36: $48,800,560 | AC36: =SUM($W80:X80) -> 2,364,368
B37: 2035 | C37: =MAX(TREND(C24:C25,B24:B25,B37),0) -> 2,033,669 | D37: =MAX(TREND(D24:D25,B24:B25,B37),0) -> 488,081 | E37: =MAX(TREND(E24:E25,B24:B25,B37),0) -> 1.50 | F37: =MAX(TREND(F24:F25,B24:B25,B37),0) -> 1.50 | G37: =MAX(TREND(G24:G25,$B24:$B25,$B37),0) -> 4,067,338 | H37: =MAX(TREND(H24:H25,$B24:$B25,$B37),0) -> 4,067,338 | I37: =MIN(MAX(TREND(I24:I25,B24:B25,B37),0),1) -> 20.0% | J37: =MIN(MAX(TREND(J24:J25,B24:B25,B37),0),1) -> 20.0% | K37: =MAX(TREND(K24:K25,B24:B25,B37),0) -> 0 | L37: =MAX(TREND(L24:L25,B24:B25,B37),0) -> 0 | M37: =IFERROR(IF(INDEX(HwyTransitModelGroup,A18,1)=Hwy,C37*E37/G37,K37/G37),0) -> 0.75 | N37: =IFERROR(IF(INDEX(HwyTransitModelGroup,A18,1)=Hwy,D37*F37/H37,L37/H37),0) -> 0.18 | O37: =TREND(O24:O25,$B24:$B25,$B37) -> 4,067,338 | P37: =IF(INDEX(HwyTransitModelGroup,A18,1)=Hwy,G37*M37*(I37*ValTimeTruck+(1-I37)*ValTimeAuto)-O37*N37*(J37*ValTimeTruck+(1-J37)*ValTimeAuto),G37*IF(INDEX(NoTransit20,A18)=TRUE,INDEX(DivIndTrips,A18,4)/IF(INDEX(DivIndTrips,A18,3)=0,1,INDEX(DivIndTrips,A18,3)),M37)*ValTimeAuto-O37*N37*ValTimeAuto)*(1+TTUprater)^($B37-YearCurrent) -> $47,851,416 | Q37: $47,851,416 | R37: $17,343,555 | T37: =TREND(T24:T25,$B24:$B25,$B37) -> 2,318,383 | V37: 2038 | W37: $14,578,734 | Y37: =SUM($W37:X37) -> $14,578,734 | AA37: $49,275,133 | AC37: =SUM($W81:X81) -> 2,387,361
B38: 2036 | C38: =MAX(TREND(C24:C25,B24:B25,B38),0) -> 2,053,838 | D38: =MAX(TREND(D24:D25,B24:B25,B38),0) -> 492,921 | E38: =MAX(TREND(E24:E25,B24:B25,B38),0) -> 1.50 | F38: =MAX(TREND(F24:F25,B24:B25,B38),0) -> 1.50 | G38: =MAX(TREND(G24:G25,$B24:$B25,$B38),0) -> 4,107,676 | H38: =MAX(TREND(H24:H25,$B24:$B25,$B38),0) -> 4,107,676 | I38: =MIN(MAX(TREND(I24:I25,B24:B25,B38),0),1) -> 20.0% | J38: =MIN(MAX(TREND(J24:J25,B24:B25,B38),0),1) -> 20.0% | K38: =MAX(TREND(K24:K25,B24:B25,B38),0) -> 0 | L38: =MAX(TREND(L24:L25,B24:B25,B38),0) -> 0 | M38: =IFERROR(IF(INDEX(HwyTransitModelGroup,A18,1)=Hwy,C38*E38/G38,K38/G38),0) -> 0.75 | N38: =IFERROR(IF(INDEX(HwyTransitModelGroup,A18,1)=Hwy,D38*F38/H38,L38/H38),0) -> 0.18 | O38: =TREND(O24:O25,$B24:$B25,$B38) -> 4,107,676 | P38: =IF(INDEX(HwyTransitModelGroup,A18,1)=Hwy,G38*M38*(I38*ValTimeTruck+(1-I38)*ValTimeAuto)-O38*N38*(J38*ValTimeTruck+(1-J38)*ValTimeAuto),G38*IF(INDEX(NoTransit20,A18)=TRUE,INDEX(DivIndTrips,A18,4)/IF(INDEX(DivIndTrips,A18,3)=0,1,INDEX(DivIndTrips,A18,3)),M38)*ValTimeAuto-O38*N38*ValTimeAuto)*(1+TTUprater)^($B38-YearCurrent) -> $48,325,988 | Q38: $48,325,988 | R38: $16,369,684 | T38: =TREND(T24:T25,$B24:$B25,$B38) -> 2,341,375 | V38: 2039 | W38: $13,756,208 | Y38: =SUM($W38:X38) -> $13,756,208 | AA38: $49,749,705 | AC38: =SUM($W82:X82) -> 2,410,354
B39: 2037 | C39: =MAX(TREND(C24:C25,B24:B25,B39),0) -> 2,074,007 | D39: =MAX(TREND(D24:D25,B24:B25,B39),0) -> 497,762 | E39: =MAX(TREND(E24:E25,B24:B25,B39),0) -> 1.50 | F39: =MAX(TREND(F24:F25,B24:B25,B39),0) -> 1.50 | G39: =MAX(TREND(G24:G25,$B24:$B25,$B39),0) -> 4,148,014 | H39: =MAX(TREND(H24:H25,$B24:$B25,$B39),0) -> 4,148,014 | I39: =MIN(MAX(TREND(I24:I25,B24:B25,B39),0),1) -> 20.0% | J39: =MIN(MAX(TREND(J24:J25,B24:B25,B39),0),1) -> 20.0% | K39: =MAX(TREND(K24:K25,B24:B25,B39),0) -> 0 | L39: =MAX(TREND(L24:L25,B24:B25,B39),0) -> 0 | M39: =IFERROR(IF(INDEX(HwyTransitModelGroup,A18,1)=Hwy,C39*E39/G39,K39/G39),0) -> 0.75 | N39: =IFERROR(IF(INDEX(HwyTransitModelGroup,A18,1)=Hwy,D39*F39/H39,L39/H39),0) -> 0.18 | O39: =TREND(O24:O25,$B24:$B25,$B39) -> 4,148,014 | P39: =IF(INDEX(HwyTransitModelGroup,A18,1)=Hwy,G39*M39*(I39*ValTimeTruck+(1-I39)*ValTimeAuto)-O39*N39*(J39*ValTimeTruck+(1-J39)*ValTimeAuto),G39*IF(INDEX(NoTransit20,A18)=TRUE,INDEX(DivIndTrips,A18,4)/IF(INDEX(DivIndTrips,A18,3)=0,1,INDEX(DivIndTrips,A18,3)),M39)*ValTimeAuto-O39*N39*ValTimeAuto)*(1+TTUprater)^($B39-YearCurrent) -> $48,800,560 | Q39: $48,800,560 | R39: $15,449,008 | T39: =TREND(T24:T25,$B24:$B25,$B39) -> 2,364,368 | V39: 2040 | W39: $12,978,908 | Y39: =SUM($W39:X39) -> $12,978,908 | AA39: $50,224,277 | AC39: =SUM($W83:X83) -> 2,433,347
B40: 2038 | C40: =MAX(TREND(C24:C25,B24:B25,B40),0) -> 2,094,176 | D40: =MAX(TREND(D24:D25,B24:B25,B40),0) -> 502,602 | E40: =MAX(TREND(E24:E25,B24:B25,B40),0) -> 1.50 | F40: =MAX(TREND(F24:F25,B24:B25,B40),0) -> 1.50 | G40: =MAX(TREND(G24:G25,$B24:$B25,$B40),0) -> 4,188,353 | H40: =MAX(TREND(H24:H25,$B24:$B25,$B40),0) -> 4,188,353 | I40: =MIN(MAX(TREND(I24:I25,B24:B25,B40),0),1) -> 20.0% | J40: =MIN(MAX(TREND(J24:J25,B24:B25,B40),0),1) -> 20.0% | K40: =MAX(TREND(K24:K25,B24:B25,B40),0) -> 0 | L40: =MAX(TREND(L24:L25,B24:B25,B40),0) -> 0 | M40: =IFERROR(IF(INDEX(HwyTransitModelGroup,A18,1)=Hwy,C40*E40/G40,K40/G40),0) -> 0.75 | N40: =IFERROR(IF(INDEX(HwyTransitModelGroup,A18,1)=Hwy,D40*F40/H40,L40/H40),0) -> 0.18 | O40: =TREND(O24:O25,$B24:$B25,$B40) -> 4,188,353 | P40: =IF(INDEX(HwyTransitModelGroup,A18,1)=Hwy,G40*M40*(I40*ValTimeTruck+(1-I40)*ValTimeAuto)-O40*N40*(J40*ValTimeTruck+(1-J40)*ValTimeAuto),G40*IF(INDEX(NoTransit20,A18)=TRUE,INDEX(DivIndTrips,A18,4)/IF(INDEX(DivIndTrips,A18,3)=0,1,INDEX(DivIndTrips,A18,3)),M40)*ValTimeAuto-O40*N40*ValTimeAuto)*(1+TTUprater)^($B40-YearCurrent) -> $49,275,133 | Q40: $49,275,133 | R40: $14,578,734 | T40: =TREND(T24:T25,$B24:$B25,$B40) -> 2,387,361 | V40: 2041 | W40: $12,244,436 | Y40: =SUM($W40:X40) -> $12,244,436 | AA40: $50,698,849 | AC40: =SUM($W84:X84) -> 2,456,340
B41: 2039 | C41: =MAX(TREND(C24:C25,B24:B25,B41),0) -> 2,114,346 | D41: =MAX(TREND(D24:D25,B24:B25,B41),0) -> 507,443 | E41: =MAX(TREND(E24:E25,B24:B25,B41),0) -> 1.50 | F41: =MAX(TREND(F24:F25,B24:B25,B41),0) -> 1.50 | G41: =MAX(TREND(G24:G25,$B24:$B25,$B41),0) -> 4,228,691 | H41: =MAX(TREND(H24:H25,$B24:$B25,$B41),0) -> 4,228,691 | I41: =MIN(MAX(TREND(I24:I25,B24:B25,B41),0),1) -> 20.0% | J41: =MIN(MAX(TREND(J24:J25,B24:B25,B41),0),1) -> 20.0% | K41: =MAX(TREND(K24:K25,B24:B25,B41),0) -> 0 | L41: =MAX(TREND(L24:L25,B24:B25,B41),0) -> 0 | M41: =IFERROR(IF(INDEX(HwyTransitModelGroup,A18,1)=Hwy,C41*E41/G41,K41/G41),0) -> 0.75 | N41: =IFERROR(IF(INDEX(HwyTransitModelGroup,A18,1)=Hwy,D41*F41/H41,L41/H41),0) -> 0.18 | O41: =TREND(O24:O25,$B24:$B25,$B41) -> 4,228,691 | P41: =IF(INDEX(HwyTransitModelGroup,A18,1)=Hwy,G41*M41*(I41*ValTimeTruck+(1-I41)*ValTimeAuto)-O41*N41*(J41*ValTimeTruck+(1-J41)*ValTimeAuto),G41*IF(INDEX(NoTransit20,A18)=TRUE,INDEX(DivIndTrips,A18,4)/IF(INDEX(DivIndTrips,A18,3)=0,1,INDEX(DivIndTrips,A18,3)),M41)*ValTimeAuto-O41*N41*ValTimeAuto)*(1+TTUprater)^($B41-YearCurrent) -> $49,749,705 | Q41: $49,749,705 | R41: $13,756,208 | T41: =TREND(T24:T25,$B24:$B25,$B41) -> 2,410,354 | V41: 2042 | W41: $11,550,515 | Y41: =SUM($W41:X41) -> $11,550,515 | AA41: $51,173,422 | AC41: =SUM($W85:X85) -> 2,479,332
B42: 2040 | C42: =MAX(TREND(C24:C25,B24:B25,B42),0) -> 2,134,515 | D42: =MAX(TREND(D24:D25,B24:B25,B42),0) -> 512,284 | E42: =MAX(TREND(E24:E25,B24:B25,B42),0) -> 1.50 | F42: =MAX(TREND(F24:F25,B24:B25,B42),0) -> 1.50 | G42: =MAX(TREND(G24:G25,$B24:$B25,$B42),0) -> 4,269,029 | H42: =MAX(TREND(H24:H25,$B24:$B25,$B42),0) -> 4,269,029 | I42: =MIN(MAX(TREND(I24:I25,B24:B25,B42),0),1) -> 20.0% | J42: =MIN(MAX(TREND(J24:J25,B24:B25,B42),0),1) -> 20.0% | K42: =MAX(TREND(K24:K25,B24:B25,B42),0) -> 0 | L42: =MAX(TREND(L24:L25,B24:B25,B42),0) -> 0 | M42: =IFERROR(IF(INDEX(HwyTransitModelGroup,A18,1)=Hwy,C42*E42/G42,K42/G42),0) -> 0.75 | N42: =IFERROR(IF(INDEX(HwyTransitModelGroup,A18,1)=Hwy,D42*F42/H42,L42/H42),0) -> 0.18 | O42: =TREND(O24:O25,$B24:$B25,$B42) -> 4,269,029 | P42: =IF(INDEX(HwyTransitModelGroup,A18,1)=Hwy,G42*M42*(I42*ValTimeTruck+(1-I42)*ValTimeAuto)-O42*N42*(J42*ValTimeTruck+(1-J42)*ValTimeAuto),G42*IF(INDEX(NoTransit20,A18)=TRUE,INDEX(DivIndTrips,A18,4)/IF(INDEX(DivIndTrips,A18,3)=0,1,INDEX(DivIndTrips,A18,3)),M42)*ValTimeAuto-O42*N42*ValTimeAuto)*(1+TTUprater)^($B42-YearCurrent) -> $50,224,277 | Q42: $50,224,277 | R42: $12,978,908 | T42: =TREND(T24:T25,$B24:$B25,$B42) -> 2,433,347 | V42: 2043 | W42: $10,894,983 | Y42: =SUM($W42:X42) -> $10,894,983 | AA42: $51,647,994 | AC42: =SUM($W86:X86) -> 2,502,325
B43: 2041 | C43: =MAX(TREND(C24:C25,B24:B25,B43),0) -> 2,154,684 | D43: =MAX(TREND(D24:D25,B24:B25,B43),0) -> 517,124 | E43: =MAX(TREND(E24:E25,B24:B25,B43),0) -> 1.50 | F43: =MAX(TREND(F24:F25,B24:B25,B43),0) -> 1.50 | G43: =MAX(TREND(G24:G25,$B24:$B25,$B43),0) -> 4,309,368 | H43: =MAX(TREND(H24:H25,$B24:$B25,$B43),0) -> 4,309,368 | I43: =MIN(MAX(TREND(I24:I25,B24:B25,B43),0),1) -> 20.0% | J43: =MIN(MAX(TREND(J24:J25,B24:B25,B43),0),1) -> 20.0% | K43: =MAX(TREND(K24:K25,B24:B25,B43),0) -> 0 | L43: =MAX(TREND(L24:L25,B24:B25,B43),0) -> 0 | M43: =IFERROR(IF(INDEX(HwyTransitModelGroup,A18,1)=Hwy,C43*E43/G43,K43/G43),0) -> 0.75 | N43: =IFERROR(IF(INDEX(HwyTransitModelGroup,A18,1)=Hwy,D43*F43/H43,L43/H43),0) -> 0.18 | O43: =TREND(O24:O25,$B24:$B25,$B43) -> 4,309,368 | P43: =IF(INDEX(HwyTransitModelGroup,A18,1)=Hwy,G43*M43*(I43*ValTimeTruck+(1-I43)*ValTimeAuto)-O43*N43*(J43*ValTimeTruck+(1-J43)*ValTimeAuto),G43*IF(INDEX(NoTransit20,A18)=TRUE,INDEX(DivIndTrips,A18,4)/IF(INDEX(DivIndTrips,A18,3)=0,1,INDEX(DivIndTrips,A18,3)),M43)*ValTimeAuto-O43*N43*ValTimeAuto)*(1+TTUprater)^($B43-YearCurrent) -> $50,698,849 | Q43: $50,698,849 | R43: $12,244,436 | T43: =TREND(T24:T25,$B24:$B25,$B43) -> 2,456,340 | V43: 2044 | W43: $10,275,788 | Y43: =SUM($W43:X43) -> $10,275,788 | AA43: $52,122,566 | AC43: =SUM($W87:X87) -> 2,525,318
B44: 2042 | C44: =MAX(TREND(C24:C25,B24:B25,B44),0) -> 2,174,853 | D44: =MAX(TREND(D24:D25,B24:B25,B44),0) -> 521,965 | E44: =MAX(TREND(E24:E25,B24:B25,B44),0) -> 1.50 | F44: =MAX(TREND(F24:F25,B24:B25,B44),0) -> 1.50 | G44: =MAX(TREND(G24:G25,$B24:$B25,$B44),0) -> 4,349,706 | H44: =MAX(TREND(H24:H25,$B24:$B25,$B44),0) -> 4,349,706 | I44: =MIN(MAX(TREND(I24:I25,B24:B25,B44),0),1) -> 20.0% | J44: =MIN(MAX(TREND(J24:J25,B24:B25,B44),0),1) -> 20.0% | K44: =MAX(TREND(K24:K25,B24:B25,B44),0) -> 0 | L44: =MAX(TREND(L24:L25,B24:B25,B44),0) -> 0 | M44: =IFERROR(IF(INDEX(HwyTransitModelGroup,A18,1)=Hwy,C44*E44/G44,K44/G44),0) -> 0.75 | N44: =IFERROR(IF(INDEX(HwyTransitModelGroup,A18,1)=Hwy,D44*F44/H44,L44/H44),0) -> 0.18 | O44: =TREND(O24:O25,$B24:$B25,$B44) -> 4,349,706 | P44: =IF(INDEX(HwyTransitModelGroup,A18,1)=Hwy,G44*M44*(I44*ValTimeTruck+(1-I44)*ValTimeAuto)-O44*N44*(J44*ValTimeTruck+(1-J44)*ValTimeAuto),G44*IF(INDEX(NoTransit20,A18)=TRUE,INDEX(DivIndTrips,A18,4)/IF(INDEX(DivIndTrips,A18,3)=0,1,INDEX(DivIndTrips,A18,3)),M44)*ValTimeAuto-O44*N44*ValTimeAuto)*(1+TTUprater)^($B44-YearCurrent) -> $51,173,422 | Q44: $51,173,422 | R44: $11,550,515 | T44: =TREND(T24:T25,$B24:$B25,$B44) -> 2,479,332 | V44: 2045 | W44: $9,690,979 | Y44: =SUM($W44:X44) -> $9,690,979 | AA44: $52,597,138 | AC44: =SUM($W88:X88) -> 2,548,311
B45: 2043 | C45: =MAX(TREND(C24:C25,B24:B25,B45),0) -> 2,195,022 | D45: =MAX(TREND(D24:D25,B24:B25,B45),0) -> 526,805 | E45: =MAX(TREND(E24:E25,B24:B25,B45),0) -> 1.50 | F45: =MAX(TREND(F24:F25,B24:B25,B45),0) -> 1.50 | G45: =MAX(TREND(G24:G25,$B24:$B25,$B45),0) -> 4,390,044 | H45: =MAX(TREND(H24:H25,$B24:$B25,$B45),0) -> 4,390,044 | I45: =MIN(MAX(TREND(I24:I25,B24:B25,B45),0),1) -> 20.0% | J45: =MIN(MAX(TREND(J24:J25,B24:B25,B45),0),1) -> 20.0% | K45: =MAX(TREND(K24:K25,B24:B25,B45),0) -> 0 | L45: =MAX(TREND(L24:L25,B24:B25,B45),0) -> 0 | M45: =IFERROR(IF(INDEX(HwyTransitModelGroup,A18,1)=Hwy,C45*E45/G45,K45/G45),0) -> 0.75 | N45: =IFERROR(IF(INDEX(HwyTransitModelGroup,A18,1)=Hwy,D45*F45/H45,L45/H45),0) -> 0.18 | O45: =TREND(O24:O25,$B24:$B25,$B45) -> 4,390,044 | P45: =IF(INDEX(HwyTransitModelGroup,A18,1)=Hwy,G45*M45*(I45*ValTimeTruck+(1-I45)*ValTimeAuto)-O45*N45*(J45*ValTimeTruck+(1-J45)*ValTimeAuto),G45*IF(INDEX(NoTransit20,A18)=TRUE,INDEX(DivIndTrips,A18,4)/IF(INDEX(DivIndTrips,A18,3)=0,1,INDEX(DivIndTrips,A18,3)),M45)*ValTimeAuto-O45*N45*ValTimeAuto)*(1+TTUprater)^($B45-YearCurrent) -> $51,647,994 | Q45: $51,647,994 | R45: $10,894,983 | T45: =TREND(T24:T25,$B24:$B25,$B45) -> 2,502,325 | V45: 2046 | W45: $9,138,709 | Y45: =SUM($W45:X45) -> $9,138,709 | AA45: $53,071,710 | AC45: =SUM($W89:X89) -> 2,571,304
B46: 2044 | C46: =MAX(TREND(C24:C25,B24:B25,B46),0) -> 2,215,191 | D46: =MAX(TREND(D24:D25,B24:B25,B46),0) -> 531,646 | E46: =MAX(TREND(E24:E25,B24:B25,B46),0) -> 1.50 | F46: =MAX(TREND(F24:F25,B24:B25,B46),0) -> 1.50 | G46: =MAX(TREND(G24:G25,$B24:$B25,$B46),0) -> 4,430,383 | H46: =MAX(TREND(H24:H25,$B24:$B25,$B46),0) -> 4,430,383 | I46: =MIN(MAX(TREND(I24:I25,B24:B25,B46),0),1) -> 20.0% | J46: =MIN(MAX(TREND(J24:J25,B24:B25,B46),0),1) -> 20.0% | K46: =MAX(TREND(K24:K25,B24:B25,B46),0) -> 0 | L46: =MAX(TREND(L24:L25,B24:B25,B46),0) -> 0 | M46: =IFERROR(IF(INDEX(HwyTransitModelGroup,A18,1)=Hwy,C46*E46/G46,K46/G46),0) -> 0.75 | N46: =IFERROR(IF(INDEX(HwyTransitModelGroup,A18,1)=Hwy,D46*F46/H46,L46/H46),0) -> 0.18 | O46: =TREND(O24:O25,$B24:$B25,$B46) -> 4,430,383 | P46: =IF(INDEX(HwyTransitModelGroup,A18,1)=Hwy,G46*M46*(I46*ValTimeTruck+(1-I46)*ValTimeAuto)-O46*N46*(J46*ValTimeTruck+(1-J46)*ValTimeAuto),G46*IF(INDEX(NoTransit20,A18)=TRUE,INDEX(DivIndTrips,A18,4)/IF(INDEX(DivIndTrips,A18,3)=0,1,INDEX(DivIndTrips,A18,3)),M46)*ValTimeAuto-O46*N46*ValTimeAuto)*(1+TTUprater)^($B46-YearCurrent) -> $52,122,566 | Q46: $52,122,566 | R46: $10,275,788 | T46: =TREND(T24:T25,$B24:$B25,$B46) -> 2,525,318 | V46: 2047 | W46: $8,617,223 | Y46: =SUM($W46:X46) -> $8,617,223 | AA46: $53,546,283 | AC46: =SUM($W90:X90) -> 2,594,297
B47: 2045 | C47: =MAX(TREND(C24:C25,B24:B25,B47),0) -> 2,235,360 | D47: =MAX(TREND(D24:D25,B24:B25,B47),0) -> 536,487 | E47: =MAX(TREND(E24:E25,B24:B25,B47),0) -> 1.50 | F47: =MAX(TREND(F24:F25,B24:B25,B47),0) -> 1.50 | G47: =MAX(TREND(G24:G25,$B24:$B25,$B47),0) -> 4,470,721 | H47: =MAX(TREND(H24:H25,$B24:$B25,$B47),0) -> 4,470,721 | I47: =MIN(MAX(TREND(I24:I25,B24:B25,B47),0),1) -> 20.0% | J47: =MIN(MAX(TREND(J24:J25,B24:B25,B47),0),1) -> 20.0% | K47: =MAX(TREND(K24:K25,B24:B25,B47),0) -> 0 | L47: =MAX(TREND(L24:L25,B24:B25,B47),0) -> 0 | M47: =IFERROR(IF(INDEX(HwyTransitModelGroup,A18,1)=Hwy,C47*E47/G47,K47/G47),0) -> 0.75 | N47: =IFERROR(IF(INDEX(HwyTransitModelGroup,A18,1)=Hwy,D47*F47/H47,L47/H47),0) -> 0.18 | O47: =TREND(O24:O25,$B24:$B25,$B47) -> 4,470,721 | P47: =IF(INDEX(HwyTransitModelGroup,A18,1)=Hwy,G47*M47*(I47*ValTimeTruck+(1-I47)*ValTimeAuto)-O47*N47*(J47*ValTimeTruck+(1-J47)*ValTimeAuto),G47*IF(INDEX(NoTransit20,A18)=TRUE,INDEX(DivIndTrips,A18,4)/IF(INDEX(DivIndTrips,A18,3)=0,1,INDEX(DivIndTrips,A18,3)),M47)*ValTimeAuto-O47*N47*ValTimeAuto)*(1+TTUprater)^($B47-YearCurrent) -> $52,597,138 | Q47: $52,597,138 | R47: $9,690,979 | T47: =TREND(T24:T25,$B24:$B25,$B47) -> 2,548,311 | V47: 2048 | W47: $8,124,856 | Y47: =SUM($W47:X47) -> $8,124,856 | AA47: $54,020,855 | AC47: =SUM($W91:X91) -> 2,617,289
B48: 2046 | C48: =MAX(TREND(C24:C25,B24:B25,B48),0) -> 2,255,530 | D48: =MAX(TREND(D24:D25,B24:B25,B48),0) -> 541,327 | E48: =MAX(TREND(E24:E25,B24:B25,B48),0) -> 1.50 | F48: =MAX(TREND(F24:F25,B24:B25,B48),0) -> 1.50 | G48: =MAX(TREND(G24:G25,$B24:$B25,$B48),0) -> 4,511,059 | H48: =MAX(TREND(H24:H25,$B24:$B25,$B48),0) -> 4,511,059 | I48: =MIN(MAX(TREND(I24:I25,B24:B25,B48),0),1) -> 20.0% | J48: =MIN(MAX(TREND(J24:J25,B24:B25,B48),0),1) -> 20.0% | K48: =MAX(TREND(K24:K25,B24:B25,B48),0) -> 0 | L48: =MAX(TREND(L24:L25,B24:B25,B48),0) -> 0 | M48: =IFERROR(IF(INDEX(HwyTransitModelGroup,A18,1)=Hwy,C48*E48/G48,K48/G48),0) -> 0.75 | N48: =IFERROR(IF(INDEX(HwyTransitModelGroup,A18,1)=Hwy,D48*F48/H48,L48/H48),0) -> 0.18 | O48: =TREND(O24:O25,$B24:$B25,$B48) -> 4,511,059 | P48: =IF(INDEX(HwyTransitModelGroup,A18,1)=Hwy,G48*M48*(I48*ValTimeTruck+(1-I48)*ValTimeAuto)-O48*N48*(J48*ValTimeTruck+(1-J48)*ValTimeAuto),G48*IF(INDEX(NoTransit20,A18)=TRUE,INDEX(DivIndTrips,A18,4)/IF(INDEX(DivIndTrips,A18,3)=0,1,INDEX(DivIndTrips,A18,3)),M48)*ValTimeAuto-O48*N48*ValTimeAuto)*(1+TTUprater)^($B48-YearCurrent) -> $53,071,710 | Q48: $53,071,710 | R48: $9,138,709 | T48: =TREND(T24:T25,$B24:$B25,$B48) -> 2,571,304 | V48: 2049 | W48: $7,660,031 | Y48: =SUM($W48:X48) -> $7,660,031 | AA48: $54,495,427 | AC48: =SUM($W92:X92) -> 2,640,282
B49: 2047 | C49: =MAX(TREND(C24:C25,B24:B25,B49),0) -> 2,275,699 | D49: =MAX(TREND(D24:D25,B24:B25,B49),0) -> 546,168 | E49: =MAX(TREND(E24:E25,B24:B25,B49),0) -> 1.50 | F49: =MAX(TREND(F24:F25,B24:B25,B49),0) -> 1.50 | G49: =MAX(TREND(G24:G25,$B24:$B25,$B49),0) -> 4,551,398 | H49: =MAX(TREND(H24:H25,$B24:$B25,$B49),0) -> 4,551,398 | I49: =MIN(MAX(TREND(I24:I25,B24:B25,B49),0),1) -> 20.0% | J49: =MIN(MAX(TREND(J24:J25,B24:B25,B49),0),1) -> 20.0% | K49: =MAX(TREND(K24:K25,B24:B25,B49),0) -> 0 | L49: =MAX(TREND(L24:L25,B24:B25,B49),0) -> 0 | M49: =IFERROR(IF(INDEX(HwyTransitModelGroup,A18,1)=Hwy,C49*E49/G49,K49/G49),0) -> 0.75 | N49: =IFERROR(IF(INDEX(HwyTransitModelGroup,A18,1)=Hwy,D49*F49/H49,L49/H49),0) -> 0.18 | O49: =TREND(O24:O25,$B24:$B25,$B49) -> 4,551,398 | P49: =IF(INDEX(HwyTransitModelGroup,A18,1)=Hwy,G49*M49*(I49*ValTimeTruck+(1-I49)*ValTimeAuto)-O49*N49*(J49*ValTimeTruck+(1-J49)*ValTimeAuto),G49*IF(INDEX(NoTransit20,A18)=TRUE,INDEX(DivIndTrips,A18,4)/IF(INDEX(DivIndTrips,A18,3)=0,1,INDEX(DivIndTrips,A18,3)),M49)*ValTimeAuto-O49*N49*ValTimeAuto)*(1+TTUprater)^($B49-YearCurrent) -> $53,546,283 | Q49: $53,546,283 | R49: $8,617,223 | T49: =TREND(T24:T25,$B24:$B25,$B49) -> 2,594,297 | V49: 2050 | W49: $7,221,250 | Y49: =SUM($W49:X49) -> $7,221,250 | AA49: $54,969,999 | AC49: =SUM($W93:X93) -> 2,663,275
B50: 2048 | C50: =MAX(TREND(C24:C25,B24:B25,B50),0) -> 2,295,868 | D50: =MAX(TREND(D24:D25,B24:B25,B50),0) -> 551,008 | E50: =MAX(TREND(E24:E25,B24:B25,B50),0) -> 1.50 | F50: =MAX(TREND(F24:F25,B24:B25,B50),0) -> 1.50 | G50: =MAX(TREND(G24:G25,$B24:$B25,$B50),0) -> 4,591,736 | H50: =MAX(TREND(H24:H25,$B24:$B25,$B50),0) -> 4,591,736 | I50: =MIN(MAX(TREND(I24:I25,B24:B25,B50),0),1) -> 20.0% | J50: =MIN(MAX(TREND(J24:J25,B24:B25,B50),0),1) -> 20.0% | K50: =MAX(TREND(K24:K25,B24:B25,B50),0) -> 0 | L50: =MAX(TREND(L24:L25,B24:B25,B50),0) -> 0 | M50: =IFERROR(IF(INDEX(HwyTransitModelGroup,A18,1)=Hwy,C50*E50/G50,K50/G50),0) -> 0.75 | N50: =IFERROR(IF(INDEX(HwyTransitModelGroup,A18,1)=Hwy,D50*F50/H50,L50/H50),0) -> 0.18 | O50: =TREND(O24:O25,$B24:$B25,$B50) -> 4,591,736 | P50: =IF(INDEX(HwyTransitModelGroup,A18,1)=Hwy,G50*M50*(I50*ValTimeTruck+(1-I50)*ValTimeAuto)-O50*N50*(J50*ValTimeTruck+(1-J50)*ValTimeAuto),G50*IF(INDEX(NoTransit20,A18)=TRUE,INDEX(DivIndTrips,A18,4)/IF(INDEX(DivIndTrips,A18,3)=0,1,INDEX(DivIndTrips,A18,3)),M50)*ValTimeAuto-O50*N50*ValTimeAuto)*(1+TTUprater)^($B50-YearCurrent) -> $54,020,855 | Q50: $54,020,855 | R50: $8,124,856 | T50: =TREND(T24:T25,$B24:$B25,$B50) -> 2,617,289 | V50: 2051 | W50: $6,807,097 | Y50: =SUM($W50:X50) -> $6,807,097 | AA50: $55,444,572 | AC50: =SUM($W94:X94) -> 2,686,268
B51: 2049 | C51: =MAX(TREND(C24:C25,B24:B25,B51),0) -> 2,316,037 | D51: =MAX(TREND(D24:D25,B24:B25,B51),0) -> 555,849 | E51: =MAX(TREND(E24:E25,B24:B25,B51),0) -> 1.50 | F51: =MAX(TREND(F24:F25,B24:B25,B51),0) -> 1.50 | G51: =MAX(TREND(G24:G25,$B24:$B25,$B51),0) -> 4,632,074 | H51: =MAX(TREND(H24:H25,$B24:$B25,$B51),0) -> 4,632,074 | I51: =MIN(MAX(TREND(I24:I25,B24:B25,B51),0),1) -> 20.0% | J51: =MIN(MAX(TREND(J24:J25,B24:B25,B51),0),1) -> 20.0% | K51: =MAX(TREND(K24:K25,B24:B25,B51),0) -> 0 | L51: =MAX(TREND(L24:L25,B24:B25,B51),0) -> 0 | M51: =IFERROR(IF(INDEX(HwyTransitModelGroup,A18,1)=Hwy,C51*E51/G51,K51/G51),0) -> 0.75 | N51: =IFERROR(IF(INDEX(HwyTransitModelGroup,A18,1)=Hwy,D51*F51/H51,L51/H51),0) -> 0.18 | O51: =TREND(O24:O25,$B24:$B25,$B51) -> 4,632,074 | P51: =IF(INDEX(HwyTransitModelGroup,A18,1)=Hwy,G51*M51*(I51*ValTimeTruck+(1-I51)*ValTimeAuto)-O51*N51*(J51*ValTimeTruck+(1-J51)*ValTimeAuto),G51*IF(INDEX(NoTransit20,A18)=TRUE,INDEX(DivIndTrips,A18,4)/IF(INDEX(DivIndTrips,A18,3)=0,1,INDEX(DivIndTrips,A18,3)),M51)*ValTimeAuto-O51*N51*ValTimeAuto)*(1+TTUprater)^($B51-YearCurrent) -> $54,495,427 | Q51: $54,495,427 | R51: $7,660,031 | T51: =TREND(T24:T25,$B24:$B25,$B51) -> 2,640,282 | V51: 2052 | W51: $6,416,226 | Y51: =SUM($W51:X51) -> $6,416,226 | AA51: $55,919,144 | AC51: =SUM($W95:X95) -> 2,709,261
B52: 2050 | C52: =MAX(TREND(C24:C25,B24:B25,B52),0) -> 2,336,206 | D52: =MAX(TREND(D24:D25,B24:B25,B52),0) -> 560,690 | E52: =MAX(TREND(E24:E25,B24:B25,B52),0) -> 1.50 | F52: =MAX(TREND(F24:F25,B24:B25,B52),0) -> 1.50 | G52: =MAX(TREND(G24:G25,$B24:$B25,$B52),0) -> 4,672,413 | H52: =MAX(TREND(H24:H25,$B24:$B25,$B52),0) -> 4,672,413 | I52: =MIN(MAX(TREND(I24:I25,B24:B25,B52),0),1) -> 20.0% | J52: =MIN(MAX(TREND(J24:J25,B24:B25,B52),0),1) -> 20.0% | K52: =MAX(TREND(K24:K25,B24:B25,B52),0) -> 0 | L52: =MAX(TREND(L24:L25,B24:B25,B52),0) -> 0 | M52: =IFERROR(IF(INDEX(HwyTransitModelGroup,A18,1)=Hwy,C52*E52/G52,K52/G52),0) -> 0.75 | N52: =IFERROR(IF(INDEX(HwyTransitModelGroup,A18,1)=Hwy,D52*F52/H52,L52/H52),0) -> 0.18 | O52: =TREND(O24:O25,$B24:$B25,$B52) -> 4,672,413 | P52: =IF(INDEX(HwyTransitModelGroup,A18,1)=Hwy,G52*M52*(I52*ValTimeTruck+(1-I52)*ValTimeAuto)-O52*N52*(J52*ValTimeTruck+(1-J52)*ValTimeAuto),G52*IF(INDEX(NoTransit20,A18)=TRUE,INDEX(DivIndTrips,A18,4)/IF(INDEX(DivIndTrips,A18,3)=0,1,INDEX(DivIndTrips,A18,3)),M52)*ValTimeAuto-O52*N52*ValTimeAuto)*(1+TTUprater)^($B52-YearCurrent) -> $54,969,999 | Q52: $54,969,999 | R52: $7,221,250 | T52: =TREND(T24:T25,$B24:$B25,$B52) -> 2,663,275 | V52: 2053 | W52: $6,047,363 | Y52: =SUM($W52:X52) -> $6,047,363 | AA52: $56,393,716 | AC52: =SUM($W96:X96) -> 2,732,254
B53: 2051 | C53: =MAX(TREND(C24:C25,B24:B25,B53),0) -> 2,356,375 | D53: =MAX(TREND(D24:D25,B24:B25,B53),0) -> 565,530 | E53: =MAX(TREND(E24:E25,B24:B25,B53),0) -> 1.50 | F53: =MAX(TREND(F24:F25,B24:B25,B53),0) -> 1.50 | G53: =MAX(TREND(G24:G25,$B24:$B25,$B53),0) -> 4,712,751 | H53: =MAX(TREND(H24:H25,$B24:$B25,$B53),0) -> 4,712,751 | I53: =MIN(MAX(TREND(I24:I25,B24:B25,B53),0),1) -> 20.0% | J53: =MIN(MAX(TREND(J24:J25,B24:B25,B53),0),1) -> 20.0% | K53: =MAX(TREND(K24:K25,B24:B25,B53),0) -> 0 | L53: =MAX(TREND(L24:L25,B24:B25,B53),0) -> 0 | M53: =IFERROR(IF(INDEX(HwyTransitModelGroup,A18,1)=Hwy,C53*E53/G53,K53/G53),0) -> 0.75 | N53: =IFERROR(IF(INDEX(HwyTransitModelGroup,A18,1)=Hwy,D53*F53/H53,L53/H53),0) -> 0.18 | O53: =TREND(O24:O25,$B24:$B25,$B53) -> 4,712,751 | P53: =IF(INDEX(HwyTransitModelGroup,A18,1)=Hwy,G53*M53*(I53*ValTimeTruck+(1-I53)*ValTimeAuto)-O53*N53*(J53*ValTimeTruck+(1-J53)*ValTimeAuto),G53*IF(INDEX(NoTransit20,A18)=TRUE,INDEX(DivIndTrips,A18,4)/IF(INDEX(DivIndTrips,A18,3)=0,1,INDEX(DivIndTrips,A18,3)),M53)*ValTimeAuto-O53*N53*ValTimeAuto)*(1+TTUprater)^($B53-YearCurrent) -> $55,444,572 | Q53: $55,444,572 | R53: $6,807,097 | T53: =TREND(T24:T25,$B24:$B25,$B53) -> 2,686,268 | V53: 2054 | W53: $5,699,303 | Y53: =SUM($W53:X53) -> $5,699,303 | AA53: $56,868,288 | AC53: =SUM($W97:X97) -> 2,755,247
B54: 2052 | C54: =MAX(TREND(C24:C25,B24:B25,B54),0) -> 2,376,545 | D54: =MAX(TREND(D24:D25,B24:B25,B54),0) -> 570,371 | E54: =MAX(TREND(E24:E25,B24:B25,B54),0) -> 1.50 | F54: =MAX(TREND(F24:F25,B24:B25,B54),0) -> 1.50 | G54: =MAX(TREND(G24:G25,$B24:$B25,$B54),0) -> 4,753,089 | H54: =MAX(TREND(H24:H25,$B24:$B25,$B54),0) -> 4,753,089 | I54: =MIN(MAX(TREND(I24:I25,B24:B25,B54),0),1) -> 20.0% | J54: =MIN(MAX(TREND(J24:J25,B24:B25,B54),0),1) -> 20.0% | K54: =MAX(TREND(K24:K25,B24:B25,B54),0) -> 0 | L54: =MAX(TREND(L24:L25,B24:B25,B54),0) -> 0 | M54: =IFERROR(IF(INDEX(HwyTransitModelGroup,A18,1)=Hwy,C54*E54/G54,K54/G54),0) -> 0.75 | N54: =IFERROR(IF(INDEX(HwyTransitModelGroup,A18,1)=Hwy,D54*F54/H54,L54/H54),0) -> 0.18 | O54: =TREND(O24:O25,$B24:$B25,$B54) -> 4,753,089 | P54: =IF(INDEX(HwyTransitModelGroup,A18,1)=Hwy,G54*M54*(I54*ValTimeTruck+(1-I54)*ValTimeAuto)-O54*N54*(J54*ValTimeTruck+(1-J54)*ValTimeAuto),G54*IF(INDEX(NoTransit20,A18)=TRUE,INDEX(DivIndTrips,A18,4)/IF(INDEX(DivIndTrips,A18,3)=0,1,INDEX(DivIndTrips,A18,3)),M54)*ValTimeAuto-O54*N54*ValTimeAuto)*(1+TTUprater)^($B54-YearCurrent) -> $55,919,144 | Q54: $55,919,144 | R54: $6,416,226 | T54: =TREND(T24:T25,$B24:$B25,$B54) -> 2,709,261
B55: 2053 | C55: =MAX(TREND(C24:C25,B24:B25,B55),0) -> 2,396,714 | D55: =MAX(TREND(D24:D25,B24:B25,B55),0) -> 575,211 | E55: =MAX(TREND(E24:E25,B24:B25,B55),0) -> 1.50 | F55: =MAX(TREND(F24:F25,B24:B25,B55),0) -> 1.50 | G55: =MAX(TREND(G24:G25,$B24:$B25,$B55),0) -> 4,793,428 | H55: =MAX(TREND(H24:H25,$B24:$B25,$B55),0) -> 4,793,428 | I55: =MIN(MAX(TREND(I24:I25,B24:B25,B55),0),1) -> 20.0% | J55: =MIN(MAX(TREND(J24:J25,B24:B25,B55),0),1) -> 20.0% | K55: =MAX(TREND(K24:K25,B24:B25,B55),0) -> 0 | L55: =MAX(TREND(L24:L25,B24:B25,B55),0) -> 0 | M55: =IFERROR(IF(INDEX(HwyTransitModelGroup,A18,1)=Hwy,C55*E55/G55,K55/G55),0) -> 0.75 | N55: =IFERROR(IF(INDEX(HwyTransitModelGroup,A18,1)=Hwy,D55*F55/H55,L55/H55),0) -> 0.18 | O55: =TREND(O24:O25,$B24:$B25,$B55) -> 4,793,428 | P55: =IF(INDEX(HwyTransitModelGroup,A18,1)=Hwy,G55*M55*(I55*ValTimeTruck+(1-I55)*ValTimeAuto)-O55*N55*(J55*ValTimeTruck+(1-J55)*ValTimeAuto),G55*IF(INDEX(NoTransit20,A18)=TRUE,INDEX(DivIndTrips,A18,4)/IF(INDEX(DivIndTrips,A18,3)=0,1,INDEX(DivIndTrips,A18,3)),M55)*ValTimeAuto-O55*N55*ValTimeAuto)*(1+TTUprater)^($B55-YearCurrent) -> $56,393,716 | Q55: $56,393,716 | R55: $6,047,363 | T55: =TREND(T24:T25,$B24:$B25,$B55) -> 2,732,254 | V55: Total | W55: =SUM(W24:W53) -> $451,870,613 | Y55: =SUM(Y24:Y53) -> $451,870,613 | AA55: =SUM(AA24:AA53) -> $1,499,609,729 | AC55: =SUM(W99:X99) -> 72,655,510
B56: 2054 | C56: =MAX(TREND(C24:C25,B24:B25,B56),0) -> 2,416,883 | D56: =MAX(TREND(D24:D25,B24:B25,B56),0) -> 580,052 | E56: =MAX(TREND(E24:E25,B24:B25,B56),0) -> 1.50 | F56: =MAX(TREND(F24:F25,B24:B25,B56),0) -> 1.50 | G56: =MAX(TREND(G24:G25,$B24:$B25,$B56),0) -> 4,833,766 | H56: =MAX(TREND(H24:H25,$B24:$B25,$B56),0) -> 4,833,766 | I56: =MIN(MAX(TREND(I24:I25,B24:B25,B56),0),1) -> 20.0% | J56: =MIN(MAX(TREND(J24:J25,B24:B25,B56),0),1) -> 20.0% | K56: =MAX(TREND(K24:K25,B24:B25,B56),0) -> 0 | L56: =MAX(TREND(L24:L25,B24:B25,B56),0) -> 0 | M56: =IFERROR(IF(INDEX(HwyTransitModelGroup,A18,1)=Hwy,C56*E56/G56,K56/G56),0) -> 0.75 | N56: =IFERROR(IF(INDEX(HwyTransitModelGroup,A18,1)=Hwy,D56*F56/H56,L56/H56),0) -> 0.18 | O56: =TREND(O24:O25,$B24:$B25,$B56) -> 4,833,766 | P56: =IF(INDEX(HwyTransitModelGroup,A18,1)=Hwy,G56*M56*(I56*ValTimeTruck+(1-I56)*ValTimeAuto)-O56*N56*(J56*ValTimeTruck+(1-J56)*ValTimeAuto),G56*IF(INDEX(NoTransit20,A18)=TRUE,INDEX(DivIndTrips,A18,4)/IF(INDEX(DivIndTrips,A18,3)=0,1,INDEX(DivIndTrips,A18,3)),M56)*ValTimeAuto-O56*N56*ValTimeAuto)*(1+TTUprater)^($B56-YearCurrent) -> $56,868,288 | Q56: $56,868,288 | R56: $5,699,303 | T56: =TREND(T24:T25,$B24:$B25,$B56) -> 2,755,247
V57: =IF(Induced="Y","","* Induced Travel Not Counted") -> 
B58: Total | R58: =SUM(R27:R56) -> $451,870,613 | T58: =SUM(T27:T56) -> 72,655,510
V59: SUMMARY OF PERSON-HOURS SAVED
W64: 1
W65: =IF(ISBLANK(INDEX(ModelGroup,W64,1)),"Not Used",INDEX(ModelGroup,W64,1)) -> All Vehicles
V66: Year
V68: =YearOpen -> 2025 | W68: =OFFSET($T9,MATCH(W$64,$A:$A),0) -> 2,088,454
V69: =V68+1 -> 2026 | W69: 2,111,447
V70: =V69+1 -> 2027 | W70: 2,134,440
V71: 2028 | W71: 2,157,433
V72: 2029 | W72: 2,180,426
V73: 2030 | W73: 2,203,418
V74: 2031 | W74: 2,226,411
V75: 2032 | W75: 2,249,404
V76: 2033 | W76: 2,272,397
V77: 2034 | W77: 2,295,390
V78: 2035 | W78: 2,318,383
V79: 2036 | W79: 2,341,375
V80: 2037 | W80: 2,364,368
V81: 2038 | W81: 2,387,361
V82: 2039 | W82: 2,410,354
V83: 2040 | W83: 2,433,347
V84: 2041 | W84: 2,456,340
V85: 2042 | W85: 2,479,332
V86: 2043 | W86: 2,502,325
V87: 2044 | W87: 2,525,318
V88: 2045 | W88: 2,548,311
V89: 2046 | W89: 2,571,304
V90: 2047 | W90: 2,594,297
V91: 2048 | W91: 2,617,289
V92: 2049 | W92: 2,640,282
V93: 2050 | W93: 2,663,275
V94: 2051 | W94: 2,686,268
V95: 2052 | W95: 2,709,261
V96: 2053 | W96: 2,732,254
V97: 2054 | W97: 2,755,247
V99: Total | W99: =SUM(W68:W97) -> 72,655,510
V101: =IF(Induced="Y","","* Induced Travel Not Counted") -> 

Sheet Consumer Surplus
B1: Consumer Surplus Benefits
B3: This sheet calculates consumer benefits associated with induced demand.
B5: Formulas: | S5: Present Value = Future Value (in Constant Dollars)
T6: ( 1 + Real Discount Rate) ^ Year
B7: Avg. Travel Time = Total VHT x AVO / Total Person Trips | F7: for hwy | H7: Adj. Person Trips = Total Person Trips - Induced Demand
B8: hrs / person vehicle-hrs / yr | D8: people / veh | E8: trips / yr | H8: trips / yr | I8: trips / yr | J8: trips / yr
B10: Avg. Travel Time = Total PHT / Total Person Trips | F10: for transit | H10: CS Benefit = Diff. in Travel Time x Avg. Value of Time x Diff. in Adj. Person Trips x 0.5
B11: hrs / person passenger-hrs / yr | D11: trips / yr | H11: dollars / year | I11: hrs / trip | J11: dollars / hr | K11: trips / yr
B15: A | C15: CONSUMER SURPLUS BENEFIT (AGGREGATE) | AE15: B | AF15: SUMMARY OF INDUCED DEMAND BENEFITS
C16: Each block of calculations is one mode. Data inputs are aggregated by sum or weighted average. Average vehicle occupancy and percent trucks data averages are weighted by hours, out-of-pocket cost averages are weighted by trips.
A18: 1 | B18: =PARAMETERS!$J$9 -> Bus
C20: TOTAL VHT | E20: AVERAGE VEH OCC | G20: =IF(B18=Hwy,"TOTAL VEHICLE TRIPS","TOTAL PERSON TRIPS") -> TOTAL PERSON TRIPS | I20: PERCENT TRUCKS | K20: TOTAL PHT | M20: AVERAGE TRAVEL TIME | O20: OUT OF POCKET COST | Q20: =IF(B18=Hwy,"TOTAL VEHICLE TRIPS","TOTAL PERSON TRIPS") -> TOTAL PERSON TRIPS | R20: CONSUMER SURPLUS BENEFIT | AF20: 1 | AG20: 2 | AH20: 3 | AI20: 4 | AK20: Present
C21: (veh-hours/yr) | E21: (persons/vehicle) | G21: (trips/yr) | I21: (%) | K21: (per-hours/yr) | M21: (hours/trip) | O21: ($/trip) | Q21: (trips/yr) | R21: ($/yr) | AF21: =OFFSET($B1,MATCH(AF$20,$A:$A)-1,0) -> Bus | AG21: =OFFSET($B1,MATCH(AG$20,$A:$A)-1,0) -> Pass Train | AH21: =OFFSET($B1,MATCH(AH$20,$A:$A)-1,0) -> Light Rail | AI21: =OFFSET($B1,MATCH(AI$20,$A:$A)-1,0) -> Highway | AK21: Value of
B22: Year | Q22: Adjusted (no induced) | R22: New | S22: Constant | T22: Present | AE22: Year | AK22: Induced | AM22: Constant
C23: No Build | D23: Build | E23: No Build | F23: Build | G23: No Build | H23: Build | I23: No Build | J23: Build | K23: No Build | L23: Build | M23: No Build | N23: Build | O23: No Build | P23: Build | Q23: Build | R23: (Induced) | S23: Dollars | T23: Value | AK23: Demand | AM23: Dollars
B24: =YearFirst -> 2025 | C24: =SUMIF(INDEX(HwyTransitModelGroup,,1),B18,INDEX(ModelData1NB,,3))*AnnualFactor -> 0 | D24: =SUMIF(INDEX(HwyTransitModelGroup,,1),B18,INDEX(ModelData1B,,3))*AnnualFactor -> 0 | G24: =SUMIF(INDEX(HwyTransitModelGroup,,1),B18,INDEX(ModelData1NB,,1))*AnnualFactor -> 0 | H24: =SUMIF(INDEX(HwyTransitModelGroup,,1),B18,INDEX(ModelData1B,,1))*AnnualFactor -> 0 | K24: =SUMIF(INDEX(HwyTransitModelGroup,,1),B18,INDEX(ModelData1NB,,5))*AnnualFactor -> 0 | L24: =SUMIF(INDEX(HwyTransitModelGroup,,1),B18,INDEX(ModelData1B,,5))*AnnualFactor -> 0 | M24: =IFERROR(IF(B18=Hwy,C24*E24/G24,K24/G24),0) -> 0.00 | N24: =IFERROR(IF(B18=Hwy,D24*F24/H24,L24/H24),0) -> 0.00 | O24: =IF(E24=0,0,SUMPRODUCT(--(INDEX(HwyTransitModelGroup,,1)=B18),INDEX(ModelData1NB,,6),INDEX(ModelData1NB,,1))/IF(SUMPRODUCT(--(INDEX(HwyTransitModelGroup,,1)=B18),INDEX(ModelData1NB,,1))=0,1,SUMPRODUCT(--(INDEX(HwyTransitModelGroup,,1)=B18),INDEX(ModelData1NB,,1)))) -> $0.00 | P24: =IF(F24=0,0,SUMPRODUCT(--(INDEX(HwyTransitModelGroup,,1)=B18),INDEX(ModelData1B,,6),INDEX(ModelData1B,,1))/IF(SUMPRODUCT(--(INDEX(HwyTransitModelGroup,,1)=B18),INDEX(ModelData1B,,1))=0,1,SUMPRODUCT(--(INDEX(HwyTransitModelGroup,,1)=B18),INDEX(ModelData1B,,1)))) -> $0.00 | Q24: =IFERROR($H24-SUMIF('Consumer Surplus'!$C$197:$C$200,B18,'Consumer Surplus'!$G$197:$G$200),0) -> 0 | R24: =IF(Induced="N",0,(IF(B18=Hwy,M24*(I24*ValTimeTruck+(1-I24)*ValTimeAuto)-N24*(J24*ValTimeTruck+(1-J24)*ValTimeAuto),(IF(INDEX($P$197:$X$200,MATCH(B18,$O$197:$O$200,0),7)>0,INDEX($P$197:$X$200,MATCH(B18,$O$197:$O$200,0),7)/IF(INDEX($P$197:$X$200,MATCH(B18,$O$197:$O$200,0),6)=0,1,INDEX($P$197:$X$200,MATCH(B18,$O$197:$O$200,0),6)),M24)-N24)*ValTimeAuto)+O24-P24)*(H24-Q24)*0.5*(1+TTUprater)^($B24-YearCurrent)) -> $0 | S24: =SUM(R24:R24) -> $0 | T24: =S24/(1+DiscRate)^(B24-YearCurrent) -> $0 | AE24: =YearOpen -> 2025 | AF24: =OFFSET($T9,MATCH(AF$20,$A:$A),0) -> $0 | AG24: $0 | AH24: $0 | AI24: $0 | AK24: =IF(Induced<>"N",SUM(AF24:AI24),0) -> $0 | AM24: =$AK24*(1+DiscRate)^($AE24-YearCurrent) -> $0
B25: =YearLast -> 2045 | C25: =SUMIF(INDEX(HwyTransitModelGroup,,1),B18,INDEX(ModelData20NB,,3))*AnnualFactor -> 0 | D25: =SUMIF(INDEX(HwyTransitModelGroup,,1),B18,INDEX(ModelData20B,,3))*AnnualFactor -> 0 | G25: =SUMIF(INDEX(HwyTransitModelGroup,,1),B18,INDEX(ModelData20NB,,1))*AnnualFactor -> 0 | H25: =SUMIF(INDEX(HwyTransitModelGroup,,1),B18,INDEX(ModelData20B,,1))*AnnualFactor -> 0 | K25: =SUMIF(INDEX(HwyTransitModelGroup,,1),B18,INDEX(ModelData20NB,,5))*AnnualFactor -> 0 | L25: =SUMIF(INDEX(HwyTransitModelGroup,,1),B18,INDEX(ModelData20B,,5))*AnnualFactor -> 0 | M25: =IFERROR(IF(B18=Hwy,C25*E25/G25,K25/G25),0) -> 0.00 | N25: =IFERROR(IF(B18=Hwy,D25*F25/H25,L25/H25),0) -> 0.00 | O25: =IF(E25=0,0,SUMPRODUCT(--(INDEX(HwyTransitModelGroup,,1)=B18),INDEX(ModelData20NB,,6),INDEX(ModelData20NB,,1))/IF(SUMPRODUCT(--(INDEX(HwyTransitModelGroup,,1)=B18),INDEX(ModelData20NB,,1))=0,1,SUMPRODUCT(--(INDEX(HwyTransitModelGroup,,1)=B18),INDEX(ModelData20NB,,1)))) -> $0.00 | P25: =IF(F25=0,0,SUMPRODUCT(--(INDEX(HwyTransitModelGroup,,1)=B18),INDEX(ModelData20B,,6),INDEX(ModelData20B,,1))/IF(SUMPRODUCT(--(INDEX(HwyTransitModelGroup,,1)=B18),INDEX(ModelData20B,,1))=0,1,SUMPRODUCT(--(INDEX(HwyTransitModelGroup,,1)=B18),INDEX(ModelData20B,,1)))) -> $0.00 | Q25: =IFERROR($H25-SUMIF('Consumer Surplus'!$C$197:$C$200,B18,'Consumer Surplus'!$K$197:$K$200),0) -> 0 | R25: =IF(Induced="N",0,(IF(B18=Hwy,M25*(I25*ValTimeTruck+(1-I25)*ValTimeAuto)-N25*(J25*ValTimeTruck+(1-J25)*ValTimeAuto),(IF(INDEX($P$197:$X$200,MATCH(B18,$O$197:$O$200,0),9)>0,INDEX($P$197:$X$200,MATCH(B18,$O$197:$O$200,0),9)/IF(INDEX($P$197:$X$200,MATCH(B18,$O$197:$O$200,0),9)=0,1,INDEX($P$197:$X$200,MATCH(B18,$O$197:$O$200,0),8)),M25)-N25)*ValTimeAuto)+O25-P25)*(H25-Q25)*0.5*(1+TTUprater)^($B25-YearCurrent)) -> $0 | S25: =SUM(R25:R25) -> $0 | T25: =S25/(1+DiscRate)^(B25-YearCurrent) -> $0 | AE25: =AE24+1 -> 2026 | AF25: $0 | AG25: $0 | AH25: $0 | AI25: $0 | AK25: $0 | AM25: $0
AE26: 2027 | AF26: $0 | AG26: $0 | AH26: $0 | AI26: $0 | AK26: $0 | AM26: $0
B27: =YearOpen -> 2025 | C27: =MAX(TREND(C24:C25,B24:B25,B27),0) -> 0 | D27: =MAX(TREND(D24:D25,B24:B25,B27),0) -> 0 | G27: =MAX(TREND(G24:G25,$B24:$B25,$B27),0) -> 0 | H27: =MAX(TREND(H24:H25,$B24:$B25,$B27),0) -> 0 | K27: =MAX(TREND(K24:K25,B24:B25,B27),0) -> 0 | L27: =MAX(TREND(L24:L25,B24:B25,B27),0) -> 0 | M27: =IFERROR(IF(B18=Hwy,C27*E27/G27,K27/G27),0) -> 0.00 | N27: =IFERROR(IF(B18=Hwy,D27*F27/H27,L27/H27),0) -> 0.00 | O27: =MAX(TREND(O24:O25,$B24:$B25,$B27),0) -> 0.00 | P27: =MAX(TREND(P24:P25,$B24:$B25,$B27),0) -> 0.00 | Q27: =TREND(Q24:Q25,$B24:$B25,$B27) -> 0 | R27: =IF(Induced="N",0,(IF(B18=Hwy,M27*(I27*ValTimeTruck+(1-I27)*ValTimeAuto)-N27*(J27*ValTimeTruck+(1-J27)*ValTimeAuto),(IF(INDEX($P$197:$X$200,MATCH(B18,$O$197:$O$200,0),7)>0,INDEX($P$197:$X$200,MATCH(B18,$O$197:$O$200,0),7)/IF(INDEX($P$197:$X$200,MATCH(B18,$O$197:$O$200,0),6)=0,1,INDEX($P$197:$X$200,MATCH(B18,$O$197:$O$200,0),6)),M27)-N27)*ValTimeAuto)+O27-P27)*(H27-Q27)*0.5*(1+TTUprater)^($B27-YearCurrent)) -> $0 | S27: =SUM(R27:R27) -> $0 | T27: =S27/(1+DiscRate)^(B27-YearCurrent) -> $0 | AE27: 2028 | AF27: $0 | AG27: $0 | AH27: $0 | AI27: $0 | AK27: $0 | AM27: $0
B28: =B27+1 -> 2026 | C28: =MAX(TREND(C24:C25,B24:B25,B28),0) -> 0 | D28: =MAX(TREND(D24:D25,B24:B25,B28),0) -> 0 | G28: =MAX(TREND(G24:G25,$B24:$B25,$B28),0) -> 0 | H28: =MAX(TREND(H24:H25,$B24:$B25,$B28),0) -> 0 | K28: =MAX(TREND(K24:K25,B24:B25,B28),0) -> 0 | L28: =MAX(TREND(L24:L25,B24:B25,B28),0) -> 0 | M28: =IFERROR(IF(B18=Hwy,C28*E28/G28,K28/G28),0) -> 0.00 | N28: =IFERROR(IF(B18=Hwy,D28*F28/H28,L28/H28),0) -> 0.00 | O28: =MAX(TREND(O24:O25,$B24:$B25,$B28),0) -> 0.00 | P28: =MAX(TREND(P24:P25,$B24:$B25,$B28),0) -> 0.00 | Q28: =TREND(Q24:Q25,$B24:$B25,$B28) -> 0 | R28: =IF(Induced="N",0,(IF(B18=Hwy,M28*(I28*ValTimeTruck+(1-I28)*ValTimeAuto)-N28*(J28*ValTimeTruck+(1-J28)*ValTimeAuto),(IF(INDEX($P$197:$X$200,MATCH(B18,$O$197:$O$200,0),7)>0,INDEX($P$197:$X$200,MATCH(B18,$O$197:$O$200,0),7)/IF(INDEX($P$197:$X$200,MATCH(B18,$O$197:$O$200,0),6)=0,1,INDEX($P$197:$X$200,MATCH(B18,$O$197:$O$200,0),6)),M28)-N28)*ValTimeAuto)+O28-P28)*(H28-Q28)*0.5*(1+TTUprater)^($B28-YearCurrent)) -> $0 | S28: $0 | T28: $0 | AE28: 2029 | AF28: $0 | AG28: $0 | AH28: $0 | AI28: $0 | AK28: $0 | AM28: $0
B29: =B28+1 -> 2027 | C29: =MAX(TREND(C24:C25,B24:B25,B29),0) -> 0 | D29: =MAX(TREND(D24:D25,B24:B25,B29),0) -> 0 | G29: =MAX(TREND(G24:G25,$B24:$B25,$B29),0) -> 0 | H29: =MAX(TREND(H24:H25,$B24:$B25,$B29),0) -> 0 | K29: =MAX(TREND(K24:K25,B24:B25,B29),0) -> 0 | L29: =MAX(TREND(L24:L25,B24:B25,B29),0) -> 0 | M29: =IFERROR(IF(B18=Hwy,C29*E29/G29,K29/G29),0) -> 0.00 | N29: =IFERROR(IF(B18=Hwy,D29*F29/H29,L29/H29),0) -> 0.00 | O29: =MAX(TREND(O24:O25,$B24:$B25,$B29),0) -> 0.00 | P29: =MAX(TREND(P24:P25,$B24:$B25,$B29),0) -> 0.00 | Q29: =TREND(Q24:Q25,$B24:$B25,$B29) -> 0 | R29: =IF(Induced="N",0,(IF(B18=Hwy,M29*(I29*ValTimeTruck+(1-I29)*ValTimeAuto)-N29*(J29*ValTimeTruck+(1-J29)*ValTimeAuto),(IF(INDEX($P$197:$X$200,MATCH(B18,$O$197:$O$200,0),7)>0,INDEX($P$197:$X$200,MATCH(B18,$O$197:$O$200,0),7)/IF(INDEX($P$197:$X$200,MATCH(B18,$O$197:$O$200,0),6)=0,1,INDEX($P$197:$X$200,MATCH(B18,$O$197:$O$200,0),6)),M29)-N29)*ValTimeAuto)+O29-P29)*(H29-Q29)*0.5*(1+TTUprater)^($B29-YearCurrent)) -> $0 | S29: $0 | T29: $0 | AE29: 2030 | AF29: $0 | AG29: $0 | AH29: $0 | AI29: $0 | AK29: $0 | AM29: $0
B30: 2028 | C30: =MAX(TREND(C24:C25,B24:B25,B30),0) -> 0 | D30: =MAX(TREND(D24:D25,B24:B25,B30),0) -> 0 | G30: =MAX(TREND(G24:G25,$B24:$B25,$B30),0) -> 0 | H30: =MAX(TREND(H24:H25,$B24:$B25,$B30),0) -> 0 | K30: =MAX(TREND(K24:K25,B24:B25,B30),0) -> 0 | L30: =MAX(TREND(L24:L25,B24:B25,B30),0) -> 0 | M30: =IFERROR(IF(B18=Hwy,C30*E30/G30,K30/G30),0) -> 0.00 | N30: =IFERROR(IF(B18=Hwy,D30*F30/H30,L30/H30),0) -> 0.00 | O30: =MAX(TREND(O24:O25,$B24:$B25,$B30),0) -> 0.00 | P30: =MAX(TREND(P24:P25,$B24:$B25,$B30),0) -> 0.00 | Q30: =TREND(Q24:Q25,$B24:$B25,$B30) -> 0 | R30: =IF(Induced="N",0,(IF(B18=Hwy,M30*(I30*ValTimeTruck+(1-I30)*ValTimeAuto)-N30*(J30*ValTimeTruck+(1-J30)*ValTimeAuto),(IF(INDEX($P$197:$X$200,MATCH(B18,$O$197:$O$200,0),7)>0,INDEX($P$197:$X$200,MATCH(B18,$O$197:$O$200,0),7)/IF(INDEX($P$197:$X$200,MATCH(B18,$O$197:$O$200,0),6)=0,1,INDEX($P$197:$X$200,MATCH(B18,$O$197:$O$200,0),6)),M30)-N30)*ValTimeAuto)+O30-P30)*(H30-Q30)*0.5*(1+TTUprater)^($B30-YearCurrent)) -> $0 | S30: $0 | T30: $0 | AE30: 2031 | AF30: $0 | AG30: $0 | AH30: $0 | AI30: $0 | AK30: $0 | AM30: $0
B31: 2029 | C31: =MAX(TREND(C24:C25,B24:B25,B31),0) -> 0 | D31: =MAX(TREND(D24:D25,B24:B25,B31),0) -> 0 | G31: =MAX(TREND(G24:G25,$B24:$B25,$B31),0) -> 0 | H31: =MAX(TREND(H24:H25,$B24:$B25,$B31),0) -> 0 | K31: =MAX(TREND(K24:K25,B24:B25,B31),0) -> 0 | L31: =MAX(TREND(L24:L25,B24:B25,B31),0) -> 0 | M31: =IFERROR(IF(B18=Hwy,C31*E31/G31,K31/G31),0) -> 0.00 | N31: =IFERROR(IF(B18=Hwy,D31*F31/H31,L31/H31),0) -> 0.00 | O31: =MAX(TREND(O24:O25,$B24:$B25,$B31),0) -> 0.00 | P31: =MAX(TREND(P24:P25,$B24:$B25,$B31),0) -> 0.00 | Q31: =TREND(Q24:Q25,$B24:$B25,$B31) -> 0 | R31: =IF(Induced="N",0,(IF(B18=Hwy,M31*(I31*ValTimeTruck+(1-I31)*ValTimeAuto)-N31*(J31*ValTimeTruck+(1-J31)*ValTimeAuto),(IF(INDEX($P$197:$X$200,MATCH(B18,$O$197:$O$200,0),7)>0,INDEX($P$197:$X$200,MATCH(B18,$O$197:$O$200,0),7)/IF(INDEX($P$197:$X$200,MATCH(B18,$O$197:$O$200,0),6)=0,1,INDEX($P$197:$X$200,MATCH(B18,$O$197:$O$200,0),6)),M31)-N31)*ValTimeAuto)+O31-P31)*(H31-Q31)*0.5*(1+TTUprater)^($B31-YearCurrent)) -> $0 | S31: $0 | T31: $0 | AE31: 2032 | AF31: $0 | AG31: $0 | AH31: $0 | AI31: $0 | AK31: $0 | AM31: $0
B32: 2030 | C32: =MAX(TREND(C24:C25,B24:B25,B32),0) -> 0 | D32: =MAX(TREND(D24:D25,B24:B25,B32),0) -> 0 | G32: =MAX(TREND(G24:G25,$B24:$B25,$B32),0) -> 0 | H32: =MAX(TREND(H24:H25,$B24:$B25,$B32),0) -> 0 | K32: =MAX(TREND(K24:K25,B24:B25,B32),0) -> 0 | L32: =MAX(TREND(L24:L25,B24:B25,B32),0) -> 0 | M32: =IFERROR(IF(B18=Hwy,C32*E32/G32,K32/G32),0) -> 0.00 | N32: =IFERROR(IF(B18=Hwy,D32*F32/H32,L32/H32),0) -> 0.00 | O32: =MAX(TREND(O24:O25,$B24:$B25,$B32),0) -> 0.00 | P32: =MAX(TREND(P24:P25,$B24:$B25,$B32),0) -> 0.00 | Q32: =TREND(Q24:Q25,$B24:$B25,$B32) -> 0 | R32: =IF(Induced="N",0,(IF(B18=Hwy,M32*(I32*ValTimeTruck+(1-I32)*ValTimeAuto)-N32*(J32*ValTimeTruck+(1-J32)*ValTimeAuto),(IF(INDEX($P$197:$X$200,MATCH(B18,$O$197:$O$200,0),7)>0,INDEX($P$197:$X$200,MATCH(B18,$O$197:$O$200,0),7)/IF(INDEX($P$197:$X$200,MATCH(B18,$O$197:$O$200,0),6)=0,1,INDEX($P$197:$X$200,MATCH(B18,$O$197:$O$200,0),6)),M32)-N32)*ValTimeAuto)+O32-P32)*(H32-Q32)*0.5*(1+TTUprater)^($B32-YearCurrent)) -> $0 | S32: $0 | T32: $0 | AE32: 2033 | AF32: $0 | AG32: $0 | AH32: $0 | AI32: $0 | AK32: $0 | AM32: $0
B33: 2031 | C33: =MAX(TREND(C24:C25,B24:B25,B33),0) -> 0 | D33: =MAX(TREND(D24:D25,B24:B25,B33),0) -> 0 | G33: =MAX(TREND(G24:G25,$B24:$B25,$B33),0) -> 0 | H33: =MAX(TREND(H24:H25,$B24:$B25,$B33),0) -> 0 | K33: =MAX(TREND(K24:K25,B24:B25,B33),0) -> 0 | L33: =MAX(TREND(L24:L25,B24:B25,B33),0) -> 0 | M33: =IFERROR(IF(B18=Hwy,C33*E33/G33,K33/G33),0) -> 0.00 | N33: =IFERROR(IF(B18=Hwy,D33*F33/H33,L33/H33),0) -> 0.00 | O33: =MAX(TREND(O24:O25,$B24:$B25,$B33),0) -> 0.00 | P33: =MAX(TREND(P24:P25,$B24:$B25,$B33),0) -> 0.00 | Q33: =TREND(Q24:Q25,$B24:$B25,$B33) -> 0 | R33: =IF(Induced="N",0,(IF(B18=Hwy,M33*(I33*ValTimeTruck+(1-I33)*ValTimeAuto)-N33*(J33*ValTimeTruck+(1-J33)*ValTimeAuto),(IF(INDEX($P$197:$X$200,MATCH(B18,$O$197:$O$200,0),7)>0,INDEX($P$197:$X$200,MATCH(B18,$O$197:$O$200,0),7)/IF(INDEX($P$197:$X$200,MATCH(B18,$O$197:$O$200,0),6)=0,1,INDEX($P$197:$X$200,MATCH(B18,$O$197:$O$200,0),6)),M33)-N33)*ValTimeAuto)+O33-P33)*(H33-Q33)*0.5*(1+TTUprater)^($B33-YearCurrent)) -> $0 | S33: $0 | T33: $0 | AE33: 2034 | AF33: $0 | AG33: $0 | AH33: $0 | AI33: $0 | AK33: $0 | AM33: $0
B34: 2032 | C34: =MAX(TREND(C24:C25,B24:B25,B34),0) -> 0 | D34: =MAX(TREND(D24:D25,B24:B25,B34),0) -> 0 | G34: =MAX(TREND(G24:G25,$B24:$B25,$B34),0) -> 0 | H34: =MAX(TREND(H24:H25,$B24:$B25,$B34),0) -> 0 | K34: =MAX(TREND(K24:K25,B24:B25,B34),0) -> 0 | L34: =MAX(TREND(L24:L25,B24:B25,B34),0) -> 0 | M34: =IFERROR(IF(B18=Hwy,C34*E34/G34,K34/G34),0) -> 0.00 | N34: =IFERROR(IF(B18=Hwy,D34*F34/H34,L34/H34),0) -> 0.00 | O34: =MAX(TREND(O24:O25,$B24:$B25,$B34),0) -> 0.00 | P34: =MAX(TREND(P24:P25,$B24:$B25,$B34),0) -> 0.00 | Q34: =TREND(Q24:Q25,$B24:$B25,$B34) -> 0 | R34: =IF(Induced="N",0,(IF(B18=Hwy,M34*(I34*ValTimeTruck+(1-I34)*ValTimeAuto)-N34*(J34*ValTimeTruck+(1-J34)*ValTimeAuto),(IF(INDEX($P$197:$X$200,MATCH(B18,$O$197:$O$200,0),7)>0,INDEX($P$197:$X$200,MATCH(B18,$O$197:$O$200,0),7)/IF(INDEX($P$197:$X$200,MATCH(B18,$O$197:$O$200,0),6)=0,1,INDEX($P$197:$X$200,MATCH(B18,$O$197:$O$200,0),6)),M34)-N34)*ValTimeAuto)+O34-P34)*(H34-Q34)*0.5*(1+TTUprater)^($B34-YearCurrent)) -> $0 | S34: $0 | T34: $0 | AE34: 2035 | AF34: $0 | AG34: $0 | AH34: $0 | AI34: $0 | AK34: $0 | AM34: $0
B35: 2033 | C35: =MAX(TREND(C24:C25,B24:B25,B35),0) -> 0 | D35: =MAX(TREND(D24:D25,B24:B25,B35),0) -> 0 | G35: =MAX(TREND(G24:G25,$B24:$B25,$B35),0) -> 0 | H35: =MAX(TREND(H24:H25,$B24:$B25,$B35),0) -> 0 | K35: =MAX(TREND(K24:K25,B24:B25,B35),0) -> 0 | L35: =MAX(TREND(L24:L25,B24:B25,B35),0) -> 0 | M35: =IFERROR(IF(B18=Hwy,C35*E35/G35,K35/G35),0) -> 0.00 | N35: =IFERROR(IF(B18=Hwy,D35*F35/H35,L35/H35),0) -> 0.00 | O35: =MAX(TREND(O24:O25,$B24:$B25,$B35),0) -> 0.00 | P35: =MAX(TREND(P24:P25,$B24:$B25,$B35),0) -> 0.00 | Q35: =TREND(Q24:Q25,$B24:$B25,$B35) -> 0 | R35: =IF(Induced="N",0,(IF(B18=Hwy,M35*(I35*ValTimeTruck+(1-I35)*ValTimeAuto)-N35*(J35*ValTimeTruck+(1-J35)*ValTimeAuto),(IF(INDEX($P$197:$X$200,MATCH(B18,$O$197:$O$200,0),7)>0,INDEX($P$197:$X$200,MATCH(B18,$O$197:$O$200,0),7)/IF(INDEX($P$197:$X$200,MATCH(B18,$O$197:$O$200,0),6)=0,1,INDEX($P$197:$X$200,MATCH(B18,$O$197:$O$200,0),6)),M35)-N35)*ValTimeAuto)+O35-P35)*(H35-Q35)*0.5*(1+TTUprater)^($B35-YearCurrent)) -> $0 | S35: $0 | T35: $0 | AE35: 2036 | AF35: $0 | AG35: $0 | AH35: $0 | AI35: $0 | AK35: $0 | AM35: $0
B36: 2034 | C36: =MAX(TREND(C24:C25,B24:B25,B36),0) -> 0 | D36: =MAX(TREND(D24:D25,B24:B25,B36),0) -> 0 | G36: =MAX(TREND(G24:G25,$B24:$B25,$B36),0) -> 0 | H36: =MAX(TREND(H24:H25,$B24:$B25,$B36),0) -> 0 | K36: =MAX(TREND(K24:K25,B24:B25,B36),0) -> 0 | L36: =MAX(TREND(L24:L25,B24:B25,B36),0) -> 0 | M36: =IFERROR(IF(B18=Hwy,C36*E36/G36,K36/G36),0) -> 0.00 | N36: =IFERROR(IF(B18=Hwy,D36*F36/H36,L36/H36),0) -> 0.00 | O36: =MAX(TREND(O24:O25,$B24:$B25,$B36),0) -> 0.00 | P36: =MAX(TREND(P24:P25,$B24:$B25,$B36),0) -> 0.00 | Q36: =TREND(Q24:Q25,$B24:$B25,$B36) -> 0 | R36: =IF(Induced="N",0,(IF(B18=Hwy,M36*(I36*ValTimeTruck+(1-I36)*ValTimeAuto)-N36*(J36*ValTimeTruck+(1-J36)*ValTimeAuto),(IF(INDEX($P$197:$X$200,MATCH(B18,$O$197:$O$200,0),7)>0,INDEX($P$197:$X$200,MATCH(B18,$O$197:$O$200,0),7)/IF(INDEX($P$197:$X$200,MATCH(B18,$O$197:$O$200,0),6)=0,1,INDEX($P$197:$X$200,MATCH(B18,$O$197:$O$200,0),6)),M36)-N36)*ValTimeAuto)+O36-P36)*(H36-Q36)*0.5*(1+TTUprater)^($B36-YearCurrent)) -> $0 | S36: $0 | T36: $0 | AE36: 2037 | AF36: $0 | AG36: $0 | AH36: $0 | AI36: $0 | AK36: $0 | AM36: $0
B37: 2035 | C37: =MAX(TREND(C24:C25,B24:B25,B37),0) -> 0 | D37: =MAX(TREND(D24:D25,B24:B25,B37),0) -> 0 | G37: =MAX(TREND(G24:G25,$B24:$B25,$B37),0) -> 0 | H37: =MAX(TREND(H24:H25,$B24:$B25,$B37),0) -> 0 | K37: =MAX(TREND(K24:K25,B24:B25,B37),0) -> 0 | L37: =MAX(TREND(L24:L25,B24:B25,B37),0) -> 0 | M37: =IFERROR(IF(B18=Hwy,C37*E37/G37,K37/G37),0) -> 0.00 | N37: =IFERROR(IF(B18=Hwy,D37*F37/H37,L37/H37),0) -> 0.00 | O37: =MAX(TREND(O24:O25,$B24:$B25,$B37),0) -> 0.00 | P37: =MAX(TREND(P24:P25,$B24:$B25,$B37),0) -> 0.00 | Q37: =TREND(Q24:Q25,$B24:$B25,$B37) -> 0 | R37: =IF(Induced="N",0,(IF(B18=Hwy,M37*(I37*ValTimeTruck+(1-I37)*ValTimeAuto)-N37*(J37*ValTimeTruck+(1-J37)*ValTimeAuto),(IF(INDEX($P$197:$X$200,MATCH(B18,$O$197:$O$200,0),7)>0,INDEX($P$197:$X$200,MATCH(B18,$O$197:$O$200,0),7)/IF(INDEX($P$197:$X$200,MATCH(B18,$O$197:$O$200,0),6)=0,1,INDEX($P$197:$X$200,MATCH(B18,$O$197:$O$200,0),6)),M37)-N37)*ValTimeAuto)+O37-P37)*(H37-Q37)*0.5*(1+TTUprater)^($B37-YearCurrent)) -> $0 | S37: $0 | T37: $0 | AE37: 2038 | AF37: $0 | AG37: $0 | AH37: $0 | AI37: $0 | AK37: $0 | AM37: $0
B38: 2036 | C38: =MAX(TREND(C24:C25,B24:B25,B38),0) -> 0 | D38: =MAX(TREND(D24:D25,B24:B25,B38),0) -> 0 | G38: =MAX(TREND(G24:G25,$B24:$B25,$B38),0) -> 0 | H38: =MAX(TREND(H24:H25,$B24:$B25,$B38),0) -> 0 | K38: =MAX(TREND(K24:K25,B24:B25,B38),0) -> 0 | L38: =MAX(TREND(L24:L25,B24:B25,B38),0) -> 0 | M38: =IFERROR(IF(B18=Hwy,C38*E38/G38,K38/G38),0) -> 0.00 | N38: =IFERROR(IF(B18=Hwy,D38*F38/H38,L38/H38),0) -> 0.00 | O38: =MAX(TREND(O24:O25,$B24:$B25,$B38),0) -> 0.00 | P38: =MAX(TREND(P24:P25,$B24:$B25,$B38),0) -> 0.00 | Q38: =TREND(Q24:Q25,$B24:$B25,$B38) -> 0 | R38: =IF(Induced="N",0,(IF(B18=Hwy,M38*(I38*ValTimeTruck+(1-I38)*ValTimeAuto)-N38*(J38*ValTimeTruck+(1-J38)*ValTimeAuto),(IF(INDEX($P$197:$X$200,MATCH(B18,$O$197:$O$200,0),7)>0,INDEX($P$197:$X$200,MATCH(B18,$O$197:$O$200,0),7)/IF(INDEX($P$197:$X$200,MATCH(B18,$O$197:$O$200,0),6)=0,1,INDEX($P$197:$X$200,MATCH(B18,$O$197:$O$200,0),6)),M38)-N38)*ValTimeAuto)+O38-P38)*(H38-Q38)*0.5*(1+TTUprater)^($B38-YearCurrent)) -> $0 | S38: $0 | T38: $0 | AE38: 2039 | AF38: $0 | AG38: $0 | AH38: $0 | AI38: $0 | AK38: $0 | AM38: $0
B39: 2037 | C39: =MAX(TREND(C24:C25,B24:B25,B39),0) -> 0 | D39: =MAX(TREND(D24:D25,B24:B25,B39),0) -> 0 | G39: =MAX(TREND(G24:G25,$B24:$B25,$B39),0) -> 0 | H39: =MAX(TREND(H24:H25,$B24:$B25,$B39),0) -> 0 | K39: =MAX(TREND(K24:K25,B24:B25,B39),0) -> 0 | L39: =MAX(TREND(L24:L25,B24:B25,B39),0) -> 0 | M39: =IFERROR(IF(B18=Hwy,C39*E39/G39,K39/G39),0) -> 0.00 | N39: =IFERROR(IF(B18=Hwy,D39*F39/H39,L39/H39),0) -> 0.00 | O39: =MAX(TREND(O24:O25,$B24:$B25,$B39),0) -> 0.00 | P39: =MAX(TREND(P24:P25,$B24:$B25,$B39),0) -> 0.00 | Q39: =TREND(Q24:Q25,$B24:$B25,$B39) -> 0 | R39: =IF(Induced="N",0,(IF(B18=Hwy,M39*(I39*ValTimeTruck+(1-I39)*ValTimeAuto)-N39*(J39*ValTimeTruck+(1-J39)*ValTimeAuto),(IF(INDEX($P$197:$X$200,MATCH(B18,$O$197:$O$200,0),7)>0,INDEX($P$197:$X$200,MATCH(B18,$O$197:$O$200,0),7)/IF(INDEX($P$197:$X$200,MATCH(B18,$O$197:$O$200,0),6)=0,1,INDEX($P$197:$X$200,MATCH(B18,$O$197:$O$200,0),6)),M39)-N39)*ValTimeAuto)+O39-P39)*(H39-Q39)*0.5*(1+TTUprater)^($B39-YearCurrent)) -> $0 | S39: $0 | T39: $0 | AE39: 2040 | AF39: $0 | AG39: $0 | AH39: $0 | AI39: $0 | AK39: $0 | AM39: $0
B40: 2038 | C40: =MAX(TREND(C24:C25,B24:B25,B40),0) -> 0 | D40: =MAX(TREND(D24:D25,B24:B25,B40),0) -> 0 | G40: =MAX(TREND(G24:G25,$B24:$B25,$B40),0) -> 0 | H40: =MAX(TREND(H24:H25,$B24:$B25,$B40),0) -> 0 | K40: =MAX(TREND(K24:K25,B24:B25,B40),0) -> 0 | L40: =MAX(TREND(L24:L25,B24:B25,B40),0) -> 0 | M40: =IFERROR(IF(B18=Hwy,C40*E40/G40,K40/G40),0) -> 0.00 | N40: =IFERROR(IF(B18=Hwy,D40*F40/H40,L40/H40),0) -> 0.00 | O40: =MAX(TREND(O24:O25,$B24:$B25,$B40),0) -> 0.00 | P40: =MAX(TREND(P24:P25,$B24:$B25,$B40),0) -> 0.00 | Q40: =TREND(Q24:Q25,$B24:$B25,$B40) -> 0 | R40: =IF(Induced="N",0,(IF(B18=Hwy,M40*(I40*ValTimeTruck+(1-I40)*ValTimeAuto)-N40*(J40*ValTimeTruck+(1-J40)*ValTimeAuto),(IF(INDEX($P$197:$X$200,MATCH(B18,$O$197:$O$200,0),7)>0,INDEX($P$197:$X$200,MATCH(B18,$O$197:$O$200,0),7)/IF(INDEX($P$197:$X$200,MATCH(B18,$O$197:$O$200,0),6)=0,1,INDEX($P$197:$X$200,MATCH(B18,$O$197:$O$200,0),6)),M40)-N40)*ValTimeAuto)+O40-P40)*(H40-Q40)*0.5*(1+TTUprater)^($B40-YearCurrent)) -> $0 | S40: $0 | T40: $0 | AE40: 2041 | AF40: $0 | AG40: $0 | AH40: $0 | AI40: $0 | AK40: $0 | AM40: $0
B41: 2039 | C41: =MAX(TREND(C24:C25,B24:B25,B41),0) -> 0 | D41: =MAX(TREND(D24:D25,B24:B25,B41),0) -> 0 | G41: =MAX(TREND(G24:G25,$B24:$B25,$B41),0) -> 0 | H41: =MAX(TREND(H24:H25,$B24:$B25,$B41),0) -> 0 | K41: =MAX(TREND(K24:K25,B24:B25,B41),0) -> 0 | L41: =MAX(TREND(L24:L25,B24:B25,B41),0) -> 0 | M41: =IFERROR(IF(B18=Hwy,C41*E41/G41,K41/G41),0) -> 0.00 | N41: =IFERROR(IF(B18=Hwy,D41*F41/H41,L41/H41),0) -> 0.00 | O41: =MAX(TREND(O24:O25,$B24:$B25,$B41),0) -> 0.00 | P41: =MAX(TREND(P24:P25,$B24:$B25,$B41),0) -> 0.00 | Q41: =TREND(Q24:Q25,$B24:$B25,$B41) -> 0 | R41: =IF(Induced="N",0,(IF(B18=Hwy,M41*(I41*ValTimeTruck+(1-I41)*ValTimeAuto)-N41*(J41*ValTimeTruck+(1-J41)*ValTimeAuto),(IF(INDEX($P$197:$X$200,MATCH(B18,$O$197:$O$200,0),7)>0,INDEX($P$197:$X$200,MATCH(B18,$O$197:$O$200,0),7)/IF(INDEX($P$197:$X$200,MATCH(B18,$O$197:$O$200,0),6)=0,1,INDEX($P$197:$X$200,MATCH(B18,$O$197:$O$200,0),6)),M41)-N41)*ValTimeAuto)+O41-P41)*(H41-Q41)*0.5*(1+TTUprater)^($B41-YearCurrent)) -> $0 | S41: $0 | T41: $0 | AE41: 2042 | AF41: $0 | AG41: $0 | AH41: $0 | AI41: $0 | AK41: $0 | AM41: $0
B42: 2040 | C42: =MAX(TREND(C24:C25,B24:B25,B42),0) -> 0 | D42: =MAX(TREND(D24:D25,B24:B25,B42),0) -> 0 | G42: =MAX(TREND(G24:G25,$B24:$B25,$B42),0) -> 0 | H42: =MAX(TREND(H24:H25,$B24:$B25,$B42),0) -> 0 | K42: =MAX(TREND(K24:K25,B24:B25,B42),0) -> 0 | L42: =MAX(TREND(L24:L25,B24:B25,B42),0) -> 0 | M42: =IFERROR(IF(B18=Hwy,C42*E42/G42,K42/G42),0) -> 0.00 | N42: =IFERROR(IF(B18=Hwy,D42*F42/H42,L42/H42),0) -> 0.00 | O42: =MAX(TREND(O24:O25,$B24:$B25,$B42),0) -> 0.00 | P42: =MAX(TREND(P24:P25,$B24:$B25,$B42),0) -> 0.00 | Q42: =TREND(Q24:Q25,$B24:$B25,$B42) -> 0 | R42: =IF(Induced="N",0,(IF(B18=Hwy,M42*(I42*ValTimeTruck+(1-I42)*ValTimeAuto)-N42*(J42*ValTimeTruck+(1-J42)*ValTimeAuto),(IF(INDEX($P$197:$X$200,MATCH(B18,$O$197:$O$200,0),7)>0,INDEX($P$197:$X$200,MATCH(B18,$O$197:$O$200,0),7)/IF(INDEX($P$197:$X$200,MATCH(B18,$O$197:$O$200,0),6)=0,1,INDEX($P$197:$X$200,MATCH(B18,$O$197:$O$200,0),6)),M42)-N42)*ValTimeAuto)+O42-P42)*(H42-Q42)*0.5*(1+TTUprater)^($B42-YearCurrent)) -> $0 | S42: $0 | T42: $0 | AE42: 2043 | AF42: $0 | AG42: $0 | AH42: $0 | AI42: $0 | AK42: $0 | AM42: $0
B43: 2041 | C43: =MAX(TREND(C24:C25,B24:B25,B43),0) -> 0 | D43: =MAX(TREND(D24:D25,B24:B25,B43),0) -> 0 | G43: =MAX(TREND(G24:G25,$B24:$B25,$B43),0) -> 0 | H43: =MAX(TREND(H24:H25,$B24:$B25,$B43),0) -> 0 | K43: =MAX(TREND(K24:K25,B24:B25,B43),0) -> 0 | L43: =MAX(TREND(L24:L25,B24:B25,B43),0) -> 0 | M43: =IFERROR(IF(B18=Hwy,C43*E43/G43,K43/G43),0) -> 0.00 | N43: =IFERROR(IF(B18=Hwy,D43*F43/H43,L43/H43),0) -> 0.00 | O43: =MAX(TREND(O24:O25,$B24:$B25,$B43),0) -> 0.00 | P43: =MAX(TREND(P24:P25,$B24:$B25,$B43),0) -> 0.00 | Q43: =TREND(Q24:Q25,$B24:$B25,$B43) -> 0 | R43: =IF(Induced="N",0,(IF(B18=Hwy,M43*(I43*ValTimeTruck+(1-I43)*ValTimeAuto)-N43*(J43*ValTimeTruck+(1-J43)*ValTimeAuto),(IF(INDEX($P$197:$X$200,MATCH(B18,$O$197:$O$200,0),7)>0,INDEX($P$197:$X$200,MATCH(B18,$O$197:$O$200,0),7)/IF(INDEX($P$197:$X$200,MATCH(B18,$O$197:$O$200,0),6)=0,1,INDEX($P$197:$X$200,MATCH(B18,$O$197:$O$200,0),6)),M43)-N43)*ValTimeAuto)+O43-P43)*(H43-Q43)*0.5*(1+TTUprater)^($B43-YearCurrent)) -> $0 | S43: $0 | T43: $0 | AE43: 2044 | AF43: $0 | AG43: $0 | AH43: $0 | AI43: $0 | AK43: $0 | AM43: $0
B44: 2042 | C44: =MAX(TREND(C24:C25,B24:B25,B44),0) -> 0 | D44: =MAX(TREND(D24:D25,B24:B25,B44),0) -> 0 | G44: =MAX(TREND(G24:G25,$B24:$B25,$B44),0) -> 0 | H44: =MAX(TREND(H24:H25,$B24:$B25,$B44),0) -> 0 | K44: =MAX(TREND(K24:K25,B24:B25,B44),0) -> 0 | L44: =MAX(TREND(L24:L25,B24:B25,B44),0) -> 0 | M44: =IFERROR(IF(B18=Hwy,C44*E44/G44,K44/G44),0) -> 0.00 | N44: =IFERROR(IF(B18=Hwy,D44*F44/H44,L44/H44),0) -> 0.00 | O44: =MAX(TREND(O24:O25,$B24:$B25,$B44),0) -> 0.00 | P44: =MAX(TREND(P24:P25,$B24:$B25,$B44),0) -> 0.00 | Q44: =TREND(Q24:Q25,$B24:$B25,$B44) -> 0 | R44: =IF(Induced="N",0,(IF(B18=Hwy,M44*(I44*ValTimeTruck+(1-I44)*ValTimeAuto)-N44*(J44*ValTimeTruck+(1-J44)*ValTimeAuto),(IF(INDEX($P$197:$X$200,MATCH(B18,$O$197:$O$200,0),7)>0,INDEX($P$197:$X$200,MATCH(B18,$O$197:$O$200,0),7)/IF(INDEX($P$197:$X$200,MATCH(B18,$O$197:$O$200,0),6)=0,1,INDEX($P$197:$X$200,MATCH(B18,$O$197:$O$200,0),6)),M44)-N44)*ValTimeAuto)+O44-P44)*(H44-Q44)*0.5*(1+TTUprater)^($B44-YearCurrent)) -> $0 | S44: $0 | T44: $0 | AE44: 2045 | AF44: $0 | AG44: $0 | AH44: $0 | AI44: $0 | AK44: $0 | AM44: $0
B45: 2043 | C45: =MAX(TREND(C24:C25,B24:B25,B45),0) -> 0 | D45: =MAX(TREND(D24:D25,B24:B25,B45),0) -> 0 | G45: =MAX(TREND(G24:G25,$B24:$B25,$B45),0) -> 0 | H45: =MAX(TREND(H24:H25,$B24:$B25,$B45),0) -> 0 | K45: =MAX(TREND(K24:K25,B24:B25,B45),0) -> 0 | L45: =MAX(TREND(L24:L25,B24:B25,B45),0) -> 0 | M45: =IFERROR(IF(B18=Hwy,C45*E45/G45,K45/G45),0) -> 0.00 | N45: =IFERROR(IF(B18=Hwy,D45*F45/H45,L45/H45),0) -> 0.00 | O45: =MAX(TREND(O24:O25,$B24:$B25,$B45),0) -> 0.00 | P45: =MAX(TREND(P24:P25,$B24:$B25,$B45),0) -> 0.00 | Q45: =TREND(Q24:Q25,$B24:$B25,$B45) -> 0 | R45: =IF(Induced="N",0,(IF(B18=Hwy,M45*(I45*ValTimeTruck+(1-I45)*ValTimeAuto)-N45*(J45*ValTimeTruck+(1-J45)*ValTimeAuto),(IF(INDEX($P$197:$X$200,MATCH(B18,$O$197:$O$200,0),7)>0,INDEX($P$197:$X$200,MATCH(B18,$O$197:$O$200,0),7)/IF(INDEX($P$197:$X$200,MATCH(B18,$O$197:$O$200,0),6)=0,1,INDEX($P$197:$X$200,MATCH(B18,$O$197:$O$200,0),6)),M45)-N45)*ValTimeAuto)+O45-P45)*(H45-Q45)*0.5*(1+TTUprater)^($B45-YearCurrent)) -> $0 | S45: $0 | T45: $0 | AE45: 2046 | AF45: $0 | AG45: $0 | AH45: $0 | AI45: $0 | AK45: $0 | AM45: $0
B46: 2044 | C46: =MAX(TREND(C24:C25,B24:B25,B46),0) -> 0 | D46: =MAX(TREND(D24:D25,B24:B25,B46),0) -> 0 | G46: =MAX(TREND(G24:G25,$B24:$B25,$B46),0) -> 0 | H46: =MAX(TREND(H24:H25,$B24:$B25,$B46),0) -> 0 | K46: =MAX(TREND(K24:K25,B24:B25,B46),0) -> 0 | L46: =MAX(TREND(L24:L25,B24:B25,B46),0) -> 0 | M46: =IFERROR(IF(B18=Hwy,C46*E46/G46,K46/G46),0) -> 0.00 | N46: =IFERROR(IF(B18=Hwy,D46*F46/H46,L46/H46),0) -> 0.00 | O46: =MAX(TREND(O24:O25,$B24:$B25,$B46),0) -> 0.00 | P46: =MAX(TREND(P24:P25,$B24:$B25,$B46),0) -> 0.00 | Q46: =TREND(Q24:Q25,$B24:$B25,$B46) -> 0 | R46: =IF(Induced="N",0,(IF(B18=Hwy,M46*(I46*ValTimeTruck+(1-I46)*ValTimeAuto)-N46*(J46*ValTimeTruck+(1-J46)*ValTimeAuto),(IF(INDEX($P$197:$X$200,MATCH(B18,$O$197:$O$200,0),7)>0,INDEX($P$197:$X$200,MATCH(B18,$O$197:$O$200,0),7)/IF(INDEX($P$197:$X$200,MATCH(B18,$O$197:$O$200,0),6)=0,1,INDEX($P$197:$X$200,MATCH(B18,$O$197:$O$200,0),6)),M46)-N46)*ValTimeAuto)+O46-P46)*(H46-Q46)*0.5*(1+TTUprater)^($B46-YearCurrent)) -> $0 | S46: $0 | T46: $0 | AE46: 2047 | AF46: $0 | AG46: $0 | AH46: $0 | AI46: $0 | AK46: $0 | AM46: $0
B47: 2045 | C47: =MAX(TREND(C24:C25,B24:B25,B47),0) -> 0 | D47: =MAX(TREND(D24:D25,B24:B25,B47),0) -> 0 | G47: =MAX(TREND(G24:G25,$B24:$B25,$B47),0) -> 0 | H47: =MAX(TREND(H24:H25,$B24:$B25,$B47),0) -> 0 | K47: =MAX(TREND(K24:K25,B24:B25,B47),0) -> 0 | L47: =MAX(TREND(L24:L25,B24:B25,B47),0) -> 0 | M47: =IFERROR(IF(B18=Hwy,C47*E47/G47,K47/G47),0) -> 0.00 | N47: =IFERROR(IF(B18=Hwy,D47*F47/H47,L47/H47),0) -> 0.00 | O47: =MAX(TREND(O24:O25,$B24:$B25,$B47),0) -> 0.00 | P47: =MAX(TREND(P24:P25,$B24:$B25,$B47),0) -> 0.00 | Q47: =TREND(Q24:Q25,$B24:$B25,$B47) -> 0 | R47: =IF(Induced="N",0,(IF(B18=Hwy,M47*(I47*ValTimeTruck+(1-I47)*ValTimeAuto)-N47*(J47*ValTimeTruck+(1-J47)*ValTimeAuto),(IF(INDEX($P$197:$X$200,MATCH(B18,$O$197:$O$200,0),7)>0,INDEX($P$197:$X$200,MATCH(B18,$O$197:$O$200,0),7)/IF(INDEX($P$197:$X$200,MATCH(B18,$O$197:$O$200,0),6)=0,1,INDEX($P$197:$X$200,MATCH(B18,$O$197:$O$200,0),6)),M47)-N47)*ValTimeAuto)+O47-P47)*(H47-Q47)*0.5*(1+TTUprater)^($B47-YearCurrent)) -> $0 | S47: $0 | T47: $0 | AE47: 2048 | AF47: $0 | AG47: $0 | AH47: $0 | AI47: $0 | AK47: $0 | AM47: $0
B48: 2046 | C48: =MAX(TREND(C24:C25,B24:B25,B48),0) -> 0 | D48: =MAX(TREND(D24:D25,B24:B25,B48),0) -> 0 | G48: =MAX(TREND(G24:G25,$B24:$B25,$B48),0) -> 0 | H48: =MAX(TREND(H24:H25,$B24:$B25,$B48),0) -> 0 | K48: =MAX(TREND(K24:K25,B24:B25,B48),0) -> 0 | L48: =MAX(TREND(L24:L25,B24:B25,B48),0) -> 0 | M48: =IFERROR(IF(B18=Hwy,C48*E48/G48,K48/G48),0) -> 0.00 | N48: =IFERROR(IF(B18=Hwy,D48*F48/H48,L48/H48),0) -> 0.00 | O48: =MAX(TREND(O24:O25,$B24:$B25,$B48),0) -> 0.00 | P48: =MAX(TREND(P24:P25,$B24:$B25,$B48),0) -> 0.00 | Q48: =TREND(Q24:Q25,$B24:$B25,$B48) -> 0 | R48: =IF(Induced="N",0,(IF(B18=Hwy,M48*(I48*ValTimeTruck+(1-I48)*ValTimeAuto)-N48*(J48*ValTimeTruck+(1-J48)*ValTimeAuto),(IF(INDEX($P$197:$X$200,MATCH(B18,$O$197:$O$200,0),7)>0,INDEX($P$197:$X$200,MATCH(B18,$O$197:$O$200,0),7)/IF(INDEX($P$197:$X$200,MATCH(B18,$O$197:$O$200,0),6)=0,1,INDEX($P$197:$X$200,MATCH(B18,$O$197:$O$200,0),6)),M48)-N48)*ValTimeAuto)+O48-P48)*(H48-Q48)*0.5*(1+TTUprater)^($B48-YearCurrent)) -> $0 | S48: $0 | T48: $0 | AE48: 2049 | AF48: $0 | AG48: $0 | AH48: $0 | AI48: $0 | AK48: $0 | AM48: $0
B49: 2047 | C49: =MAX(TREND(C24:C25,B24:B25,B49),0) -> 0 | D49: =MAX(TREND(D24:D25,B24:B25,B49),0) -> 0 | G49: =MAX(TREND(G24:G25,$B24:$B25,$B49),0) -> 0 | H49: =MAX(TREND(H24:H25,$B24:$B25,$B49),0) -> 0 | K49: =MAX(TREND(K24:K25,B24:B25,B49),0) -> 0 | L49: =MAX(TREND(L24:L25,B24:B25,B49),0) -> 0 | M49: =IFERROR(IF(B18=Hwy,C49*E49/G49,K49/G49),0) -> 0.00 | N49: =IFERROR(IF(B18=Hwy,D49*F49/H49,L49/H49),0) -> 0.00 | O49: =MAX(TREND(O24:O25,$B24:$B25,$B49),0) -> 0.00 | P49: =MAX(TREND(P24:P25,$B24:$B25,$B49),0) -> 0.00 | Q49: =TREND(Q24:Q25,$B24:$B25,$B49) -> 0 | R49: =IF(Induced="N",0,(IF(B18=Hwy,M49*(I49*ValTimeTruck+(1-I49)*ValTimeAuto)-N49*(J49*ValTimeTruck+(1-J49)*ValTimeAuto),(IF(INDEX($P$197:$X$200,MATCH(B18,$O$197:$O$200,0),7)>0,INDEX($P$197:$X$200,MATCH(B18,$O$197:$O$200,0),7)/IF(INDEX($P$197:$X$200,MATCH(B18,$O$197:$O$200,0),6)=0,1,INDEX($P$197:$X$200,MATCH(B18,$O$197:$O$200,0),6)),M49)-N49)*ValTimeAuto)+O49-P49)*(H49-Q49)*0.5*(1+TTUprater)^($B49-YearCurrent)) -> $0 | S49: $0 | T49: $0 | AE49: 2050 | AF49: $0 | AG49: $0 | AH49: $0 | AI49: $0 | AK49: $0 | AM49: $0
B50: 2048 | C50: =MAX(TREND(C24:C25,B24:B25,B50),0) -> 0 | D50: =MAX(TREND(D24:D25,B24:B25,B50),0) -> 0 | G50: =MAX(TREND(G24:G25,$B24:$B25,$B50),0) -> 0 | H50: =MAX(TREND(H24:H25,$B24:$B25,$B50),0) -> 0 | K50: =MAX(TREND(K24:K25,B24:B25,B50),0) -> 0 | L50: =MAX(TREND(L24:L25,B24:B25,B50),0) -> 0 | M50: =IFERROR(IF(B18=Hwy,C50*E50/G50,K50/G50),0) -> 0.00 | N50: =IFERROR(IF(B18=Hwy,D50*F50/H50,L50/H50),0) -> 0.00 | O50: =MAX(TREND(O24:O25,$B24:$B25,$B50),0) -> 0.00 | P50: =MAX(TREND(P24:P25,$B24:$B25,$B50),0) -> 0.00 | Q50: =TREND(Q24:Q25,$B24:$B25,$B50) -> 0 | R50: =IF(Induced="N",0,(IF(B18=Hwy,M50*(I50*ValTimeTruck+(1-I50)*ValTimeAuto)-N50*(J50*ValTimeTruck+(1-J50)*ValTimeAuto),(IF(INDEX($P$197:$X$200,MATCH(B18,$O$197:$O$200,0),7)>0,INDEX($P$197:$X$200,MATCH(B18,$O$197:$O$200,0),7)/IF(INDEX($P$197:$X$200,MATCH(B18,$O$197:$O$200,0),6)=0,1,INDEX($P$197:$X$200,MATCH(B18,$O$197:$O$200,0),6)),M50)-N50)*ValTimeAuto)+O50-P50)*(H50-Q50)*0.5*(1+TTUprater)^($B50-YearCurrent)) -> $0 | S50: $0 | T50: $0 | AE50: 2051 | AF50: $0 | AG50: $0 | AH50: $0 | AI50: $0 | AK50: $0 | AM50: $0
B51: 2049 | C51: =MAX(TREND(C24:C25,B24:B25,B51),0) -> 0 | D51: =MAX(TREND(D24:D25,B24:B25,B51),0) -> 0 | G51: =MAX(TREND(G24:G25,$B24:$B25,$B51),0) -> 0 | H51: =MAX(TREND(H24:H25,$B24:$B25,$B51),0) -> 0 | K51: =MAX(TREND(K24:K25,B24:B25,B51),0) -> 0 | L51: =MAX(TREND(L24:L25,B24:B25,B51),0) -> 0 | M51: =IFERROR(IF(B18=Hwy,C51*E51/G51,K51/G51),0) -> 0.00 | N51: =IFERROR(IF(B18=Hwy,D51*F51/H51,L51/H51),0) -> 0.00 | O51: =MAX(TREND(O24:O25,$B24:$B25,$B51),0) -> 0.00 | P51: =MAX(TREND(P24:P25,$B24:$B25,$B51),0) -> 0.00 | Q51: =TREND(Q24:Q25,$B24:$B25,$B51) -> 0 | R51: =IF(Induced="N",0,(IF(B18=Hwy,M51*(I51*ValTimeTruck+(1-I51)*ValTimeAuto)-N51*(J51*ValTimeTruck+(1-J51)*ValTimeAuto),(IF(INDEX($P$197:$X$200,MATCH(B18,$O$197:$O$200,0),7)>0,INDEX($P$197:$X$200,MATCH(B18,$O$197:$O$200,0),7)/IF(INDEX($P$197:$X$200,MATCH(B18,$O$197:$O$200,0),6)=0,1,INDEX($P$197:$X$200,MATCH(B18,$O$197:$O$200,0),6)),M51)-N51)*ValTimeAuto)+O51-P51)*(H51-Q51)*0.5*(1+TTUprater)^($B51-YearCurrent)) -> $0 | S51: $0 | T51: $0 | AE51: 2052 | AF51: $0 | AG51: $0 | AH51: $0 | AI51: $0 | AK51: $0 | AM51: $0
B52: 2050 | C52: =MAX(TREND(C24:C25,B24:B25,B52),0) -> 0 | D52: =MAX(TREND(D24:D25,B24:B25,B52),0) -> 0 | G52: =MAX(TREND(G24:G25,$B24:$B25,$B52),0) -> 0 | H52: =MAX(TREND(H24:H25,$B24:$B25,$B52),0) -> 0 | K52: =MAX(TREND(K24:K25,B24:B25,B52),0) -> 0 | L52: =MAX(TREND(L24:L25,B24:B25,B52),0) -> 0 | M52: =IFERROR(IF(B18=Hwy,C52*E52/G52,K52/G52),0) -> 0.00 | N52: =IFERROR(IF(B18=Hwy,D52*F52/H52,L52/H52),0) -> 0.00 | O52: =MAX(TREND(O24:O25,$B24:$B25,$B52),0) -> 0.00 | P52: =MAX(TREND(P24:P25,$B24:$B25,$B52),0) -> 0.00 | Q52: =TREND(Q24:Q25,$B24:$B25,$B52) -> 0 | R52: =IF(Induced="N",0,(IF(B18=Hwy,M52*(I52*ValTimeTruck+(1-I52)*ValTimeAuto)-N52*(J52*ValTimeTruck+(1-J52)*ValTimeAuto),(IF(INDEX($P$197:$X$200,MATCH(B18,$O$197:$O$200,0),7)>0,INDEX($P$197:$X$200,MATCH(B18,$O$197:$O$200,0),7)/IF(INDEX($P$197:$X$200,MATCH(B18,$O$197:$O$200,0),6)=0,1,INDEX($P$197:$X$200,MATCH(B18,$O$197:$O$200,0),6)),M52)-N52)*ValTimeAuto)+O52-P52)*(H52-Q52)*0.5*(1+TTUprater)^($B52-YearCurrent)) -> $0 | S52: $0 | T52: $0 | AE52: 2053 | AF52: $0 | AG52: $0 | AH52: $0 | AI52: $0 | AK52: $0 | AM52: $0
B53: 2051 | C53: =MAX(TREND(C24:C25,B24:B25,B53),0) -> 0 | D53: =MAX(TREND(D24:D25,B24:B25,B53),0) -> 0 | G53: =MAX(TREND(G24:G25,$B24:$B25,$B53),0) -> 0 | H53: =MAX(TREND(H24:H25,$B24:$B25,$B53),0) -> 0 | K53: =MAX(TREND(K24:K25,B24:B25,B53),0) -> 0 | L53: =MAX(TREND(L24:L25,B24:B25,B53),0) -> 0 | M53: =IFERROR(IF(B18=Hwy,C53*E53/G53,K53/G53),0) -> 0.00 | N53: =IFERROR(IF(B18=Hwy,D53*F53/H53,L53/H53),0) -> 0.00 | O53: =MAX(TREND(O24:O25,$B24:$B25,$B53),0) -> 0.00 | P53: =MAX(TREND(P24:P25,$B24:$B25,$B53),0) -> 0.00 | Q53: =TREND(Q24:Q25,$B24:$B25,$B53) -> 0 | R53: =IF(Induced="N",0,(IF(B18=Hwy,M53*(I53*ValTimeTruck+(1-I53)*ValTimeAuto)-N53*(J53*ValTimeTruck+(1-J53)*ValTimeAuto),(IF(INDEX($P$197:$X$200,MATCH(B18,$O$197:$O$200,0),7)>0,INDEX($P$197:$X$200,MATCH(B18,$O$197:$O$200,0),7)/IF(INDEX($P$197:$X$200,MATCH(B18,$O$197:$O$200,0),6)=0,1,INDEX($P$197:$X$200,MATCH(B18,$O$197:$O$200,0),6)),M53)-N53)*ValTimeAuto)+O53-P53)*(H53-Q53)*0.5*(1+TTUprater)^($B53-YearCurrent)) -> $0 | S53: $0 | T53: $0 | AE53: 2054 | AF53: $0 | AG53: $0 | AH53: $0 | AI53: $0 | AK53: $0 | AM53: $0
B54: 2052 | C54: =MAX(TREND(C24:C25,B24:B25,B54),0) -> 0 | D54: =MAX(TREND(D24:D25,B24:B25,B54),0) -> 0 | G54: =MAX(TREND(G24:G25,$B24:$B25,$B54),0) -> 0 | H54: =MAX(TREND(H24:H25,$B24:$B25,$B54),0) -> 0 | K54: =MAX(TREND(K24:K25,B24:B25,B54),0) -> 0 | L54: =MAX(TREND(L24:L25,B24:B25,B54),0) -> 0 | M54: =IFERROR(IF(B18=Hwy,C54*E54/G54,K54/G54),0) -> 0.00 | N54: =IFERROR(IF(B18=Hwy,D54*F54/H54,L54/H54),0) -> 0.00 | O54: =MAX(TREND(O24:O25,$B24:$B25,$B54),0) -> 0.00 | P54: =MAX(TREND(P24:P25,$B24:$B25,$B54),0) -> 0.00 | Q54: =TREND(Q24:Q25,$B24:$B25,$B54) -> 0 | R54: =IF(Induced="N",0,(IF(B18=Hwy,M54*(I54*ValTimeTruck+(1-I54)*ValTimeAuto)-N54*(J54*ValTimeTruck+(1-J54)*ValTimeAuto),(IF(INDEX($P$197:$X$200,MATCH(B18,$O$197:$O$200,0),7)>0,INDEX($P$197:$X$200,MATCH(B18,$O$197:$O$200,0),7)/IF(INDEX($P$197:$X$200,MATCH(B18,$O$197:$O$200,0),6)=0,1,INDEX($P$197:$X$200,MATCH(B18,$O$197:$O$200,0),6)),M54)-N54)*ValTimeAuto)+O54-P54)*(H54-Q54)*0.5*(1+TTUprater)^($B54-YearCurrent)) -> $0 | S54: $0 | T54: $0
B55: 2053 | C55: =MAX(TREND(C24:C25,B24:B25,B55),0) -> 0 | D55: =MAX(TREND(D24:D25,B24:B25,B55),0) -> 0 | G55: =MAX(TREND(G24:G25,$B24:$B25,$B55),0) -> 0 | H55: =MAX(TREND(H24:H25,$B24:$B25,$B55),0) -> 0 | K55: =MAX(TREND(K24:K25,B24:B25,B55),0) -> 0 | L55: =MAX(TREND(L24:L25,B24:B25,B55),0) -> 0 | M55: =IFERROR(IF(B18=Hwy,C55*E55/G55,K55/G55),0) -> 0.00 | N55: =IFERROR(IF(B18=Hwy,D55*F55/H55,L55/H55),0) -> 0.00 | O55: =MAX(TREND(O24:O25,$B24:$B25,$B55),0) -> 0.00 | P55: =MAX(TREND(P24:P25,$B24:$B25,$B55),0) -> 0.00 | Q55: =TREND(Q24:Q25,$B24:$B25,$B55) -> 0 | R55: =IF(Induced="N",0,(IF(B18=Hwy,M55*(I55*ValTimeTruck+(1-I55)*ValTimeAuto)-N55*(J55*ValTimeTruck+(1-J55)*ValTimeAuto),(IF(INDEX($P$197:$X$200,MATCH(B18,$O$197:$O$200,0),7)>0,INDEX($P$197:$X$200,MATCH(B18,$O$197:$O$200,0),7)/IF(INDEX($P$197:$X$200,MATCH(B18,$O$197:$O$200,0),6)=0,1,INDEX($P$197:$X$200,MATCH(B18,$O$197:$O$200,0),6)),M55)-N55)*ValTimeAuto)+O55-P55)*(H55-Q55)*0.5*(1+TTUprater)^($B55-YearCurrent)) -> $0 | S55: $0 | T55: $0 | AE55: Total | AF55: =SUM(AF24:AF53) -> $0 | AG55: =SUM(AG24:AG53) -> $0 | AH55: =SUM(AH24:AH53) -> $0 | AI55: =SUM(AI24:AI53) -> $0 | AK55: =SUM(AK24:AK53) -> $0 | AM55: =SUM(AM24:AM53) -> $0
B56: 2054 | C56: =MAX(TREND(C24:C25,B24:B25,B56),0) -> 0 | D56: =MAX(TREND(D24:D25,B24:B25,B56),0) -> 0 | G56: =MAX(TREND(G24:G25,$B24:$B25,$B56),0) -> 0 | H56: =MAX(TREND(H24:H25,$B24:$B25,$B56),0) -> 0 | K56: =MAX(TREND(K24:K25,B24:B25,B56),0) -> 0 | L56: =MAX(TREND(L24:L25,B24:B25,B56),0) -> 0 | M56: =IFERROR(IF(B18=Hwy,C56*E56/G56,K56/G56),0) -> 0.00 | N56: =IFERROR(IF(B18=Hwy,D56*F56/H56,L56/H56),0) -> 0.00 | O56: =MAX(TREND(O24:O25,$B24:$B25,$B56),0) -> 0.00 | P56: =MAX(TREND(P24:P25,$B24:$B25,$B56),0) -> 0.00 | Q56: =TREND(Q24:Q25,$B24:$B25,$B56) -> 0 | R56: =IF(Induced="N",0,(IF(B18=Hwy,M56*(I56*ValTimeTruck+(1-I56)*ValTimeAuto)-N56*(J56*ValTimeTruck+(1-J56)*ValTimeAuto),(IF(INDEX($P$197:$X$200,MATCH(B18,$O$197:$O$200,0),7)>0,INDEX($P$197:$X$200,MATCH(B18,$O$197:$O$200,0),7)/IF(INDEX($P$197:$X$200,MATCH(B18,$O$197:$O$200,0),6)=0,1,INDEX($P$197:$X$200,MATCH(B18,$O$197:$O$200,0),6)),M56)-N56)*ValTimeAuto)+O56-P56)*(H56-Q56)*0.5*(1+TTUprater)^($B56-YearCurrent)) -> $0 | S56: $0 | T56: $0
AE57: =IF(Induced="Y","","* Induced Travel Not Counted") -> 
B58: Total | T58: =SUM(T27:T56) -> $0
A61: 2 | B61: =PARAMETERS!$J$10 -> Pass Train
C63: TOTAL VHT | E63: AVERAGE VEH OCC | G63: =IF(B61=Hwy,"TOTAL VEHICLE TRIPS","TOTAL PERSON TRIPS") -> TOTAL PERSON TRIPS | I63: PERCENT TRUCKS | K63: TOTAL PHT | M63: AVERAGE TRAVEL TIME | O63: OUT OF POCKET COST | Q63: =IF(B61=Hwy,"TOTAL VEHICLE TRIPS","TOTAL PERSON TRIPS") -> TOTAL PERSON TRIPS | R63: CONSUMER SURPLUS BENEFIT
C64: (veh-hours/yr) | E64: (persons/vehicle) | G64: (trips/yr) | I64: (%) | K64: (per-hours/yr) | M64: (hours/trip) | O64: ($/trip) | Q64: (trips/yr) | R64: ($/yr)
B65: Year | Q65: Adjusted (no induced) | R65: New | S65: Constant | T65: Present
C66: No Build | D66: Build | E66: No Build | F66: Build | G66: No Build | H66: Build | I66: No Build | J66: Build | K66: No Build | L66: Build | M66: No Build | N66: Build | O66: No Build | P66: Build | Q66: Build | R66: (Induced) | S66: Dollars | T66: Value
B67: =YearFirst -> 2025 | C67: =SUMIF(INDEX(HwyTransitModelGroup,,1),B61,INDEX(ModelData1NB,,3))*AnnualFactor -> 0 | D67: =SUMIF(INDEX(HwyTransitModelGroup,,1),B61,INDEX(ModelData1B,,3))*AnnualFactor -> 0 | G67: =SUMIF(INDEX(HwyTransitModelGroup,,1),B61,INDEX(ModelData1NB,,1))*AnnualFactor -> 0 | H67: =SUMIF(INDEX(HwyTransitModelGroup,,1),B61,INDEX(ModelData1B,,1))*AnnualFactor -> 0 | K67: =SUMIF(INDEX(HwyTransitModelGroup,,1),B61,INDEX(ModelData1NB,,5))*AnnualFactor -> 0 | L67: =SUMIF(INDEX(HwyTransitModelGroup,,1),B61,INDEX(ModelData1B,,5))*AnnualFactor -> 0 | M67: =IFERROR(IF(B61=Hwy,C67*E67/G67,K67/G67),0) -> 0.00 | N67: =IFERROR(IF(B61=Hwy,D67*F67/H67,L67/H67),0) -> 0.00 | O67: =IF(E67=0,0,SUMPRODUCT(--(INDEX(HwyTransitModelGroup,,1)=B61),INDEX(ModelData1NB,,6),INDEX(ModelData1NB,,1))/IF(SUMPRODUCT(--(INDEX(HwyTransitModelGroup,,1)=B61),INDEX(ModelData1NB,,1))=0,1,SUMPRODUCT(--(INDEX(HwyTransitModelGroup,,1)=B61),INDEX(ModelData1NB,,1)))) -> $0.00 | P67: =IF(F67=0,0,SUMPRODUCT(--(INDEX(HwyTransitModelGroup,,1)=B61),INDEX(ModelData1B,,6),INDEX(ModelData1B,,1))/IF(SUMPRODUCT(--(INDEX(HwyTransitModelGroup,,1)=B61),INDEX(ModelData1B,,1))=0,1,SUMPRODUCT(--(INDEX(HwyTransitModelGroup,,1)=B61),INDEX(ModelData1B,,1)))) -> $0.00 | Q67: =IFERROR($H67-SUMIF('Consumer Surplus'!$C$197:$C$200,B61,'Consumer Surplus'!$G$197:$G$200),0) -> 0 | R67: =IF(Induced="N",0,(IF(B61=Hwy,M67*(I67*ValTimeTruck+(1-I67)*ValTimeAuto)-N67*(J67*ValTimeTruck+(1-J67)*ValTimeAuto),(IF(INDEX($P$197:$X$200,MATCH(B61,$O$197:$O$200,0),7)>0,INDEX($P$197:$X$200,MATCH(B61,$O$197:$O$200,0),7)/IF(INDEX($P$197:$X$200,MATCH(B61,$O$197:$O$200,0),6)=0,1,INDEX($P$197:$X$200,MATCH(B61,$O$197:$O$200,0),6)),M67)-N67)*ValTimeAuto)+O67-P67)*(H67-Q67)*0.5*(1+TTUprater)^($B67-YearCurrent)) -> $0 | S67: =SUM(R67:R67) -> $0 | T67: =S67/(1+DiscRate)^(B67-YearCurrent) -> $0
B68: =YearLast -> 2045 | C68: =SUMIF(INDEX(HwyTransitModelGroup,,1),B61,INDEX(ModelData20NB,,3))*AnnualFactor -> 0 | D68: =SUMIF(INDEX(HwyTransitModelGroup,,1),B61,INDEX(ModelData20B,,3))*AnnualFactor -> 0 | G68: =SUMIF(INDEX(HwyTransitModelGroup,,1),B61,INDEX(ModelData20NB,,1))*AnnualFactor -> 0 | H68: =SUMIF(INDEX(HwyTransitModelGroup,,1),B61,INDEX(ModelData20B,,1))*AnnualFactor -> 0 | K68: =SUMIF(INDEX(HwyTransitModelGroup,,1),B61,INDEX(ModelData20NB,,5))*AnnualFactor -> 0 | L68: =SUMIF(INDEX(HwyTransitModelGroup,,1),B61,INDEX(ModelData20B,,5))*AnnualFactor -> 0 | M68: =IFERROR(IF(B61=Hwy,C68*E68/G68,K68/G68),0) -> 0.00 | N68: =IFERROR(IF(B61=Hwy,D68*F68/H68,L68/H68),0) -> 0.00 | O68: =IF(E68=0,0,SUMPRODUCT(--(INDEX(HwyTransitModelGroup,,1)=B61),INDEX(ModelData20NB,,6),INDEX(ModelData20NB,,1))/IF(SUMPRODUCT(--(INDEX(HwyTransitModelGroup,,1)=B61),INDEX(ModelData20NB,,1))=0,1,SUMPRODUCT(--(INDEX(HwyTransitModelGroup,,1)=B61),INDEX(ModelData20NB,,1)))) -> $0.00 | P68: =IF(F68=0,0,SUMPRODUCT(--(INDEX(HwyTransitModelGroup,,1)=B61),INDEX(ModelData20B,,6),INDEX(ModelData20B,,1))/IF(SUMPRODUCT(--(INDEX(HwyTransitModelGroup,,1)=B61),INDEX(ModelData20B,,1))=0,1,SUMPRODUCT(--(INDEX(HwyTransitModelGroup,,1)=B61),INDEX(ModelData20B,,1)))) -> $0.00 | Q68: =IFERROR($H68-SUMIF('Consumer Surplus'!$C$197:$C$200,B61,'Consumer Surplus'!$K$197:$K$200),0) -> 0 | R68: =IF(Induced="N",0,(IF(B61=Hwy,M68*(I68*ValTimeTruck+(1-I68)*ValTimeAuto)-N68*(J68*ValTimeTruck+(1-J68)*ValTimeAuto),(IF(INDEX($P$197:$X$200,MATCH(B61,$O$197:$O$200,0),9)>0,INDEX($P$197:$X$200,MATCH(B61,$O$197:$O$200,0),9)/IF(INDEX($P$197:$X$200,MATCH(B61,$O$197:$O$200,0),9)=0,1,INDEX($P$197:$X$200,MATCH(B61,$O$197:$O$200,0),8)),M68)-N68)*ValTimeAuto)+O68-P68)*(H68-Q68)*0.5*(1+TTUprater)^($B68-YearCurrent)) -> $0 | S68: =SUM(R68:R68) -> $0 | T68: =S68/(1+DiscRate)^(B68-YearCurrent) -> $0
B70: =YearOpen -> 2025 | C70: =MAX(TREND(C67:C68,B67:B68,B70),0) -> 0 | D70: =MAX(TREND(D67:D68,B67:B68,B70),0) -> 0 | G70: =MAX(TREND(G67:G68,$B67:$B68,$B70),0) -> 0 | H70: =MAX(TREND(H67:H68,$B67:$B68,$B70),0) -> 0 | K70: =MAX(TREND(K67:K68,B67:B68,B70),0) -> 0 | L70: =MAX(TREND(L67:L68,B67:B68,B70),0) -> 0 | M70: =IFERROR(IF(B61=Hwy,C70*E70/G70,K70/G70),0) -> 0.00 | N70: =IFERROR(IF(B61=Hwy,D70*F70/H70,L70/H70),0) -> 0.00 | O70: =MAX(TREND(O67:O68,$B67:$B68,$B70),0) -> 0.00 | P70: =MAX(TREND(P67:P68,$B67:$B68,$B70),0) -> 0.00 | Q70: =TREND(Q67:Q68,$B67:$B68,$B70) -> 0 | R70: =IF(Induced="N",0,(IF(B61=Hwy,M70*(I70*ValTimeTruck+(1-I70)*ValTimeAuto)-N70*(J70*ValTimeTruck+(1-J70)*ValTimeAuto),(IF(INDEX($P$197:$X$200,MATCH(B61,$O$197:$O$200,0),7)>0,INDEX($P$197:$X$200,MATCH(B61,$O$197:$O$200,0),7)/IF(INDEX($P$197:$X$200,MATCH(B61,$O$197:$O$200,0),6)=0,1,INDEX($P$197:$X$200,MATCH(B61,$O$197:$O$200,0),6)),M70)-N70)*ValTimeAuto)+O70-P70)*(H70-Q70)*0.5*(1+TTUprater)^($B70-YearCurrent)) -> $0 | S70: =SUM(R70:R70) -> $0 | T70: =S70/(1+DiscRate)^(B70-YearCurrent) -> $0
B71: =B70+1 -> 2026 | C71: =MAX(TREND(C67:C68,B67:B68,B71),0) -> 0 | D71: =MAX(TREND(D67:D68,B67:B68,B71),0) -> 0 | G71: =MAX(TREND(G67:G68,$B67:$B68,$B71),0) -> 0 | H71: =MAX(TREND(H67:H68,$B67:$B68,$B71),0) -> 0 | K71: =MAX(TREND(K67:K68,B67:B68,B71),0) -> 0 | L71: =MAX(TREND(L67:L68,B67:B68,B71),0) -> 0 | M71: =IFERROR(IF(B61=Hwy,C71*E71/G71,K71/G71),0) -> 0.00 | N71: =IFERROR(IF(B61=Hwy,D71*F71/H71,L71/H71),0) -> 0.00 | O71: =MAX(TREND(O67:O68,$B67:$B68,$B71),0) -> 0.00 | P71: =MAX(TREND(P67:P68,$B67:$B68,$B71),0) -> 0.00 | Q71: =TREND(Q67:Q68,$B67:$B68,$B71) -> 0 | R71: =IF(Induced="N",0,(IF(B61=Hwy,M71*(I71*ValTimeTruck+(1-I71)*ValTimeAuto)-N71*(J71*ValTimeTruck+(1-J71)*ValTimeAuto),(IF(INDEX($P$197:$X$200,MATCH(B61,$O$197:$O$200,0),7)>0,INDEX($P$197:$X$200,MATCH(B61,$O$197:$O$200,0),7)/IF(INDEX($P$197:$X$200,MATCH(B61,$O$197:$O$200,0),6)=0,1,INDEX($P$197:$X$200,MATCH(B61,$O$197:$O$200,0),6)),M71)-N71)*ValTimeAuto)+O71-P71)*(H71-Q71)*0.5*(1+TTUprater)^($B71-YearCurrent)) -> $0 | S71: $0 | T71: $0
B72: =B71+1 -> 2027 | C72: =MAX(TREND(C67:C68,B67:B68,B72),0) -> 0 | D72: =MAX(TREND(D67:D68,B67:B68,B72),0) -> 0 | G72: =MAX(TREND(G67:G68,$B67:$B68,$B72),0) -> 0 | H72: =MAX(TREND(H67:H68,$B67:$B68,$B72),0) -> 0 | K72: =MAX(TREND(K67:K68,B67:B68,B72),0) -> 0 | L72: =MAX(TREND(L67:L68,B67:B68,B72),0) -> 0 | M72: =IFERROR(IF(B61=Hwy,C72*E72/G72,K72/G72),0) -> 0.00 | N72: =IFERROR(IF(B61=Hwy,D72*F72/H72,L72/H72),0) -> 0.00 | O72: =MAX(TREND(O67:O68,$B67:$B68,$B72),0) -> 0.00 | P72: =MAX(TREND(P67:P68,$B67:$B68,$B72),0) -> 0.00 | Q72: =TREND(Q67:Q68,$B67:$B68,$B72) -> 0 | R72: =IF(Induced="N",0,(IF(B61=Hwy,M72*(I72*ValTimeTruck+(1-I72)*ValTimeAuto)-N72*(J72*ValTimeTruck+(1-J72)*ValTimeAuto),(IF(INDEX($P$197:$X$200,MATCH(B61,$O$197:$O$200,0),7)>0,INDEX($P$197:$X$200,MATCH(B61,$O$197:$O$200,0),7)/IF(INDEX($P$197:$X$200,MATCH(B61,$O$197:$O$200,0),6)=0,1,INDEX($P$197:$X$200,MATCH(B61,$O$197:$O$200,0),6)),M72)-N72)*ValTimeAuto)+O72-P72)*(H72-Q72)*0.5*(1+TTUprater)^($B72-YearCurrent)) -> $0 | S72: $0 | T72: $0
B73: 2028 | C73: =MAX(TREND(C67:C68,B67:B68,B73),0) -> 0 | D73: =MAX(TREND(D67:D68,B67:B68,B73),0) -> 0 | G73: =MAX(TREND(G67:G68,$B67:$B68,$B73),0) -> 0 | H73: =MAX(TREND(H67:H68,$B67:$B68,$B73),0) -> 0 | K73: =MAX(TREND(K67:K68,B67:B68,B73),0) -> 0 | L73: =MAX(TREND(L67:L68,B67:B68,B73),0) -> 0 | M73: =IFERROR(IF(B61=Hwy,C73*E73/G73,K73/G73),0) -> 0.00 | N73: =IFERROR(IF(B61=Hwy,D73*F73/H73,L73/H73),0) -> 0.00 | O73: =MAX(TREND(O67:O68,$B67:$B68,$B73),0) -> 0.00 | P73: =MAX(TREND(P67:P68,$B67:$B68,$B73),0) -> 0.00 | Q73: =TREND(Q67:Q68,$B67:$B68,$B73) -> 0 | R73: =IF(Induced="N",0,(IF(B61=Hwy,M73*(I73*ValTimeTruck+(1-I73)*ValTimeAuto)-N73*(J73*ValTimeTruck+(1-J73)*ValTimeAuto),(IF(INDEX($P$197:$X$200,MATCH(B61,$O$197:$O$200,0),7)>0,INDEX($P$197:$X$200,MATCH(B61,$O$197:$O$200,0),7)/IF(INDEX($P$197:$X$200,MATCH(B61,$O$197:$O$200,0),6)=0,1,INDEX($P$197:$X$200,MATCH(B61,$O$197:$O$200,0),6)),M73)-N73)*ValTimeAuto)+O73-P73)*(H73-Q73)*0.5*(1+TTUprater)^($B73-YearCurrent)) -> $0 | S73: $0 | T73: $0
B74: 2029 | C74: =MAX(TREND(C67:C68,B67:B68,B74),0) -> 0 | D74: =MAX(TREND(D67:D68,B67:B68,B74),0) -> 0 | G74: =MAX(TREND(G67:G68,$B67:$B68,$B74),0) -> 0 | H74: =MAX(TREND(H67:H68,$B67:$B68,$B74),0) -> 0 | K74: =MAX(TREND(K67:K68,B67:B68,B74),0) -> 0 | L74: =MAX(TREND(L67:L68,B67:B68,B74),0) -> 0 | M74: =IFERROR(IF(B61=Hwy,C74*E74/G74,K74/G74),0) -> 0.00 | N74: =IFERROR(IF(B61=Hwy,D74*F74/H74,L74/H74),0) -> 0.00 | O74: =MAX(TREND(O67:O68,$B67:$B68,$B74),0) -> 0.00 | P74: =MAX(TREND(P67:P68,$B67:$B68,$B74),0) -> 0.00 | Q74: =TREND(Q67:Q68,$B67:$B68,$B74) -> 0 | R74: =IF(Induced="N",0,(IF(B61=Hwy,M74*(I74*ValTimeTruck+(1-I74)*ValTimeAuto)-N74*(J74*ValTimeTruck+(1-J74)*ValTimeAuto),(IF(INDEX($P$197:$X$200,MATCH(B61,$O$197:$O$200,0),7)>0,INDEX($P$197:$X$200,MATCH(B61,$O$197:$O$200,0),7)/IF(INDEX($P$197:$X$200,MATCH(B61,$O$197:$O$200,0),6)=0,1,INDEX($P$197:$X$200,MATCH(B61,$O$197:$O$200,0),6)),M74)-N74)*ValTimeAuto)+O74-P74)*(H74-Q74)*0.5*(1+TTUprater)^($B74-YearCurrent)) -> $0 | S74: $0 | T74: $0
B75: 2030 | C75: =MAX(TREND(C67:C68,B67:B68,B75),0) -> 0 | D75: =MAX(TREND(D67:D68,B67:B68,B75),0) -> 0 | G75: =MAX(TREND(G67:G68,$B67:$B68,$B75),0) -> 0 | H75: =MAX(TREND(H67:H68,$B67:$B68,$B75),0) -> 0 | K75: =MAX(TREND(K67:K68,B67:B68,B75),0) -> 0 | L75: =MAX(TREND(L67:L68,B67:B68,B75),0) -> 0 | M75: =IFERROR(IF(B61=Hwy,C75*E75/G75,K75/G75),0) -> 0.00 | N75: =IFERROR(IF(B61=Hwy,D75*F75/H75,L75/H75),0) -> 0.00 | O75: =MAX(TREND(O67:O68,$B67:$B68,$B75),0) -> 0.00 | P75: =MAX(TREND(P67:P68,$B67:$B68,$B75),0) -> 0.00 | Q75: =TREND(Q67:Q68,$B67:$B68,$B75) -> 0 | R75: =IF(Induced="N",0,(IF(B61=Hwy,M75*(I75*ValTimeTruck+(1-I75)*ValTimeAuto)-N75*(J75*ValTimeTruck+(1-J75)*ValTimeAuto),(IF(INDEX($P$197:$X$200,MATCH(B61,$O$197:$O$200,0),7)>0,INDEX($P$197:$X$200,MATCH(B61,$O$197:$O$200,0),7)/IF(INDEX($P$197:$X$200,MATCH(B61,$O$197:$O$200,0),6)=0,1,INDEX($P$197:$X$200,MATCH(B61,$O$197:$O$200,0),6)),M75)-N75)*ValTimeAuto)+O75-P75)*(H75-Q75)*0.5*(1+TTUprater)^($B75-YearCurrent)) -> $0 | S75: $0 | T75: $0
B76: 2031 | C76: =MAX(TREND(C67:C68,B67:B68,B76),0) -> 0 | D76: =MAX(TREND(D67:D68,B67:B68,B76),0) -> 0 | G76: =MAX(TREND(G67:G68,$B67:$B68,$B76),0) -> 0 | H76: =MAX(TREND(H67:H68,$B67:$B68,$B76),0) -> 0 | K76: =MAX(TREND(K67:K68,B67:B68,B76),0) -> 0 | L76: =MAX(TREND(L67:L68,B67:B68,B76),0) -> 0 | M76: =IFERROR(IF(B61=Hwy,C76*E76/G76,K76/G76),0) -> 0.00 | N76: =IFERROR(IF(B61=Hwy,D76*F76/H76,L76/H76),0) -> 0.00 | O76: =MAX(TREND(O67:O68,$B67:$B68,$B76),0) -> 0.00 | P76: =MAX(TREND(P67:P68,$B67:$B68,$B76),0) -> 0.00 | Q76: =TREND(Q67:Q68,$B67:$B68,$B76) -> 0 | R76: =IF(Induced="N",0,(IF(B61=Hwy,M76*(I76*ValTimeTruck+(1-I76)*ValTimeAuto)-N76*(J76*ValTimeTruck+(1-J76)*ValTimeAuto),(IF(INDEX($P$197:$X$200,MATCH(B61,$O$197:$O$200,0),7)>0,INDEX($P$197:$X$200,MATCH(B61,$O$197:$O$200,0),7)/IF(INDEX($P$197:$X$200,MATCH(B61,$O$197:$O$200,0),6)=0,1,INDEX($P$197:$X$200,MATCH(B61,$O$197:$O$200,0),6)),M76)-N76)*ValTimeAuto)+O76-P76)*(H76-Q76)*0.5*(1+TTUprater)^($B76-YearCurrent)) -> $0 | S76: $0 | T76: $0
B77: 2032 | C77: =MAX(TREND(C67:C68,B67:B68,B77),0) -> 0 | D77: =MAX(TREND(D67:D68,B67:B68,B77),0) -> 0 | G77: =MAX(TREND(G67:G68,$B67:$B68,$B77),0) -> 0 | H77: =MAX(TREND(H67:H68,$B67:$B68,$B77),0) -> 0 | K77: =MAX(TREND(K67:K68,B67:B68,B77),0) -> 0 | L77: =MAX(TREND(L67:L68,B67:B68,B77),0) -> 0 | M77: =IFERROR(IF(B61=Hwy,C77*E77/G77,K77/G77),0) -> 0.00 | N77: =IFERROR(IF(B61=Hwy,D77*F77/H77,L77/H77),0) -> 0.00 | O77: =MAX(TREND(O67:O68,$B67:$B68,$B77),0) -> 0.00 | P77: =MAX(TREND(P67:P68,$B67:$B68,$B77),0) -> 0.00 | Q77: =TREND(Q67:Q68,$B67:$B68,$B77) -> 0 | R77: =IF(Induced="N",0,(IF(B61=Hwy,M77*(I77*ValTimeTruck+(1-I77)*ValTimeAuto)-N77*(J77*ValTimeTruck+(1-J77)*ValTimeAuto),(IF(INDEX($P$197:$X$200,MATCH(B61,$O$197:$O$200,0),7)>0,INDEX($P$197:$X$200,MATCH(B61,$O$197:$O$200,0),7)/IF(INDEX($P$197:$X$200,MATCH(B61,$O$197:$O$200,0),6)=0,1,INDEX($P$197:$X$200,MATCH(B61,$O$197:$O$200,0),6)),M77)-N77)*ValTimeAuto)+O77-P77)*(H77-Q77)*0.5*(1+TTUprater)^($B77-YearCurrent)) -> $0 | S77: $0 | T77: $0
B78: 2033 | C78: =MAX(TREND(C67:C68,B67:B68,B78),0) -> 0 | D78: =MAX(TREND(D67:D68,B67:B68,B78),0) -> 0 | G78: =MAX(TREND(G67:G68,$B67:$B68,$B78),0) -> 0 | H78: =MAX(TREND(H67:H68,$B67:$B68,$B78),0) -> 0 | K78: =MAX(TREND(K67:K68,B67:B68,B78),0) -> 0 | L78: =MAX(TREND(L67:L68,B67:B68,B78),0) -> 0 | M78: =IFERROR(IF(B61=Hwy,C78*E78/G78,K78/G78),0) -> 0.00 | N78: =IFERROR(IF(B61=Hwy,D78*F78/H78,L78/H78),0) -> 0.00 | O78: =MAX(TREND(O67:O68,$B67:$B68,$B78),0) -> 0.00 | P78: =MAX(TREND(P67:P68,$B67:$B68,$B78),0) -> 0.00 | Q78: =TREND(Q67:Q68,$B67:$B68,$B78) -> 0 | R78: =IF(Induced="N",0,(IF(B61=Hwy,M78*(I78*ValTimeTruck+(1-I78)*ValTimeAuto)-N78*(J78*ValTimeTruck+(1-J78)*ValTimeAuto),(IF(INDEX($P$197:$X$200,MATCH(B61,$O$197:$O$200,0),7)>0,INDEX($P$197:$X$200,MATCH(B61,$O$197:$O$200,0),7)/IF(INDEX($P$197:$X$200,MATCH(B61,$O$197:$O$200,0),6)=0,1,INDEX($P$197:$X$200,MATCH(B61,$O$197:$O$200,0),6)),M78)-N78)*ValTimeAuto)+O78-P78)*(H78-Q78)*0.5*(1+TTUprater)^($B78-YearCurrent)) -> $0 | S78: $0 | T78: $0
B79: 2034 | C79: =MAX(TREND(C67:C68,B67:B68,B79),0) -> 0 | D79: =MAX(TREND(D67:D68,B67:B68,B79),0) -> 0 | G79: =MAX(TREND(G67:G68,$B67:$B68,$B79),0) -> 0 | H79: =MAX(TREND(H67:H68,$B67:$B68,$B79),0) -> 0 | K79: =MAX(TREND(K67:K68,B67:B68,B79),0) -> 0 | L79: =MAX(TREND(L67:L68,B67:B68,B79),0) -> 0 | M79: =IFERROR(IF(B61=Hwy,C79*E79/G79,K79/G79),0) -> 0.00 | N79: =IFERROR(IF(B61=Hwy,D79*F79/H79,L79/H79),0) -> 0.00 | O79: =MAX(TREND(O67:O68,$B67:$B68,$B79),0) -> 0.00 | P79: =MAX(TREND(P67:P68,$B67:$B68,$B79),0) -> 0.00 | Q79: =TREND(Q67:Q68,$B67:$B68,$B79) -> 0 | R79: =IF(Induced="N",0,(IF(B61=Hwy,M79*(I79*ValTimeTruck+(1-I79)*ValTimeAuto)-N79*(J79*ValTimeTruck+(1-J79)*ValTimeAuto),(IF(INDEX($P$197:$X$200,MATCH(B61,$O$197:$O$200,0),7)>0,INDEX($P$197:$X$200,MATCH(B61,$O$197:$O$200,0),7)/IF(INDEX($P$197:$X$200,MATCH(B61,$O$197:$O$200,0),6)=0,1,INDEX($P$197:$X$200,MATCH(B61,$O$197:$O$200,0),6)),M79)-N79)*ValTimeAuto)+O79-P79)*(H79-Q79)*0.5*(1+TTUprater)^($B79-YearCurrent)) -> $0 | S79: $0 | T79: $0
B80: 2035 | C80: =MAX(TREND(C67:C68,B67:B68,B80),0) -> 0 | D80: =MAX(TREND(D67:D68,B67:B68,B80),0) -> 0 | G80: =MAX(TREND(G67:G68,$B67:$B68,$B80),0) -> 0 | H80: =MAX(TREND(H67:H68,$B67:$B68,$B80),0) -> 0 | K80: =MAX(TREND(K67:K68,B67:B68,B80),0) -> 0 | L80: =MAX(TREND(L67:L68,B67:B68,B80),0) -> 0 | M80: =IFERROR(IF(B61=Hwy,C80*E80/G80,K80/G80),0) -> 0.00 | N80: =IFERROR(IF(B61=Hwy,D80*F80/H80,L80/H80),0) -> 0.00 | O80: =MAX(TREND(O67:O68,$B67:$B68,$B80),0) -> 0.00 | P80: =MAX(TREND(P67:P68,$B67:$B68,$B80),0) -> 0.00 | Q80: =TREND(Q67:Q68,$B67:$B68,$B80) -> 0 | R80: =IF(Induced="N",0,(IF(B61=Hwy,M80*(I80*ValTimeTruck+(1-I80)*ValTimeAuto)-N80*(J80*ValTimeTruck+(1-J80)*ValTimeAuto),(IF(INDEX($P$197:$X$200,MATCH(B61,$O$197:$O$200,0),7)>0,INDEX($P$197:$X$200,MATCH(B61,$O$197:$O$200,0),7)/IF(INDEX($P$197:$X$200,MATCH(B61,$O$197:$O$200,0),6)=0,1,INDEX($P$197:$X$200,MATCH(B61,$O$197:$O$200,0),6)),M80)-N80)*ValTimeAuto)+O80-P80)*(H80-Q80)*0.5*(1+TTUprater)^($B80-YearCurrent)) -> $0 | S80: $0 | T80: $0
B81: 2036 | C81: =MAX(TREND(C67:C68,B67:B68,B81),0) -> 0 | D81: =MAX(TREND(D67:D68,B67:B68,B81),0) -> 0 | G81: =MAX(TREND(G67:G68,$B67:$B68,$B81),0) -> 0 | H81: =MAX(TREND(H67:H68,$B67:$B68,$B81),0) -> 0 | K81: =MAX(TREND(K67:K68,B67:B68,B81),0) -> 0 | L81: =MAX(TREND(L67:L68,B67:B68,B81),0) -> 0 | M81: =IFERROR(IF(B61=Hwy,C81*E81/G81,K81/G81),0) -> 0.00 | N81: =IFERROR(IF(B61=Hwy,D81*F81/H81,L81/H81),0) -> 0.00 | O81: =MAX(TREND(O67:O68,$B67:$B68,$B81),0) -> 0.00 | P81: =MAX(TREND(P67:P68,$B67:$B68,$B81),0) -> 0.00 | Q81: =TREND(Q67:Q68,$B67:$B68,$B81) -> 0 | R81: =IF(Induced="N",0,(IF(B61=Hwy,M81*(I81*ValTimeTruck+(1-I81)*ValTimeAuto)-N81*(J81*ValTimeTruck+(1-J81)*ValTimeAuto),(IF(INDEX($P$197:$X$200,MATCH(B61,$O$197:$O$200,0),7)>0,INDEX($P$197:$X$200,MATCH(B61,$O$197:$O$200,0),7)/IF(INDEX($P$197:$X$200,MATCH(B61,$O$197:$O$200,0),6)=0,1,INDEX($P$197:$X$200,MATCH(B61,$O$197:$O$200,0),6)),M81)-N81)*ValTimeAuto)+O81-P81)*(H81-Q81)*0.5*(1+TTUprater)^($B81-YearCurrent)) -> $0 | S81: $0 | T81: $0
B82: 2037 | C82: =MAX(TREND(C67:C68,B67:B68,B82),0) -> 0 | D82: =MAX(TREND(D67:D68,B67:B68,B82),0) -> 0 | G82: =MAX(TREND(G67:G68,$B67:$B68,$B82),0) -> 0 | H82: =MAX(TREND(H67:H68,$B67:$B68,$B82),0) -> 0 | K82: =MAX(TREND(K67:K68,B67:B68,B82),0) -> 0 | L82: =MAX(TREND(L67:L68,B67:B68,B82),0) -> 0 | M82: =IFERROR(IF(B61=Hwy,C82*E82/G82,K82/G82),0) -> 0.00 | N82: =IFERROR(IF(B61=Hwy,D82*F82/H82,L82/H82),0) -> 0.00 | O82: =MAX(TREND(O67:O68,$B67:$B68,$B82),0) -> 0.00 | P82: =MAX(TREND(P67:P68,$B67:$B68,$B82),0) -> 0.00 | Q82: =TREND(Q67:Q68,$B67:$B68,$B82) -> 0 | R82: =IF(Induced="N",0,(IF(B61=Hwy,M82*(I82*ValTimeTruck+(1-I82)*ValTimeAuto)-N82*(J82*ValTimeTruck+(1-J82)*ValTimeAuto),(IF(INDEX($P$197:$X$200,MATCH(B61,$O$197:$O$200,0),7)>0,INDEX($P$197:$X$200,MATCH(B61,$O$197:$O$200,0),7)/IF(INDEX($P$197:$X$200,MATCH(B61,$O$197:$O$200,0),6)=0,1,INDEX($P$197:$X$200,MATCH(B61,$O$197:$O$200,0),6)),M82)-N82)*ValTimeAuto)+O82-P82)*(H82-Q82)*0.5*(1+TTUprater)^($B82-YearCurrent)) -> $0 | S82: $0 | T82: $0
B83: 2038 | C83: =MAX(TREND(C67:C68,B67:B68,B83),0) -> 0 | D83: =MAX(TREND(D67:D68,B67:B68,B83),0) -> 0 | G83: =MAX(TREND(G67:G68,$B67:$B68,$B83),0) -> 0 | H83: =MAX(TREND(H67:H68,$B67:$B68,$B83),0) -> 0 | K83: =MAX(TREND(K67:K68,B67:B68,B83),0) -> 0 | L83: =MAX(TREND(L67:L68,B67:B68,B83),0) -> 0 | M83: =IFERROR(IF(B61=Hwy,C83*E83/G83,K83/G83),0) -> 0.00 | N83: =IFERROR(IF(B61=Hwy,D83*F83/H83,L83/H83),0) -> 0.00 | O83: =MAX(TREND(O67:O68,$B67:$B68,$B83),0) -> 0.00 | P83: =MAX(TREND(P67:P68,$B67:$B68,$B83),0) -> 0.00 | Q83: =TREND(Q67:Q68,$B67:$B68,$B83) -> 0 | R83: =IF(Induced="N",0,(IF(B61=Hwy,M83*(I83*ValTimeTruck+(1-I83)*ValTimeAuto)-N83*(J83*ValTimeTruck+(1-J83)*ValTimeAuto),(IF(INDEX($P$197:$X$200,MATCH(B61,$O$197:$O$200,0),7)>0,INDEX($P$197:$X$200,MATCH(B61,$O$197:$O$200,0),7)/IF(INDEX($P$197:$X$200,MATCH(B61,$O$197:$O$200,0),6)=0,1,INDEX($P$197:$X$200,MATCH(B61,$O$197:$O$200,0),6)),M83)-N83)*ValTimeAuto)+O83-P83)*(H83-Q83)*0.5*(1+TTUprater)^($B83-YearCurrent)) -> $0 | S83: $0 | T83: $0
B84: 2039 | C84: =MAX(TREND(C67:C68,B67:B68,B84),0) -> 0 | D84: =MAX(TREND(D67:D68,B67:B68,B84),0) -> 0 | G84: =MAX(TREND(G67:G68,$B67:$B68,$B84),0) -> 0 | H84: =MAX(TREND(H67:H68,$B67:$B68,$B84),0) -> 0 | K84: =MAX(TREND(K67:K68,B67:B68,B84),0) -> 0 | L84: =MAX(TREND(L67:L68,B67:B68,B84),0) -> 0 | M84: =IFERROR(IF(B61=Hwy,C84*E84/G84,K84/G84),0) -> 0.00 | N84: =IFERROR(IF(B61=Hwy,D84*F84/H84,L84/H84),0) -> 0.00 | O84: =MAX(TREND(O67:O68,$B67:$B68,$B84),0) -> 0.00 | P84: =MAX(TREND(P67:P68,$B67:$B68,$B84),0) -> 0.00 | Q84: =TREND(Q67:Q68,$B67:$B68,$B84) -> 0 | R84: =IF(Induced="N",0,(IF(B61=Hwy,M84*(I84*ValTimeTruck+(1-I84)*ValTimeAuto)-N84*(J84*ValTimeTruck+(1-J84)*ValTimeAuto),(IF(INDEX($P$197:$X$200,MATCH(B61,$O$197:$O$200,0),7)>0,INDEX($P$197:$X$200,MATCH(B61,$O$197:$O$200,0),7)/IF(INDEX($P$197:$X$200,MATCH(B61,$O$197:$O$200,0),6)=0,1,INDEX($P$197:$X$200,MATCH(B61,$O$197:$O$200,0),6)),M84)-N84)*ValTimeAuto)+O84-P84)*(H84-Q84)*0.5*(1+TTUprater)^($B84-YearCurrent)) -> $0 | S84: $0 | T84: $0
B85: 2040 | C85: =MAX(TREND(C67:C68,B67:B68,B85),0) -> 0 | D85: =MAX(TREND(D67:D68,B67:B68,B85),0) -> 0 | G85: =MAX(TREND(G67:G68,$B67:$B68,$B85),0) -> 0 | H85: =MAX(TREND(H67:H68,$B67:$B68,$B85),0) -> 0 | K85: =MAX(TREND(K67:K68,B67:B68,B85),0) -> 0 | L85: =MAX(TREND(L67:L68,B67:B68,B85),0) -> 0 | M85: =IFERROR(IF(B61=Hwy,C85*E85/G85,K85/G85),0) -> 0.00 | N85: =IFERROR(IF(B61=Hwy,D85*F85/H85,L85/H85),0) -> 0.00 | O85: =MAX(TREND(O67:O68,$B67:$B68,$B85),0) -> 0.00 | P85: =MAX(TREND(P67:P68,$B67:$B68,$B85),0) -> 0.00 | Q85: =TREND(Q67:Q68,$B67:$B68,$B85) -> 0 | R85: =IF(Induced="N",0,(IF(B61=Hwy,M85*(I85*ValTimeTruck+(1-I85)*ValTimeAuto)-N85*(J85*ValTimeTruck+(1-J85)*ValTimeAuto),(IF(INDEX($P$197:$X$200,MATCH(B61,$O$197:$O$200,0),7)>0,INDEX($P$197:$X$200,MATCH(B61,$O$197:$O$200,0),7)/IF(INDEX($P$197:$X$200,MATCH(B61,$O$197:$O$200,0),6)=0,1,INDEX($P$197:$X$200,MATCH(B61,$O$197:$O$200,0),6)),M85)-N85)*ValTimeAuto)+O85-P85)*(H85-Q85)*0.5*(1+TTUprater)^($B85-YearCurrent)) -> $0 | S85: $0 | T85: $0
B86: 2041 | C86: =MAX(TREND(C67:C68,B67:B68,B86),0) -> 0 | D86: =MAX(TREND(D67:D68,B67:B68,B86),0) -> 0 | G86: =MAX(TREND(G67:G68,$B67:$B68,$B86),0) -> 0 | H86: =MAX(TREND(H67:H68,$B67:$B68,$B86),0) -> 0 | K86: =MAX(TREND(K67:K68,B67:B68,B86),0) -> 0 | L86: =MAX(TREND(L67:L68,B67:B68,B86),0) -> 0 | M86: =IFERROR(IF(B61=Hwy,C86*E86/G86,K86/G86),0) -> 0.00 | N86: =IFERROR(IF(B61=Hwy,D86*F86/H86,L86/H86),0) -> 0.00 | O86: =MAX(TREND(O67:O68,$B67:$B68,$B86),0) -> 0.00 | P86: =MAX(TREND(P67:P68,$B67:$B68,$B86),0) -> 0.00 | Q86: =TREND(Q67:Q68,$B67:$B68,$B86) -> 0 | R86: =IF(Induced="N",0,(IF(B61=Hwy,M86*(I86*ValTimeTruck+(1-I86)*ValTimeAuto)-N86*(J86*ValTimeTruck+(1-J86)*ValTimeAuto),(IF(INDEX($P$197:$X$200,MATCH(B61,$O$197:$O$200,0),7)>0,INDEX($P$197:$X$200,MATCH(B61,$O$197:$O$200,0),7)/IF(INDEX($P$197:$X$200,MATCH(B61,$O$197:$O$200,0),6)=0,1,INDEX($P$197:$X$200,MATCH(B61,$O$197:$O$200,0),6)),M86)-N86)*ValTimeAuto)+O86-P86)*(H86-Q86)*0.5*(1+TTUprater)^($B86-YearCurrent)) -> $0 | S86: $0 | T86: $0
B87: 2042 | C87: =MAX(TREND(C67:C68,B67:B68,B87),0) -> 0 | D87: =MAX(TREND(D67:D68,B67:B68,B87),0) -> 0 | G87: =MAX(TREND(G67:G68,$B67:$B68,$B87),0) -> 0 | H87: =MAX(TREND(H67:H68,$B67:$B68,$B87),0) -> 0 | K87: =MAX(TREND(K67:K68,B67:B68,B87),0) -> 0 | L87: =MAX(TREND(L67:L68,B67:B68,B87),0) -> 0 | M87: =IFERROR(IF(B61=Hwy,C87*E87/G87,K87/G87),0) -> 0.00 | N87: =IFERROR(IF(B61=Hwy,D87*F87/H87,L87/H87),0) -> 0.00 | O87: =MAX(TREND(O67:O68,$B67:$B68,$B87),0) -> 0.00 | P87: =MAX(TREND(P67:P68,$B67:$B68,$B87),0) -> 0.00 | Q87: =TREND(Q67:Q68,$B67:$B68,$B87) -> 0 | R87: =IF(Induced="N",0,(IF(B61=Hwy,M87*(I87*ValTimeTruck+(1-I87)*ValTimeAuto)-N87*(J87*ValTimeTruck+(1-J87)*ValTimeAuto),(IF(INDEX($P$197:$X$200,MATCH(B61,$O$197:$O$200,0),7)>0,INDEX($P$197:$X$200,MATCH(B61,$O$197:$O$200,0),7)/IF(INDEX($P$197:$X$200,MATCH(B61,$O$197:$O$200,0),6)=0,1,INDEX($P$197:$X$200,MATCH(B61,$O$197:$O$200,0),6)),M87)-N87)*ValTimeAuto)+O87-P87)*(H87-Q87)*0.5*(1+TTUprater)^($B87-YearCurrent)) -> $0 | S87: $0 | T87: $0
B88: 2043 | C88: =MAX(TREND(C67:C68,B67:B68,B88),0) -> 0 | D88: =MAX(TREND(D67:D68,B67:B68,B88),0) -> 0 | G88: =MAX(TREND(G67:G68,$B67:$B68,$B88),0) -> 0 | H88: =MAX(TREND(H67:H68,$B67:$B68,$B88),0) -> 0 | K88: =MAX(TREND(K67:K68,B67:B68,B88),0) -> 0 | L88: =MAX(TREND(L67:L68,B67:B68,B88),0) -> 0 | M88: =IFERROR(IF(B61=Hwy,C88*E88/G88,K88/G88),0) -> 0.00 | N88: =IFERROR(IF(B61=Hwy,D88*F88/H88,L88/H88),0) -> 0.00 | O88: =MAX(TREND(O67:O68,$B67:$B68,$B88),0) -> 0.00 | P88: =MAX(TREND(P67:P68,$B67:$B68,$B88),0) -> 0.00 | Q88: =TREND(Q67:Q68,$B67:$B68,$B88) -> 0 | R88: =IF(Induced="N",0,(IF(B61=Hwy,M88*(I88*ValTimeTruck+(1-I88)*ValTimeAuto)-N88*(J88*ValTimeTruck+(1-J88)*ValTimeAuto),(IF(INDEX($P$197:$X$200,MATCH(B61,$O$197:$O$200,0),7)>0,INDEX($P$197:$X$200,MATCH(B61,$O$197:$O$200,0),7)/IF(INDEX($P$197:$X$200,MATCH(B61,$O$197:$O$200,0),6)=0,1,INDEX($P$197:$X$200,MATCH(B61,$O$197:$O$200,0),6)),M88)-N88)*ValTimeAuto)+O88-P88)*(H88-Q88)*0.5*(1+TTUprater)^($B88-YearCurrent)) -> $0 | S88: $0 | T88: $0
B89: 2044 | C89: =MAX(TREND(C67:C68,B67:B68,B89),0) -> 0 | D89: =MAX(TREND(D67:D68,B67:B68,B89),0) -> 0 | G89: =MAX(TREND(G67:G68,$B67:$B68,$B89),0) -> 0 | H89: =MAX(TREND(H67:H68,$B67:$B68,$B89),0) -> 0 | K89: =MAX(TREND(K67:K68,B67:B68,B89),0) -> 0 | L89: =MAX(TREND(L67:L68,B67:B68,B89),0) -> 0 | M89: =IFERROR(IF(B61=Hwy,C89*E89/G89,K89/G89),0) -> 0.00 | N89: =IFERROR(IF(B61=Hwy,D89*F89/H89,L89/H89),0) -> 0.00 | O89: =MAX(TREND(O67:O68,$B67:$B68,$B89),0) -> 0.00 | P89: =MAX(TREND(P67:P68,$B67:$B68,$B89),0) -> 0.00 | Q89: =TREND(Q67:Q68,$B67:$B68,$B89) -> 0 | R89: =IF(Induced="N",0,(IF(B61=Hwy,M89*(I89*ValTimeTruck+(1-I89)*ValTimeAuto)-N89*(J89*ValTimeTruck+(1-J89)*ValTimeAuto),(IF(INDEX($P$197:$X$200,MATCH(B61,$O$197:$O$200,0),7)>0,INDEX($P$197:$X$200,MATCH(B61,$O$197:$O$200,0),7)/IF(INDEX($P$197:$X$200,MATCH(B61,$O$197:$O$200,0),6)=0,1,INDEX($P$197:$X$200,MATCH(B61,$O$197:$O$200,0),6)),M89)-N89)*ValTimeAuto)+O89-P89)*(H89-Q89)*0.5*(1+TTUprater)^($B89-YearCurrent)) -> $0 | S89: $0 | T89: $0
B90: 2045 | C90: =MAX(TREND(C67:C68,B67:B68,B90),0) -> 0 | D90: =MAX(TREND(D67:D68,B67:B68,B90),0) -> 0 | G90: =MAX(TREND(G67:G68,$B67:$B68,$B90),0) -> 0 | H90: =MAX(TREND(H67:H68,$B67:$B68,$B90),0) -> 0 | K90: =MAX(TREND(K67:K68,B67:B68,B90),0) -> 0 | L90: =MAX(TREND(L67:L68,B67:B68,B90),0) -> 0 | M90: =IFERROR(IF(B61=Hwy,C90*E90/G90,K90/G90),0) -> 0.00 | N90: =IFERROR(IF(B61=Hwy,D90*F90/H90,L90/H90),0) -> 0.00 | O90: =MAX(TREND(O67:O68,$B67:$B68,$B90),0) -> 0.00 | P90: =MAX(TREND(P67:P68,$B67:$B68,$B90),0) -> 0.00 | Q90: =TREND(Q67:Q68,$B67:$B68,$B90) -> 0 | R90: =IF(Induced="N",0,(IF(B61=Hwy,M90*(I90*ValTimeTruck+(1-I90)*ValTimeAuto)-N90*(J90*ValTimeTruck+(1-J90)*ValTimeAuto),(IF(INDEX($P$197:$X$200,MATCH(B61,$O$197:$O$200,0),7)>0,INDEX($P$197:$X$200,MATCH(B61,$O$197:$O$200,0),7)/IF(INDEX($P$197:$X$200,MATCH(B61,$O$197:$O$200,0),6)=0,1,INDEX($P$197:$X$200,MATCH(B61,$O$197:$O$200,0),6)),M90)-N90)*ValTimeAuto)+O90-P90)*(H90-Q90)*0.5*(1+TTUprater)^($B90-YearCurrent)) -> $0 | S90: $0 | T90: $0
B91: 2046 | C91: =MAX(TREND(C67:C68,B67:B68,B91),0) -> 0 | D91: =MAX(TREND(D67:D68,B67:B68,B91),0) -> 0 | G91: =MAX(TREND(G67:G68,$B67:$B68,$B91),0) -> 0 | H91: =MAX(TREND(H67:H68,$B67:$B68,$B91),0) -> 0 | K91: =MAX(TREND(K67:K68,B67:B68,B91),0) -> 0 | L91: =MAX(TREND(L67:L68,B67:B68,B91),0) -> 0 | M91: =IFERROR(IF(B61=Hwy,C91*E91/G91,K91/G91),0) -> 0.00 | N91: =IFERROR(IF(B61=Hwy,D91*F91/H91,L91/H91),0) -> 0.00 | O91: =MAX(TREND(O67:O68,$B67:$B68,$B91),0) -> 0.00 | P91: =MAX(TREND(P67:P68,$B67:$B68,$B91),0) -> 0.00 | Q91: =TREND(Q67:Q68,$B67:$B68,$B91) -> 0 | R91: =IF(Induced="N",0,(IF(B61=Hwy,M91*(I91*ValTimeTruck+(1-I91)*ValTimeAuto)-N91*(J91*ValTimeTruck+(1-J91)*ValTimeAuto),(IF(INDEX($P$197:$X$200,MATCH(B61,$O$197:$O$200,0),7)>0,INDEX($P$197:$X$200,MATCH(B61,$O$197:$O$200,0),7)/IF(INDEX($P$197:$X$200,MATCH(B61,$O$197:$O$200,0),6)=0,1,INDEX($P$197:$X$200,MATCH(B61,$O$197:$O$200,0),6)),M91)-N91)*ValTimeAuto)+O91-P91)*(H91-Q91)*0.5*(1+TTUprater)^($B91-YearCurrent)) -> $0 | S91: $0 | T91: $0
B92: 2047 | C92: =MAX(TREND(C67:C68,B67:B68,B92),0) -> 0 | D92: =MAX(TREND(D67:D68,B67:B68,B92),0) -> 0 | G92: =MAX(TREND(G67:G68,$B67:$B68,$B92),0) -> 0 | H92: =MAX(TREND(H67:H68,$B67:$B68,$B92),0) -> 0 | K92: =MAX(TREND(K67:K68,B67:B68,B92),0) -> 0 | L92: =MAX(TREND(L67:L68,B67:B68,B92),0) -> 0 | M92: =IFERROR(IF(B61=Hwy,C92*E92/G92,K92/G92),0) -> 0.00 | N92: =IFERROR(IF(B61=Hwy,D92*F92/H92,L92/H92),0) -> 0.00 | O92: =MAX(TREND(O67:O68,$B67:$B68,$B92),0) -> 0.00 | P92: =MAX(TREND(P67:P68,$B67:$B68,$B92),0) -> 0.00 | Q92: =TREND(Q67:Q68,$B67:$B68,$B92) -> 0 | R92: =IF(Induced="N",0,(IF(B61=Hwy,M92*(I92*ValTimeTruck+(1-I92)*ValTimeAuto)-N92*(J92*ValTimeTruck+(1-J92)*ValTimeAuto),(IF(INDEX($P$197:$X$200,MATCH(B61,$O$197:$O$200,0),7)>0,INDEX($P$197:$X$200,MATCH(B61,$O$197:$O$200,0),7)/IF(INDEX($P$197:$X$200,MATCH(B61,$O$197:$O$200,0),6)=0,1,INDEX($P$197:$X$200,MATCH(B61,$O$197:$O$200,0),6)),M92)-N92)*ValTimeAuto)+O92-P92)*(H92-Q92)*0.5*(1+TTUprater)^($B92-YearCurrent)) -> $0 | S92: $0 | T92: $0
B93: 2048 | C93: =MAX(TREND(C67:C68,B67:B68,B93),0) -> 0 | D93: =MAX(TREND(D67:D68,B67:B68,B93),0) -> 0 | G93: =MAX(TREND(G67:G68,$B67:$B68,$B93),0) -> 0 | H93: =MAX(TREND(H67:H68,$B67:$B68,$B93),0) -> 0 | K93: =MAX(TREND(K67:K68,B67:B68,B93),0) -> 0 | L93: =MAX(TREND(L67:L68,B67:B68,B93),0) -> 0 | M93: =IFERROR(IF(B61=Hwy,C93*E93/G93,K93/G93),0) -> 0.00 | N93: =IFERROR(IF(B61=Hwy,D93*F93/H93,L93/H93),0) -> 0.00 | O93: =MAX(TREND(O67:O68,$B67:$B68,$B93),0) -> 0.00 | P93: =MAX(TREND(P67:P68,$B67:$B68,$B93),0) -> 0.00 | Q93: =TREND(Q67:Q68,$B67:$B68,$B93) -> 0 | R93: =IF(Induced="N",0,(IF(B61=Hwy,M93*(I93*ValTimeTruck+(1-I93)*ValTimeAuto)-N93*(J93*ValTimeTruck+(1-J93)*ValTimeAuto),(IF(INDEX($P$197:$X$200,MATCH(B61,$O$197:$O$200,0),7)>0,INDEX($P$197:$X$200,MATCH(B61,$O$197:$O$200,0),7)/IF(INDEX($P$197:$X$200,MATCH(B61,$O$197:$O$200,0),6)=0,1,INDEX($P$197:$X$200,MATCH(B61,$O$197:$O$200,0),6)),M93)-N93)*ValTimeAuto)+O93-P93)*(H93-Q93)*0.5*(1+TTUprater)^($B93-YearCurrent)) -> $0 | S93: $0 | T93: $0
B94: 2049 | C94: =MAX(TREND(C67:C68,B67:B68,B94),0) -> 0 | D94: =MAX(TREND(D67:D68,B67:B68,B94),0) -> 0 | G94: =MAX(TREND(G67:G68,$B67:$B68,$B94),0) -> 0 | H94: =MAX(TREND(H67:H68,$B67:$B68,$B94),0) -> 0 | K94: =MAX(TREND(K67:K68,B67:B68,B94),0) -> 0 | L94: =MAX(TREND(L67:L68,B67:B68,B94),0) -> 0 | M94: =IFERROR(IF(B61=Hwy,C94*E94/G94,K94/G94),0) -> 0.00 | N94: =IFERROR(IF(B61=Hwy,D94*F94/H94,L94/H94),0) -> 0.00 | O94: =MAX(TREND(O67:O68,$B67:$B68,$B94),0) -> 0.00 | P94: =MAX(TREND(P67:P68,$B67:$B68,$B94),0) -> 0.00 | Q94: =TREND(Q67:Q68,$B67:$B68,$B94) -> 0 | R94: =IF(Induced="N",0,(IF(B61=Hwy,M94*(I94*ValTimeTruck+(1-I94)*ValTimeAuto)-N94*(J94*ValTimeTruck+(1-J94)*ValTimeAuto),(IF(INDEX($P$197:$X$200,MATCH(B61,$O$197:$O$200,0),7)>0,INDEX($P$197:$X$200,MATCH(B61,$O$197:$O$200,0),7)/IF(INDEX($P$197:$X$200,MATCH(B61,$O$197:$O$200,0),6)=0,1,INDEX($P$197:$X$200,MATCH(B61,$O$197:$O$200,0),6)),M94)-N94)*ValTimeAuto)+O94-P94)*(H94-Q94)*0.5*(1+TTUprater)^($B94-YearCurrent)) -> $0 | S94: $0 | T94: $0
B95: 2050 | C95: =MAX(TREND(C67:C68,B67:B68,B95),0) -> 0 | D95: =MAX(TREND(D67:D68,B67:B68,B95),0) -> 0 | G95: =MAX(TREND(G67:G68,$B67:$B68,$B95),0) -> 0 | H95: =MAX(TREND(H67:H68,$B67:$B68,$B95),0) -> 0 | K95: =MAX(TREND(K67:K68,B67:B68,B95),0) -> 0 | L95: =MAX(TREND(L67:L68,B67:B68,B95),0) -> 0 | M95: =IFERROR(IF(B61=Hwy,C95*E95/G95,K95/G95),0) -> 0.00 | N95: =IFERROR(IF(B61=Hwy,D95*F95/H95,L95/H95),0) -> 0.00 | O95: =MAX(TREND(O67:O68,$B67:$B68,$B95),0) -> 0.00 | P95: =MAX(TREND(P67:P68,$B67:$B68,$B95),0) -> 0.00 | Q95: =TREND(Q67:Q68,$B67:$B68,$B95) -> 0 | R95: =IF(Induced="N",0,(IF(B61=Hwy,M95*(I95*ValTimeTruck+(1-I95)*ValTimeAuto)-N95*(J95*ValTimeTruck+(1-J95)*ValTimeAuto),(IF(INDEX($P$197:$X$200,MATCH(B61,$O$197:$O$200,0),7)>0,INDEX($P$197:$X$200,MATCH(B61,$O$197:$O$200,0),7)/IF(INDEX($P$197:$X$200,MATCH(B61,$O$197:$O$200,0),6)=0,1,INDEX($P$197:$X$200,MATCH(B61,$O$197:$O$200,0),6)),M95)-N95)*ValTimeAuto)+O95-P95)*(H95-Q95)*0.5*(1+TTUprater)^($B95-YearCurrent)) -> $0 | S95: $0 | T95: $0
B96: 2051 | C96: =MAX(TREND(C67:C68,B67:B68,B96),0) -> 0 | D96: =MAX(TREND(D67:D68,B67:B68,B96),0) -> 0 | G96: =MAX(TREND(G67:G68,$B67:$B68,$B96),0) -> 0 | H96: =MAX(TREND(H67:H68,$B67:$B68,$B96),0) -> 0 | K96: =MAX(TREND(K67:K68,B67:B68,B96),0) -> 0 | L96: =MAX(TREND(L67:L68,B67:B68,B96),0) -> 0 | M96: =IFERROR(IF(B61=Hwy,C96*E96/G96,K96/G96),0) -> 0.00 | N96: =IFERROR(IF(B61=Hwy,D96*F96/H96,L96/H96),0) -> 0.00 | O96: =MAX(TREND(O67:O68,$B67:$B68,$B96),0) -> 0.00 | P96: =MAX(TREND(P67:P68,$B67:$B68,$B96),0) -> 0.00 | Q96: =TREND(Q67:Q68,$B67:$B68,$B96) -> 0 | R96: =IF(Induced="N",0,(IF(B61=Hwy,M96*(I96*ValTimeTruck+(1-I96)*ValTimeAuto)-N96*(J96*ValTimeTruck+(1-J96)*ValTimeAuto),(IF(INDEX($P$197:$X$200,MATCH(B61,$O$197:$O$200,0),7)>0,INDEX($P$197:$X$200,MATCH(B61,$O$197:$O$200,0),7)/IF(INDEX($P$197:$X$200,MATCH(B61,$O$197:$O$200,0),6)=0,1,INDEX($P$197:$X$200,MATCH(B61,$O$197:$O$200,0),6)),M96)-N96)*ValTimeAuto)+O96-P96)*(H96-Q96)*0.5*(1+TTUprater)^($B96-YearCurrent)) -> $0 | S96: $0 | T96: $0
B97: 2052 | C97: =MAX(TREND(C67:C68,B67:B68,B97),0) -> 0 | D97: =MAX(TREND(D67:D68,B67:B68,B97),0) -> 0 | G97: =MAX(TREND(G67:G68,$B67:$B68,$B97),0) -> 0 | H97: =MAX(TREND(H67:H68,$B67:$B68,$B97),0) -> 0 | K97: =MAX(TREND(K67:K68,B67:B68,B97),0) -> 0 | L97: =MAX(TREND(L67:L68,B67:B68,B97),0) -> 0 | M97: =IFERROR(IF(B61=Hwy,C97*E97/G97,K97/G97),0) -> 0.00 | N97: =IFERROR(IF(B61=Hwy,D97*F97/H97,L97/H97),0) -> 0.00 | O97: =MAX(TREND(O67:O68,$B67:$B68,$B97),0) -> 0.00 | P97: =MAX(TREND(P67:P68,$B67:$B68,$B97),0) -> 0.00 | Q97: =TREND(Q67:Q68,$B67:$B68,$B97) -> 0 | R97: =IF(Induced="N",0,(IF(B61=Hwy,M97*(I97*ValTimeTruck+(1-I97)*ValTimeAuto)-N97*(J97*ValTimeTruck+(1-J97)*ValTimeAuto),(IF(INDEX($P$197:$X$200,MATCH(B61,$O$197:$O$200,0),7)>0,INDEX($P$197:$X$200,MATCH(B61,$O$197:$O$200,0),7)/IF(INDEX($P$197:$X$200,MATCH(B61,$O$197:$O$200,0),6)=0,1,INDEX($P$197:$X$200,MATCH(B61,$O$197:$O$200,0),6)),M97)-N97)*ValTimeAuto)+O97-P97)*(H97-Q97)*0.5*(1+TTUprater)^($B97-YearCurrent)) -> $0 | S97: $0 | T97: $0
B98: 2053 | C98: =MAX(TREND(C67:C68,B67:B68,B98),0) -> 0 | D98: =MAX(TREND(D67:D68,B67:B68,B98),0) -> 0 | G98: =MAX(TREND(G67:G68,$B67:$B68,$B98),0) -> 0 | H98: =MAX(TREND(H67:H68,$B67:$B68,$B98),0) -> 0 | K98: =MAX(TREND(K67:K68,B67:B68,B98),0) -> 0 | L98: =MAX(TREND(L67:L68,B67:B68,B98),0) -> 0 | M98: =IFERROR(IF(B61=Hwy,C98*E98/G98,K98/G98),0) -> 0.00 | N98: =IFERROR(IF(B61=Hwy,D98*F98/H98,L98/H98),0) -> 0.00 | O98: =MAX(TREND(O67:O68,$B67:$B68,$B98),0) -> 0.00 | P98: =MAX(TREND(P67:P68,$B67:$B68,$B98),0) -> 0.00 | Q98: =TREND(Q67:Q68,$B67:$B68,$B98) -> 0 | R98: =IF(Induced="N",0,(IF(B61=Hwy,M98*(I98*ValTimeTruck+(1-I98)*ValTimeAuto)-N98*(J98*ValTimeTruck+(1-J98)*ValTimeAuto),(IF(INDEX($P$197:$X$200,MATCH(B61,$O$197:$O$200,0),7)>0,INDEX($P$197:$X$200,MATCH(B61,$O$197:$O$200,0),7)/IF(INDEX($P$197:$X$200,MATCH(B61,$O$197:$O$200,0),6)=0,1,INDEX($P$197:$X$200,MATCH(B61,$O$197:$O$200,0),6)),M98)-N98)*ValTimeAuto)+O98-P98)*(H98-Q98)*0.5*(1+TTUprater)^($B98-YearCurrent)) -> $0 | S98: $0 | T98: $0
B99: 2054 | C99: =MAX(TREND(C67:C68,B67:B68,B99),0) -> 0 | D99: =MAX(TREND(D67:D68,B67:B68,B99),0) -> 0 | G99: =MAX(TREND(G67:G68,$B67:$B68,$B99),0) -> 0 | H99: =MAX(TREND(H67:H68,$B67:$B68,$B99),0) -> 0 | K99: =MAX(TREND(K67:K68,B67:B68,B99),0) -> 0 | L99: =MAX(TREND(L67:L68,B67:B68,B99),0) -> 0 | M99: =IFERROR(IF(B61=Hwy,C99*E99/G99,K99/G99),0) -> 0.00 | N99: =IFERROR(IF(B61=Hwy,D99*F99/H99,L99/H99),0) -> 0.00 | O99: =MAX(TREND(O67:O68,$B67:$B68,$B99),0) -> 0.00 | P99: =MAX(TREND(P67:P68,$B67:$B68,$B99),0) -> 0.00 | Q99: =TREND(Q67:Q68,$B67:$B68,$B99) -> 0 | R99: =IF(Induced="N",0,(IF(B61=Hwy,M99*(I99*ValTimeTruck+(1-I99)*ValTimeAuto)-N99*(J99*ValTimeTruck+(1-J99)*ValTimeAuto),(IF(INDEX($P$197:$X$200,MATCH(B61,$O$197:$O$200,0),7)>0,INDEX($P$197:$X$200,MATCH(B61,$O$197:$O$200,0),7)/IF(INDEX($P$197:$X$200,MATCH(B61,$O$197:$O$200,0),6)=0,1,INDEX($P$197:$X$200,MATCH(B61,$O$197:$O$200,0),6)),M99)-N99)*ValTimeAuto)+O99-P99)*(H99-Q99)*0.5*(1+TTUprater)^($B99-YearCurrent)) -> $0 | S99: $0 | T99: $0
B101: Total | T101: =SUM(T70:T99) -> $0
A104: 3 | B104: =PARAMETERS!$J$11 -> Light Rail
C106: TOTAL VHT | E106: AVERAGE VEH OCC | G106: =IF(B104=Hwy,"TOTAL VEHICLE TRIPS","TOTAL PERSON TRIPS") -> TOTAL PERSON TRIPS | I106: PERCENT TRUCKS | K106: TOTAL PHT | M106: AVERAGE TRAVEL TIME | O106: OUT OF POCKET COST | Q106: =IF(B104=Hwy,"TOTAL VEHICLE TRIPS","TOTAL PERSON TRIPS") -> TOTAL PERSON TRIPS | R106: CONSUMER SURPLUS BENEFIT
C107: (veh-hours/yr) | E107: (persons/vehicle) | G107: (trips/yr) | I107: (%) | K107: (per-hours/yr) | M107: (hours/trip) | O107: ($/trip) | Q107: (trips/yr) | R107: ($/yr)
B108: Year | Q108: Adjusted (no induced) | R108: New | S108: Constant | T108: Present
C109: No Build | D109: Build | E109: No Build | F109: Build | G109: No Build | H109: Build | I109: No Build | J109: Build | K109: No Build | L109: Build | M109: No Build | N109: Build | O109: No Build | P109: Build | Q109: Build | R109: (Induced) | S109: Dollars | T109: Value
B110: =YearFirst -> 2025 | C110: =SUMIF(INDEX(HwyTransitModelGroup,,1),B104,INDEX(ModelData1NB,,3))*AnnualFactor -> 0 | D110: =SUMIF(INDEX(HwyTransitModelGroup,,1),B104,INDEX(ModelData1B,,3))*AnnualFactor -> 0 | G110: =SUMIF(INDEX(HwyTransitModelGroup,,1),B104,INDEX(ModelData1NB,,1))*AnnualFactor -> 0 | H110: =SUMIF(INDEX(HwyTransitModelGroup,,1),B104,INDEX(ModelData1B,,1))*AnnualFactor -> 0 | K110: =SUMIF(INDEX(HwyTransitModelGroup,,1),B104,INDEX(ModelData1NB,,5))*AnnualFactor -> 0 | L110: =SUMIF(INDEX(HwyTransitModelGroup,,1),B104,INDEX(ModelData1B,,5))*AnnualFactor -> 0 | M110: =IFERROR(IF(B104=Hwy,C110*E110/G110,K110/G110),0) -> 0.00 | N110: =IFERROR(IF(B104=Hwy,D110*F110/H110,L110/H110),0) -> 0.00 | O110: =IF(E110=0,0,SUMPRODUCT(--(INDEX(HwyTransitModelGroup,,1)=B104),INDEX(ModelData1NB,,6),INDEX(ModelData1NB,,1))/IF(SUMPRODUCT(--(INDEX(HwyTransitModelGroup,,1)=B104),INDEX(ModelData1NB,,1))=0,1,SUMPRODUCT(--(INDEX(HwyTransitModelGroup,,1)=B104),INDEX(ModelData1NB,,1)))) -> $0.00 | P110: =IF(F110=0,0,SUMPRODUCT(--(INDEX(HwyTransitModelGroup,,1)=B104),INDEX(ModelData1B,,6),INDEX(ModelData1B,,1))/IF(SUMPRODUCT(--(INDEX(HwyTransitModelGroup,,1)=B104),INDEX(ModelData1B,,1))=0,1,SUMPRODUCT(--(INDEX(HwyTransitModelGroup,,1)=B104),INDEX(ModelData1B,,1)))) -> $0.00 | Q110: =IFERROR($H110-SUMIF('Consumer Surplus'!$C$197:$C$200,B104,'Consumer Surplus'!$G$197:$G$200),0) -> 0 | R110: =IF(Induced="N",0,(IF(B104=Hwy,M110*(I110*ValTimeTruck+(1-I110)*ValTimeAuto)-N110*(J110*ValTimeTruck+(1-J110)*ValTimeAuto),(IF(INDEX($P$197:$X$200,MATCH(B104,$O$197:$O$200,0),7)>0,INDEX($P$197:$X$200,MATCH(B104,$O$197:$O$200,0),7)/IF(INDEX($P$197:$X$200,MATCH(B104,$O$197:$O$200,0),6)=0,1,INDEX($P$197:$X$200,MATCH(B104,$O$197:$O$200,0),6)),M110)-N110)*ValTimeAuto)+O110-P110)*(H110-Q110)*0.5*(1+TTUprater)^($B110-YearCurrent)) -> $0 | S110: =SUM(R110:R110) -> $0 | T110: =S110/(1+DiscRate)^(B110-YearCurrent) -> $0
B111: =YearLast -> 2045 | C111: =SUMIF(INDEX(HwyTransitModelGroup,,1),B104,INDEX(ModelData20NB,,3))*AnnualFactor -> 0 | D111: =SUMIF(INDEX(HwyTransitModelGroup,,1),B104,INDEX(ModelData20B,,3))*AnnualFactor -> 0 | G111: =SUMIF(INDEX(HwyTransitModelGroup,,1),B104,INDEX(ModelData20NB,,1))*AnnualFactor -> 0 | H111: =SUMIF(INDEX(HwyTransitModelGroup,,1),B104,INDEX(ModelData20B,,1))*AnnualFactor -> 0 | K111: =SUMIF(INDEX(HwyTransitModelGroup,,1),B104,INDEX(ModelData20NB,,5))*AnnualFactor -> 0 | L111: =SUMIF(INDEX(HwyTransitModelGroup,,1),B104,INDEX(ModelData20B,,5))*AnnualFactor -> 0 | M111: =IFERROR(IF(B104=Hwy,C111*E111/G111,K111/G111),0) -> 0.00 | N111: =IFERROR(IF(B104=Hwy,D111*F111/H111,L111/H111),0) -> 0.00 | O111: =IF(E111=0,0,SUMPRODUCT(--(INDEX(HwyTransitModelGroup,,1)=B104),INDEX(ModelData20NB,,6),INDEX(ModelData20NB,,1))/IF(SUMPRODUCT(--(INDEX(HwyTransitModelGroup,,1)=B104),INDEX(ModelData20NB,,1))=0,1,SUMPRODUCT(--(INDEX(HwyTransitModelGroup,,1)=B104),INDEX(ModelData20NB,,1)))) -> $0.00 | P111: =IF(F111=0,0,SUMPRODUCT(--(INDEX(HwyTransitModelGroup,,1)=B104),INDEX(ModelData20B,,6),INDEX(ModelData20B,,1))/IF(SUMPRODUCT(--(INDEX(HwyTransitModelGroup,,1)=B104),INDEX(ModelData20B,,1))=0,1,SUMPRODUCT(--(INDEX(HwyTransitModelGroup,,1)=B104),INDEX(ModelData20B,,1)))) -> $0.00 | Q111: =IFERROR($H111-SUMIF('Consumer Surplus'!$C$197:$C$200,B104,'Consumer Surplus'!$K$197:$K$200),0) -> 0 | R111: =IF(Induced="N",0,(IF(B104=Hwy,M111*(I111*ValTimeTruck+(1-I111)*ValTimeAuto)-N111*(J111*ValTimeTruck+(1-J111)*ValTimeAuto),(IF(INDEX($P$197:$X$200,MATCH(B104,$O$197:$O$200,0),9)>0,INDEX($P$197:$X$200,MATCH(B104,$O$197:$O$200,0),9)/IF(INDEX($P$197:$X$200,MATCH(B104,$O$197:$O$200,0),9)=0,1,INDEX($P$197:$X$200,MATCH(B104,$O$197:$O$200,0),8)),M111)-N111)*ValTimeAuto)+O111-P111)*(H111-Q111)*0.5*(1+TTUprater)^($B111-YearCurrent)) -> $0 | S111: =SUM(R111:R111) -> $0 | T111: =S111/(1+DiscRate)^(B111-YearCurrent) -> $0
B113: =YearOpen -> 2025 | C113: =MAX(TREND(C110:C111,B110:B111,B113),0) -> 0 | D113: =MAX(TREND(D110:D111,B110:B111,B113),0) -> 0 | G113: =MAX(TREND(G110:G111,$B110:$B111,$B113),0) -> 0 | H113: =MAX(TREND(H110:H111,$B110:$B111,$B113),0) -> 0 | K113: =MAX(TREND(K110:K111,B110:B111,B113),0) -> 0 | L113: =MAX(TREND(L110:L111,B110:B111,B113),0) -> 0 | M113: =IFERROR(IF(B104=Hwy,C113*E113/G113,K113/G113),0) -> 0.00 | N113: =IFERROR(IF(B104=Hwy,D113*F113/H113,L113/H113),0) -> 0.00 | O113: =MAX(TREND(O110:O111,$B110:$B111,$B113),0) -> 0.00 | P113: =MAX(TREND(P110:P111,$B110:$B111,$B113),0) -> 0.00 | Q113: =TREND(Q110:Q111,$B110:$B111,$B113) -> 0 | R113: =IF(Induced="N",0,(IF(B104=Hwy,M113*(I113*ValTimeTruck+(1-I113)*ValTimeAuto)-N113*(J113*ValTimeTruck+(1-J113)*ValTimeAuto),(IF(INDEX($P$197:$X$200,MATCH(B104,$O$197:$O$200,0),7)>0,INDEX($P$197:$X$200,MATCH(B104,$O$197:$O$200,0),7)/IF(INDEX($P$197:$X$200,MATCH(B104,$O$197:$O$200,0),6)=0,1,INDEX($P$197:$X$200,MATCH(B104,$O$197:$O$200,0),6)),M113)-N113)*ValTimeAuto)+O113-P113)*(H113-Q113)*0.5*(1+TTUprater)^($B113-YearCurrent)) -> $0 | S113: =SUM(R113:R113) -> $0 | T113: =S113/(1+DiscRate)^(B113-YearCurrent) -> $0
B114: =B113+1 -> 2026 | C114: =MAX(TREND(C110:C111,B110:B111,B114),0) -> 0 | D114: =MAX(TREND(D110:D111,B110:B111,B114),0) -> 0 | G114: =MAX(TREND(G110:G111,$B110:$B111,$B114),0) -> 0 | H114: =MAX(TREND(H110:H111,$B110:$B111,$B114),0) -> 0 | K114: =MAX(TREND(K110:K111,B110:B111,B114),0) -> 0 | L114: =MAX(TREND(L110:L111,B110:B111,B114),0) -> 0 | M114: =IFERROR(IF(B104=Hwy,C114*E114/G114,K114/G114),0) -> 0.00 | N114: =IFERROR(IF(B104=Hwy,D114*F114/H114,L114/H114),0) -> 0.00 | O114: =MAX(TREND(O110:O111,$B110:$B111,$B114),0) -> 0.00 | P114: =MAX(TREND(P110:P111,$B110:$B111,$B114),0) -> 0.00 | Q114: =TREND(Q110:Q111,$B110:$B111,$B114) -> 0 | R114: =IF(Induced="N",0,(IF(B104=Hwy,M114*(I114*ValTimeTruck+(1-I114)*ValTimeAuto)-N114*(J114*ValTimeTruck+(1-J114)*ValTimeAuto),(IF(INDEX($P$197:$X$200,MATCH(B104,$O$197:$O$200,0),7)>0,INDEX($P$197:$X$200,MATCH(B104,$O$197:$O$200,0),7)/IF(INDEX($P$197:$X$200,MATCH(B104,$O$197:$O$200,0),6)=0,1,INDEX($P$197:$X$200,MATCH(B104,$O$197:$O$200,0),6)),M114)-N114)*ValTimeAuto)+O114-P114)*(H114-Q114)*0.5*(1+TTUprater)^($B114-YearCurrent)) -> $0 | S114: $0 | T114: $0
B115: =B114+1 -> 2027 | C115: =MAX(TREND(C110:C111,B110:B111,B115),0) -> 0 | D115: =MAX(TREND(D110:D111,B110:B111,B115),0) -> 0 | G115: =MAX(TREND(G110:G111,$B110:$B111,$B115),0) -> 0 | H115: =MAX(TREND(H110:H111,$B110:$B111,$B115),0) -> 0 | K115: =MAX(TREND(K110:K111,B110:B111,B115),0) -> 0 | L115: =MAX(TREND(L110:L111,B110:B111,B115),0) -> 0 | M115: =IFERROR(IF(B104=Hwy,C115*E115/G115,K115/G115),0) -> 0.00 | N115: =IFERROR(IF(B104=Hwy,D115*F115/H115,L115/H115),0) -> 0.00 | O115: =MAX(TREND(O110:O111,$B110:$B111,$B115),0) -> 0.00 | P115: =MAX(TREND(P110:P111,$B110:$B111,$B115),0) -> 0.00 | Q115: =TREND(Q110:Q111,$B110:$B111,$B115) -> 0 | R115: =IF(Induced="N",0,(IF(B104=Hwy,M115*(I115*ValTimeTruck+(1-I115)*ValTimeAuto)-N115*(J115*ValTimeTruck+(1-J115)*ValTimeAuto),(IF(INDEX($P$197:$X$200,MATCH(B104,$O$197:$O$200,0),7)>0,INDEX($P$197:$X$200,MATCH(B104,$O$197:$O$200,0),7)/IF(INDEX($P$197:$X$200,MATCH(B104,$O$197:$O$200,0),6)=0,1,INDEX($P$197:$X$200,MATCH(B104,$O$197:$O$200,0),6)),M115)-N115)*ValTimeAuto)+O115-P115)*(H115-Q115)*0.5*(1+TTUprater)^($B115-YearCurrent)) -> $0 | S115: $0 | T115: $0
B116: 2028 | C116: =MAX(TREND(C110:C111,B110:B111,B116),0) -> 0 | D116: =MAX(TREND(D110:D111,B110:B111,B116),0) -> 0 | G116: =MAX(TREND(G110:G111,$B110:$B111,$B116),0) -> 0 | H116: =MAX(TREND(H110:H111,$B110:$B111,$B116),0) -> 0 | K116: =MAX(TREND(K110:K111,B110:B111,B116),0) -> 0 | L116: =MAX(TREND(L110:L111,B110:B111,B116),0) -> 0 | M116: =IFERROR(IF(B104=Hwy,C116*E116/G116,K116/G116),0) -> 0.00 | N116: =IFERROR(IF(B104=Hwy,D116*F116/H116,L116/H116),0) -> 0.00 | O116: =MAX(TREND(O110:O111,$B110:$B111,$B116),0) -> 0.00 | P116: =MAX(TREND(P110:P111,$B110:$B111,$B116),0) -> 0.00 | Q116: =TREND(Q110:Q111,$B110:$B111,$B116) -> 0 | R116: =IF(Induced="N",0,(IF(B104=Hwy,M116*(I116*ValTimeTruck+(1-I116)*ValTimeAuto)-N116*(J116*ValTimeTruck+(1-J116)*ValTimeAuto),(IF(INDEX($P$197:$X$200,MATCH(B104,$O$197:$O$200,0),7)>0,INDEX($P$197:$X$200,MATCH(B104,$O$197:$O$200,0),7)/IF(INDEX($P$197:$X$200,MATCH(B104,$O$197:$O$200,0),6)=0,1,INDEX($P$197:$X$200,MATCH(B104,$O$197:$O$200,0),6)),M116)-N116)*ValTimeAuto)+O116-P116)*(H116-Q116)*0.5*(1+TTUprater)^($B116-YearCurrent)) -> $0 | S116: $0 | T116: $0
B117: 2029 | C117: =MAX(TREND(C110:C111,B110:B111,B117),0) -> 0 | D117: =MAX(TREND(D110:D111,B110:B111,B117),0) -> 0 | G117: =MAX(TREND(G110:G111,$B110:$B111,$B117),0) -> 0 | H117: =MAX(TREND(H110:H111,$B110:$B111,$B117),0) -> 0 | K117: =MAX(TREND(K110:K111,B110:B111,B117),0) -> 0 | L117: =MAX(TREND(L110:L111,B110:B111,B117),0) -> 0 | M117: =IFERROR(IF(B104=Hwy,C117*E117/G117,K117/G117),0) -> 0.00 | N117: =IFERROR(IF(B104=Hwy,D117*F117/H117,L117/H117),0) -> 0.00 | O117: =MAX(TREND(O110:O111,$B110:$B111,$B117),0) -> 0.00 | P117: =MAX(TREND(P110:P111,$B110:$B111,$B117),0) -> 0.00 | Q117: =TREND(Q110:Q111,$B110:$B111,$B117) -> 0 | R117: =IF(Induced="N",0,(IF(B104=Hwy,M117*(I117*ValTimeTruck+(1-I117)*ValTimeAuto)-N117*(J117*ValTimeTruck+(1-J117)*ValTimeAuto),(IF(INDEX($P$197:$X$200,MATCH(B104,$O$197:$O$200,0),7)>0,INDEX($P$197:$X$200,MATCH(B104,$O$197:$O$200,0),7)/IF(INDEX($P$197:$X$200,MATCH(B104,$O$197:$O$200,0),6)=0,1,INDEX($P$197:$X$200,MATCH(B104,$O$197:$O$200,0),6)),M117)-N117)*ValTimeAuto)+O117-P117)*(H117-Q117)*0.5*(1+TTUprater)^($B117-YearCurrent)) -> $0 | S117: $0 | T117: $0
B118: 2030 | C118: =MAX(TREND(C110:C111,B110:B111,B118),0) -> 0 | D118: =MAX(TREND(D110:D111,B110:B111,B118),0) -> 0 | G118: =MAX(TREND(G110:G111,$B110:$B111,$B118),0) -> 0 | H118: =MAX(TREND(H110:H111,$B110:$B111,$B118),0) -> 0 | K118: =MAX(TREND(K110:K111,B110:B111,B118),0) -> 0 | L118: =MAX(TREND(L110:L111,B110:B111,B118),0) -> 0 | M118: =IFERROR(IF(B104=Hwy,C118*E118/G118,K118/G118),0) -> 0.00 | N118: =IFERROR(IF(B104=Hwy,D118*F118/H118,L118/H118),0) -> 0.00 | O118: =MAX(TREND(O110:O111,$B110:$B111,$B118),0) -> 0.00 | P118: =MAX(TREND(P110:P111,$B110:$B111,$B118),0) -> 0.00 | Q118: =TREND(Q110:Q111,$B110:$B111,$B118) -> 0 | R118: =IF(Induced="N",0,(IF(B104=Hwy,M118*(I118*ValTimeTruck+(1-I118)*ValTimeAuto)-N118*(J118*ValTimeTruck+(1-J118)*ValTimeAuto),(IF(INDEX($P$197:$X$200,MATCH(B104,$O$197:$O$200,0),7)>0,INDEX($P$197:$X$200,MATCH(B104,$O$197:$O$200,0),7)/IF(INDEX($P$197:$X$200,MATCH(B104,$O$197:$O$200,0),6)=0,1,INDEX($P$197:$X$200,MATCH(B104,$O$197:$O$200,0),6)),M118)-N118)*ValTimeAuto)+O118-P118)*(H118-Q118)*0.5*(1+TTUprater)^($B118-YearCurrent)) -> $0 | S118: $0 | T118: $0
B119: 2031 | C119: =MAX(TREND(C110:C111,B110:B111,B119),0) -> 0 | D119: =MAX(TREND(D110:D111,B110:B111,B119),0) -> 0 | G119: =MAX(TREND(G110:G111,$B110:$B111,$B119),0) -> 0 | H119: =MAX(TREND(H110:H111,$B110:$B111,$B119),0) -> 0 | K119: =MAX(TREND(K110:K111,B110:B111,B119),0) -> 0 | L119: =MAX(TREND(L110:L111,B110:B111,B119),0) -> 0 | M119: =IFERROR(IF(B104=Hwy,C119*E119/G119,K119/G119),0) -> 0.00 | N119: =IFERROR(IF(B104=Hwy,D119*F119/H119,L119/H119),0) -> 0.00 | O119: =MAX(TREND(O110:O111,$B110:$B111,$B119),0) -> 0.00 | P119: =MAX(TREND(P110:P111,$B110:$B111,$B119),0) -> 0.00 | Q119: =TREND(Q110:Q111,$B110:$B111,$B119) -> 0 | R119: =IF(Induced="N",0,(IF(B104=Hwy,M119*(I119*ValTimeTruck+(1-I119)*ValTimeAuto)-N119*(J119*ValTimeTruck+(1-J119)*ValTimeAuto),(IF(INDEX($P$197:$X$200,MATCH(B104,$O$197:$O$200,0),7)>0,INDEX($P$197:$X$200,MATCH(B104,$O$197:$O$200,0),7)/IF(INDEX($P$197:$X$200,MATCH(B104,$O$197:$O$200,0),6)=0,1,INDEX($P$197:$X$200,MATCH(B104,$O$197:$O$200,0),6)),M119)-N119)*ValTimeAuto)+O119-P119)*(H119-Q119)*0.5*(1+TTUprater)^($B119-YearCurrent)) -> $0 | S119: $0 | T119: $0
B120: 2032 | C120: =MAX(TREND(C110:C111,B110:B111,B120),0) -> 0 | D120: =MAX(TREND(D110:D111,B110:B111,B120),0) -> 0 | G120: =MAX(TREND(G110:G111,$B110:$B111,$B120),0) -> 0 | H120: =MAX(TREND(H110:H111,$B110:$B111,$B120),0) -> 0 | K120: =MAX(TREND(K110:K111,B110:B111,B120),0) -> 0 | L120: =MAX(TREND(L110:L111,B110:B111,B120),0) -> 0 | M120: =IFERROR(IF(B104=Hwy,C120*E120/G120,K120/G120),0) -> 0.00 | N120: =IFERROR(IF(B104=Hwy,D120*F120/H120,L120/H120),0) -> 0.00 | O120: =MAX(TREND(O110:O111,$B110:$B111,$B120),0) -> 0.00 | P120: =MAX(TREND(P110:P111,$B110:$B111,$B120),0) -> 0.00 | Q120: =TREND(Q110:Q111,$B110:$B111,$B120) -> 0 | R120: =IF(Induced="N",0,(IF(B104=Hwy,M120*(I120*ValTimeTruck+(1-I120)*ValTimeAuto)-N120*(J120*ValTimeTruck+(1-J120)*ValTimeAuto),(IF(INDEX($P$197:$X$200,MATCH(B104,$O$197:$O$200,0),7)>0,INDEX($P$197:$X$200,MATCH(B104,$O$197:$O$200,0),7)/IF(INDEX($P$197:$X$200,MATCH(B104,$O$197:$O$200,0),6)=0,1,INDEX($P$197:$X$200,MATCH(B104,$O$197:$O$200,0),6)),M120)-N120)*ValTimeAuto)+O120-P120)*(H120-Q120)*0.5*(1+TTUprater)^($B120-YearCurrent)) -> $0 | S120: $0 | T120: $0
B121: 2033 | C121: =MAX(TREND(C110:C111,B110:B111,B121),0) -> 0 | D121: =MAX(TREND(D110:D111,B110:B111,B121),0) -> 0 | G121: =MAX(TREND(G110:G111,$B110:$B111,$B121),0) -> 0 | H121: =MAX(TREND(H110:H111,$B110:$B111,$B121),0) -> 0 | K121: =MAX(TREND(K110:K111,B110:B111,B121),0) -> 0 | L121: =MAX(TREND(L110:L111,B110:B111,B121),0) -> 0 | M121: =IFERROR(IF(B104=Hwy,C121*E121/G121,K121/G121),0) -> 0.00 | N121: =IFERROR(IF(B104=Hwy,D121*F121/H121,L121/H121),0) -> 0.00 | O121: =MAX(TREND(O110:O111,$B110:$B111,$B121),0) -> 0.00 | P121: =MAX(TREND(P110:P111,$B110:$B111,$B121),0) -> 0.00 | Q121: =TREND(Q110:Q111,$B110:$B111,$B121) -> 0 | R121: =IF(Induced="N",0,(IF(B104=Hwy,M121*(I121*ValTimeTruck+(1-I121)*ValTimeAuto)-N121*(J121*ValTimeTruck+(1-J121)*ValTimeAuto),(IF(INDEX($P$197:$X$200,MATCH(B104,$O$197:$O$200,0),7)>0,INDEX($P$197:$X$200,MATCH(B104,$O$197:$O$200,0),7)/IF(INDEX($P$197:$X$200,MATCH(B104,$O$197:$O$200,0),6)=0,1,INDEX($P$197:$X$200,MATCH(B104,$O$197:$O$200,0),6)),M121)-N121)*ValTimeAuto)+O121-P121)*(H121-Q121)*0.5*(1+TTUprater)^($B121-YearCurrent)) -> $0 | S121: $0 | T121: $0
B122: 2034 | C122: =MAX(TREND(C110:C111,B110:B111,B122),0) -> 0 | D122: =MAX(TREND(D110:D111,B110:B111,B122),0) -> 0 | G122: =MAX(TREND(G110:G111,$B110:$B111,$B122),0) -> 0 | H122: =MAX(TREND(H110:H111,$B110:$B111,$B122),0) -> 0 | K122: =MAX(TREND(K110:K111,B110:B111,B122),0) -> 0 | L122: =MAX(TREND(L110:L111,B110:B111,B122),0) -> 0 | M122: =IFERROR(IF(B104=Hwy,C122*E122/G122,K122/G122),0) -> 0.00 | N122: =IFERROR(IF(B104=Hwy,D122*F122/H122,L122/H122),0) -> 0.00 | O122: =MAX(TREND(O110:O111,$B110:$B111,$B122),0) -> 0.00 | P122: =MAX(TREND(P110:P111,$B110:$B111,$B122),0) -> 0.00 | Q122: =TREND(Q110:Q111,$B110:$B111,$B122) -> 0 | R122: =IF(Induced="N",0,(IF(B104=Hwy,M122*(I122*ValTimeTruck+(1-I122)*ValTimeAuto)-N122*(J122*ValTimeTruck+(1-J122)*ValTimeAuto),(IF(INDEX($P$197:$X$200,MATCH(B104,$O$197:$O$200,0),7)>0,INDEX($P$197:$X$200,MATCH(B104,$O$197:$O$200,0),7)/IF(INDEX($P$197:$X$200,MATCH(B104,$O$197:$O$200,0),6)=0,1,INDEX($P$197:$X$200,MATCH(B104,$O$197:$O$200,0),6)),M122)-N122)*ValTimeAuto)+O122-P122)*(H122-Q122)*0.5*(1+TTUprater)^($B122-YearCurrent)) -> $0 | S122: $0 | T122: $0
B123: 2035 | C123: =MAX(TREND(C110:C111,B110:B111,B123),0) -> 0 | D123: =MAX(TREND(D110:D111,B110:B111,B123),0) -> 0 | G123: =MAX(TREND(G110:G111,$B110:$B111,$B123),0) -> 0 | H123: =MAX(TREND(H110:H111,$B110:$B111,$B123),0) -> 0 | K123: =MAX(TREND(K110:K111,B110:B111,B123),0) -> 0 | L123: =MAX(TREND(L110:L111,B110:B111,B123),0) -> 0 | M123: =IFERROR(IF(B104=Hwy,C123*E123/G123,K123/G123),0) -> 0.00 | N123: =IFERROR(IF(B104=Hwy,D123*F123/H123,L123/H123),0) -> 0.00 | O123: =MAX(TREND(O110:O111,$B110:$B111,$B123),0) -> 0.00 | P123: =MAX(TREND(P110:P111,$B110:$B111,$B123),0) -> 0.00 | Q123: =TREND(Q110:Q111,$B110:$B111,$B123) -> 0 | R123: =IF(Induced="N",0,(IF(B104=Hwy,M123*(I123*ValTimeTruck+(1-I123)*ValTimeAuto)-N123*(J123*ValTimeTruck+(1-J123)*ValTimeAuto),(IF(INDEX($P$197:$X$200,MATCH(B104,$O$197:$O$200,0),7)>0,INDEX($P$197:$X$200,MATCH(B104,$O$197:$O$200,0),7)/IF(INDEX($P$197:$X$200,MATCH(B104,$O$197:$O$200,0),6)=0,1,INDEX($P$197:$X$200,MATCH(B104,$O$197:$O$200,0),6)),M123)-N123)*ValTimeAuto)+O123-P123)*(H123-Q123)*0.5*(1+TTUprater)^($B123-YearCurrent)) -> $0 | S123: $0 | T123: $0
B124: 2036 | C124: =MAX(TREND(C110:C111,B110:B111,B124),0) -> 0 | D124: =MAX(TREND(D110:D111,B110:B111,B124),0) -> 0 | G124: =MAX(TREND(G110:G111,$B110:$B111,$B124),0) -> 0 | H124: =MAX(TREND(H110:H111,$B110:$B111,$B124),0) -> 0 | K124: =MAX(TREND(K110:K111,B110:B111,B124),0) -> 0 | L124: =MAX(TREND(L110:L111,B110:B111,B124),0) -> 0 | M124: =IFERROR(IF(B104=Hwy,C124*E124/G124,K124/G124),0) -> 0.00 | N124: =IFERROR(IF(B104=Hwy,D124*F124/H124,L124/H124),0) -> 0.00 | O124: =MAX(TREND(O110:O111,$B110:$B111,$B124),0) -> 0.00 | P124: =MAX(TREND(P110:P111,$B110:$B111,$B124),0) -> 0.00 | Q124: =TREND(Q110:Q111,$B110:$B111,$B124) -> 0 | R124: =IF(Induced="N",0,(IF(B104=Hwy,M124*(I124*ValTimeTruck+(1-I124)*ValTimeAuto)-N124*(J124*ValTimeTruck+(1-J124)*ValTimeAuto),(IF(INDEX($P$197:$X$200,MATCH(B104,$O$197:$O$200,0),7)>0,INDEX($P$197:$X$200,MATCH(B104,$O$197:$O$200,0),7)/IF(INDEX($P$197:$X$200,MATCH(B104,$O$197:$O$200,0),6)=0,1,INDEX($P$197:$X$200,MATCH(B104,$O$197:$O$200,0),6)),M124)-N124)*ValTimeAuto)+O124-P124)*(H124-Q124)*0.5*(1+TTUprater)^($B124-YearCurrent)) -> $0 | S124: $0 | T124: $0
B125: 2037 | C125: =MAX(TREND(C110:C111,B110:B111,B125),0) -> 0 | D125: =MAX(TREND(D110:D111,B110:B111,B125),0) -> 0 | G125: =MAX(TREND(G110:G111,$B110:$B111,$B125),0) -> 0 | H125: =MAX(TREND(H110:H111,$B110:$B111,$B125),0) -> 0 | K125: =MAX(TREND(K110:K111,B110:B111,B125),0) -> 0 | L125: =MAX(TREND(L110:L111,B110:B111,B125),0) -> 0 | M125: =IFERROR(IF(B104=Hwy,C125*E125/G125,K125/G125),0) -> 0.00 | N125: =IFERROR(IF(B104=Hwy,D125*F125/H125,L125/H125),0) -> 0.00 | O125: =MAX(TREND(O110:O111,$B110:$B111,$B125),0) -> 0.00 | P125: =MAX(TREND(P110:P111,$B110:$B111,$B125),0) -> 0.00 | Q125: =TREND(Q110:Q111,$B110:$B111,$B125) -> 0 | R125: =IF(Induced="N",0,(IF(B104=Hwy,M125*(I125*ValTimeTruck+(1-I125)*ValTimeAuto)-N125*(J125*ValTimeTruck+(1-J125)*ValTimeAuto),(IF(INDEX($P$197:$X$200,MATCH(B104,$O$197:$O$200,0),7)>0,INDEX($P$197:$X$200,MATCH(B104,$O$197:$O$200,0),7)/IF(INDEX($P$197:$X$200,MATCH(B104,$O$197:$O$200,0),6)=0,1,INDEX($P$197:$X$200,MATCH(B104,$O$197:$O$200,0),6)),M125)-N125)*ValTimeAuto)+O125-P125)*(H125-Q125)*0.5*(1+TTUprater)^($B125-YearCurrent)) -> $0 | S125: $0 | T125: $0
B126: 2038 | C126: =MAX(TREND(C110:C111,B110:B111,B126),0) -> 0 | D126: =MAX(TREND(D110:D111,B110:B111,B126),0) -> 0 | G126: =MAX(TREND(G110:G111,$B110:$B111,$B126),0) -> 0 | H126: =MAX(TREND(H110:H111,$B110:$B111,$B126),0) -> 0 | K126: =MAX(TREND(K110:K111,B110:B111,B126),0) -> 0 | L126: =MAX(TREND(L110:L111,B110:B111,B126),0) -> 0 | M126: =IFERROR(IF(B104=Hwy,C126*E126/G126,K126/G126),0) -> 0.00 | N126: =IFERROR(IF(B104=Hwy,D126*F126/H126,L126/H126),0) -> 0.00 | O126: =MAX(TREND(O110:O111,$B110:$B111,$B126),0) -> 0.00 | P126: =MAX(TREND(P110:P111,$B110:$B111,$B126),0) -> 0.00 | Q126: =TREND(Q110:Q111,$B110:$B111,$B126) -> 0 | R126: =IF(Induced="N",0,(IF(B104=Hwy,M126*(I126*ValTimeTruck+(1-I126)*ValTimeAuto)-N126*(J126*ValTimeTruck+(1-J126)*ValTimeAuto),(IF(INDEX($P$197:$X$200,MATCH(B104,$O$197:$O$200,0),7)>0,INDEX($P$197:$X$200,MATCH(B104,$O$197:$O$200,0),7)/IF(INDEX($P$197:$X$200,MATCH(B104,$O$197:$O$200,0),6)=0,1,INDEX($P$197:$X$200,MATCH(B104,$O$197:$O$200,0),6)),M126)-N126)*ValTimeAuto)+O126-P126)*(H126-Q126)*0.5*(1+TTUprater)^($B126-YearCurrent)) -> $0 | S126: $0 | T126: $0
B127: 2039 | C127: =MAX(TREND(C110:C111,B110:B111,B127),0) -> 0 | D127: =MAX(TREND(D110:D111,B110:B111,B127),0) -> 0 | G127: =MAX(TREND(G110:G111,$B110:$B111,$B127),0) -> 0 | H127: =MAX(TREND(H110:H111,$B110:$B111,$B127),0) -> 0 | K127: =MAX(TREND(K110:K111,B110:B111,B127),0) -> 0 | L127: =MAX(TREND(L110:L111,B110:B111,B127),0) -> 0 | M127: =IFERROR(IF(B104=Hwy,C127*E127/G127,K127/G127),0) -> 0.00 | N127: =IFERROR(IF(B104=Hwy,D127*F127/H127,L127/H127),0) -> 0.00 | O127: =MAX(TREND(O110:O111,$B110:$B111,$B127),0) -> 0.00 | P127: =MAX(TREND(P110:P111,$B110:$B111,$B127),0) -> 0.00 | Q127: =TREND(Q110:Q111,$B110:$B111,$B127) -> 0 | R127: =IF(Induced="N",0,(IF(B104=Hwy,M127*(I127*ValTimeTruck+(1-I127)*ValTimeAuto)-N127*(J127*ValTimeTruck+(1-J127)*ValTimeAuto),(IF(INDEX($P$197:$X$200,MATCH(B104,$O$197:$O$200,0),7)>0,INDEX($P$197:$X$200,MATCH(B104,$O$197:$O$200,0),7)/IF(INDEX($P$197:$X$200,MATCH(B104,$O$197:$O$200,0),6)=0,1,INDEX($P$197:$X$200,MATCH(B104,$O$197:$O$200,0),6)),M127)-N127)*ValTimeAuto)+O127-P127)*(H127-Q127)*0.5*(1+TTUprater)^($B127-YearCurrent)) -> $0 | S127: $0 | T127: $0
B128: 2040 | C128: =MAX(TREND(C110:C111,B110:B111,B128),0) -> 0 | D128: =MAX(TREND(D110:D111,B110:B111,B128),0) -> 0 | G128: =MAX(TREND(G110:G111,$B110:$B111,$B128),0) -> 0 | H128: =MAX(TREND(H110:H111,$B110:$B111,$B128),0) -> 0 | K128: =MAX(TREND(K110:K111,B110:B111,B128),0) -> 0 | L128: =MAX(TREND(L110:L111,B110:B111,B128),0) -> 0 | M128: =IFERROR(IF(B104=Hwy,C128*E128/G128,K128/G128),0) -> 0.00 | N128: =IFERROR(IF(B104=Hwy,D128*F128/H128,L128/H128),0) -> 0.00 | O128: =MAX(TREND(O110:O111,$B110:$B111,$B128),0) -> 0.00 | P128: =MAX(TREND(P110:P111,$B110:$B111,$B128),0) -> 0.00 | Q128: =TREND(Q110:Q111,$B110:$B111,$B128) -> 0 | R128: =IF(Induced="N",0,(IF(B104=Hwy,M128*(I128*ValTimeTruck+(1-I128)*ValTimeAuto)-N128*(J128*ValTimeTruck+(1-J128)*ValTimeAuto),(IF(INDEX($P$197:$X$200,MATCH(B104,$O$197:$O$200,0),7)>0,INDEX($P$197:$X$200,MATCH(B104,$O$197:$O$200,0),7)/IF(INDEX($P$197:$X$200,MATCH(B104,$O$197:$O$200,0),6)=0,1,INDEX($P$197:$X$200,MATCH(B104,$O$197:$O$200,0),6)),M128)-N128)*ValTimeAuto)+O128-P128)*(H128-Q128)*0.5*(1+TTUprater)^($B128-YearCurrent)) -> $0 | S128: $0 | T128: $0
B129: 2041 | C129: =MAX(TREND(C110:C111,B110:B111,B129),0) -> 0 | D129: =MAX(TREND(D110:D111,B110:B111,B129),0) -> 0 | G129: =MAX(TREND(G110:G111,$B110:$B111,$B129),0) -> 0 | H129: =MAX(TREND(H110:H111,$B110:$B111,$B129),0) -> 0 | K129: =MAX(TREND(K110:K111,B110:B111,B129),0) -> 0 | L129: =MAX(TREND(L110:L111,B110:B111,B129),0) -> 0 | M129: =IFERROR(IF(B104=Hwy,C129*E129/G129,K129/G129),0) -> 0.00 | N129: =IFERROR(IF(B104=Hwy,D129*F129/H129,L129/H129),0) -> 0.00 | O129: =MAX(TREND(O110:O111,$B110:$B111,$B129),0) -> 0.00 | P129: =MAX(TREND(P110:P111,$B110:$B111,$B129),0) -> 0.00 | Q129: =TREND(Q110:Q111,$B110:$B111,$B129) -> 0 | R129: =IF(Induced="N",0,(IF(B104=Hwy,M129*(I129*ValTimeTruck+(1-I129)*ValTimeAuto)-N129*(J129*ValTimeTruck+(1-J129)*ValTimeAuto),(IF(INDEX($P$197:$X$200,MATCH(B104,$O$197:$O$200,0),7)>0,INDEX($P$197:$X$200,MATCH(B104,$O$197:$O$200,0),7)/IF(INDEX($P$197:$X$200,MATCH(B104,$O$197:$O$200,0),6)=0,1,INDEX($P$197:$X$200,MATCH(B104,$O$197:$O$200,0),6)),M129)-N129)*ValTimeAuto)+O129-P129)*(H129-Q129)*0.5*(1+TTUprater)^($B129-YearCurrent)) -> $0 | S129: $0 | T129: $0
B130: 2042 | C130: =MAX(TREND(C110:C111,B110:B111,B130),0) -> 0 | D130: =MAX(TREND(D110:D111,B110:B111,B130),0) -> 0 | G130: =MAX(TREND(G110:G111,$B110:$B111,$B130),0) -> 0 | H130: =MAX(TREND(H110:H111,$B110:$B111,$B130),0) -> 0 | K130: =MAX(TREND(K110:K111,B110:B111,B130),0) -> 0 | L130: =MAX(TREND(L110:L111,B110:B111,B130),0) -> 0 | M130: =IFERROR(IF(B104=Hwy,C130*E130/G130,K130/G130),0) -> 0.00 | N130: =IFERROR(IF(B104=Hwy,D130*F130/H130,L130/H130),0) -> 0.00 | O130: =MAX(TREND(O110:O111,$B110:$B111,$B130),0) -> 0.00 | P130: =MAX(TREND(P110:P111,$B110:$B111,$B130),0) -> 0.00 | Q130: =TREND(Q110:Q111,$B110:$B111,$B130) -> 0 | R130: =IF(Induced="N",0,(IF(B104=Hwy,M130*(I130*ValTimeTruck+(1-I130)*ValTimeAuto)-N130*(J130*ValTimeTruck+(1-J130)*ValTimeAuto),(IF(INDEX($P$197:$X$200,MATCH(B104,$O$197:$O$200,0),7)>0,INDEX($P$197:$X$200,MATCH(B104,$O$197:$O$200,0),7)/IF(INDEX($P$197:$X$200,MATCH(B104,$O$197:$O$200,0),6)=0,1,INDEX($P$197:$X$200,MATCH(B104,$O$197:$O$200,0),6)),M130)-N130)*ValTimeAuto)+O130-P130)*(H130-Q130)*0.5*(1+TTUprater)^($B130-YearCurrent)) -> $0 | S130: $0 | T130: $0
B131: 2043 | C131: =MAX(TREND(C110:C111,B110:B111,B131),0) -> 0 | D131: =MAX(TREND(D110:D111,B110:B111,B131),0) -> 0 | G131: =MAX(TREND(G110:G111,$B110:$B111,$B131),0) -> 0 | H131: =MAX(TREND(H110:H111,$B110:$B111,$B131),0) -> 0 | K131: =MAX(TREND(K110:K111,B110:B111,B131),0) -> 0 | L131: =MAX(TREND(L110:L111,B110:B111,B131),0) -> 0 | M131: =IFERROR(IF(B104=Hwy,C131*E131/G131,K131/G131),0) -> 0.00 | N131: =IFERROR(IF(B104=Hwy,D131*F131/H131,L131/H131),0) -> 0.00 | O131: =MAX(TREND(O110:O111,$B110:$B111,$B131),0) -> 0.00 | P131: =MAX(TREND(P110:P111,$B110:$B111,$B131),0) -> 0.00 | Q131: =TREND(Q110:Q111,$B110:$B111,$B131) -> 0 | R131: =IF(Induced="N",0,(IF(B104=Hwy,M131*(I131*ValTimeTruck+(1-I131)*ValTimeAuto)-N131*(J131*ValTimeTruck+(1-J131)*ValTimeAuto),(IF(INDEX($P$197:$X$200,MATCH(B104,$O$197:$O$200,0),7)>0,INDEX($P$197:$X$200,MATCH(B104,$O$197:$O$200,0),7)/IF(INDEX($P$197:$X$200,MATCH(B104,$O$197:$O$200,0),6)=0,1,INDEX($P$197:$X$200,MATCH(B104,$O$197:$O$200,0),6)),M131)-N131)*ValTimeAuto)+O131-P131)*(H131-Q131)*0.5*(1+TTUprater)^($B131-YearCurrent)) -> $0 | S131: $0 | T131: $0
B132: 2044 | C132: =MAX(TREND(C110:C111,B110:B111,B132),0) -> 0 | D132: =MAX(TREND(D110:D111,B110:B111,B132),0) -> 0 | G132: =MAX(TREND(G110:G111,$B110:$B111,$B132),0) -> 0 | H132: =MAX(TREND(H110:H111,$B110:$B111,$B132),0) -> 0 | K132: =MAX(TREND(K110:K111,B110:B111,B132),0) -> 0 | L132: =MAX(TREND(L110:L111,B110:B111,B132),0) -> 0 | M132: =IFERROR(IF(B104=Hwy,C132*E132/G132,K132/G132),0) -> 0.00 | N132: =IFERROR(IF(B104=Hwy,D132*F132/H132,L132/H132),0) -> 0.00 | O132: =MAX(TREND(O110:O111,$B110:$B111,$B132),0) -> 0.00 | P132: =MAX(TREND(P110:P111,$B110:$B111,$B132),0) -> 0.00 | Q132: =TREND(Q110:Q111,$B110:$B111,$B132) -> 0 | R132: =IF(Induced="N",0,(IF(B104=Hwy,M132*(I132*ValTimeTruck+(1-I132)*ValTimeAuto)-N132*(J132*ValTimeTruck+(1-J132)*ValTimeAuto),(IF(INDEX($P$197:$X$200,MATCH(B104,$O$197:$O$200,0),7)>0,INDEX($P$197:$X$200,MATCH(B104,$O$197:$O$200,0),7)/IF(INDEX($P$197:$X$200,MATCH(B104,$O$197:$O$200,0),6)=0,1,INDEX($P$197:$X$200,MATCH(B104,$O$197:$O$200,0),6)),M132)-N132)*ValTimeAuto)+O132-P132)*(H132-Q132)*0.5*(1+TTUprater)^($B132-YearCurrent)) -> $0 | S132: $0 | T132: $0
B133: 2045 | C133: =MAX(TREND(C110:C111,B110:B111,B133),0) -> 0 | D133: =MAX(TREND(D110:D111,B110:B111,B133),0) -> 0 | G133: =MAX(TREND(G110:G111,$B110:$B111,$B133),0) -> 0 | H133: =MAX(TREND(H110:H111,$B110:$B111,$B133),0) -> 0 | K133: =MAX(TREND(K110:K111,B110:B111,B133),0) -> 0 | L133: =MAX(TREND(L110:L111,B110:B111,B133),0) -> 0 | M133: =IFERROR(IF(B104=Hwy,C133*E133/G133,K133/G133),0) -> 0.00 | N133: =IFERROR(IF(B104=Hwy,D133*F133/H133,L133/H133),0) -> 0.00 | O133: =MAX(TREND(O110:O111,$B110:$B111,$B133),0) -> 0.00 | P133: =MAX(TREND(P110:P111,$B110:$B111,$B133),0) -> 0.00 | Q133: =TREND(Q110:Q111,$B110:$B111,$B133) -> 0 | R133: =IF(Induced="N",0,(IF(B104=Hwy,M133*(I133*ValTimeTruck+(1-I133)*ValTimeAuto)-N133*(J133*ValTimeTruck+(1-J133)*ValTimeAuto),(IF(INDEX($P$197:$X$200,MATCH(B104,$O$197:$O$200,0),7)>0,INDEX($P$197:$X$200,MATCH(B104,$O$197:$O$200,0),7)/IF(INDEX($P$197:$X$200,MATCH(B104,$O$197:$O$200,0),6)=0,1,INDEX($P$197:$X$200,MATCH(B104,$O$197:$O$200,0),6)),M133)-N133)*ValTimeAuto)+O133-P133)*(H133-Q133)*0.5*(1+TTUprater)^($B133-YearCurrent)) -> $0 | S133: $0 | T133: $0
B134: 2046 | C134: =MAX(TREND(C110:C111,B110:B111,B134),0) -> 0 | D134: =MAX(TREND(D110:D111,B110:B111,B134),0) -> 0 | G134: =MAX(TREND(G110:G111,$B110:$B111,$B134),0) -> 0 | H134: =MAX(TREND(H110:H111,$B110:$B111,$B134),0) -> 0 | K134: =MAX(TREND(K110:K111,B110:B111,B134),0) -> 0 | L134: =MAX(TREND(L110:L111,B110:B111,B134),0) -> 0 | M134: =IFERROR(IF(B104=Hwy,C134*E134/G134,K134/G134),0) -> 0.00 | N134: =IFERROR(IF(B104=Hwy,D134*F134/H134,L134/H134),0) -> 0.00 | O134: =MAX(TREND(O110:O111,$B110:$B111,$B134),0) -> 0.00 | P134: =MAX(TREND(P110:P111,$B110:$B111,$B134),0) -> 0.00 | Q134: =TREND(Q110:Q111,$B110:$B111,$B134) -> 0 | R134: =IF(Induced="N",0,(IF(B104=Hwy,M134*(I134*ValTimeTruck+(1-I134)*ValTimeAuto)-N134*(J134*ValTimeTruck+(1-J134)*ValTimeAuto),(IF(INDEX($P$197:$X$200,MATCH(B104,$O$197:$O$200,0),7)>0,INDEX($P$197:$X$200,MATCH(B104,$O$197:$O$200,0),7)/IF(INDEX($P$197:$X$200,MATCH(B104,$O$197:$O$200,0),6)=0,1,INDEX($P$197:$X$200,MATCH(B104,$O$197:$O$200,0),6)),M134)-N134)*ValTimeAuto)+O134-P134)*(H134-Q134)*0.5*(1+TTUprater)^($B134-YearCurrent)) -> $0 | S134: $0 | T134: $0
B135: 2047 | C135: =MAX(TREND(C110:C111,B110:B111,B135),0) -> 0 | D135: =MAX(TREND(D110:D111,B110:B111,B135),0) -> 0 | G135: =MAX(TREND(G110:G111,$B110:$B111,$B135),0) -> 0 | H135: =MAX(TREND(H110:H111,$B110:$B111,$B135),0) -> 0 | K135: =MAX(TREND(K110:K111,B110:B111,B135),0) -> 0 | L135: =MAX(TREND(L110:L111,B110:B111,B135),0) -> 0 | M135: =IFERROR(IF(B104=Hwy,C135*E135/G135,K135/G135),0) -> 0.00 | N135: =IFERROR(IF(B104=Hwy,D135*F135/H135,L135/H135),0) -> 0.00 | O135: =MAX(TREND(O110:O111,$B110:$B111,$B135),0) -> 0.00 | P135: =MAX(TREND(P110:P111,$B110:$B111,$B135),0) -> 0.00 | Q135: =TREND(Q110:Q111,$B110:$B111,$B135) -> 0 | R135: =IF(Induced="N",0,(IF(B104=Hwy,M135*(I135*ValTimeTruck+(1-I135)*ValTimeAuto)-N135*(J135*ValTimeTruck+(1-J135)*ValTimeAuto),(IF(INDEX($P$197:$X$200,MATCH(B104,$O$197:$O$200,0),7)>0,INDEX($P$197:$X$200,MATCH(B104,$O$197:$O$200,0),7)/IF(INDEX($P$197:$X$200,MATCH(B104,$O$197:$O$200,0),6)=0,1,INDEX($P$197:$X$200,MATCH(B104,$O$197:$O$200,0),6)),M135)-N135)*ValTimeAuto)+O135-P135)*(H135-Q135)*0.5*(1+TTUprater)^($B135-YearCurrent)) -> $0 | S135: $0 | T135: $0
B136: 2048 | C136: =MAX(TREND(C110:C111,B110:B111,B136),0) -> 0 | D136: =MAX(TREND(D110:D111,B110:B111,B136),0) -> 0 | G136: =MAX(TREND(G110:G111,$B110:$B111,$B136),0) -> 0 | H136: =MAX(TREND(H110:H111,$B110:$B111,$B136),0) -> 0 | K136: =MAX(TREND(K110:K111,B110:B111,B136),0) -> 0 | L136: =MAX(TREND(L110:L111,B110:B111,B136),0) -> 0 | M136: =IFERROR(IF(B104=Hwy,C136*E136/G136,K136/G136),0) -> 0.00 | N136: =IFERROR(IF(B104=Hwy,D136*F136/H136,L136/H136),0) -> 0.00 | O136: =MAX(TREND(O110:O111,$B110:$B111,$B136),0) -> 0.00 | P136: =MAX(TREND(P110:P111,$B110:$B111,$B136),0) -> 0.00 | Q136: =TREND(Q110:Q111,$B110:$B111,$B136) -> 0 | R136: =IF(Induced="N",0,(IF(B104=Hwy,M136*(I136*ValTimeTruck+(1-I136)*ValTimeAuto)-N136*(J136*ValTimeTruck+(1-J136)*ValTimeAuto),(IF(INDEX($P$197:$X$200,MATCH(B104,$O$197:$O$200,0),7)>0,INDEX($P$197:$X$200,MATCH(B104,$O$197:$O$200,0),7)/IF(INDEX($P$197:$X$200,MATCH(B104,$O$197:$O$200,0),6)=0,1,INDEX($P$197:$X$200,MATCH(B104,$O$197:$O$200,0),6)),M136)-N136)*ValTimeAuto)+O136-P136)*(H136-Q136)*0.5*(1+TTUprater)^($B136-YearCurrent)) -> $0 | S136: $0 | T136: $0
B137: 2049 | C137: =MAX(TREND(C110:C111,B110:B111,B137),0) -> 0 | D137: =MAX(TREND(D110:D111,B110:B111,B137),0) -> 0 | G137: =MAX(TREND(G110:G111,$B110:$B111,$B137),0) -> 0 | H137: =MAX(TREND(H110:H111,$B110:$B111,$B137),0) -> 0 | K137: =MAX(TREND(K110:K111,B110:B111,B137),0) -> 0 | L137: =MAX(TREND(L110:L111,B110:B111,B137),0) -> 0 | M137: =IFERROR(IF(B104=Hwy,C137*E137/G137,K137/G137),0) -> 0.00 | N137: =IFERROR(IF(B104=Hwy,D137*F137/H137,L137/H137),0) -> 0.00 | O137: =MAX(TREND(O110:O111,$B110:$B111,$B137),0) -> 0.00 | P137: =MAX(TREND(P110:P111,$B110:$B111,$B137),0) -> 0.00 | Q137: =TREND(Q110:Q111,$B110:$B111,$B137) -> 0 | R137: =IF(Induced="N",0,(IF(B104=Hwy,M137*(I137*ValTimeTruck+(1-I137)*ValTimeAuto)-N137*(J137*ValTimeTruck+(1-J137)*ValTimeAuto),(IF(INDEX($P$197:$X$200,MATCH(B104,$O$197:$O$200,0),7)>0,INDEX($P$197:$X$200,MATCH(B104,$O$197:$O$200,0),7)/IF(INDEX($P$197:$X$200,MATCH(B104,$O$197:$O$200,0),6)=0,1,INDEX($P$197:$X$200,MATCH(B104,$O$197:$O$200,0),6)),M137)-N137)*ValTimeAuto)+O137-P137)*(H137-Q137)*0.5*(1+TTUprater)^($B137-YearCurrent)) -> $0 | S137: $0 | T137: $0
B138: 2050 | C138: =MAX(TREND(C110:C111,B110:B111,B138),0) -> 0 | D138: =MAX(TREND(D110:D111,B110:B111,B138),0) -> 0 | G138: =MAX(TREND(G110:G111,$B110:$B111,$B138),0) -> 0 | H138: =MAX(TREND(H110:H111,$B110:$B111,$B138),0) -> 0 | K138: =MAX(TREND(K110:K111,B110:B111,B138),0) -> 0 | L138: =MAX(TREND(L110:L111,B110:B111,B138),0) -> 0 | M138: =IFERROR(IF(B104=Hwy,C138*E138/G138,K138/G138),0) -> 0.00 | N138: =IFERROR(IF(B104=Hwy,D138*F138/H138,L138/H138),0) -> 0.00 | O138: =MAX(TREND(O110:O111,$B110:$B111,$B138),0) -> 0.00 | P138: =MAX(TREND(P110:P111,$B110:$B111,$B138),0) -> 0.00 | Q138: =TREND(Q110:Q111,$B110:$B111,$B138) -> 0 | R138: =IF(Induced="N",0,(IF(B104=Hwy,M138*(I138*ValTimeTruck+(1-I138)*ValTimeAuto)-N138*(J138*ValTimeTruck+(1-J138)*ValTimeAuto),(IF(INDEX($P$197:$X$200,MATCH(B104,$O$197:$O$200,0),7)>0,INDEX($P$197:$X$200,MATCH(B104,$O$197:$O$200,0),7)/IF(INDEX($P$197:$X$200,MATCH(B104,$O$197:$O$200,0),6)=0,1,INDEX($P$197:$X$200,MATCH(B104,$O$197:$O$200,0),6)),M138)-N138)*ValTimeAuto)+O138-P138)*(H138-Q138)*0.5*(1+TTUprater)^($B138-YearCurrent)) -> $0 | S138: $0 | T138: $0
B139: 2051 | C139: =MAX(TREND(C110:C111,B110:B111,B139),0) -> 0 | D139: =MAX(TREND(D110:D111,B110:B111,B139),0) -> 0 | G139: =MAX(TREND(G110:G111,$B110:$B111,$B139),0) -> 0 | H139: =MAX(TREND(H110:H111,$B110:$B111,$B139),0) -> 0 | K139: =MAX(TREND(K110:K111,B110:B111,B139),0) -> 0 | L139: =MAX(TREND(L110:L111,B110:B111,B139),0) -> 0 | M139: =IFERROR(IF(B104=Hwy,C139*E139/G139,K139/G139),0) -> 0.00 | N139: =IFERROR(IF(B104=Hwy,D139*F139/H139,L139/H139),0) -> 0.00 | O139: =MAX(TREND(O110:O111,$B110:$B111,$B139),0) -> 0.00 | P139: =MAX(TREND(P110:P111,$B110:$B111,$B139),0) -> 0.00 | Q139: =TREND(Q110:Q111,$B110:$B111,$B139) -> 0 | R139: =IF(Induced="N",0,(IF(B104=Hwy,M139*(I139*ValTimeTruck+(1-I139)*ValTimeAuto)-N139*(J139*ValTimeTruck+(1-J139)*ValTimeAuto),(IF(INDEX($P$197:$X$200,MATCH(B104,$O$197:$O$200,0),7)>0,INDEX($P$197:$X$200,MATCH(B104,$O$197:$O$200,0),7)/IF(INDEX($P$197:$X$200,MATCH(B104,$O$197:$O$200,0),6)=0,1,INDEX($P$197:$X$200,MATCH(B104,$O$197:$O$200,0),6)),M139)-N139)*ValTimeAuto)+O139-P139)*(H139-Q139)*0.5*(1+TTUprater)^($B139-YearCurrent)) -> $0 | S139: $0 | T139: $0
B140: 2052 | C140: =MAX(TREND(C110:C111,B110:B111,B140),0) -> 0 | D140: =MAX(TREND(D110:D111,B110:B111,B140),0) -> 0 | G140: =MAX(TREND(G110:G111,$B110:$B111,$B140),0) -> 0 | H140: =MAX(TREND(H110:H111,$B110:$B111,$B140),0) -> 0 | K140: =MAX(TREND(K110:K111,B110:B111,B140),0) -> 0 | L140: =MAX(TREND(L110:L111,B110:B111,B140),0) -> 0 | M140: =IFERROR(IF(B104=Hwy,C140*E140/G140,K140/G140),0) -> 0.00 | N140: =IFERROR(IF(B104=Hwy,D140*F140/H140,L140/H140),0) -> 0.00 | O140: =MAX(TREND(O110:O111,$B110:$B111,$B140),0) -> 0.00 | P140: =MAX(TREND(P110:P111,$B110:$B111,$B140),0) -> 0.00 | Q140: =TREND(Q110:Q111,$B110:$B111,$B140) -> 0 | R140: =IF(Induced="N",0,(IF(B104=Hwy,M140*(I140*ValTimeTruck+(1-I140)*ValTimeAuto)-N140*(J140*ValTimeTruck+(1-J140)*ValTimeAuto),(IF(INDEX($P$197:$X$200,MATCH(B104,$O$197:$O$200,0),7)>0,INDEX($P$197:$X$200,MATCH(B104,$O$197:$O$200,0),7)/IF(INDEX($P$197:$X$200,MATCH(B104,$O$197:$O$200,0),6)=0,1,INDEX($P$197:$X$200,MATCH(B104,$O$197:$O$200,0),6)),M140)-N140)*ValTimeAuto)+O140-P140)*(H140-Q140)*0.5*(1+TTUprater)^($B140-YearCurrent)) -> $0 | S140: $0 | T140: $0
B141: 2053 | C141: =MAX(TREND(C110:C111,B110:B111,B141),0) -> 0 | D141: =MAX(TREND(D110:D111,B110:B111,B141),0) -> 0 | G141: =MAX(TREND(G110:G111,$B110:$B111,$B141),0) -> 0 | H141: =MAX(TREND(H110:H111,$B110:$B111,$B141),0) -> 0 | K141: =MAX(TREND(K110:K111,B110:B111,B141),0) -> 0 | L141: =MAX(TREND(L110:L111,B110:B111,B141),0) -> 0 | M141: =IFERROR(IF(B104=Hwy,C141*E141/G141,K141/G141),0) -> 0.00 | N141: =IFERROR(IF(B104=Hwy,D141*F141/H141,L141/H141),0) -> 0.00 | O141: =MAX(TREND(O110:O111,$B110:$B111,$B141),0) -> 0.00 | P141: =MAX(TREND(P110:P111,$B110:$B111,$B141),0) -> 0.00 | Q141: =TREND(Q110:Q111,$B110:$B111,$B141) -> 0 | R141: =IF(Induced="N",0,(IF(B104=Hwy,M141*(I141*ValTimeTruck+(1-I141)*ValTimeAuto)-N141*(J141*ValTimeTruck+(1-J141)*ValTimeAuto),(IF(INDEX($P$197:$X$200,MATCH(B104,$O$197:$O$200,0),7)>0,INDEX($P$197:$X$200,MATCH(B104,$O$197:$O$200,0),7)/IF(INDEX($P$197:$X$200,MATCH(B104,$O$197:$O$200,0),6)=0,1,INDEX($P$197:$X$200,MATCH(B104,$O$197:$O$200,0),6)),M141)-N141)*ValTimeAuto)+O141-P141)*(H141-Q141)*0.5*(1+TTUprater)^($B141-YearCurrent)) -> $0 | S141: $0 | T141: $0
B142: 2054 | C142: =MAX(TREND(C110:C111,B110:B111,B142),0) -> 0 | D142: =MAX(TREND(D110:D111,B110:B111,B142),0) -> 0 | G142: =MAX(TREND(G110:G111,$B110:$B111,$B142),0) -> 0 | H142: =MAX(TREND(H110:H111,$B110:$B111,$B142),0) -> 0 | K142: =MAX(TREND(K110:K111,B110:B111,B142),0) -> 0 | L142: =MAX(TREND(L110:L111,B110:B111,B142),0) -> 0 | M142: =IFERROR(IF(B104=Hwy,C142*E142/G142,K142/G142),0) -> 0.00 | N142: =IFERROR(IF(B104=Hwy,D142*F142/H142,L142/H142),0) -> 0.00 | O142: =MAX(TREND(O110:O111,$B110:$B111,$B142),0) -> 0.00 | P142: =MAX(TREND(P110:P111,$B110:$B111,$B142),0) -> 0.00 | Q142: =TREND(Q110:Q111,$B110:$B111,$B142) -> 0 | R142: =IF(Induced="N",0,(IF(B104=Hwy,M142*(I142*ValTimeTruck+(1-I142)*ValTimeAuto)-N142*(J142*ValTimeTruck+(1-J142)*ValTimeAuto),(IF(INDEX($P$197:$X$200,MATCH(B104,$O$197:$O$200,0),7)>0,INDEX($P$197:$X$200,MATCH(B104,$O$197:$O$200,0),7)/IF(INDEX($P$197:$X$200,MATCH(B104,$O$197:$O$200,0),6)=0,1,INDEX($P$197:$X$200,MATCH(B104,$O$197:$O$200,0),6)),M142)-N142)*ValTimeAuto)+O142-P142)*(H142-Q142)*0.5*(1+TTUprater)^($B142-YearCurrent)) -> $0 | S142: $0 | T142: $0
B144: Total | T144: =SUM(T113:T142) -> $0
A147: 4 | B147: =PARAMETERS!$J$12 -> Highway
C149: TOTAL VHT | E149: AVERAGE VEH OCC | G149: =IF(B147=Hwy,"TOTAL VEHICLE TRIPS","TOTAL PERSON TRIPS") -> TOTAL VEHICLE TRIPS | I149: PERCENT TRUCKS | K149: TOTAL PHT | M149: AVERAGE TRAVEL TIME | O149: OUT OF POCKET COST | Q149: =IF(B147=Hwy,"TOTAL VEHICLE TRIPS","TOTAL PERSON TRIPS") -> TOTAL VEHICLE TRIPS | R149: CONSUMER SURPLUS BENEFIT
C150: (veh-hours/yr) | E150: (persons/vehicle) | G150: (trips/yr) | I150: (%) | K150: (per-hours/yr) | M150: (hours/trip) | O150: ($/trip) | Q150: (trips/yr) | R150: ($/yr)
B151: Year | Q151: Adjusted (no induced) | R151: New | S151: Constant | T151: Present
C152: No Build | D152: Build | E152: No Build | F152: Build | G152: No Build | H152: Build | I152: No Build | J152: Build | K152: No Build | L152: Build | M152: No Build | N152: Build | O152: No Build | P152: Build | Q152: Build | R152: (Induced) | S152: Dollars | T152: Value
B153: =YearFirst -> 2025 | C153: =SUMIF(INDEX(HwyTransitModelGroup,,1),B147,INDEX(ModelData1NB,,3))*AnnualFactor -> 1,831,977 | D153: =SUMIF(INDEX(HwyTransitModelGroup,,1),B147,INDEX(ModelData1B,,3))*AnnualFactor -> 439,675 | E153: =IFERROR(IF(B147=Hwy,SUMPRODUCT(--(INDEX(HwyTransitModelGroup,,1)=B147),INDEX(ModelData1NB,,8),INDEX(ModelData1NB,,3))/SUMPRODUCT(--(INDEX(HwyTransitModelGroup,,1)=B147),INDEX(ModelData1NB,,3)),0),0) -> 1.50 | F153: =IFERROR(IF(B147=Hwy,SUMPRODUCT(--(INDEX(HwyTransitModelGroup,,1)=B147),INDEX(ModelData1B,,8),INDEX(ModelData1B,,3))/SUMPRODUCT(--(INDEX(HwyTransitModelGroup,,1)=B147),INDEX(ModelData1B,,3)),0),0) -> 1.50 | G153: =SUMIF(INDEX(HwyTransitModelGroup,,1),B147,INDEX(ModelData1NB,,1))*AnnualFactor -> 3,663,955 | H153: =SUMIF(INDEX(HwyTransitModelGroup,,1),B147,INDEX(ModelData1B,,1))*AnnualFactor -> 3,663,955 | I153: =IFERROR(IF(B147=Hwy,SUMPRODUCT(--(INDEX(HwyTransitModelGroup,,1)=B147),INDEX(ModelData1NB,,9),INDEX(ModelData1NB,,3))/SUMPRODUCT(--(INDEX(HwyTransitModelGroup,,1)=B147),INDEX(ModelData1NB,,3)),0),0) -> 20% | J153: =IFERROR(IF(B147=Hwy,SUMPRODUCT(--(INDEX(HwyTransitModelGroup,,1)=B147),INDEX(ModelData1B,,9),INDEX(ModelData1B,,3))/SUMPRODUCT(--(INDEX(HwyTransitModelGroup,,1)=B147),INDEX(ModelData1B,,3)),0),0) -> 20% | K153: =SUMIF(INDEX(HwyTransitModelGroup,,1),B147,INDEX(ModelData1NB,,5))*AnnualFactor -> 0 | L153: =SUMIF(INDEX(HwyTransitModelGroup,,1),B147,INDEX(ModelData1B,,5))*AnnualFactor -> 0 | M153: =IFERROR(IF(B147=Hwy,C153*E153/G153,K153/G153),0) -> 0.75 | N153: =IFERROR(IF(B147=Hwy,D153*F153/H153,L153/H153),0) -> 0.18 | O153: =IFERROR(IF(E153=0,0,SUMPRODUCT(--(INDEX(HwyTransitModelGroup,,1)=B147),INDEX(ModelData1NB,,6),INDEX(ModelData1NB,,1))/IF(SUMPRODUCT(--(INDEX(HwyTransitModelGroup,,1)=B147),INDEX(ModelData1NB,,1))=0,1,SUMPRODUCT(--(INDEX(HwyTransitModelGroup,,1)=B147),INDEX(ModelData1NB,,1)))),0) -> $0.00 | P153: =IFERROR(IF(F153=0,0,SUMPRODUCT(--(INDEX(HwyTransitModelGroup,,1)=B147),INDEX(ModelData1B,,6),INDEX(ModelData1B,,1))/IF(SUMPRODUCT(--(INDEX(HwyTransitModelGroup,,1)=B147),INDEX(ModelData1B,,1))=0,1,SUMPRODUCT(--(INDEX(HwyTransitModelGroup,,1)=B147),INDEX(ModelData1B,,1)))),0) -> $0.00 | Q153: =IFERROR($H153-SUMIF('Consumer Surplus'!$C$197:$C$200,B147,'Consumer Surplus'!$G$197:$G$200),0) -> 3,663,955 | R153: =IF(Induced="N",0,(IF(B147=Hwy,M153*(I153*ValTimeTruck+(1-I153)*ValTimeAuto)-N153*(J153*ValTimeTruck+(1-J153)*ValTimeAuto),(IF(INDEX($P$197:$X$200,MATCH(B147,$O$197:$O$200,0),7)>0,INDEX($P$197:$X$200,MATCH(B147,$O$197:$O$200,0),7)/IF(INDEX($P$197:$X$200,MATCH(B147,$O$197:$O$200,0),6)=0,1,INDEX($P$197:$X$200,MATCH(B147,$O$197:$O$200,0),6)),M153)-N153)*ValTimeAuto)+O153-P153)*(H153-Q153)*0.5*(1+TTUprater)^($B153-YearCurrent)) -> $0 | S153: =SUM(R153:R153) -> $0 | T153: =S153/(1+DiscRate)^(B153-YearCurrent) -> $0
B154: =YearLast -> 2045 | C154: =SUMIF(INDEX(HwyTransitModelGroup,,1),B147,INDEX(ModelData20NB,,3))*AnnualFactor -> 2,235,360 | D154: =SUMIF(INDEX(HwyTransitModelGroup,,1),B147,INDEX(ModelData20B,,3))*AnnualFactor -> 536,487 | E154: =IFERROR(IF(B147=Hwy,SUMPRODUCT(--(INDEX(HwyTransitModelGroup,,1)=B147),INDEX(ModelData20NB,,8),INDEX(ModelData20NB,,3))/SUMPRODUCT(--(INDEX(HwyTransitModelGroup,,1)=B147),INDEX(ModelData20NB,,3)),0),0) -> 1.50 | F154: =IFERROR(IF(B147=Hwy,SUMPRODUCT(--(INDEX(HwyTransitModelGroup,,1)=B147),INDEX(ModelData20B,,8),INDEX(ModelData20B,,3))/SUMPRODUCT(--(INDEX(HwyTransitModelGroup,,1)=B147),INDEX(ModelData20B,,3)),0),0) -> 1.50 | G154: =SUMIF(INDEX(HwyTransitModelGroup,,1),B147,INDEX(ModelData20NB,,1))*AnnualFactor -> 4,470,721 | H154: =SUMIF(INDEX(HwyTransitModelGroup,,1),B147,INDEX(ModelData20B,,1))*AnnualFactor -> 4,470,721 | I154: =IFERROR(IF(B147=Hwy,SUMPRODUCT(--(INDEX(HwyTransitModelGroup,,1)=B147),INDEX(ModelData20NB,,9),INDEX(ModelData20NB,,3))/SUMPRODUCT(--(INDEX(HwyTransitModelGroup,,1)=B147),INDEX(ModelData20NB,,3)),0),0) -> 20% | J154: =IFERROR(IF(B147=Hwy,SUMPRODUCT(--(INDEX(HwyTransitModelGroup,,1)=B147),INDEX(ModelData20B,,9),INDEX(ModelData20B,,3))/SUMPRODUCT(--(INDEX(HwyTransitModelGroup,,1)=B147),INDEX(ModelData20B,,3)),0),0) -> 20% | K154: =SUMIF(INDEX(HwyTransitModelGroup,,1),B147,INDEX(ModelData20NB,,5))*AnnualFactor -> 0 | L154: =SUMIF(INDEX(HwyTransitModelGroup,,1),B147,INDEX(ModelData20B,,5))*AnnualFactor -> 0 | M154: =IFERROR(IF(B147=Hwy,C154*E154/G154,K154/G154),0) -> 0.75 | N154: =IFERROR(IF(B147=Hwy,D154*F154/H154,L154/H154),0) -> 0.18 | O154: =IFERROR(IF(E154=0,0,SUMPRODUCT(--(INDEX(HwyTransitModelGroup,,1)=B147),INDEX(ModelData20NB,,6),INDEX(ModelData20NB,,1))/IF(SUMPRODUCT(--(INDEX(HwyTransitModelGroup,,1)=B147),INDEX(ModelData20NB,,1))=0,1,SUMPRODUCT(--(INDEX(HwyTransitModelGroup,,1)=B147),INDEX(ModelData20NB,,1)))),0) -> $0.00 | P154: =IFERROR(IF(F154=0,0,SUMPRODUCT(--(INDEX(HwyTransitModelGroup,,1)=B147),INDEX(ModelData20B,,6),INDEX(ModelData20B,,1))/IF(SUMPRODUCT(--(INDEX(HwyTransitModelGroup,,1)=B147),INDEX(ModelData20B,,1))=0,1,SUMPRODUCT(--(INDEX(HwyTransitModelGroup,,1)=B147),INDEX(ModelData20B,,1)))),0) -> $0.00 | Q154: =IFERROR($H154-SUMIF('Consumer Surplus'!$C$197:$C$200,B147,'Consumer Surplus'!$K$197:$K$200),0) -> 4,470,721 | R154: =IF(Induced="N",0,(IF(B147=Hwy,M154*(I154*ValTimeTruck+(1-I154)*ValTimeAuto)-N154*(J154*ValTimeTruck+(1-J154)*ValTimeAuto),(IF(INDEX($P$197:$X$200,MATCH(B147,$O$197:$O$200,0),9)>0,INDEX($P$197:$X$200,MATCH(B147,$O$197:$O$200,0),9)/IF(INDEX($P$197:$X$200,MATCH(B147,$O$197:$O$200,0),9)=0,1,INDEX($P$197:$X$200,MATCH(B147,$O$197:$O$200,0),8)),M154)-N154)*ValTimeAuto)+O154-P154)*(H154-Q154)*0.5*(1+TTUprater)^($B154-YearCurrent)) -> $0 | S154: =SUM(R154:R154) -> $0 | T154: =S154/(1+DiscRate)^(B154-YearCurrent) -> $0
B156: =YearOpen -> 2025 | C156: =MAX(TREND(C153:C154,B153:B154,B156),0) -> 1,831,977 | D156: =MAX(TREND(D153:D154,B153:B154,B156),0) -> 439,675 | E156: =MAX(TREND(E153:E154,B153:B154,B156),0) -> 1.50 | F156: =MAX(TREND(F153:F154,B153:B154,B156),0) -> 1.50 | G156: =MAX(TREND(G153:G154,$B153:$B154,$B156),0) -> 3,663,955 | H156: =MAX(TREND(H153:H154,$B153:$B154,$B156),0) -> 3,663,955 | I156: =MIN(MAX(TREND(I153:I154,B153:B154,B156),0),1) -> 20.0% | J156: =MIN(MAX(TREND(J153:J154,B153:B154,B156),0),1) -> 20.0% | K156: =MAX(TREND(K153:K154,B153:B154,B156),0) -> 0 | L156: =MAX(TREND(L153:L154,B153:B154,B156),0) -> 0 | M156: =IFERROR(IF(B147=Hwy,C156*E156/G156,K156/G156),0) -> 0.75 | N156: =IFERROR(IF(B147=Hwy,D156*F156/H156,L156/H156),0) -> 0.18 | O156: =MAX(TREND(O153:O154,$B153:$B154,$B156),0) -> 0.00 | P156: =MAX(TREND(P153:P154,$B153:$B154,$B156),0) -> 0.00 | Q156: =TREND(Q153:Q154,$B153:$B154,$B156) -> 3,663,955 | R156: =IF(Induced="N",0,(IF(B147=Hwy,M156*(I156*ValTimeTruck+(1-I156)*ValTimeAuto)-N156*(J156*ValTimeTruck+(1-J156)*ValTimeAuto),(IF(INDEX($P$197:$X$200,MATCH(B147,$O$197:$O$200,0),7)>0,INDEX($P$197:$X$200,MATCH(B147,$O$197:$O$200,0),7)/IF(INDEX($P$197:$X$200,MATCH(B147,$O$197:$O$200,0),6)=0,1,INDEX($P$197:$X$200,MATCH(B147,$O$197:$O$200,0),6)),M156)-N156)*ValTimeAuto)+O156-P156)*(H156-Q156)*0.5*(1+TTUprater)^($B156-YearCurrent)) -> $0 | S156: =SUM(R156:R156) -> $0 | T156: =S156/(1+DiscRate)^(B156-YearCurrent) -> $0
B157: =B156+1 -> 2026 | C157: =MAX(TREND(C153:C154,B153:B154,B157),0) -> 1,852,146 | D157: =MAX(TREND(D153:D154,B153:B154,B157),0) -> 444,515 | E157: =MAX(TREND(E153:E154,B153:B154,B157),0) -> 1.50 | F157: =MAX(TREND(F153:F154,B153:B154,B157),0) -> 1.50 | G157: =MAX(TREND(G153:G154,$B153:$B154,$B157),0) -> 3,704,293 | H157: =MAX(TREND(H153:H154,$B153:$B154,$B157),0) -> 3,704,293 | I157: =MIN(MAX(TREND(I153:I154,B153:B154,B157),0),1) -> 20.0% | J157: =MIN(MAX(TREND(J153:J154,B153:B154,B157),0),1) -> 20.0% | K157: =MAX(TREND(K153:K154,B153:B154,B157),0) -> 0 | L157: =MAX(TREND(L153:L154,B153:B154,B157),0) -> 0 | M157: =IFERROR(IF(B147=Hwy,C157*E157/G157,K157/G157),0) -> 0.75 | N157: =IFERROR(IF(B147=Hwy,D157*F157/H157,L157/H157),0) -> 0.18 | O157: =MAX(TREND(O153:O154,$B153:$B154,$B157),0) -> 0.00 | P157: =MAX(TREND(P153:P154,$B153:$B154,$B157),0) -> 0.00 | Q157: =TREND(Q153:Q154,$B153:$B154,$B157) -> 3,704,293 | R157: =IF(Induced="N",0,(IF(B147=Hwy,M157*(I157*ValTimeTruck+(1-I157)*ValTimeAuto)-N157*(J157*ValTimeTruck+(1-J157)*ValTimeAuto),(IF(INDEX($P$197:$X$200,MATCH(B147,$O$197:$O$200,0),7)>0,INDEX($P$197:$X$200,MATCH(B147,$O$197:$O$200,0),7)/IF(INDEX($P$197:$X$200,MATCH(B147,$O$197:$O$200,0),6)=0,1,INDEX($P$197:$X$200,MATCH(B147,$O$197:$O$200,0),6)),M157)-N157)*ValTimeAuto)+O157-P157)*(H157-Q157)*0.5*(1+TTUprater)^($B157-YearCurrent)) -> $0 | S157: $0 | T157: $0
B158: =B157+1 -> 2027 | C158: =MAX(TREND(C153:C154,B153:B154,B158),0) -> 1,872,316 | D158: =MAX(TREND(D153:D154,B153:B154,B158),0) -> 449,356 | E158: =MAX(TREND(E153:E154,B153:B154,B158),0) -> 1.50 | F158: =MAX(TREND(F153:F154,B153:B154,B158),0) -> 1.50 | G158: =MAX(TREND(G153:G154,$B153:$B154,$B158),0) -> 3,744,631 | H158: =MAX(TREND(H153:H154,$B153:$B154,$B158),0) -> 3,744,631 | I158: =MIN(MAX(TREND(I153:I154,B153:B154,B158),0),1) -> 20.0% | J158: =MIN(MAX(TREND(J153:J154,B153:B154,B158),0),1) -> 20.0% | K158: =MAX(TREND(K153:K154,B153:B154,B158),0) -> 0 | L158: =MAX(TREND(L153:L154,B153:B154,B158),0) -> 0 | M158: =IFERROR(IF(B147=Hwy,C158*E158/G158,K158/G158),0) -> 0.75 | N158: =IFERROR(IF(B147=Hwy,D158*F158/H158,L158/H158),0) -> 0.18 | O158: =MAX(TREND(O153:O154,$B153:$B154,$B158),0) -> 0.00 | P158: =MAX(TREND(P153:P154,$B153:$B154,$B158),0) -> 0.00 | Q158: =TREND(Q153:Q154,$B153:$B154,$B158) -> 3,744,631 | R158: =IF(Induced="N",0,(IF(B147=Hwy,M158*(I158*ValTimeTruck+(1-I158)*ValTimeAuto)-N158*(J158*ValTimeTruck+(1-J158)*ValTimeAuto),(IF(INDEX($P$197:$X$200,MATCH(B147,$O$197:$O$200,0),7)>0,INDEX($P$197:$X$200,MATCH(B147,$O$197:$O$200,0),7)/IF(INDEX($P$197:$X$200,MATCH(B147,$O$197:$O$200,0),6)=0,1,INDEX($P$197:$X$200,MATCH(B147,$O$197:$O$200,0),6)),M158)-N158)*ValTimeAuto)+O158-P158)*(H158-Q158)*0.5*(1+TTUprater)^($B158-YearCurrent)) -> $0 | S158: $0 | T158: $0
B159: 2028 | C159: =MAX(TREND(C153:C154,B153:B154,B159),0) -> 1,892,485 | D159: =MAX(TREND(D153:D154,B153:B154,B159),0) -> 454,196 | E159: =MAX(TREND(E153:E154,B153:B154,B159),0) -> 1.50 | F159: =MAX(TREND(F153:F154,B153:B154,B159),0) -> 1.50 | G159: =MAX(TREND(G153:G154,$B153:$B154,$B159),0) -> 3,784,970 | H159: =MAX(TREND(H153:H154,$B153:$B154,$B159),0) -> 3,784,970 | I159: =MIN(MAX(TREND(I153:I154,B153:B154,B159),0),1) -> 20.0% | J159: =MIN(MAX(TREND(J153:J154,B153:B154,B159),0),1) -> 20.0% | K159: =MAX(TREND(K153:K154,B153:B154,B159),0) -> 0 | L159: =MAX(TREND(L153:L154,B153:B154,B159),0) -> 0 | M159: =IFERROR(IF(B147=Hwy,C159*E159/G159,K159/G159),0) -> 0.75 | N159: =IFERROR(IF(B147=Hwy,D159*F159/H159,L159/H159),0) -> 0.18 | O159: =MAX(TREND(O153:O154,$B153:$B154,$B159),0) -> 0.00 | P159: =MAX(TREND(P153:P154,$B153:$B154,$B159),0) -> 0.00 | Q159: =TREND(Q153:Q154,$B153:$B154,$B159) -> 3,784,970 | R159: =IF(Induced="N",0,(IF(B147=Hwy,M159*(I159*ValTimeTruck+(1-I159)*ValTimeAuto)-N159*(J159*ValTimeTruck+(1-J159)*ValTimeAuto),(IF(INDEX($P$197:$X$200,MATCH(B147,$O$197:$O$200,0),7)>0,INDEX($P$197:$X$200,MATCH(B147,$O$197:$O$200,0),7)/IF(INDEX($P$197:$X$200,MATCH(B147,$O$197:$O$200,0),6)=0,1,INDEX($P$197:$X$200,MATCH(B147,$O$197:$O$200,0),6)),M159)-N159)*ValTimeAuto)+O159-P159)*(H159-Q159)*0.5*(1+TTUprater)^($B159-YearCurrent)) -> $0 | S159: $0 | T159: $0
B160: 2029 | C160: =MAX(TREND(C153:C154,B153:B154,B160),0) -> 1,912,654 | D160: =MAX(TREND(D153:D154,B153:B154,B160),0) -> 459,037 | E160: =MAX(TREND(E153:E154,B153:B154,B160),0) -> 1.50 | F160: =MAX(TREND(F153:F154,B153:B154,B160),0) -> 1.50 | G160: =MAX(TREND(G153:G154,$B153:$B154,$B160),0) -> 3,825,308 | H160: =MAX(TREND(H153:H154,$B153:$B154,$B160),0) -> 3,825,308 | I160: =MIN(MAX(TREND(I153:I154,B153:B154,B160),0),1) -> 20.0% | J160: =MIN(MAX(TREND(J153:J154,B153:B154,B160),0),1) -> 20.0% | K160: =MAX(TREND(K153:K154,B153:B154,B160),0) -> 0 | L160: =MAX(TREND(L153:L154,B153:B154,B160),0) -> 0 | M160: =IFERROR(IF(B147=Hwy,C160*E160/G160,K160/G160),0) -> 0.75 | N160: =IFERROR(IF(B147=Hwy,D160*F160/H160,L160/H160),0) -> 0.18 | O160: =MAX(TREND(O153:O154,$B153:$B154,$B160),0) -> 0.00 | P160: =MAX(TREND(P153:P154,$B153:$B154,$B160),0) -> 0.00 | Q160: =TREND(Q153:Q154,$B153:$B154,$B160) -> 3,825,308 | R160: =IF(Induced="N",0,(IF(B147=Hwy,M160*(I160*ValTimeTruck+(1-I160)*ValTimeAuto)-N160*(J160*ValTimeTruck+(1-J160)*ValTimeAuto),(IF(INDEX($P$197:$X$200,MATCH(B147,$O$197:$O$200,0),7)>0,INDEX($P$197:$X$200,MATCH(B147,$O$197:$O$200,0),7)/IF(INDEX($P$197:$X$200,MATCH(B147,$O$197:$O$200,0),6)=0,1,INDEX($P$197:$X$200,MATCH(B147,$O$197:$O$200,0),6)),M160)-N160)*ValTimeAuto)+O160-P160)*(H160-Q160)*0.5*(1+TTUprater)^($B160-YearCurrent)) -> $0 | S160: $0 | T160: $0
B161: 2030 | C161: =MAX(TREND(C153:C154,B153:B154,B161),0) -> 1,932,823 | D161: =MAX(TREND(D153:D154,B153:B154,B161),0) -> 463,878 | E161: =MAX(TREND(E153:E154,B153:B154,B161),0) -> 1.50 | F161: =MAX(TREND(F153:F154,B153:B154,B161),0) -> 1.50 | G161: =MAX(TREND(G153:G154,$B153:$B154,$B161),0) -> 3,865,646 | H161: =MAX(TREND(H153:H154,$B153:$B154,$B161),0) -> 3,865,646 | I161: =MIN(MAX(TREND(I153:I154,B153:B154,B161),0),1) -> 20.0% | J161: =MIN(MAX(TREND(J153:J154,B153:B154,B161),0),1) -> 20.0% | K161: =MAX(TREND(K153:K154,B153:B154,B161),0) -> 0 | L161: =MAX(TREND(L153:L154,B153:B154,B161),0) -> 0 | M161: =IFERROR(IF(B147=Hwy,C161*E161/G161,K161/G161),0) -> 0.75 | N161: =IFERROR(IF(B147=Hwy,D161*F161/H161,L161/H161),0) -> 0.18 | O161: =MAX(TREND(O153:O154,$B153:$B154,$B161),0) -> 0.00 | P161: =MAX(TREND(P153:P154,$B153:$B154,$B161),0) -> 0.00 | Q161: =TREND(Q153:Q154,$B153:$B154,$B161) -> 3,865,646 | R161: =IF(Induced="N",0,(IF(B147=Hwy,M161*(I161*ValTimeTruck+(1-I161)*ValTimeAuto)-N161*(J161*ValTimeTruck+(1-J161)*ValTimeAuto),(IF(INDEX($P$197:$X$200,MATCH(B147,$O$197:$O$200,0),7)>0,INDEX($P$197:$X$200,MATCH(B147,$O$197:$O$200,0),7)/IF(INDEX($P$197:$X$200,MATCH(B147,$O$197:$O$200,0),6)=0,1,INDEX($P$197:$X$200,MATCH(B147,$O$197:$O$200,0),6)),M161)-N161)*ValTimeAuto)+O161-P161)*(H161-Q161)*0.5*(1+TTUprater)^($B161-YearCurrent)) -> $0 | S161: $0 | T161: $0
B162: 2031 | C162: =MAX(TREND(C153:C154,B153:B154,B162),0) -> 1,952,992 | D162: =MAX(TREND(D153:D154,B153:B154,B162),0) -> 468,718 | E162: =MAX(TREND(E153:E154,B153:B154,B162),0) -> 1.50 | F162: =MAX(TREND(F153:F154,B153:B154,B162),0) -> 1.50 | G162: =MAX(TREND(G153:G154,$B153:$B154,$B162),0) -> 3,905,985 | H162: =MAX(TREND(H153:H154,$B153:$B154,$B162),0) -> 3,905,985 | I162: =MIN(MAX(TREND(I153:I154,B153:B154,B162),0),1) -> 20.0% | J162: =MIN(MAX(TREND(J153:J154,B153:B154,B162),0),1) -> 20.0% | K162: =MAX(TREND(K153:K154,B153:B154,B162),0) -> 0 | L162: =MAX(TREND(L153:L154,B153:B154,B162),0) -> 0 | M162: =IFERROR(IF(B147=Hwy,C162*E162/G162,K162/G162),0) -> 0.75 | N162: =IFERROR(IF(B147=Hwy,D162*F162/H162,L162/H162),0) -> 0.18 | O162: =MAX(TREND(O153:O154,$B153:$B154,$B162),0) -> 0.00 | P162: =MAX(TREND(P153:P154,$B153:$B154,$B162),0) -> 0.00 | Q162: =TREND(Q153:Q154,$B153:$B154,$B162) -> 3,905,985 | R162: =IF(Induced="N",0,(IF(B147=Hwy,M162*(I162*ValTimeTruck+(1-I162)*ValTimeAuto)-N162*(J162*ValTimeTruck+(1-J162)*ValTimeAuto),(IF(INDEX($P$197:$X$200,MATCH(B147,$O$197:$O$200,0),7)>0,INDEX($P$197:$X$200,MATCH(B147,$O$197:$O$200,0),7)/IF(INDEX($P$197:$X$200,MATCH(B147,$O$197:$O$200,0),6)=0,1,INDEX($P$197:$X$200,MATCH(B147,$O$197:$O$200,0),6)),M162)-N162)*ValTimeAuto)+O162-P162)*(H162-Q162)*0.5*(1+TTUprater)^($B162-YearCurrent)) -> $0 | S162: $0 | T162: $0
B163: 2032 | C163: =MAX(TREND(C153:C154,B153:B154,B163),0) -> 1,973,161 | D163: =MAX(TREND(D153:D154,B153:B154,B163),0) -> 473,559 | E163: =MAX(TREND(E153:E154,B153:B154,B163),0) -> 1.50 | F163: =MAX(TREND(F153:F154,B153:B154,B163),0) -> 1.50 | G163: =MAX(TREND(G153:G154,$B153:$B154,$B163),0) -> 3,946,323 | H163: =MAX(TREND(H153:H154,$B153:$B154,$B163),0) -> 3,946,323 | I163: =MIN(MAX(TREND(I153:I154,B153:B154,B163),0),1) -> 20.0% | J163: =MIN(MAX(TREND(J153:J154,B153:B154,B163),0),1) -> 20.0% | K163: =MAX(TREND(K153:K154,B153:B154,B163),0) -> 0 | L163: =MAX(TREND(L153:L154,B153:B154,B163),0) -> 0 | M163: =IFERROR(IF(B147=Hwy,C163*E163/G163,K163/G163),0) -> 0.75 | N163: =IFERROR(IF(B147=Hwy,D163*F163/H163,L163/H163),0) -> 0.18 | O163: =MAX(TREND(O153:O154,$B153:$B154,$B163),0) -> 0.00 | P163: =MAX(TREND(P153:P154,$B153:$B154,$B163),0) -> 0.00 | Q163: =TREND(Q153:Q154,$B153:$B154,$B163) -> 3,946,323 | R163: =IF(Induced="N",0,(IF(B147=Hwy,M163*(I163*ValTimeTruck+(1-I163)*ValTimeAuto)-N163*(J163*ValTimeTruck+(1-J163)*ValTimeAuto),(IF(INDEX($P$197:$X$200,MATCH(B147,$O$197:$O$200,0),7)>0,INDEX($P$197:$X$200,MATCH(B147,$O$197:$O$200,0),7)/IF(INDEX($P$197:$X$200,MATCH(B147,$O$197:$O$200,0),6)=0,1,INDEX($P$197:$X$200,MATCH(B147,$O$197:$O$200,0),6)),M163)-N163)*ValTimeAuto)+O163-P163)*(H163-Q163)*0.5*(1+TTUprater)^($B163-YearCurrent)) -> $0 | S163: $0 | T163: $0
B164: 2033 | C164: =MAX(TREND(C153:C154,B153:B154,B164),0) -> 1,993,331 | D164: =MAX(TREND(D153:D154,B153:B154,B164),0) -> 478,399 | E164: =MAX(TREND(E153:E154,B153:B154,B164),0) -> 1.50 | F164: =MAX(TREND(F153:F154,B153:B154,B164),0) -> 1.50 | G164: =MAX(TREND(G153:G154,$B153:$B154,$B164),0) -> 3,986,661 | H164: =MAX(TREND(H153:H154,$B153:$B154,$B164),0) -> 3,986,661 | I164: =MIN(MAX(TREND(I153:I154,B153:B154,B164),0),1) -> 20.0% | J164: =MIN(MAX(TREND(J153:J154,B153:B154,B164),0),1) -> 20.0% | K164: =MAX(TREND(K153:K154,B153:B154,B164),0) -> 0 | L164: =MAX(TREND(L153:L154,B153:B154,B164),0) -> 0 | M164: =IFERROR(IF(B147=Hwy,C164*E164/G164,K164/G164),0) -> 0.75 | N164: =IFERROR(IF(B147=Hwy,D164*F164/H164,L164/H164),0) -> 0.18 | O164: =MAX(TREND(O153:O154,$B153:$B154,$B164),0) -> 0.00 | P164: =MAX(TREND(P153:P154,$B153:$B154,$B164),0) -> 0.00 | Q164: =TREND(Q153:Q154,$B153:$B154,$B164) -> 3,986,661 | R164: =IF(Induced="N",0,(IF(B147=Hwy,M164*(I164*ValTimeTruck+(1-I164)*ValTimeAuto)-N164*(J164*ValTimeTruck+(1-J164)*ValTimeAuto),(IF(INDEX($P$197:$X$200,MATCH(B147,$O$197:$O$200,0),7)>0,INDEX($P$197:$X$200,MATCH(B147,$O$197:$O$200,0),7)/IF(INDEX($P$197:$X$200,MATCH(B147,$O$197:$O$200,0),6)=0,1,INDEX($P$197:$X$200,MATCH(B147,$O$197:$O$200,0),6)),M164)-N164)*ValTimeAuto)+O164-P164)*(H164-Q164)*0.5*(1+TTUprater)^($B164-YearCurrent)) -> $0 | S164: $0 | T164: $0
B165: 2034 | C165: =MAX(TREND(C153:C154,B153:B154,B165),0) -> 2,013,500 | D165: =MAX(TREND(D153:D154,B153:B154,B165),0) -> 483,240 | E165: =MAX(TREND(E153:E154,B153:B154,B165),0) -> 1.50 | F165: =MAX(TREND(F153:F154,B153:B154,B165),0) -> 1.50 | G165: =MAX(TREND(G153:G154,$B153:$B154,$B165),0) -> 4,027,000 | H165: =MAX(TREND(H153:H154,$B153:$B154,$B165),0) -> 4,027,000 | I165: =MIN(MAX(TREND(I153:I154,B153:B154,B165),0),1) -> 20.0% | J165: =MIN(MAX(TREND(J153:J154,B153:B154,B165),0),1) -> 20.0% | K165: =MAX(TREND(K153:K154,B153:B154,B165),0) -> 0 | L165: =MAX(TREND(L153:L154,B153:B154,B165),0) -> 0 | M165: =IFERROR(IF(B147=Hwy,C165*E165/G165,K165/G165),0) -> 0.75 | N165: =IFERROR(IF(B147=Hwy,D165*F165/H165,L165/H165),0) -> 0.18 | O165: =MAX(TREND(O153:O154,$B153:$B154,$B165),0) -> 0.00 | P165: =MAX(TREND(P153:P154,$B153:$B154,$B165),0) -> 0.00 | Q165: =TREND(Q153:Q154,$B153:$B154,$B165) -> 4,027,000 | R165: =IF(Induced="N",0,(IF(B147=Hwy,M165*(I165*ValTimeTruck+(1-I165)*ValTimeAuto)-N165*(J165*ValTimeTruck+(1-J165)*ValTimeAuto),(IF(INDEX($P$197:$X$200,MATCH(B147,$O$197:$O$200,0),7)>0,INDEX($P$197:$X$200,MATCH(B147,$O$197:$O$200,0),7)/IF(INDEX($P$197:$X$200,MATCH(B147,$O$197:$O$200,0),6)=0,1,INDEX($P$197:$X$200,MATCH(B147,$O$197:$O$200,0),6)),M165)-N165)*ValTimeAuto)+O165-P165)*(H165-Q165)*0.5*(1+TTUprater)^($B165-YearCurrent)) -> $0 | S165: $0 | T165: $0
B166: 2035 | C166: =MAX(TREND(C153:C154,B153:B154,B166),0) -> 2,033,669 | D166: =MAX(TREND(D153:D154,B153:B154,B166),0) -> 488,081 | E166: =MAX(TREND(E153:E154,B153:B154,B166),0) -> 1.50 | F166: =MAX(TREND(F153:F154,B153:B154,B166),0) -> 1.50 | G166: =MAX(TREND(G153:G154,$B153:$B154,$B166),0) -> 4,067,338 | H166: =MAX(TREND(H153:H154,$B153:$B154,$B166),0) -> 4,067,338 | I166: =MIN(MAX(TREND(I153:I154,B153:B154,B166),0),1) -> 20.0% | J166: =MIN(MAX(TREND(J153:J154,B153:B154,B166),0),1) -> 20.0% | K166: =MAX(TREND(K153:K154,B153:B154,B166),0) -> 0 | L166: =MAX(TREND(L153:L154,B153:B154,B166),0) -> 0 | M166: =IFERROR(IF(B147=Hwy,C166*E166/G166,K166/G166),0) -> 0.75 | N166: =IFERROR(IF(B147=Hwy,D166*F166/H166,L166/H166),0) -> 0.18 | O166: =MAX(TREND(O153:O154,$B153:$B154,$B166),0) -> 0.00 | P166: =MAX(TREND(P153:P154,$B153:$B154,$B166),0) -> 0.00 | Q166: =TREND(Q153:Q154,$B153:$B154,$B166) -> 4,067,338 | R166: =IF(Induced="N",0,(IF(B147=Hwy,M166*(I166*ValTimeTruck+(1-I166)*ValTimeAuto)-N166*(J166*ValTimeTruck+(1-J166)*ValTimeAuto),(IF(INDEX($P$197:$X$200,MATCH(B147,$O$197:$O$200,0),7)>0,INDEX($P$197:$X$200,MATCH(B147,$O$197:$O$200,0),7)/IF(INDEX($P$197:$X$200,MATCH(B147,$O$197:$O$200,0),6)=0,1,INDEX($P$197:$X$200,MATCH(B147,$O$197:$O$200,0),6)),M166)-N166)*ValTimeAuto)+O166-P166)*(H166-Q166)*0.5*(1+TTUprater)^($B166-YearCurrent)) -> $0 | S166: $0 | T166: $0
B167: 2036 | C167: =MAX(TREND(C153:C154,B153:B154,B167),0) -> 2,053,838 | D167: =MAX(TREND(D153:D154,B153:B154,B167),0) -> 492,921 | E167: =MAX(TREND(E153:E154,B153:B154,B167),0) -> 1.50 | F167: =MAX(TREND(F153:F154,B153:B154,B167),0) -> 1.50 | G167: =MAX(TREND(G153:G154,$B153:$B154,$B167),0) -> 4,107,676 | H167: =MAX(TREND(H153:H154,$B153:$B154,$B167),0) -> 4,107,676 | I167: =MIN(MAX(TREND(I153:I154,B153:B154,B167),0),1) -> 20.0% | J167: =MIN(MAX(TREND(J153:J154,B153:B154,B167),0),1) -> 20.0% | K167: =MAX(TREND(K153:K154,B153:B154,B167),0) -> 0 | L167: =MAX(TREND(L153:L154,B153:B154,B167),0) -> 0 | M167: =IFERROR(IF(B147=Hwy,C167*E167/G167,K167/G167),0) -> 0.75 | N167: =IFERROR(IF(B147=Hwy,D167*F167/H167,L167/H167),0) -> 0.18 | O167: =MAX(TREND(O153:O154,$B153:$B154,$B167),0) -> 0.00 | P167: =MAX(TREND(P153:P154,$B153:$B154,$B167),0) -> 0.00 | Q167: =TREND(Q153:Q154,$B153:$B154,$B167) -> 4,107,676 | R167: =IF(Induced="N",0,(IF(B147=Hwy,M167*(I167*ValTimeTruck+(1-I167)*ValTimeAuto)-N167*(J167*ValTimeTruck+(1-J167)*ValTimeAuto),(IF(INDEX($P$197:$X$200,MATCH(B147,$O$197:$O$200,0),7)>0,INDEX($P$197:$X$200,MATCH(B147,$O$197:$O$200,0),7)/IF(INDEX($P$197:$X$200,MATCH(B147,$O$197:$O$200,0),6)=0,1,INDEX($P$197:$X$200,MATCH(B147,$O$197:$O$200,0),6)),M167)-N167)*ValTimeAuto)+O167-P167)*(H167-Q167)*0.5*(1+TTUprater)^($B167-YearCurrent)) -> $0 | S167: $0 | T167: $0
B168: 2037 | C168: =MAX(TREND(C153:C154,B153:B154,B168),0) -> 2,074,007 | D168: =MAX(TREND(D153:D154,B153:B154,B168),0) -> 497,762 | E168: =MAX(TREND(E153:E154,B153:B154,B168),0) -> 1.50 | F168: =MAX(TREND(F153:F154,B153:B154,B168),0) -> 1.50 | G168: =MAX(TREND(G153:G154,$B153:$B154,$B168),0) -> 4,148,014 | H168: =MAX(TREND(H153:H154,$B153:$B154,$B168),0) -> 4,148,014 | I168: =MIN(MAX(TREND(I153:I154,B153:B154,B168),0),1) -> 20.0% | J168: =MIN(MAX(TREND(J153:J154,B153:B154,B168),0),1) -> 20.0% | K168: =MAX(TREND(K153:K154,B153:B154,B168),0) -> 0 | L168: =MAX(TREND(L153:L154,B153:B154,B168),0) -> 0 | M168: =IFERROR(IF(B147=Hwy,C168*E168/G168,K168/G168),0) -> 0.75 | N168: =IFERROR(IF(B147=Hwy,D168*F168/H168,L168/H168),0) -> 0.18 | O168: =MAX(TREND(O153:O154,$B153:$B154,$B168),0) -> 0.00 | P168: =MAX(TREND(P153:P154,$B153:$B154,$B168),0) -> 0.00 | Q168: =TREND(Q153:Q154,$B153:$B154,$B168) -> 4,148,014 | R168: =IF(Induced="N",0,(IF(B147=Hwy,M168*(I168*ValTimeTruck+(1-I168)*ValTimeAuto)-N168*(J168*ValTimeTruck+(1-J168)*ValTimeAuto),(IF(INDEX($P$197:$X$200,MATCH(B147,$O$197:$O$200,0),7)>0,INDEX($P$197:$X$200,MATCH(B147,$O$197:$O$200,0),7)/IF(INDEX($P$197:$X$200,MATCH(B147,$O$197:$O$200,0),6)=0,1,INDEX($P$197:$X$200,MATCH(B147,$O$197:$O$200,0),6)),M168)-N168)*ValTimeAuto)+O168-P168)*(H168-Q168)*0.5*(1+TTUprater)^($B168-YearCurrent)) -> $0 | S168: $0 | T168: $0
B169: 2038 | C169: =MAX(TREND(C153:C154,B153:B154,B169),0) -> 2,094,176 | D169: =MAX(TREND(D153:D154,B153:B154,B169),0) -> 502,602 | E169: =MAX(TREND(E153:E154,B153:B154,B169),0) -> 1.50 | F169: =MAX(TREND(F153:F154,B153:B154,B169),0) -> 1.50 | G169: =MAX(TREND(G153:G154,$B153:$B154,$B169),0) -> 4,188,353 | H169: =MAX(TREND(H153:H154,$B153:$B154,$B169),0) -> 4,188,353 | I169: =MIN(MAX(TREND(I153:I154,B153:B154,B169),0),1) -> 20.0% | J169: =MIN(MAX(TREND(J153:J154,B153:B154,B169),0),1) -> 20.0% | K169: =MAX(TREND(K153:K154,B153:B154,B169),0) -> 0 | L169: =MAX(TREND(L153:L154,B153:B154,B169),0) -> 0 | M169: =IFERROR(IF(B147=Hwy,C169*E169/G169,K169/G169),0) -> 0.75 | N169: =IFERROR(IF(B147=Hwy,D169*F169/H169,L169/H169),0) -> 0.18 | O169: =MAX(TREND(O153:O154,$B153:$B154,$B169),0) -> 0.00 | P169: =MAX(TREND(P153:P154,$B153:$B154,$B169),0) -> 0.00 | Q169: =TREND(Q153:Q154,$B153:$B154,$B169) -> 4,188,353 | R169: =IF(Induced="N",0,(IF(B147=Hwy,M169*(I169*ValTimeTruck+(1-I169)*ValTimeAuto)-N169*(J169*ValTimeTruck+(1-J169)*ValTimeAuto),(IF(INDEX($P$197:$X$200,MATCH(B147,$O$197:$O$200,0),7)>0,INDEX($P$197:$X$200,MATCH(B147,$O$197:$O$200,0),7)/IF(INDEX($P$197:$X$200,MATCH(B147,$O$197:$O$200,0),6)=0,1,INDEX($P$197:$X$200,MATCH(B147,$O$197:$O$200,0),6)),M169)-N169)*ValTimeAuto)+O169-P169)*(H169-Q169)*0.5*(1+TTUprater)^($B169-YearCurrent)) -> $0 | S169: $0 | T169: $0
B170: 2039 | C170: =MAX(TREND(C153:C154,B153:B154,B170),0) -> 2,114,346 | D170: =MAX(TREND(D153:D154,B153:B154,B170),0) -> 507,443 | E170: =MAX(TREND(E153:E154,B153:B154,B170),0) -> 1.50 | F170: =MAX(TREND(F153:F154,B153:B154,B170),0) -> 1.50 | G170: =MAX(TREND(G153:G154,$B153:$B154,$B170),0) -> 4,228,691 | H170: =MAX(TREND(H153:H154,$B153:$B154,$B170),0) -> 4,228,691 | I170: =MIN(MAX(TREND(I153:I154,B153:B154,B170),0),1) -> 20.0% | J170: =MIN(MAX(TREND(J153:J154,B153:B154,B170),0),1) -> 20.0% | K170: =MAX(TREND(K153:K154,B153:B154,B170),0) -> 0 | L170: =MAX(TREND(L153:L154,B153:B154,B170),0) -> 0 | M170: =IFERROR(IF(B147=Hwy,C170*E170/G170,K170/G170),0) -> 0.75 | N170: =IFERROR(IF(B147=Hwy,D170*F170/H170,L170/H170),0) -> 0.18 | O170: =MAX(TREND(O153:O154,$B153:$B154,$B170),0) -> 0.00 | P170: =MAX(TREND(P153:P154,$B153:$B154,$B170),0) -> 0.00 | Q170: =TREND(Q153:Q154,$B153:$B154,$B170) -> 4,228,691 | R170: =IF(Induced="N",0,(IF(B147=Hwy,M170*(I170*ValTimeTruck+(1-I170)*ValTimeAuto)-N170*(J170*ValTimeTruck+(1-J170)*ValTimeAuto),(IF(INDEX($P$197:$X$200,MATCH(B147,$O$197:$O$200,0),7)>0,INDEX($P$197:$X$200,MATCH(B147,$O$197:$O$200,0),7)/IF(INDEX($P$197:$X$200,MATCH(B147,$O$197:$O$200,0),6)=0,1,INDEX($P$197:$X$200,MATCH(B147,$O$197:$O$200,0),6)),M170)-N170)*ValTimeAuto)+O170-P170)*(H170-Q170)*0.5*(1+TTUprater)^($B170-YearCurrent)) -> $0 | S170: $0 | T170: $0
B171: 2040 | C171: =MAX(TREND(C153:C154,B153:B154,B171),0) -> 2,134,515 | D171: =MAX(TREND(D153:D154,B153:B154,B171),0) -> 512,284 | E171: =MAX(TREND(E153:E154,B153:B154,B171),0) -> 1.50 | F171: =MAX(TREND(F153:F154,B153:B154,B171),0) -> 1.50 | G171: =MAX(TREND(G153:G154,$B153:$B154,$B171),0) -> 4,269,029 | H171: =MAX(TREND(H153:H154,$B153:$B154,$B171),0) -> 4,269,029 | I171: =MIN(MAX(TREND(I153:I154,B153:B154,B171),0),1) -> 20.0% | J171: =MIN(MAX(TREND(J153:J154,B153:B154,B171),0),1) -> 20.0% | K171: =MAX(TREND(K153:K154,B153:B154,B171),0) -> 0 | L171: =MAX(TREND(L153:L154,B153:B154,B171),0) -> 0 | M171: =IFERROR(IF(B147=Hwy,C171*E171/G171,K171/G171),0) -> 0.75 | N171: =IFERROR(IF(B147=Hwy,D171*F171/H171,L171/H171),0) -> 0.18 | O171: =MAX(TREND(O153:O154,$B153:$B154,$B171),0) -> 0.00 | P171: =MAX(TREND(P153:P154,$B153:$B154,$B171),0) -> 0.00 | Q171: =TREND(Q153:Q154,$B153:$B154,$B171) -> 4,269,029 | R171: =IF(Induced="N",0,(IF(B147=Hwy,M171*(I171*ValTimeTruck+(1-I171)*ValTimeAuto)-N171*(J171*ValTimeTruck+(1-J171)*ValTimeAuto),(IF(INDEX($P$197:$X$200,MATCH(B147,$O$197:$O$200,0),7)>0,INDEX($P$197:$X$200,MATCH(B147,$O$197:$O$200,0),7)/IF(INDEX($P$197:$X$200,MATCH(B147,$O$197:$O$200,0),6)=0,1,INDEX($P$197:$X$200,MATCH(B147,$O$197:$O$200,0),6)),M171)-N171)*ValTimeAuto)+O171-P171)*(H171-Q171)*0.5*(1+TTUprater)^($B171-YearCurrent)) -> $0 | S171: $0 | T171: $0
B172: 2041 | C172: =MAX(TREND(C153:C154,B153:B154,B172),0) -> 2,154,684 | D172: =MAX(TREND(D153:D154,B153:B154,B172),0) -> 517,124 | E172: =MAX(TREND(E153:E154,B153:B154,B172),0) -> 1.50 | F172: =MAX(TREND(F153:F154,B153:B154,B172),0) -> 1.50 | G172: =MAX(TREND(G153:G154,$B153:$B154,$B172),0) -> 4,309,368 | H172: =MAX(TREND(H153:H154,$B153:$B154,$B172),0) -> 4,309,368 | I172: =MIN(MAX(TREND(I153:I154,B153:B154,B172),0),1) -> 20.0% | J172: =MIN(MAX(TREND(J153:J154,B153:B154,B172),0),1) -> 20.0% | K172: =MAX(TREND(K153:K154,B153:B154,B172),0) -> 0 | L172: =MAX(TREND(L153:L154,B153:B154,B172),0) -> 0 | M172: =IFERROR(IF(B147=Hwy,C172*E172/G172,K172/G172),0) -> 0.75 | N172: =IFERROR(IF(B147=Hwy,D172*F172/H172,L172/H172),0) -> 0.18 | O172: =MAX(TREND(O153:O154,$B153:$B154,$B172),0) -> 0.00 | P172: =MAX(TREND(P153:P154,$B153:$B154,$B172),0) -> 0.00 | Q172: =TREND(Q153:Q154,$B153:$B154,$B172) -> 4,309,368 | R172: =IF(Induced="N",0,(IF(B147=Hwy,M172*(I172*ValTimeTruck+(1-I172)*ValTimeAuto)-N172*(J172*ValTimeTruck+(1-J172)*ValTimeAuto),(IF(INDEX($P$197:$X$200,MATCH(B147,$O$197:$O$200,0),7)>0,INDEX($P$197:$X$200,MATCH(B147,$O$197:$O$200,0),7)/IF(INDEX($P$197:$X$200,MATCH(B147,$O$197:$O$200,0),6)=0,1,INDEX($P$197:$X$200,MATCH(B147,$O$197:$O$200,0),6)),M172)-N172)*ValTimeAuto)+O172-P172)*(H172-Q172)*0.5*(1+TTUprater)^($B172-YearCurrent)) -> $0 | S172: $0 | T172: $0
B173: 2042 | C173: =MAX(TREND(C153:C154,B153:B154,B173),0) -> 2,174,853 | D173: =MAX(TREND(D153:D154,B153:B154,B173),0) -> 521,965 | E173: =MAX(TREND(E153:E154,B153:B154,B173),0) -> 1.50 | F173: =MAX(TREND(F153:F154,B153:B154,B173),0) -> 1.50 | G173: =MAX(TREND(G153:G154,$B153:$B154,$B173),0) -> 4,349,706 | H173: =MAX(TREND(H153:H154,$B153:$B154,$B173),0) -> 4,349,706 | I173: =MIN(MAX(TREND(I153:I154,B153:B154,B173),0),1) -> 20.0% | J173: =MIN(MAX(TREND(J153:J154,B153:B154,B173),0),1) -> 20.0% | K173: =MAX(TREND(K153:K154,B153:B154,B173),0) -> 0 | L173: =MAX(TREND(L153:L154,B153:B154,B173),0) -> 0 | M173: =IFERROR(IF(B147=Hwy,C173*E173/G173,K173/G173),0) -> 0.75 | N173: =IFERROR(IF(B147=Hwy,D173*F173/H173,L173/H173),0) -> 0.18 | O173: =MAX(TREND(O153:O154,$B153:$B154,$B173),0) -> 0.00 | P173: =MAX(TREND(P153:P154,$B153:$B154,$B173),0) -> 0.00 | Q173: =TREND(Q153:Q154,$B153:$B154,$B173) -> 4,349,706 | R173: =IF(Induced="N",0,(IF(B147=Hwy,M173*(I173*ValTimeTruck+(1-I173)*ValTimeAuto)-N173*(J173*ValTimeTruck+(1-J173)*ValTimeAuto),(IF(INDEX($P$197:$X$200,MATCH(B147,$O$197:$O$200,0),7)>0,INDEX($P$197:$X$200,MATCH(B147,$O$197:$O$200,0),7)/IF(INDEX($P$197:$X$200,MATCH(B147,$O$197:$O$200,0),6)=0,1,INDEX($P$197:$X$200,MATCH(B147,$O$197:$O$200,0),6)),M173)-N173)*ValTimeAuto)+O173-P173)*(H173-Q173)*0.5*(1+TTUprater)^($B173-YearCurrent)) -> $0 | S173: $0 | T173: $0
B174: 2043 | C174: =MAX(TREND(C153:C154,B153:B154,B174),0) -> 2,195,022 | D174: =MAX(TREND(D153:D154,B153:B154,B174),0) -> 526,805 | E174: =MAX(TREND(E153:E154,B153:B154,B174),0) -> 1.50 | F174: =MAX(TREND(F153:F154,B153:B154,B174),0) -> 1.50 | G174: =MAX(TREND(G153:G154,$B153:$B154,$B174),0) -> 4,390,044 | H174: =MAX(TREND(H153:H154,$B153:$B154,$B174),0) -> 4,390,044 | I174: =MIN(MAX(TREND(I153:I154,B153:B154,B174),0),1) -> 20.0% | J174: =MIN(MAX(TREND(J153:J154,B153:B154,B174),0),1) -> 20.0% | K174: =MAX(TREND(K153:K154,B153:B154,B174),0) -> 0 | L174: =MAX(TREND(L153:L154,B153:B154,B174),0) -> 0 | M174: =IFERROR(IF(B147=Hwy,C174*E174/G174,K174/G174),0) -> 0.75 | N174: =IFERROR(IF(B147=Hwy,D174*F174/H174,L174/H174),0) -> 0.18 | O174: =MAX(TREND(O153:O154,$B153:$B154,$B174),0) -> 0.00 | P174: =MAX(TREND(P153:P154,$B153:$B154,$B174),0) -> 0.00 | Q174: =TREND(Q153:Q154,$B153:$B154,$B174) -> 4,390,044 | R174: =IF(Induced="N",0,(IF(B147=Hwy,M174*(I174*ValTimeTruck+(1-I174)*ValTimeAuto)-N174*(J174*ValTimeTruck+(1-J174)*ValTimeAuto),(IF(INDEX($P$197:$X$200,MATCH(B147,$O$197:$O$200,0),7)>0,INDEX($P$197:$X$200,MATCH(B147,$O$197:$O$200,0),7)/IF(INDEX($P$197:$X$200,MATCH(B147,$O$197:$O$200,0),6)=0,1,INDEX($P$197:$X$200,MATCH(B147,$O$197:$O$200,0),6)),M174)-N174)*ValTimeAuto)+O174-P174)*(H174-Q174)*0.5*(1+TTUprater)^($B174-YearCurrent)) -> $0 | S174: $0 | T174: $0
B175: 2044 | C175: =MAX(TREND(C153:C154,B153:B154,B175),0) -> 2,215,191 | D175: =MAX(TREND(D153:D154,B153:B154,B175),0) -> 531,646 | E175: =MAX(TREND(E153:E154,B153:B154,B175),0) -> 1.50 | F175: =MAX(TREND(F153:F154,B153:B154,B175),0) -> 1.50 | G175: =MAX(TREND(G153:G154,$B153:$B154,$B175),0) -> 4,430,383 | H175: =MAX(TREND(H153:H154,$B153:$B154,$B175),0) -> 4,430,383 | I175: =MIN(MAX(TREND(I153:I154,B153:B154,B175),0),1) -> 20.0% | J175: =MIN(MAX(TREND(J153:J154,B153:B154,B175),0),1) -> 20.0% | K175: =MAX(TREND(K153:K154,B153:B154,B175),0) -> 0 | L175: =MAX(TREND(L153:L154,B153:B154,B175),0) -> 0 | M175: =IFERROR(IF(B147=Hwy,C175*E175/G175,K175/G175),0) -> 0.75 | N175: =IFERROR(IF(B147=Hwy,D175*F175/H175,L175/H175),0) -> 0.18 | O175: =MAX(TREND(O153:O154,$B153:$B154,$B175),0) -> 0.00 | P175: =MAX(TREND(P153:P154,$B153:$B154,$B175),0) -> 0.00 | Q175: =TREND(Q153:Q154,$B153:$B154,$B175) -> 4,430,383 | R175: =IF(Induced="N",0,(IF(B147=Hwy,M175*(I175*ValTimeTruck+(1-I175)*ValTimeAuto)-N175*(J175*ValTimeTruck+(1-J175)*ValTimeAuto),(IF(INDEX($P$197:$X$200,MATCH(B147,$O$197:$O$200,0),7)>0,INDEX($P$197:$X$200,MATCH(B147,$O$197:$O$200,0),7)/IF(INDEX($P$197:$X$200,MATCH(B147,$O$197:$O$200,0),6)=0,1,INDEX($P$197:$X$200,MATCH(B147,$O$197:$O$200,0),6)),M175)-N175)*ValTimeAuto)+O175-P175)*(H175-Q175)*0.5*(1+TTUprater)^($B175-YearCurrent)) -> $0 | S175: $0 | T175: $0
B176: 2045 | C176: =MAX(TREND(C153:C154,B153:B154,B176),0) -> 2,235,360 | D176: =MAX(TREND(D153:D154,B153:B154,B176),0) -> 536,487 | E176: =MAX(TREND(E153:E154,B153:B154,B176),0) -> 1.50 | F176: =MAX(TREND(F153:F154,B153:B154,B176),0) -> 1.50 | G176: =MAX(TREND(G153:G154,$B153:$B154,$B176),0) -> 4,470,721 | H176: =MAX(TREND(H153:H154,$B153:$B154,$B176),0) -> 4,470,721 | I176: =MIN(MAX(TREND(I153:I154,B153:B154,B176),0),1) -> 20.0% | J176: =MIN(MAX(TREND(J153:J154,B153:B154,B176),0),1) -> 20.0% | K176: =MAX(TREND(K153:K154,B153:B154,B176),0) -> 0 | L176: =MAX(TREND(L153:L154,B153:B154,B176),0) -> 0 | M176: =IFERROR(IF(B147=Hwy,C176*E176/G176,K176/G176),0) -> 0.75 | N176: =IFERROR(IF(B147=Hwy,D176*F176/H176,L176/H176),0) -> 0.18 | O176: =MAX(TREND(O153:O154,$B153:$B154,$B176),0) -> 0.00 | P176: =MAX(TREND(P153:P154,$B153:$B154,$B176),0) -> 0.00 | Q176: =TREND(Q153:Q154,$B153:$B154,$B176) -> 4,470,721 | R176: =IF(Induced="N",0,(IF(B147=Hwy,M176*(I176*ValTimeTruck+(1-I176)*ValTimeAuto)-N176*(J176*ValTimeTruck+(1-J176)*ValTimeAuto),(IF(INDEX($P$197:$X$200,MATCH(B147,$O$197:$O$200,0),7)>0,INDEX($P$197:$X$200,MATCH(B147,$O$197:$O$200,0),7)/IF(INDEX($P$197:$X$200,MATCH(B147,$O$197:$O$200,0),6)=0,1,INDEX($P$197:$X$200,MATCH(B147,$O$197:$O$200,0),6)),M176)-N176)*ValTimeAuto)+O176-P176)*(H176-Q176)*0.5*(1+TTUprater)^($B176-YearCurrent)) -> $0 | S176: $0 | T176: $0
B177: 2046 | C177: =MAX(TREND(C153:C154,B153:B154,B177),0) -> 2,255,530 | D177: =MAX(TREND(D153:D154,B153:B154,B177),0) -> 541,327 | E177: =MAX(TREND(E153:E154,B153:B154,B177),0) -> 1.50 | F177: =MAX(TREND(F153:F154,B153:B154,B177),0) -> 1.50 | G177: =MAX(TREND(G153:G154,$B153:$B154,$B177),0) -> 4,511,059 | H177: =MAX(TREND(H153:H154,$B153:$B154,$B177),0) -> 4,511,059 | I177: =MIN(MAX(TREND(I153:I154,B153:B154,B177),0),1) -> 20.0% | J177: =MIN(MAX(TREND(J153:J154,B153:B154,B177),0),1) -> 20.0% | K177: =MAX(TREND(K153:K154,B153:B154,B177),0) -> 0 | L177: =MAX(TREND(L153:L154,B153:B154,B177),0) -> 0 | M177: =IFERROR(IF(B147=Hwy,C177*E177/G177,K177/G177),0) -> 0.75 | N177: =IFERROR(IF(B147=Hwy,D177*F177/H177,L177/H177),0) -> 0.18 | O177: =MAX(TREND(O153:O154,$B153:$B154,$B177),0) -> 0.00 | P177: =MAX(TREND(P153:P154,$B153:$B154,$B177),0) -> 0.00 | Q177: =TREND(Q153:Q154,$B153:$B154,$B177) -> 4,511,059 | R177: =IF(Induced="N",0,(IF(B147=Hwy,M177*(I177*ValTimeTruck+(1-I177)*ValTimeAuto)-N177*(J177*ValTimeTruck+(1-J177)*ValTimeAuto),(IF(INDEX($P$197:$X$200,MATCH(B147,$O$197:$O$200,0),7)>0,INDEX($P$197:$X$200,MATCH(B147,$O$197:$O$200,0),7)/IF(INDEX($P$197:$X$200,MATCH(B147,$O$197:$O$200,0),6)=0,1,INDEX($P$197:$X$200,MATCH(B147,$O$197:$O$200,0),6)),M177)-N177)*ValTimeAuto)+O177-P177)*(H177-Q177)*0.5*(1+TTUprater)^($B177-YearCurrent)) -> $0 | S177: $0 | T177: $0
B178: 2047 | C178: =MAX(TREND(C153:C154,B153:B154,B178),0) -> 2,275,699 | D178: =MAX(TREND(D153:D154,B153:B154,B178),0) -> 546,168 | E178: =MAX(TREND(E153:E154,B153:B154,B178),0) -> 1.50 | F178: =MAX(TREND(F153:F154,B153:B154,B178),0) -> 1.50 | G178: =MAX(TREND(G153:G154,$B153:$B154,$B178),0) -> 4,551,398 | H178: =MAX(TREND(H153:H154,$B153:$B154,$B178),0) -> 4,551,398 | I178: =MIN(MAX(TREND(I153:I154,B153:B154,B178),0),1) -> 20.0% | J178: =MIN(MAX(TREND(J153:J154,B153:B154,B178),0),1) -> 20.0% | K178: =MAX(TREND(K153:K154,B153:B154,B178),0) -> 0 | L178: =MAX(TREND(L153:L154,B153:B154,B178),0) -> 0 | M178: =IFERROR(IF(B147=Hwy,C178*E178/G178,K178/G178),0) -> 0.75 | N178: =IFERROR(IF(B147=Hwy,D178*F178/H178,L178/H178),0) -> 0.18 | O178: =MAX(TREND(O153:O154,$B153:$B154,$B178),0) -> 0.00 | P178: =MAX(TREND(P153:P154,$B153:$B154,$B178),0) -> 0.00 | Q178: =TREND(Q153:Q154,$B153:$B154,$B178) -> 4,551,398 | R178: =IF(Induced="N",0,(IF(B147=Hwy,M178*(I178*ValTimeTruck+(1-I178)*ValTimeAuto)-N178*(J178*ValTimeTruck+(1-J178)*ValTimeAuto),(IF(INDEX($P$197:$X$200,MATCH(B147,$O$197:$O$200,0),7)>0,INDEX($P$197:$X$200,MATCH(B147,$O$197:$O$200,0),7)/IF(INDEX($P$197:$X$200,MATCH(B147,$O$197:$O$200,0),6)=0,1,INDEX($P$197:$X$200,MATCH(B147,$O$197:$O$200,0),6)),M178)-N178)*ValTimeAuto)+O178-P178)*(H178-Q178)*0.5*(1+TTUprater)^($B178-YearCurrent)) -> $0 | S178: $0 | T178: $0
B179: 2048 | C179: =MAX(TREND(C153:C154,B153:B154,B179),0) -> 2,295,868 | D179: =MAX(TREND(D153:D154,B153:B154,B179),0) -> 551,008 | E179: =MAX(TREND(E153:E154,B153:B154,B179),0) -> 1.50 | F179: =MAX(TREND(F153:F154,B153:B154,B179),0) -> 1.50 | G179: =MAX(TREND(G153:G154,$B153:$B154,$B179),0) -> 4,591,736 | H179: =MAX(TREND(H153:H154,$B153:$B154,$B179),0) -> 4,591,736 | I179: =MIN(MAX(TREND(I153:I154,B153:B154,B179),0),1) -> 20.0% | J179: =MIN(MAX(TREND(J153:J154,B153:B154,B179),0),1) -> 20.0% | K179: =MAX(TREND(K153:K154,B153:B154,B179),0) -> 0 | L179: =MAX(TREND(L153:L154,B153:B154,B179),0) -> 0 | M179: =IFERROR(IF(B147=Hwy,C179*E179/G179,K179/G179),0) -> 0.75 | N179: =IFERROR(IF(B147=Hwy,D179*F179/H179,L179/H179),0) -> 0.18 | O179: =MAX(TREND(O153:O154,$B153:$B154,$B179),0) -> 0.00 | P179: =MAX(TREND(P153:P154,$B153:$B154,$B179),0) -> 0.00 | Q179: =TREND(Q153:Q154,$B153:$B154,$B179) -> 4,591,736 | R179: =IF(Induced="N",0,(IF(B147=Hwy,M179*(I179*ValTimeTruck+(1-I179)*ValTimeAuto)-N179*(J179*ValTimeTruck+(1-J179)*ValTimeAuto),(IF(INDEX($P$197:$X$200,MATCH(B147,$O$197:$O$200,0),7)>0,INDEX($P$197:$X$200,MATCH(B147,$O$197:$O$200,0),7)/IF(INDEX($P$197:$X$200,MATCH(B147,$O$197:$O$200,0),6)=0,1,INDEX($P$197:$X$200,MATCH(B147,$O$197:$O$200,0),6)),M179)-N179)*ValTimeAuto)+O179-P179)*(H179-Q179)*0.5*(1+TTUprater)^($B179-YearCurrent)) -> $0 | S179: $0 | T179: $0
B180: 2049 | C180: =MAX(TREND(C153:C154,B153:B154,B180),0) -> 2,316,037 | D180: =MAX(TREND(D153:D154,B153:B154,B180),0) -> 555,849 | E180: =MAX(TREND(E153:E154,B153:B154,B180),0) -> 1.50 | F180: =MAX(TREND(F153:F154,B153:B154,B180),0) -> 1.50 | G180: =MAX(TREND(G153:G154,$B153:$B154,$B180),0) -> 4,632,074 | H180: =MAX(TREND(H153:H154,$B153:$B154,$B180),0) -> 4,632,074 | I180: =MIN(MAX(TREND(I153:I154,B153:B154,B180),0),1) -> 20.0% | J180: =MIN(MAX(TREND(J153:J154,B153:B154,B180),0),1) -> 20.0% | K180: =MAX(TREND(K153:K154,B153:B154,B180),0) -> 0 | L180: =MAX(TREND(L153:L154,B153:B154,B180),0) -> 0 | M180: =IFERROR(IF(B147=Hwy,C180*E180/G180,K180/G180),0) -> 0.75 | N180: =IFERROR(IF(B147=Hwy,D180*F180/H180,L180/H180),0) -> 0.18 | O180: =MAX(TREND(O153:O154,$B153:$B154,$B180),0) -> 0.00 | P180: =MAX(TREND(P153:P154,$B153:$B154,$B180),0) -> 0.00 | Q180: =TREND(Q153:Q154,$B153:$B154,$B180) -> 4,632,074 | R180: =IF(Induced="N",0,(IF(B147=Hwy,M180*(I180*ValTimeTruck+(1-I180)*ValTimeAuto)-N180*(J180*ValTimeTruck+(1-J180)*ValTimeAuto),(IF(INDEX($P$197:$X$200,MATCH(B147,$O$197:$O$200,0),7)>0,INDEX($P$197:$X$200,MATCH(B147,$O$197:$O$200,0),7)/IF(INDEX($P$197:$X$200,MATCH(B147,$O$197:$O$200,0),6)=0,1,INDEX($P$197:$X$200,MATCH(B147,$O$197:$O$200,0),6)),M180)-N180)*ValTimeAuto)+O180-P180)*(H180-Q180)*0.5*(1+TTUprater)^($B180-YearCurrent)) -> $0 | S180: $0 | T180: $0
B181: 2050 | C181: =MAX(TREND(C153:C154,B153:B154,B181),0) -> 2,336,206 | D181: =MAX(TREND(D153:D154,B153:B154,B181),0) -> 560,690 | E181: =MAX(TREND(E153:E154,B153:B154,B181),0) -> 1.50 | F181: =MAX(TREND(F153:F154,B153:B154,B181),0) -> 1.50 | G181: =MAX(TREND(G153:G154,$B153:$B154,$B181),0) -> 4,672,413 | H181: =MAX(TREND(H153:H154,$B153:$B154,$B181),0) -> 4,672,413 | I181: =MIN(MAX(TREND(I153:I154,B153:B154,B181),0),1) -> 20.0% | J181: =MIN(MAX(TREND(J153:J154,B153:B154,B181),0),1) -> 20.0% | K181: =MAX(TREND(K153:K154,B153:B154,B181),0) -> 0 | L181: =MAX(TREND(L153:L154,B153:B154,B181),0) -> 0 | M181: =IFERROR(IF(B147=Hwy,C181*E181/G181,K181/G181),0) -> 0.75 | N181: =IFERROR(IF(B147=Hwy,D181*F181/H181,L181/H181),0) -> 0.18 | O181: =MAX(TREND(O153:O154,$B153:$B154,$B181),0) -> 0.00 | P181: =MAX(TREND(P153:P154,$B153:$B154,$B181),0) -> 0.00 | Q181: =TREND(Q153:Q154,$B153:$B154,$B181) -> 4,672,413 | R181: =IF(Induced="N",0,(IF(B147=Hwy,M181*(I181*ValTimeTruck+(1-I181)*ValTimeAuto)-N181*(J181*ValTimeTruck+(1-J181)*ValTimeAuto),(IF(INDEX($P$197:$X$200,MATCH(B147,$O$197:$O$200,0),7)>0,INDEX($P$197:$X$200,MATCH(B147,$O$197:$O$200,0),7)/IF(INDEX($P$197:$X$200,MATCH(B147,$O$197:$O$200,0),6)=0,1,INDEX($P$197:$X$200,MATCH(B147,$O$197:$O$200,0),6)),M181)-N181)*ValTimeAuto)+O181-P181)*(H181-Q181)*0.5*(1+TTUprater)^($B181-YearCurrent)) -> $0 | S181: $0 | T181: $0
B182: 2051 | C182: =MAX(TREND(C153:C154,B153:B154,B182),0) -> 2,356,375 | D182: =MAX(TREND(D153:D154,B153:B154,B182),0) -> 565,530 | E182: =MAX(TREND(E153:E154,B153:B154,B182),0) -> 1.50 | F182: =MAX(TREND(F153:F154,B153:B154,B182),0) -> 1.50 | G182: =MAX(TREND(G153:G154,$B153:$B154,$B182),0) -> 4,712,751 | H182: =MAX(TREND(H153:H154,$B153:$B154,$B182),0) -> 4,712,751 | I182: =MIN(MAX(TREND(I153:I154,B153:B154,B182),0),1) -> 20.0% | J182: =MIN(MAX(TREND(J153:J154,B153:B154,B182),0),1) -> 20.0% | K182: =MAX(TREND(K153:K154,B153:B154,B182),0) -> 0 | L182: =MAX(TREND(L153:L154,B153:B154,B182),0) -> 0 | M182: =IFERROR(IF(B147=Hwy,C182*E182/G182,K182/G182),0) -> 0.75 | N182: =IFERROR(IF(B147=Hwy,D182*F182/H182,L182/H182),0) -> 0.18 | O182: =MAX(TREND(O153:O154,$B153:$B154,$B182),0) -> 0.00 | P182: =MAX(TREND(P153:P154,$B153:$B154,$B182),0) -> 0.00 | Q182: =TREND(Q153:Q154,$B153:$B154,$B182) -> 4,712,751 | R182: =IF(Induced="N",0,(IF(B147=Hwy,M182*(I182*ValTimeTruck+(1-I182)*ValTimeAuto)-N182*(J182*ValTimeTruck+(1-J182)*ValTimeAuto),(IF(INDEX($P$197:$X$200,MATCH(B147,$O$197:$O$200,0),7)>0,INDEX($P$197:$X$200,MATCH(B147,$O$197:$O$200,0),7)/IF(INDEX($P$197:$X$200,MATCH(B147,$O$197:$O$200,0),6)=0,1,INDEX($P$197:$X$200,MATCH(B147,$O$197:$O$200,0),6)),M182)-N182)*ValTimeAuto)+O182-P182)*(H182-Q182)*0.5*(1+TTUprater)^($B182-YearCurrent)) -> $0 | S182: $0 | T182: $0
B183: 2052 | C183: =MAX(TREND(C153:C154,B153:B154,B183),0) -> 2,376,545 | D183: =MAX(TREND(D153:D154,B153:B154,B183),0) -> 570,371 | E183: =MAX(TREND(E153:E154,B153:B154,B183),0) -> 1.50 | F183: =MAX(TREND(F153:F154,B153:B154,B183),0) -> 1.50 | G183: =MAX(TREND(G153:G154,$B153:$B154,$B183),0) -> 4,753,089 | H183: =MAX(TREND(H153:H154,$B153:$B154,$B183),0) -> 4,753,089 | I183: =MIN(MAX(TREND(I153:I154,B153:B154,B183),0),1) -> 20.0% | J183: =MIN(MAX(TREND(J153:J154,B153:B154,B183),0),1) -> 20.0% | K183: =MAX(TREND(K153:K154,B153:B154,B183),0) -> 0 | L183: =MAX(TREND(L153:L154,B153:B154,B183),0) -> 0 | M183: =IFERROR(IF(B147=Hwy,C183*E183/G183,K183/G183),0) -> 0.75 | N183: =IFERROR(IF(B147=Hwy,D183*F183/H183,L183/H183),0) -> 0.18 | O183: =MAX(TREND(O153:O154,$B153:$B154,$B183),0) -> 0.00 | P183: =MAX(TREND(P153:P154,$B153:$B154,$B183),0) -> 0.00 | Q183: =TREND(Q153:Q154,$B153:$B154,$B183) -> 4,753,089 | R183: =IF(Induced="N",0,(IF(B147=Hwy,M183*(I183*ValTimeTruck+(1-I183)*ValTimeAuto)-N183*(J183*ValTimeTruck+(1-J183)*ValTimeAuto),(IF(INDEX($P$197:$X$200,MATCH(B147,$O$197:$O$200,0),7)>0,INDEX($P$197:$X$200,MATCH(B147,$O$197:$O$200,0),7)/IF(INDEX($P$197:$X$200,MATCH(B147,$O$197:$O$200,0),6)=0,1,INDEX($P$197:$X$200,MATCH(B147,$O$197:$O$200,0),6)),M183)-N183)*ValTimeAuto)+O183-P183)*(H183-Q183)*0.5*(1+TTUprater)^($B183-YearCurrent)) -> $0 | S183: $0 | T183: $0
B184: 2053 | C184: =MAX(TREND(C153:C154,B153:B154,B184),0) -> 2,396,714 | D184: =MAX(TREND(D153:D154,B153:B154,B184),0) -> 575,211 | E184: =MAX(TREND(E153:E154,B153:B154,B184),0) -> 1.50 | F184: =MAX(TREND(F153:F154,B153:B154,B184),0) -> 1.50 | G184: =MAX(TREND(G153:G154,$B153:$B154,$B184),0) -> 4,793,428 | H184: =MAX(TREND(H153:H154,$B153:$B154,$B184),0) -> 4,793,428 | I184: =MIN(MAX(TREND(I153:I154,B153:B154,B184),0),1) -> 20.0% | J184: =MIN(MAX(TREND(J153:J154,B153:B154,B184),0),1) -> 20.0% | K184: =MAX(TREND(K153:K154,B153:B154,B184),0) -> 0 | L184: =MAX(TREND(L153:L154,B153:B154,B184),0) -> 0 | M184: =IFERROR(IF(B147=Hwy,C184*E184/G184,K184/G184),0) -> 0.75 | N184: =IFERROR(IF(B147=Hwy,D184*F184/H184,L184/H184),0) -> 0.18 | O184: =MAX(TREND(O153:O154,$B153:$B154,$B184),0) -> 0.00 | P184: =MAX(TREND(P153:P154,$B153:$B154,$B184),0) -> 0.00 | Q184: =TREND(Q153:Q154,$B153:$B154,$B184) -> 4,793,428 | R184: =IF(Induced="N",0,(IF(B147=Hwy,M184*(I184*ValTimeTruck+(1-I184)*ValTimeAuto)-N184*(J184*ValTimeTruck+(1-J184)*ValTimeAuto),(IF(INDEX($P$197:$X$200,MATCH(B147,$O$197:$O$200,0),7)>0,INDEX($P$197:$X$200,MATCH(B147,$O$197:$O$200,0),7)/IF(INDEX($P$197:$X$200,MATCH(B147,$O$197:$O$200,0),6)=0,1,INDEX($P$197:$X$200,MATCH(B147,$O$197:$O$200,0),6)),M184)-N184)*ValTimeAuto)+O184-P184)*(H184-Q184)*0.5*(1+TTUprater)^($B184-YearCurrent)) -> $0 | S184: $0 | T184: $0
B185: 2054 | C185: =MAX(TREND(C153:C154,B153:B154,B185),0) -> 2,416,883 | D185: =MAX(TREND(D153:D154,B153:B154,B185),0) -> 580,052 | E185: =MAX(TREND(E153:E154,B153:B154,B185),0) -> 1.50 | F185: =MAX(TREND(F153:F154,B153:B154,B185),0) -> 1.50 | G185: =MAX(TREND(G153:G154,$B153:$B154,$B185),0) -> 4,833,766 | H185: =MAX(TREND(H153:H154,$B153:$B154,$B185),0) -> 4,833,766 | I185: =MIN(MAX(TREND(I153:I154,B153:B154,B185),0),1) -> 20.0% | J185: =MIN(MAX(TREND(J153:J154,B153:B154,B185),0),1) -> 20.0% | K185: =MAX(TREND(K153:K154,B153:B154,B185),0) -> 0 | L185: =MAX(TREND(L153:L154,B153:B154,B185),0) -> 0 | M185: =IFERROR(IF(B147=Hwy,C185*E185/G185,K185/G185),0) -> 0.75 | N185: =IFERROR(IF(B147=Hwy,D185*F185/H185,L185/H185),0) -> 0.18 | O185: =MAX(TREND(O153:O154,$B153:$B154,$B185),0) -> 0.00 | P185: =MAX(TREND(P153:P154,$B153:$B154,$B185),0) -> 0.00 | Q185: =TREND(Q153:Q154,$B153:$B154,$B185) -> 4,833,766 | R185: =IF(Induced="N",0,(IF(B147=Hwy,M185*(I185*ValTimeTruck+(1-I185)*ValTimeAuto)-N185*(J185*ValTimeTruck+(1-J185)*ValTimeAuto),(IF(INDEX($P$197:$X$200,MATCH(B147,$O$197:$O$200,0),7)>0,INDEX($P$197:$X$200,MATCH(B147,$O$197:$O$200,0),7)/IF(INDEX($P$197:$X$200,MATCH(B147,$O$197:$O$200,0),6)=0,1,INDEX($P$197:$X$200,MATCH(B147,$O$197:$O$200,0),6)),M185)-N185)*ValTimeAuto)+O185-P185)*(H185-Q185)*0.5*(1+TTUprater)^($B185-YearCurrent)) -> $0 | S185: $0 | T185: $0
B187: Total | T187: =SUM(T156:T185) -> $0
C192: SUMMARY OF TRIPS BY MODE (across model groups) | O192: AVERAGE PROFILE FOR DIVERTED TRIPS/INDUCED TRIPS BY MODE
P193: For Trips Diverting from Highway to Transit | U193: Least Cost Alternative (for Induced Trips)
D194: TOTAL TRIPS*
D195: =YearFirst -> 2025 | H195: =YearLast -> 2045 | P195: Average Speed in | Q195: Average Trip Length in | R195: Average Speed in | S195: Average Trip Length in | U195: Average Speed in | V195: Average Trip Length in | W195: Average Speed in | X195: Average Trip Length in
C196: Mode | D196: No Build | E196: Build | F196: Build - No Build** | G196: Induced Demand | H196: No Build | I196: Build | J196: Build - No Build** | K196: Induced Demand | O196: Mode | P196: =YearFirst&" (mph)" -> 2025 (mph) | Q196: =YearFirst&" (miles)" -> 2025 (miles) | R196: =YearLast&" (mph)" -> 2045 (mph) | S196: =YearLast&" (miles)" -> 2045 (miles) | U196: =YearFirst&" (mph)" -> 2025 (mph) | V196: =YearFirst&" (miles)" -> 2025 (miles) | W196: =YearLast&" (mph)" -> 2045 (mph) | X196: =YearLast&" (miles)" -> 2045 (miles)
C197: =PARAMETERS!$J$9 -> Bus | D197: =SUMIF(INDEX(HwyTransitModelGroup,,1),$C197,INDEX(ModelData1NB,,1))*AnnualFactor -> 0 | E197: =SUMIF(INDEX(HwyTransitModelGroup,,1),$C197,INDEX(ModelData1B,,1))*AnnualFactor -> 0 | F197: =E197-D197 -> 0 | G197: =IF(OR($F$201=0,F197<=0),0,F197/SUMIF(F$197:F$200,">0",F$197:F$200)*F$201) -> 0 | H197: =SUMIF(INDEX(HwyTransitModelGroup,,1),$C197,INDEX(ModelData20NB,,1))*AnnualFactor -> 0 | I197: =SUMIF(INDEX(HwyTransitModelGroup,,1),$C197,INDEX(ModelData20B,,1))*AnnualFactor -> 0 | J197: =I197-H197 -> 0 | K197: =IF(OR($J$201=0,J197<=0),0,J197/SUMIF(J$197:J$200,">0",J$197:J$200)*J$201) -> 0 | O197: =PARAMETERS!$J$9 -> Bus | P197: =IFERROR(1/(SUMPRODUCT(P$211:P$212,$E$211:$E$212,--($D$211:$D$212=$C197))/IF(SUMPRODUCT($E$211:$E$212,--($D$211:$D$212=$C197))=0,1,SUMPRODUCT($E$211:$E$212,--($D$211:$D$212=$C197)))),0) -> 0.00 | Q197: =IFERROR(SUMPRODUCT(Q$211:Q$212,$E$211:$E$212,--($D$211:$D$212=$C197))/SUMPRODUCT($E$211:$E$212,--($D$211:$D$212=$C197)),0) -> 0.00 | R197: =IFERROR(1/(SUMPRODUCT(R$211:R$212,$I$211:$I$212,--($D$211:$D$212=$C197))/IF(SUMPRODUCT($I$211:$I$212,--($D$211:$D$212=$C197))=0,1,SUMPRODUCT($I$211:$I$212,--($D$211:$D$212=$C197)))),0) -> 0.00 | S197: =IFERROR(SUMPRODUCT(S$211:S$212,$I$211:$I$212,--($D$211:$D$212=$C197))/SUMPRODUCT($I$211:$I$212,--($D$211:$D$212=$C197)),0) -> 0.00 | U197: =IFERROR(1/(SUMPRODUCT(U$211:U$212,$E$211:$E$212,--($D$211:$D$212=$C197))/IF(SUMPRODUCT($E$211:$E$212,--($D$211:$D$212=$C197))=0,1,SUMPRODUCT($E$211:$E$212,--($D$211:$D$212=$C197)))),0) -> 0.00 | V197: =IFERROR(SUMPRODUCT(V$211:V$212,$E$211:$E$212,--($D$211:$D$212=$C197))/SUMPRODUCT($E$211:$E$212,--($D$211:$D$212=$C197)),0) -> 0.00 | W197: =IFERROR(1/(SUMPRODUCT(W$211:W$212,$I$211:$I$212,--($D$211:$D$212=$C197))/IF(SUMPRODUCT($I$211:$I$212,--($D$211:$D$212=$C197))=0,1,SUMPRODUCT($I$211:$I$212,--($D$211:$D$212=$C197)))),0) -> 0.00 | X197: =IFERROR(SUMPRODUCT(X$211:X$212,$I$211:$I$212,--($D$211:$D$212=$C197))/SUMPRODUCT($I$211:$I$212,--($D$211:$D$212=$C197)),0) -> 0.00
C198: =PARAMETERS!$J$10 -> Pass Train | D198: =SUMIF(INDEX(HwyTransitModelGroup,,1),$C198,INDEX(ModelData1NB,,1))*AnnualFactor -> 0 | E198: =SUMIF(INDEX(HwyTransitModelGroup,,1),$C198,INDEX(ModelData1B,,1))*AnnualFactor -> 0 | F198: =E198-D198 -> 0 | G198: =IF(OR($F$201=0,F198<=0),0,F198/SUMIF(F$197:F$200,">0",F$197:F$200)*F$201) -> 0 | H198: =SUMIF(INDEX(HwyTransitModelGroup,,1),$C198,INDEX(ModelData20NB,,1))*AnnualFactor -> 0 | I198: =SUMIF(INDEX(HwyTransitModelGroup,,1),$C198,INDEX(ModelData20B,,1))*AnnualFactor -> 0 | J198: =I198-H198 -> 0 | K198: =IF(OR($J$201=0,J198<=0),0,J198/SUMIF(J$197:J$200,">0",J$197:J$200)*J$201) -> 0 | O198: =PARAMETERS!$J$10 -> Pass Train | P198: =IFERROR(1/(SUMPRODUCT(P$211:P$212,$E$211:$E$212,--($D$211:$D$212=$C198))/IF(SUMPRODUCT($E$211:$E$212,--($D$211:$D$212=$C198))=0,1,SUMPRODUCT($E$211:$E$212,--($D$211:$D$212=$C198)))),0) -> 0.00 | Q198: =IFERROR(SUMPRODUCT(Q$211:Q$212,$E$211:$E$212,--($D$211:$D$212=$C198))/SUMPRODUCT($E$211:$E$212,--($D$211:$D$212=$C198)),0) -> 0.00 | R198: =IFERROR(1/(SUMPRODUCT(R$211:R$212,$I$211:$I$212,--($D$211:$D$212=$C198))/IF(SUMPRODUCT($I$211:$I$212,--($D$211:$D$212=$C198))=0,1,SUMPRODUCT($I$211:$I$212,--($D$211:$D$212=$C198)))),0) -> 0.00 | S198: =IFERROR(SUMPRODUCT(S$211:S$212,$I$211:$I$212,--($D$211:$D$212=$C198))/SUMPRODUCT($I$211:$I$212,--($D$211:$D$212=$C198)),0) -> 0.00 | U198: =IFERROR(1/(SUMPRODUCT(U$211:U$212,$E$211:$E$212,--($D$211:$D$212=$C198))/IF(SUMPRODUCT($E$211:$E$212,--($D$211:$D$212=$C198))=0,1,SUMPRODUCT($E$211:$E$212,--($D$211:$D$212=$C198)))),0) -> 0.00 | V198: =IFERROR(SUMPRODUCT(V$211:V$212,$E$211:$E$212,--($D$211:$D$212=$C198))/SUMPRODUCT($E$211:$E$212,--($D$211:$D$212=$C198)),0) -> 0.00 | W198: =IFERROR(1/(SUMPRODUCT(W$211:W$212,$I$211:$I$212,--($D$211:$D$212=$C198))/IF(SUMPRODUCT($I$211:$I$212,--($D$211:$D$212=$C198))=0,1,SUMPRODUCT($I$211:$I$212,--($D$211:$D$212=$C198)))),0) -> 0.00 | X198: =IFERROR(SUMPRODUCT(X$211:X$212,$I$211:$I$212,--($D$211:$D$212=$C198))/SUMPRODUCT($I$211:$I$212,--($D$211:$D$212=$C198)),0) -> 0.00
C199: =PARAMETERS!$J$11 -> Light Rail | D199: =SUMIF(INDEX(HwyTransitModelGroup,,1),$C199,INDEX(ModelData1NB,,1))*AnnualFactor -> 0 | E199: =SUMIF(INDEX(HwyTransitModelGroup,,1),$C199,INDEX(ModelData1B,,1))*AnnualFactor -> 0 | F199: =E199-D199 -> 0 | G199: =IF(OR($F$201=0,F199<=0),0,F199/SUMIF(F$197:F$200,">0",F$197:F$200)*F$201) -> 0 | H199: =SUMIF(INDEX(HwyTransitModelGroup,,1),$C199,INDEX(ModelData20NB,,1))*AnnualFactor -> 0 | I199: =SUMIF(INDEX(HwyTransitModelGroup,,1),$C199,INDEX(ModelData20B,,1))*AnnualFactor -> 0 | J199: =I199-H199 -> 0 | K199: =IF(OR($J$201=0,J199<=0),0,J199/SUMIF(J$197:J$200,">0",J$197:J$200)*J$201) -> 0 | O199: =PARAMETERS!$J$11 -> Light Rail | P199: =IFERROR(1/(SUMPRODUCT(P$211:P$212,$E$211:$E$212,--($D$211:$D$212=$C199))/IF(SUMPRODUCT($E$211:$E$212,--($D$211:$D$212=$C199))=0,1,SUMPRODUCT($E$211:$E$212,--($D$211:$D$212=$C199)))),0) -> 0.00 | Q199: =IFERROR(SUMPRODUCT(Q$211:Q$212,$E$211:$E$212,--($D$211:$D$212=$C199))/SUMPRODUCT($E$211:$E$212,--($D$211:$D$212=$C199)),0) -> 0.00 | R199: =IFERROR(1/(SUMPRODUCT(R$211:R$212,$I$211:$I$212,--($D$211:$D$212=$C199))/IF(SUMPRODUCT($I$211:$I$212,--($D$211:$D$212=$C199))=0,1,SUMPRODUCT($I$211:$I$212,--($D$211:$D$212=$C199)))),0) -> 0.00 | S199: =IFERROR(SUMPRODUCT(S$211:S$212,$I$211:$I$212,--($D$211:$D$212=$C199))/SUMPRODUCT($I$211:$I$212,--($D$211:$D$212=$C199)),0) -> 0.00 | U199: =IFERROR(1/(SUMPRODUCT(U$211:U$212,$E$211:$E$212,--($D$211:$D$212=$C199))/IF(SUMPRODUCT($E$211:$E$212,--($D$211:$D$212=$C199))=0,1,SUMPRODUCT($E$211:$E$212,--($D$211:$D$212=$C199)))),0) -> 0.00 | V199: =IFERROR(SUMPRODUCT(V$211:V$212,$E$211:$E$212,--($D$211:$D$212=$C199))/SUMPRODUCT($E$211:$E$212,--($D$211:$D$212=$C199)),0) -> 0.00 | W199: =IFERROR(1/(SUMPRODUCT(W$211:W$212,$I$211:$I$212,--($D$211:$D$212=$C199))/IF(SUMPRODUCT($I$211:$I$212,--($D$211:$D$212=$C199))=0,1,SUMPRODUCT($I$211:$I$212,--($D$211:$D$212=$C199)))),0) -> 0.00 | X199: =IFERROR(SUMPRODUCT(X$211:X$212,$I$211:$I$212,--($D$211:$D$212=$C199))/SUMPRODUCT($I$211:$I$212,--($D$211:$D$212=$C199)),0) -> 0.00
C200: =PARAMETERS!$J$12 -> Highway | D200: =SUMIF(INDEX(HwyTransitModelGroup,,1),$C200,INDEX(ModelData1NB,,1))*AnnualFactor -> 3,663,955 | E200: =SUMIF(INDEX(HwyTransitModelGroup,,1),$C200,INDEX(ModelData1B,,1))*AnnualFactor -> 3,663,955 | F200: =E200-D200 -> 0 | G200: =IF(OR($F$201=0,F200<=0),0,F200/SUMIF(F$197:F$200,">0",F$197:F$200)*F$201) -> 0 | H200: =SUMIF(INDEX(HwyTransitModelGroup,,1),$C200,INDEX(ModelData20NB,,1))*AnnualFactor -> 4,470,721 | I200: =SUMIF(INDEX(HwyTransitModelGroup,,1),$C200,INDEX(ModelData20B,,1))*AnnualFactor -> 4,470,721 | J200: =I200-H200 -> 0 | K200: =IF(OR($J$201=0,J200<=0),0,J200/SUMIF(J$197:J$200,">0",J$197:J$200)*J$201) -> 0 | O200: =PARAMETERS!$J$12 -> Highway | P200: =IFERROR(1/(SUMPRODUCT(P$211:P$212,$E$211:$E$212,--($D$211:$D$212=$C200))/IF(SUMPRODUCT($E$211:$E$212,--($D$211:$D$212=$C200))=0,1,SUMPRODUCT($E$211:$E$212,--($D$211:$D$212=$C200)))),0) -> 0.00 | Q200: =IFERROR(SUMPRODUCT(Q$211:Q$212,$E$211:$E$212,--($D$211:$D$212=$C200))/SUMPRODUCT($E$211:$E$212,--($D$211:$D$212=$C200)),0) -> 0.00 | R200: =IFERROR(1/(SUMPRODUCT(R$211:R$212,$I$211:$I$212,--($D$211:$D$212=$C200))/IF(SUMPRODUCT($I$211:$I$212,--($D$211:$D$212=$C200))=0,1,SUMPRODUCT($I$211:$I$212,--($D$211:$D$212=$C200)))),0) -> 0.00 | S200: =IFERROR(SUMPRODUCT(S$211:S$212,$I$211:$I$212,--($D$211:$D$212=$C200))/SUMPRODUCT($I$211:$I$212,--($D$211:$D$212=$C200)),0) -> 0.00 | U200: =IFERROR(1/(SUMPRODUCT(U$211:U$212,$E$211:$E$212,--($D$211:$D$212=$C200))/IF(SUMPRODUCT($E$211:$E$212,--($D$211:$D$212=$C200))=0,1,SUMPRODUCT($E$211:$E$212,--($D$211:$D$212=$C200)))),0) -> 0.00 | V200: =IFERROR(SUMPRODUCT(V$211:V$212,$E$211:$E$212,--($D$211:$D$212=$C200))/SUMPRODUCT($E$211:$E$212,--($D$211:$D$212=$C200)),0) -> 0.00 | W200: =IFERROR(1/(SUMPRODUCT(W$211:W$212,$I$211:$I$212,--($D$211:$D$212=$C200))/IF(SUMPRODUCT($I$211:$I$212,--($D$211:$D$212=$C200))=0,1,SUMPRODUCT($I$211:$I$212,--($D$211:$D$212=$C200)))),0) -> 0.00 | X200: =IFERROR(SUMPRODUCT(X$211:X$212,$I$211:$I$212,--($D$211:$D$212=$C200))/SUMPRODUCT($I$211:$I$212,--($D$211:$D$212=$C200)),0) -> 0.00
C201: TOTAL | D201: =SUM(D197:D200) -> 3,663,955 | E201: =SUM(E197:E200) -> 3,663,955 | F201: =MAX(E201-D201,0) -> 0 | G201: =SUM(G197:G200) -> 0 | H201: =SUM(H197:H200) -> 4,470,721 | I201: =SUM(I197:I200) -> 4,470,721 | J201: =MAX(I201-H201,0) -> 0 | K201: =SUM(K197:K200) -> 0
C202: *Person trips for transit modes, vehicle trips for highway.
C203: **Positive values are trip increases (induced and diverted). Negative values are diverted trips.
P204: For Trips Diverting from Highway to Transit | U204: Least Cost Alternative (for Induced Trips)
B205: ="MODEL DATA" -> MODEL DATA
E206: =YearFirst -> 2025 | I206: =YearLast -> 2045
E207: Number of Trips (No Build) | F207: Increase in Number of Trips (Build vs. No Build) | G207: Share within mode | H207: Transit Does Not Exist in No Build | I207: Number of Trips (No Build) | J207: Increase in Number of Trips (Build vs. No Build) | K207: Share within mode | L207: Transit Does Not Exist in No Build | O207: Mode | P207: ="Inverse of Average Speed in Year "&YearFirst&" (mph)" -> Inverse of Average Speed in Year 2025 (mph) | Q207: ="Average Trip Length in Year "&YearFirst&" (miles)" -> Average Trip Length in Year 2025 (miles) | R207: ="Inverse of Average Speed in Year "&YearLast&" (mph)" -> Inverse of Average Speed in Year 2045 (mph) | S207: ="Average Trip Length in Year "&YearLast&" (miles)" -> Average Trip Length in Year 2045 (miles) | U207: ="Inverse of Average Speed in Year "&YearFirst&" (mph)" -> Inverse of Average Speed in Year 2025 (mph) | V207: ="Average Trip Length in Year "&YearFirst&" (miles)" -> Average Trip Length in Year 2025 (miles) | W207: ="Inverse of Average Speed in Year "&YearLast&" (mph)" -> Inverse of Average Speed in Year 2045 (mph) | X207: ="Average Trip Length in Year "&YearLast&" (miles)" -> Average Trip Length in Year 2045 (miles) | Z207: =$O$197 -> Bus | AA207: =$O$198 -> Pass Train | AB207: =$O$199 -> Light Rail | AC207: =$O$200 -> Highway
B211: ='2) Model Inputs'!D29 -> 1 | C211: ='2) Model Inputs'!E29 -> All Vehicles | D211: ='2) Model Inputs'!F11 -> Highway | E211: ='2) Model Inputs'!F29 -> 10,038 | F211: =MAX('2) Model Inputs'!F35-'2) Model Inputs'!F29,0) -> 0 | G211: =IFERROR(F211/SUMIF($D$211:$D$212,$D211,F$211:F$212),0) -> 0.0% | H211: =AND($D211<>Hwy,SUM('2) Model Inputs'!$I29:$K29)=0) -> FALSE | I211: ='2) Model Inputs'!V29 -> 12,249 | J211: =MAX('2) Model Inputs'!V35-'2) Model Inputs'!V29,0) -> 0 | K211: =IFERROR(J211/SUMIF($D$211:$D$212,$D211,J$211:J$212),0) -> 0.0% | L211: =AND($D211<>Hwy,SUM('2) Model Inputs'!$Y29:$AA29)=0) -> FALSE | O211: ='2) Model Inputs'!U11 -> 0 | P211: =IF($H211=TRUE,IFERROR(1/'2) Model Inputs'!V11,0),"") ->  | Q211: =IF($H211=TRUE,'2) Model Inputs'!W11,"") ->  | R211: =IF($L211=TRUE,IFERROR(1/'2) Model Inputs'!X11,0),"") ->  | S211: =IF($L211=TRUE,'2) Model Inputs'!Y11,"") ->  | U211: =IF($H211=TRUE,IFERROR(1/'2) Model Inputs'!AA11,0),"") ->  | V211: =IF($H211=TRUE,'2) Model Inputs'!AB11,"") ->  | W211: =IF($L211=TRUE,IFERROR(1/'2) Model Inputs'!AC11,0),"") ->  | X211: =IF($L211=TRUE,'2) Model Inputs'!AD11,"") ->  | Z211: =IF($D211=Z$207,1,0) -> 0 | AA211: =IF($D211=AA$207,1,0) -> 0 | AB211: =IF($D211=AB$207,1,0) -> 0 | AC211: =IF($D211=AC$207,1,0) -> 1

Sheet Reliability
B1: Travel Time Reliability Benefits
B3: This sheet calculates total travel time reliability benefits on highway.
B5: Formulas: | Q5: Present Value = Future Value (in Constant Dollars)
H6: Std. Dev. Of TTI = (0.71 x (TTI Mean - 1) ^ 0.56) x Impacted Length / FF Speed | R6: ( 1 + Real Discount Rate) ^ Year
B7: Recurring Delay Rate = 1 / Est. Act. Speed - 1 / FF Speed | H7: hours/vehicle mi mph
B8: hours/mi mph mph | H8: Reliability Savings = Change in Std. Dev. Of TTI x Avg. Value of Reliability
B9: Recurring TTI Mean = 1 + Recurring Delay Rate x FF Speed | H9: $/yr hrs/yr $/hr
B10: hours/mi mph | H10: Avg. Value of Reliability = Avg. Value of Time x Reliability Ratio
B11: TTI Mean = 1.0274 x Recurring TTI Mean ^ 1.2204 | H11: $/hr $/hr
H12: Induced = Change in Trips x Change in Std. Dev. of TTI x 0.5
B17: A | C17: AUTOMOBILE BENEFITS | P17: B | Q17: TRUCK BENEFITS | AD17: C | AE17: SUMMARY OF TRAVEL TIME RELIABILITY BENEFITS
A20: =MAX($A$1:A19)+1 -> 1 | B20: =IF(ISBLANK(INDEX(ReliabilityGroup,A20,2)),"Not Used",INDEX(ReliabilityGroup,A20,2)) -> Not Used | O20: =MAX($O$1:O19)+1 -> 1 | P20: =IF(ISBLANK(INDEX(ReliabilityGroup,O20,2)),"Not Used",INDEX(ReliabilityGroup,O20,2)) -> Not Used
C22: AVERAGE VOLUME | E22: AVERAGE SPEED | G22: RECURRING DELAY RATE | I22: STANDARD DEVIATION | K22: RELIABILITY BENEFIT | Q22: AVERAGE VOLUME | S22: AVERAGE SPEED | U22: RECURRING DELAY RATE | W22: STANDARD DEVIATION | Y22: RELIABILITY BENEFIT | AD22: Automobile | AE22: 1 | AG22: Present
C23: (vehicles/hour) | E23: (mph) | G23: (hrs/mi) | I23: OF TRAVEL TIME INDEX | K23: (person-hours/yr) | Q23: (vehicles/hour) | S23: (mph) | U23: (hrs/mi) | W23: OF TRAVEL TIME INDEX | Y23: (person-hours/yr) | AE23: =IF(ISBLANK(INDEX(ReliabilityModelGroup,AE22,1)),"Not Used",INDEX(ReliabilityModelGroup,AE22,1)) -> Not Used | AG23: Value of
B24: Year | I24: (hours/vehicle) | K24: Existing | L24: New | M24: Constant | N24: Present | P24: Year | W24: (hours/vehicle) | Y24: Existing | Z24: New | AA24: Constant | AB24: Present | AD24: Year | AG24: Reliability | AI24: Constant
C25: No Build | D25: Build | E25: No Build | F25: Build | G25: No Build | H25: Build | I25: No Build | J25: Build | K25: Users | L25: (Induced) | M25: Dollars | N25: Value | Q25: No Build | R25: Build | S25: No Build | T25: Build | U25: No Build | V25: Build | W25: No Build | X25: Build | Y25: Users | Z25: (Induced) | AA25: Dollars | AB25: Value | AG25: =IF(Induced="Y","Benefits","Benefits*") -> Benefits | AI25: Dollars
B26: =YearFirst -> 2025 | C26: =_xlfn.SINGLE(IF(_xlfn.SINGLE(INDEX(ReliabilityGroup,$A20,1))=Hwy,IFERROR(_xlfn.SINGLE(INDEX(ReliabilityData1NB,$A20,5))*(1-_xlfn.SINGLE(INDEX(ReliabilityData1NB,$A20,3))),0),0)) -> 0 | D26: =_xlfn.SINGLE(IF(_xlfn.SINGLE(INDEX(ReliabilityGroup,$A20,1))=Hwy,IFERROR(_xlfn.SINGLE(INDEX(ReliabilityData1B,A20,5))*(1-_xlfn.SINGLE(INDEX(ReliabilityData1B,A20,3))),0),0)) -> 0 | E26: =_xlfn.SINGLE(IF(_xlfn.SINGLE(INDEX(ReliabilityGroup,A20,1))=Hwy,IFERROR(_xlfn.SINGLE(INDEX(ReliabilityData1NB,A20,4)),0),0)) -> 0.0 | F26: =_xlfn.SINGLE(IF(_xlfn.SINGLE(INDEX(ReliabilityGroup,A20,1))=Hwy,IFERROR(_xlfn.SINGLE(INDEX(ReliabilityData1B,A20,4)),0),0)) -> 0.0 | G26: =IFERROR(MAX(1/E26-1/INDEX(ReliabilityModelGroup,A20,17), 0),0) -> 0.000 | H26: =IFERROR(MAX(1/F26-1/INDEX(ReliabilityModelGroup,A20,24), 0),0) -> 0.000 | I26: =IFERROR(AlphaSTD*MAX(AlphaTTI*(1+INDEX(ReliabilityModelGroup,A20,17)*G26)^BetaTTI-1,0)^BetaSTD*INDEX(ReliabilityModelGroup,A20,16)/INDEX(ReliabilityModelGroup,A20,17)*INDEX(RelAdjFactors,A20,5),0) -> 0.000 | J26: =IFERROR(AlphaSTD*MAX(AlphaTTI*(1+INDEX(ReliabilityModelGroup,A20,24)*H26)^BetaTTI-1,0)^BetaSTD*INDEX(ReliabilityModelGroup,A20,23)/INDEX(ReliabilityModelGroup,A20,24)*INDEX(RelAdjFactors,A20,5),0) -> 0.000 | K26: =MIN(C26*INDEX(ReliabilityModelGroup,A20,18),D26*INDEX(ReliabilityModelGroup,A20,25))*(I26-J26)*(INDEX(ReliabilityModelGroup,A20,12)*AnnualFactor) -> 0 | L26: =IF(AND(D26*INDEX(ReliabilityModelGroup,A20,25)>C26*INDEX(ReliabilityModelGroup,A20,18), Induced="Y"), (D26*INDEX(ReliabilityModelGroup,A20,25)-C26*INDEX(ReliabilityModelGroup,A20,18))*(I26-J26)*0.5*(INDEX(ReliabilityModelGroup,A20,12)*AnnualFactor), 0) -> 0 | M26: =(K26+L26)*ValTimeAuto*ValRelAuto*IF(IM,ValTimeIMFactor,1)*(1+TTUprater)^($B26-YearCurrent) -> $0 | N26: =M26/(1+DiscRate)^(B26-YearCurrent) -> $0 | P26: =YearFirst -> 2025 | Q26: =_xlfn.SINGLE(IF(_xlfn.SINGLE(INDEX(ReliabilityGroup,$O20,1))=Hwy,IFERROR(_xlfn.SINGLE(INDEX(ReliabilityData1NB,$O20,5))*_xlfn.SINGLE(INDEX(ReliabilityData1NB,$O20,3)),0),0)) -> 0 | R26: =_xlfn.SINGLE(IF(_xlfn.SINGLE(INDEX(ReliabilityGroup,$O20,1))=Hwy,IFERROR(_xlfn.SINGLE(INDEX(ReliabilityData1B,$O20,5))*_xlfn.SINGLE(INDEX(ReliabilityData1B,$O20,3)),0),0)) -> 0 | S26: =_xlfn.SINGLE(IF(_xlfn.SINGLE(INDEX(ReliabilityGroup,O20,1))=Hwy,IFERROR(_xlfn.SINGLE(INDEX(ReliabilityData1NB,O20,4)),0),0)) -> 0.0 | T26: =_xlfn.SINGLE(IF(_xlfn.SINGLE(INDEX(ReliabilityGroup,O20,1))=Hwy,IFERROR(_xlfn.SINGLE(INDEX(ReliabilityData1B,O20,4)),0),0)) -> 0.0 | U26: =IFERROR(MAX(1/S26-1/INDEX(ReliabilityModelGroup,O20,17), 0),0) -> 0.000 | V26: =IFERROR(MAX(1/T26-1/INDEX(ReliabilityModelGroup,O20,24), 0),0) -> 0.000 | W26: =IFERROR(AlphaSTD*MAX(AlphaTTI*(1+INDEX(ReliabilityModelGroup,O20,17)*U26)^BetaTTI-1,0)^BetaSTD*INDEX(ReliabilityModelGroup,O20,16)/INDEX(ReliabilityModelGroup,O20,17)*INDEX(RelAdjFactors,O20,15),0) -> 0.000 | X26: =IFERROR(AlphaSTD*MAX(AlphaTTI*(1+INDEX(ReliabilityModelGroup,O20,24)*V26)^BetaTTI-1,0)^BetaSTD*INDEX(ReliabilityModelGroup,O20,23)/INDEX(ReliabilityModelGroup,O20,24)*INDEX(RelAdjFactors,O20,15),0) -> 0.000 | Y26: =MIN(Q26,R26)*(W26-X26)*(INDEX(ReliabilityModelGroup,A20,12)*AnnualFactor) -> 0 | Z26: =IF(AND(R26>Q26, Induced="Y"), (R26-Q26)*(W26-X26)*0.5*(INDEX(ReliabilityModelGroup,A20,12)*AnnualFactor), 0) -> 0 | AA26: =(Y26+Z26)*ValTimeTruck*ValRelTruck*IF(IM,ValTimeIMFactor,1)*(1+TTUprater)^($B26-YearCurrent) -> $0 | AB26: =AA26/(1+DiscRate)^(P26-YearCurrent) -> $0 | AD26: =YearOpen -> 2025 | AE26: =OFFSET($N9,MATCH(AE$22,$A:$A),0) -> $0 | AG26: =IF(Reliability="N", 0, SUM(AE26:AF26,AE69:AF69)) -> $0 | AI26: =AG26/(1+DiscRate)^(AD26-YearCurrent) -> $0
B27: =YearLast -> 2045 | C27: =_xlfn.SINGLE(IF(_xlfn.SINGLE(INDEX(ReliabilityGroup,$A20,1))=Hwy,IFERROR(_xlfn.SINGLE(INDEX(ReliabilityData20NB,$A20,5))*(1-_xlfn.SINGLE(INDEX(ReliabilityData20NB,$A20,3))),0),0)) -> 0 | D27: =_xlfn.SINGLE(IF(_xlfn.SINGLE(INDEX(ReliabilityGroup,$A20,1))=Hwy,IFERROR(_xlfn.SINGLE(INDEX(ReliabilityData20B,$A20,5))*(1-_xlfn.SINGLE(INDEX(ReliabilityData20B,$A20,3))),0),0)) -> 0 | E27: =_xlfn.SINGLE(IF(_xlfn.SINGLE(INDEX(ReliabilityGroup,A20,1))=Hwy,IFERROR(_xlfn.SINGLE(INDEX(ReliabilityData20NB,A20,4)),0),0)) -> 0.0 | F27: =_xlfn.SINGLE(IF(_xlfn.SINGLE(INDEX(ReliabilityGroup,A20,1))=Hwy,IFERROR(_xlfn.SINGLE(INDEX(ReliabilityData20B,A20,4)),0),0)) -> 0.0 | G27: =IFERROR(MAX(1/E27-1/INDEX(ReliabilityModelGroup,A20,17), 0),0) -> 0.000 | H27: =IFERROR(MAX(1/F27-1/INDEX(ReliabilityModelGroup,A20,24), 0),0) -> 0.000 | I27: =IFERROR(AlphaSTD*MAX(AlphaTTI*(1+INDEX(ReliabilityModelGroup,A20,17)*G27)^BetaTTI-1,0)^BetaSTD*INDEX(ReliabilityModelGroup,A20,16)/INDEX(ReliabilityModelGroup,A20,17)*INDEX(RelAdjFactors,A20,5),0) -> 0.000 | J27: =IFERROR(AlphaSTD*MAX(AlphaTTI*(1+INDEX(ReliabilityModelGroup,A20,24)*H27)^BetaTTI-1,0)^BetaSTD*INDEX(ReliabilityModelGroup,A20,23)/INDEX(ReliabilityModelGroup,A20,24)*INDEX(RelAdjFactors,A20,5),0) -> 0.000 | K27: =MIN(C27*INDEX(ReliabilityModelGroup,A20,18),D27*INDEX(ReliabilityModelGroup,A20,25))*(I27-J27)*(INDEX(ReliabilityModelGroup,A20,12)*AnnualFactor) -> 0 | L27: =IF(AND(D27*INDEX(ReliabilityModelGroup,A20,25)>C27*INDEX(ReliabilityModelGroup,A20,18), Induced="Y"), (D27*INDEX(ReliabilityModelGroup,A20,25)-C27*INDEX(ReliabilityModelGroup,A20,18))*(I27-J27)*0.5*(INDEX(ReliabilityModelGroup,A20,12)*AnnualFactor), 0) -> 0 | M27: =(K27+L27)*ValTimeAuto*ValRelAuto*IF(IM,ValTimeIMFactor,1)*(1+TTUprater)^($B27-YearCurrent) -> $0 | N27: =M27/(1+DiscRate)^(B27-YearCurrent) -> $0 | P27: =YearLast -> 2045 | Q27: =_xlfn.SINGLE(IF(_xlfn.SINGLE(INDEX(ReliabilityGroup,$O20,1))=Hwy,IFERROR(_xlfn.SINGLE(INDEX(ReliabilityData20NB,$O20,5))*_xlfn.SINGLE(INDEX(ReliabilityData20NB,$O20,3)),0),0)) -> 0 | R27: =_xlfn.SINGLE(IF(_xlfn.SINGLE(INDEX(ReliabilityGroup,$O20,1))=Hwy,IFERROR(_xlfn.SINGLE(INDEX(ReliabilityData20B,$O20,5))*_xlfn.SINGLE(INDEX(ReliabilityData20B,$O20,3)),0),0)) -> 0 | S27: =_xlfn.SINGLE(IF(_xlfn.SINGLE(INDEX(ReliabilityGroup,O20,1))=Hwy,IFERROR(_xlfn.SINGLE(INDEX(ReliabilityData20NB,O20,4)),0),0)) -> 0.0 | T27: =_xlfn.SINGLE(IF(_xlfn.SINGLE(INDEX(ReliabilityGroup,O20,1))=Hwy,IFERROR(_xlfn.SINGLE(INDEX(ReliabilityData20B,O20,4)),0),0)) -> 0.0 | U27: =IFERROR(MAX(1/S27-1/INDEX(ReliabilityModelGroup,O20,17), 0),0) -> 0.000 | V27: =IFERROR(MAX(1/T27-1/INDEX(ReliabilityModelGroup,O20,24), 0),0) -> 0.000 | W27: =IFERROR(AlphaSTD*MAX(AlphaTTI*(1+INDEX(ReliabilityModelGroup,O20,17)*U27)^BetaTTI-1,0)^BetaSTD*INDEX(ReliabilityModelGroup,O20,16)/INDEX(ReliabilityModelGroup,O20,17)*INDEX(RelAdjFactors,O20,15),0) -> 0.000 | X27: =IFERROR(AlphaSTD*MAX(AlphaTTI*(1+INDEX(ReliabilityModelGroup,O20,24)*V27)^BetaTTI-1,0)^BetaSTD*INDEX(ReliabilityModelGroup,O20,23)/INDEX(ReliabilityModelGroup,O20,24)*INDEX(RelAdjFactors,O20,15),0) -> 0.000 | Y27: =MIN(Q27,R27)*(W27-X27)*(INDEX(ReliabilityModelGroup,A20,12)*AnnualFactor) -> 0 | Z27: =IF(AND(R27>Q27, Induced="Y"), (R27-Q27)*(W27-X27)*0.5*(INDEX(ReliabilityModelGroup,A20,12)*AnnualFactor), 0) -> 0 | AA27: =(Y27+Z27)*ValTimeTruck*ValRelTruck*IF(IM,ValTimeIMFactor,1)*(1+TTUprater)^($B27-YearCurrent) -> $0 | AB27: =AA27/(1+DiscRate)^(P27-YearCurrent) -> $0 | AD27: =AD26+1 -> 2026 | AE27: $0 | AG27: $0 | AI27: $0
AD28: =AD27+1 -> 2027 | AE28: $0 | AG28: $0 | AI28: $0
B29: =YearOpen -> 2025 | C29: =MAX(TREND(C26:C27,$B26:$B27,$B29),0) -> 0 | D29: =MAX(TREND(D26:D27,$B26:$B27,$B29),0) -> 0 | E29: =MAX(TREND(E26:E27,$B26:$B27,$B29),0) -> 0.0 | F29: =MAX(TREND(F26:F27,$B26:$B27,$B29),0) -> 0.0 | G29: =IFERROR(MAX(1/E29-1/INDEX(ReliabilityModelGroup,A20,17), 0),0) -> 0.000 | H29: =IFERROR(MAX(1/F29-1/INDEX(ReliabilityModelGroup,A20,24), 0),0) -> 0.000 | I29: =IFERROR(AlphaSTD*MAX(AlphaTTI*(1+INDEX(ReliabilityModelGroup,A20,17)*G29)^BetaTTI-1,0)^BetaSTD*INDEX(ReliabilityModelGroup,A20,16)/INDEX(ReliabilityModelGroup,A20,17)*INDEX(RelAdjFactors,A20,5),0) -> 0.000 | J29: =IFERROR(AlphaSTD*MAX(AlphaTTI*(1+INDEX(ReliabilityModelGroup,A20,24)*H29)^BetaTTI-1,0)^BetaSTD*INDEX(ReliabilityModelGroup,A20,23)/INDEX(ReliabilityModelGroup,A20,24)*INDEX(RelAdjFactors,A20,5),0) -> 0.000 | K29: =MIN(C29*INDEX(ReliabilityModelGroup,A20,18),D29*INDEX(ReliabilityModelGroup,A20,25))*(I29-J29)*(INDEX(ReliabilityModelGroup,A20,12)*AnnualFactor) -> 0 | L29: =IF(AND(D29*INDEX(ReliabilityModelGroup,A20,25)>C29*INDEX(ReliabilityModelGroup,A20,18), Induced="Y"), (D29*INDEX(ReliabilityModelGroup,A20,25)-C29*INDEX(ReliabilityModelGroup,A20,18))*(I29-J29)*0.5*(INDEX(ReliabilityModelGroup,A20,12)*AnnualFactor), 0) -> 0 | M29: =(K29+L29)*ValTimeAuto*ValRelAuto*IF(IM,ValTimeIMFactor,1)*(1+TTUprater)^($B29-YearCurrent) -> $0 | N29: =M29/(1+DiscRate)^(B29-YearCurrent) -> $0 | P29: =YearOpen -> 2025 | Q29: =MAX(TREND(Q26:Q27,$P26:$P27,$P29),0) -> 0 | R29: =MAX(TREND(R26:R27,$P26:$P27,$P29),0) -> 0 | S29: =MAX(TREND(S26:S27,$P26:$P27,$P29),0) -> 0.0 | T29: =MAX(TREND(T26:T27,$P26:$P27,$P29),0) -> 0.0 | U29: =IFERROR(MAX(1/S29-1/INDEX(ReliabilityModelGroup,O20,17), 0),0) -> 0.000 | V29: =IFERROR(MAX(1/T29-1/INDEX(ReliabilityModelGroup,O20,24), 0),0) -> 0.000 | W29: =IFERROR(AlphaSTD*MAX(AlphaTTI*(1+INDEX(ReliabilityModelGroup,O20,17)*U29)^BetaTTI-1,0)^BetaSTD*INDEX(ReliabilityModelGroup,O20,16)/INDEX(ReliabilityModelGroup,O20,17)*INDEX(RelAdjFactors,O20,15),0) -> 0.000 | X29: =IFERROR(AlphaSTD*MAX(AlphaTTI*(1+INDEX(ReliabilityModelGroup,O20,24)*V29)^BetaTTI-1,0)^BetaSTD*INDEX(ReliabilityModelGroup,O20,23)/INDEX(ReliabilityModelGroup,O20,24)*INDEX(RelAdjFactors,O20,15),0) -> 0.000 | Y29: =MIN(Q29,R29)*(W29-X29)*(INDEX(ReliabilityModelGroup,A20,12)*AnnualFactor) -> 0 | Z29: =IF(AND(R29>Q29, Induced="Y"), (R29-Q29)*(W29-X29)*0.5*(INDEX(ReliabilityModelGroup,A20,12)*AnnualFactor), 0) -> 0 | AA29: =(Y29+Z29)*ValTimeTruck*ValRelTruck*IF(IM,ValTimeIMFactor,1)*(1+TTUprater)^($B29-YearCurrent) -> $0 | AB29: =AA29/(1+DiscRate)^(P29-YearCurrent) -> $0 | AD29: 2028 | AE29: $0 | AG29: $0 | AI29: $0
B30: =B29+1 -> 2026 | C30: =MAX(TREND(C26:C27,$B26:$B27,$B30),0) -> 0 | D30: =MAX(TREND(D26:D27,$B26:$B27,$B30),0) -> 0 | E30: =MAX(TREND(E26:E27,$B26:$B27,$B30),0) -> 0.0 | F30: =MAX(TREND(F26:F27,$B26:$B27,$B30),0) -> 0.0 | G30: =IFERROR(MAX(1/E30-1/INDEX(ReliabilityModelGroup,A20,17), 0),0) -> 0.000 | H30: =IFERROR(MAX(1/F30-1/INDEX(ReliabilityModelGroup,A20,24), 0),0) -> 0.000 | I30: =IFERROR(AlphaSTD*MAX(AlphaTTI*(1+INDEX(ReliabilityModelGroup,A20,17)*G30)^BetaTTI-1,0)^BetaSTD*INDEX(ReliabilityModelGroup,A20,16)/INDEX(ReliabilityModelGroup,A20,17)*INDEX(RelAdjFactors,A20,5),0) -> 0.000 | J30: =IFERROR(AlphaSTD*MAX(AlphaTTI*(1+INDEX(ReliabilityModelGroup,A20,24)*H30)^BetaTTI-1,0)^BetaSTD*INDEX(ReliabilityModelGroup,A20,23)/INDEX(ReliabilityModelGroup,A20,24)*INDEX(RelAdjFactors,A20,5),0) -> 0.000 | K30: =MIN(C30*INDEX(ReliabilityModelGroup,A20,18),D30*INDEX(ReliabilityModelGroup,A20,25))*(I30-J30)*(INDEX(ReliabilityModelGroup,A20,12)*AnnualFactor) -> 0 | L30: =IF(AND(D30*INDEX(ReliabilityModelGroup,A20,25)>C30*INDEX(ReliabilityModelGroup,A20,18), Induced="Y"), (D30*INDEX(ReliabilityModelGroup,A20,25)-C30*INDEX(ReliabilityModelGroup,A20,18))*(I30-J30)*0.5*(INDEX(ReliabilityModelGroup,A20,12)*AnnualFactor), 0) -> 0 | M30: $0 | N30: $0 | P30: =P29+1 -> 2026 | Q30: =MAX(TREND(Q26:Q27,$P26:$P27,$P30),0) -> 0 | R30: =MAX(TREND(R26:R27,$P26:$P27,$P30),0) -> 0 | S30: =MAX(TREND(S26:S27,$P26:$P27,$P30),0) -> 0.0 | T30: =MAX(TREND(T26:T27,$P26:$P27,$P30),0) -> 0.0 | U30: =IFERROR(MAX(1/S30-1/INDEX(ReliabilityModelGroup,O20,17), 0),0) -> 0.000 | V30: =IFERROR(MAX(1/T30-1/INDEX(ReliabilityModelGroup,O20,24), 0),0) -> 0.000 | W30: =IFERROR(AlphaSTD*MAX(AlphaTTI*(1+INDEX(ReliabilityModelGroup,O20,17)*U30)^BetaTTI-1,0)^BetaSTD*INDEX(ReliabilityModelGroup,O20,16)/INDEX(ReliabilityModelGroup,O20,17)*INDEX(RelAdjFactors,O20,15),0) -> 0.000 | X30: =IFERROR(AlphaSTD*MAX(AlphaTTI*(1+INDEX(ReliabilityModelGroup,O20,24)*V30)^BetaTTI-1,0)^BetaSTD*INDEX(ReliabilityModelGroup,O20,23)/INDEX(ReliabilityModelGroup,O20,24)*INDEX(RelAdjFactors,O20,15),0) -> 0.000 | Y30: =MIN(Q30,R30)*(W30-X30)*(INDEX(ReliabilityModelGroup,A20,12)*AnnualFactor) -> 0 | Z30: =IF(AND(R30>Q30, Induced="Y"), (R30-Q30)*(W30-X30)*0.5*(INDEX(ReliabilityModelGroup,A20,12)*AnnualFactor), 0) -> 0 | AA30: $0 | AB30: $0 | AD30: 2029 | AE30: $0 | AG30: $0 | AI30: $0
B31: =B30+1 -> 2027 | C31: =MAX(TREND(C26:C27,$B26:$B27,$B31),0) -> 0 | D31: =MAX(TREND(D26:D27,$B26:$B27,$B31),0) -> 0 | E31: =MAX(TREND(E26:E27,$B26:$B27,$B31),0) -> 0.0 | F31: =MAX(TREND(F26:F27,$B26:$B27,$B31),0) -> 0.0 | G31: =IFERROR(MAX(1/E31-1/INDEX(ReliabilityModelGroup,A20,17), 0),0) -> 0.000 | H31: =IFERROR(MAX(1/F31-1/INDEX(ReliabilityModelGroup,A20,24), 0),0) -> 0.000 | I31: =IFERROR(AlphaSTD*MAX(AlphaTTI*(1+INDEX(ReliabilityModelGroup,A20,17)*G31)^BetaTTI-1,0)^BetaSTD*INDEX(ReliabilityModelGroup,A20,16)/INDEX(ReliabilityModelGroup,A20,17)*INDEX(RelAdjFactors,A20,5),0) -> 0.000 | J31: =IFERROR(AlphaSTD*MAX(AlphaTTI*(1+INDEX(ReliabilityModelGroup,A20,24)*H31)^BetaTTI-1,0)^BetaSTD*INDEX(ReliabilityModelGroup,A20,23)/INDEX(ReliabilityModelGroup,A20,24)*INDEX(RelAdjFactors,A20,5),0) -> 0.000 | K31: =MIN(C31*INDEX(ReliabilityModelGroup,A20,18),D31*INDEX(ReliabilityModelGroup,A20,25))*(I31-J31)*(INDEX(ReliabilityModelGroup,A20,12)*AnnualFactor) -> 0 | L31: =IF(AND(D31*INDEX(ReliabilityModelGroup,A20,25)>C31*INDEX(ReliabilityModelGroup,A20,18), Induced="Y"), (D31*INDEX(ReliabilityModelGroup,A20,25)-C31*INDEX(ReliabilityModelGroup,A20,18))*(I31-J31)*0.5*(INDEX(ReliabilityModelGroup,A20,12)*AnnualFactor), 0) -> 0 | M31: $0 | N31: $0 | P31: =P30+1 -> 2027 | Q31: =MAX(TREND(Q26:Q27,$P26:$P27,$P31),0) -> 0 | R31: =MAX(TREND(R26:R27,$P26:$P27,$P31),0) -> 0 | S31: =MAX(TREND(S26:S27,$P26:$P27,$P31),0) -> 0.0 | T31: =MAX(TREND(T26:T27,$P26:$P27,$P31),0) -> 0.0 | U31: =IFERROR(MAX(1/S31-1/INDEX(ReliabilityModelGroup,O20,17), 0),0) -> 0.000 | V31: =IFERROR(MAX(1/T31-1/INDEX(ReliabilityModelGroup,O20,24), 0),0) -> 0.000 | W31: =IFERROR(AlphaSTD*MAX(AlphaTTI*(1+INDEX(ReliabilityModelGroup,O20,17)*U31)^BetaTTI-1,0)^BetaSTD*INDEX(ReliabilityModelGroup,O20,16)/INDEX(ReliabilityModelGroup,O20,17)*INDEX(RelAdjFactors,O20,15),0) -> 0.000 | X31: =IFERROR(AlphaSTD*MAX(AlphaTTI*(1+INDEX(ReliabilityModelGroup,O20,24)*V31)^BetaTTI-1,0)^BetaSTD*INDEX(ReliabilityModelGroup,O20,23)/INDEX(ReliabilityModelGroup,O20,24)*INDEX(RelAdjFactors,O20,15),0) -> 0.000 | Y31: =MIN(Q31,R31)*(W31-X31)*(INDEX(ReliabilityModelGroup,A20,12)*AnnualFactor) -> 0 | Z31: =IF(AND(R31>Q31, Induced="Y"), (R31-Q31)*(W31-X31)*0.5*(INDEX(ReliabilityModelGroup,A20,12)*AnnualFactor), 0) -> 0 | AA31: $0 | AB31: $0 | AD31: 2030 | AE31: $0 | AG31: $0 | AI31: $0
B32: 2028 | C32: =MAX(TREND(C26:C27,$B26:$B27,$B32),0) -> 0 | D32: =MAX(TREND(D26:D27,$B26:$B27,$B32),0) -> 0 | E32: =MAX(TREND(E26:E27,$B26:$B27,$B32),0) -> 0.0 | F32: =MAX(TREND(F26:F27,$B26:$B27,$B32),0) -> 0.0 | G32: =IFERROR(MAX(1/E32-1/INDEX(ReliabilityModelGroup,A20,17), 0),0) -> 0.000 | H32: =IFERROR(MAX(1/F32-1/INDEX(ReliabilityModelGroup,A20,24), 0),0) -> 0.000 | I32: =IFERROR(AlphaSTD*MAX(AlphaTTI*(1+INDEX(ReliabilityModelGroup,A20,17)*G32)^BetaTTI-1,0)^BetaSTD*INDEX(ReliabilityModelGroup,A20,16)/INDEX(ReliabilityModelGroup,A20,17)*INDEX(RelAdjFactors,A20,5),0) -> 0.000 | J32: =IFERROR(AlphaSTD*MAX(AlphaTTI*(1+INDEX(ReliabilityModelGroup,A20,24)*H32)^BetaTTI-1,0)^BetaSTD*INDEX(ReliabilityModelGroup,A20,23)/INDEX(ReliabilityModelGroup,A20,24)*INDEX(RelAdjFactors,A20,5),0) -> 0.000 | K32: =MIN(C32*INDEX(ReliabilityModelGroup,A20,18),D32*INDEX(ReliabilityModelGroup,A20,25))*(I32-J32)*(INDEX(ReliabilityModelGroup,A20,12)*AnnualFactor) -> 0 | L32: =IF(AND(D32*INDEX(ReliabilityModelGroup,A20,25)>C32*INDEX(ReliabilityModelGroup,A20,18), Induced="Y"), (D32*INDEX(ReliabilityModelGroup,A20,25)-C32*INDEX(ReliabilityModelGroup,A20,18))*(I32-J32)*0.5*(INDEX(ReliabilityModelGroup,A20,12)*AnnualFactor), 0) -> 0 | M32: $0 | N32: $0 | P32: 2028 | Q32: =MAX(TREND(Q26:Q27,$P26:$P27,$P32),0) -> 0 | R32: =MAX(TREND(R26:R27,$P26:$P27,$P32),0) -> 0 | S32: =MAX(TREND(S26:S27,$P26:$P27,$P32),0) -> 0.0 | T32: =MAX(TREND(T26:T27,$P26:$P27,$P32),0) -> 0.0 | U32: =IFERROR(MAX(1/S32-1/INDEX(ReliabilityModelGroup,O20,17), 0),0) -> 0.000 | V32: =IFERROR(MAX(1/T32-1/INDEX(ReliabilityModelGroup,O20,24), 0),0) -> 0.000 | W32: =IFERROR(AlphaSTD*MAX(AlphaTTI*(1+INDEX(ReliabilityModelGroup,O20,17)*U32)^BetaTTI-1,0)^BetaSTD*INDEX(ReliabilityModelGroup,O20,16)/INDEX(ReliabilityModelGroup,O20,17)*INDEX(RelAdjFactors,O20,15),0) -> 0.000 | X32: =IFERROR(AlphaSTD*MAX(AlphaTTI*(1+INDEX(ReliabilityModelGroup,O20,24)*V32)^BetaTTI-1,0)^BetaSTD*INDEX(ReliabilityModelGroup,O20,23)/INDEX(ReliabilityModelGroup,O20,24)*INDEX(RelAdjFactors,O20,15),0) -> 0.000 | Y32: =MIN(Q32,R32)*(W32-X32)*(INDEX(ReliabilityModelGroup,A20,12)*AnnualFactor) -> 0 | Z32: =IF(AND(R32>Q32, Induced="Y"), (R32-Q32)*(W32-X32)*0.5*(INDEX(ReliabilityModelGroup,A20,12)*AnnualFactor), 0) -> 0 | AA32: $0 | AB32: $0 | AD32: 2031 | AE32: $0 | AG32: $0 | AI32: $0
B33: 2029 | C33: =MAX(TREND(C26:C27,$B26:$B27,$B33),0) -> 0 | D33: =MAX(TREND(D26:D27,$B26:$B27,$B33),0) -> 0 | E33: =MAX(TREND(E26:E27,$B26:$B27,$B33),0) -> 0.0 | F33: =MAX(TREND(F26:F27,$B26:$B27,$B33),0) -> 0.0 | G33: =IFERROR(MAX(1/E33-1/INDEX(ReliabilityModelGroup,A20,17), 0),0) -> 0.000 | H33: =IFERROR(MAX(1/F33-1/INDEX(ReliabilityModelGroup,A20,24), 0),0) -> 0.000 | I33: =IFERROR(AlphaSTD*MAX(AlphaTTI*(1+INDEX(ReliabilityModelGroup,A20,17)*G33)^BetaTTI-1,0)^BetaSTD*INDEX(ReliabilityModelGroup,A20,16)/INDEX(ReliabilityModelGroup,A20,17)*INDEX(RelAdjFactors,A20,5),0) -> 0.000 | J33: =IFERROR(AlphaSTD*MAX(AlphaTTI*(1+INDEX(ReliabilityModelGroup,A20,24)*H33)^BetaTTI-1,0)^BetaSTD*INDEX(ReliabilityModelGroup,A20,23)/INDEX(ReliabilityModelGroup,A20,24)*INDEX(RelAdjFactors,A20,5),0) -> 0.000 | K33: =MIN(C33*INDEX(ReliabilityModelGroup,A20,18),D33*INDEX(ReliabilityModelGroup,A20,25))*(I33-J33)*(INDEX(ReliabilityModelGroup,A20,12)*AnnualFactor) -> 0 | L33: =IF(AND(D33*INDEX(ReliabilityModelGroup,A20,25)>C33*INDEX(ReliabilityModelGroup,A20,18), Induced="Y"), (D33*INDEX(ReliabilityModelGroup,A20,25)-C33*INDEX(ReliabilityModelGroup,A20,18))*(I33-J33)*0.5*(INDEX(ReliabilityModelGroup,A20,12)*AnnualFactor), 0) -> 0 | M33: $0 | N33: $0 | P33: 2029 | Q33: =MAX(TREND(Q26:Q27,$P26:$P27,$P33),0) -> 0 | R33: =MAX(TREND(R26:R27,$P26:$P27,$P33),0) -> 0 | S33: =MAX(TREND(S26:S27,$P26:$P27,$P33),0) -> 0.0 | T33: =MAX(TREND(T26:T27,$P26:$P27,$P33),0) -> 0.0 | U33: =IFERROR(MAX(1/S33-1/INDEX(ReliabilityModelGroup,O20,17), 0),0) -> 0.000 | V33: =IFERROR(MAX(1/T33-1/INDEX(ReliabilityModelGroup,O20,24), 0),0) -> 0.000 | W33: =IFERROR(AlphaSTD*MAX(AlphaTTI*(1+INDEX(ReliabilityModelGroup,O20,17)*U33)^BetaTTI-1,0)^BetaSTD*INDEX(ReliabilityModelGroup,O20,16)/INDEX(ReliabilityModelGroup,O20,17)*INDEX(RelAdjFactors,O20,15),0) -> 0.000 | X33: =IFERROR(AlphaSTD*MAX(AlphaTTI*(1+INDEX(ReliabilityModelGroup,O20,24)*V33)^BetaTTI-1,0)^BetaSTD*INDEX(ReliabilityModelGroup,O20,23)/INDEX(ReliabilityModelGroup,O20,24)*INDEX(RelAdjFactors,O20,15),0) -> 0.000 | Y33: =MIN(Q33,R33)*(W33-X33)*(INDEX(ReliabilityModelGroup,A20,12)*AnnualFactor) -> 0 | Z33: =IF(AND(R33>Q33, Induced="Y"), (R33-Q33)*(W33-X33)*0.5*(INDEX(ReliabilityModelGroup,A20,12)*AnnualFactor), 0) -> 0 | AA33: $0 | AB33: $0 | AD33: 2032 | AE33: $0 | AG33: $0 | AI33: $0
B34: 2030 | C34: =MAX(TREND(C26:C27,$B26:$B27,$B34),0) -> 0 | D34: =MAX(TREND(D26:D27,$B26:$B27,$B34),0) -> 0 | E34: =MAX(TREND(E26:E27,$B26:$B27,$B34),0) -> 0.0 | F34: =MAX(TREND(F26:F27,$B26:$B27,$B34),0) -> 0.0 | G34: =IFERROR(MAX(1/E34-1/INDEX(ReliabilityModelGroup,A20,17), 0),0) -> 0.000 | H34: =IFERROR(MAX(1/F34-1/INDEX(ReliabilityModelGroup,A20,24), 0),0) -> 0.000 | I34: =IFERROR(AlphaSTD*MAX(AlphaTTI*(1+INDEX(ReliabilityModelGroup,A20,17)*G34)^BetaTTI-1,0)^BetaSTD*INDEX(ReliabilityModelGroup,A20,16)/INDEX(ReliabilityModelGroup,A20,17)*INDEX(RelAdjFactors,A20,5),0) -> 0.000 | J34: =IFERROR(AlphaSTD*MAX(AlphaTTI*(1+INDEX(ReliabilityModelGroup,A20,24)*H34)^BetaTTI-1,0)^BetaSTD*INDEX(ReliabilityModelGroup,A20,23)/INDEX(ReliabilityModelGroup,A20,24)*INDEX(RelAdjFactors,A20,5),0) -> 0.000 | K34: =MIN(C34*INDEX(ReliabilityModelGroup,A20,18),D34*INDEX(ReliabilityModelGroup,A20,25))*(I34-J34)*(INDEX(ReliabilityModelGroup,A20,12)*AnnualFactor) -> 0 | L34: =IF(AND(D34*INDEX(ReliabilityModelGroup,A20,25)>C34*INDEX(ReliabilityModelGroup,A20,18), Induced="Y"), (D34*INDEX(ReliabilityModelGroup,A20,25)-C34*INDEX(ReliabilityModelGroup,A20,18))*(I34-J34)*0.5*(INDEX(ReliabilityModelGroup,A20,12)*AnnualFactor), 0) -> 0 | M34: $0 | N34: $0 | P34: 2030 | Q34: =MAX(TREND(Q26:Q27,$P26:$P27,$P34),0) -> 0 | R34: =MAX(TREND(R26:R27,$P26:$P27,$P34),0) -> 0 | S34: =MAX(TREND(S26:S27,$P26:$P27,$P34),0) -> 0.0 | T34: =MAX(TREND(T26:T27,$P26:$P27,$P34),0) -> 0.0 | U34: =IFERROR(MAX(1/S34-1/INDEX(ReliabilityModelGroup,O20,17), 0),0) -> 0.000 | V34: =IFERROR(MAX(1/T34-1/INDEX(ReliabilityModelGroup,O20,24), 0),0) -> 0.000 | W34: =IFERROR(AlphaSTD*MAX(AlphaTTI*(1+INDEX(ReliabilityModelGroup,O20,17)*U34)^BetaTTI-1,0)^BetaSTD*INDEX(ReliabilityModelGroup,O20,16)/INDEX(ReliabilityModelGroup,O20,17)*INDEX(RelAdjFactors,O20,15),0) -> 0.000 | X34: =IFERROR(AlphaSTD*MAX(AlphaTTI*(1+INDEX(ReliabilityModelGroup,O20,24)*V34)^BetaTTI-1,0)^BetaSTD*INDEX(ReliabilityModelGroup,O20,23)/INDEX(ReliabilityModelGroup,O20,24)*INDEX(RelAdjFactors,O20,15),0) -> 0.000 | Y34: =MIN(Q34,R34)*(W34-X34)*(INDEX(ReliabilityModelGroup,A20,12)*AnnualFactor) -> 0 | Z34: =IF(AND(R34>Q34, Induced="Y"), (R34-Q34)*(W34-X34)*0.5*(INDEX(ReliabilityModelGroup,A20,12)*AnnualFactor), 0) -> 0 | AA34: $0 | AB34: $0 | AD34: 2033 | AE34: $0 | AG34: $0 | AI34: $0
B35: 2031 | C35: =MAX(TREND(C26:C27,$B26:$B27,$B35),0) -> 0 | D35: =MAX(TREND(D26:D27,$B26:$B27,$B35),0) -> 0 | E35: =MAX(TREND(E26:E27,$B26:$B27,$B35),0) -> 0.0 | F35: =MAX(TREND(F26:F27,$B26:$B27,$B35),0) -> 0.0 | G35: =IFERROR(MAX(1/E35-1/INDEX(ReliabilityModelGroup,A20,17), 0),0) -> 0.000 | H35: =IFERROR(MAX(1/F35-1/INDEX(ReliabilityModelGroup,A20,24), 0),0) -> 0.000 | I35: =IFERROR(AlphaSTD*MAX(AlphaTTI*(1+INDEX(ReliabilityModelGroup,A20,17)*G35)^BetaTTI-1,0)^BetaSTD*INDEX(ReliabilityModelGroup,A20,16)/INDEX(ReliabilityModelGroup,A20,17)*INDEX(RelAdjFactors,A20,5),0) -> 0.000 | J35: =IFERROR(AlphaSTD*MAX(AlphaTTI*(1+INDEX(ReliabilityModelGroup,A20,24)*H35)^BetaTTI-1,0)^BetaSTD*INDEX(ReliabilityModelGroup,A20,23)/INDEX(ReliabilityModelGroup,A20,24)*INDEX(RelAdjFactors,A20,5),0) -> 0.000 | K35: =MIN(C35*INDEX(ReliabilityModelGroup,A20,18),D35*INDEX(ReliabilityModelGroup,A20,25))*(I35-J35)*(INDEX(ReliabilityModelGroup,A20,12)*AnnualFactor) -> 0 | L35: =IF(AND(D35*INDEX(ReliabilityModelGroup,A20,25)>C35*INDEX(ReliabilityModelGroup,A20,18), Induced="Y"), (D35*INDEX(ReliabilityModelGroup,A20,25)-C35*INDEX(ReliabilityModelGroup,A20,18))*(I35-J35)*0.5*(INDEX(ReliabilityModelGroup,A20,12)*AnnualFactor), 0) -> 0 | M35: $0 | N35: $0 | P35: 2031 | Q35: =MAX(TREND(Q26:Q27,$P26:$P27,$P35),0) -> 0 | R35: =MAX(TREND(R26:R27,$P26:$P27,$P35),0) -> 0 | S35: =MAX(TREND(S26:S27,$P26:$P27,$P35),0) -> 0.0 | T35: =MAX(TREND(T26:T27,$P26:$P27,$P35),0) -> 0.0 | U35: =IFERROR(MAX(1/S35-1/INDEX(ReliabilityModelGroup,O20,17), 0),0) -> 0.000 | V35: =IFERROR(MAX(1/T35-1/INDEX(ReliabilityModelGroup,O20,24), 0),0) -> 0.000 | W35: =IFERROR(AlphaSTD*MAX(AlphaTTI*(1+INDEX(ReliabilityModelGroup,O20,17)*U35)^BetaTTI-1,0)^BetaSTD*INDEX(ReliabilityModelGroup,O20,16)/INDEX(ReliabilityModelGroup,O20,17)*INDEX(RelAdjFactors,O20,15),0) -> 0.000 | X35: =IFERROR(AlphaSTD*MAX(AlphaTTI*(1+INDEX(ReliabilityModelGroup,O20,24)*V35)^BetaTTI-1,0)^BetaSTD*INDEX(ReliabilityModelGroup,O20,23)/INDEX(ReliabilityModelGroup,O20,24)*INDEX(RelAdjFactors,O20,15),0) -> 0.000 | Y35: =MIN(Q35,R35)*(W35-X35)*(INDEX(ReliabilityModelGroup,A20,12)*AnnualFactor) -> 0 | Z35: =IF(AND(R35>Q35, Induced="Y"), (R35-Q35)*(W35-X35)*0.5*(INDEX(ReliabilityModelGroup,A20,12)*AnnualFactor), 0) -> 0 | AA35: $0 | AB35: $0 | AD35: 2034 | AE35: $0 | AG35: $0 | AI35: $0
B36: 2032 | C36: =MAX(TREND(C26:C27,$B26:$B27,$B36),0) -> 0 | D36: =MAX(TREND(D26:D27,$B26:$B27,$B36),0) -> 0 | E36: =MAX(TREND(E26:E27,$B26:$B27,$B36),0) -> 0.0 | F36: =MAX(TREND(F26:F27,$B26:$B27,$B36),0) -> 0.0 | G36: =IFERROR(MAX(1/E36-1/INDEX(ReliabilityModelGroup,A20,17), 0),0) -> 0.000 | H36: =IFERROR(MAX(1/F36-1/INDEX(ReliabilityModelGroup,A20,24), 0),0) -> 0.000 | I36: =IFERROR(AlphaSTD*MAX(AlphaTTI*(1+INDEX(ReliabilityModelGroup,A20,17)*G36)^BetaTTI-1,0)^BetaSTD*INDEX(ReliabilityModelGroup,A20,16)/INDEX(ReliabilityModelGroup,A20,17)*INDEX(RelAdjFactors,A20,5),0) -> 0.000 | J36: =IFERROR(AlphaSTD*MAX(AlphaTTI*(1+INDEX(ReliabilityModelGroup,A20,24)*H36)^BetaTTI-1,0)^BetaSTD*INDEX(ReliabilityModelGroup,A20,23)/INDEX(ReliabilityModelGroup,A20,24)*INDEX(RelAdjFactors,A20,5),0) -> 0.000 | K36: =MIN(C36*INDEX(ReliabilityModelGroup,A20,18),D36*INDEX(ReliabilityModelGroup,A20,25))*(I36-J36)*(INDEX(ReliabilityModelGroup,A20,12)*AnnualFactor) -> 0 | L36: =IF(AND(D36*INDEX(ReliabilityModelGroup,A20,25)>C36*INDEX(ReliabilityModelGroup,A20,18), Induced="Y"), (D36*INDEX(ReliabilityModelGroup,A20,25)-C36*INDEX(ReliabilityModelGroup,A20,18))*(I36-J36)*0.5*(INDEX(ReliabilityModelGroup,A20,12)*AnnualFactor), 0) -> 0 | M36: $0 | N36: $0 | P36: 2032 | Q36: =MAX(TREND(Q26:Q27,$P26:$P27,$P36),0) -> 0 | R36: =MAX(TREND(R26:R27,$P26:$P27,$P36),0) -> 0 | S36: =MAX(TREND(S26:S27,$P26:$P27,$P36),0) -> 0.0 | T36: =MAX(TREND(T26:T27,$P26:$P27,$P36),0) -> 0.0 | U36: =IFERROR(MAX(1/S36-1/INDEX(ReliabilityModelGroup,O20,17), 0),0) -> 0.000 | V36: =IFERROR(MAX(1/T36-1/INDEX(ReliabilityModelGroup,O20,24), 0),0) -> 0.000 | W36: =IFERROR(AlphaSTD*MAX(AlphaTTI*(1+INDEX(ReliabilityModelGroup,O20,17)*U36)^BetaTTI-1,0)^BetaSTD*INDEX(ReliabilityModelGroup,O20,16)/INDEX(ReliabilityModelGroup,O20,17)*INDEX(RelAdjFactors,O20,15),0) -> 0.000 | X36: =IFERROR(AlphaSTD*MAX(AlphaTTI*(1+INDEX(ReliabilityModelGroup,O20,24)*V36)^BetaTTI-1,0)^BetaSTD*INDEX(ReliabilityModelGroup,O20,23)/INDEX(ReliabilityModelGroup,O20,24)*INDEX(RelAdjFactors,O20,15),0) -> 0.000 | Y36: =MIN(Q36,R36)*(W36-X36)*(INDEX(ReliabilityModelGroup,A20,12)*AnnualFactor) -> 0 | Z36: =IF(AND(R36>Q36, Induced="Y"), (R36-Q36)*(W36-X36)*0.5*(INDEX(ReliabilityModelGroup,A20,12)*AnnualFactor), 0) -> 0 | AA36: $0 | AB36: $0 | AD36: 2035 | AE36: $0 | AG36: $0 | AI36: $0
B37: 2033 | C37: =MAX(TREND(C26:C27,$B26:$B27,$B37),0) -> 0 | D37: =MAX(TREND(D26:D27,$B26:$B27,$B37),0) -> 0 | E37: =MAX(TREND(E26:E27,$B26:$B27,$B37),0) -> 0.0 | F37: =MAX(TREND(F26:F27,$B26:$B27,$B37),0) -> 0.0 | G37: =IFERROR(MAX(1/E37-1/INDEX(ReliabilityModelGroup,A20,17), 0),0) -> 0.000 | H37: =IFERROR(MAX(1/F37-1/INDEX(ReliabilityModelGroup,A20,24), 0),0) -> 0.000 | I37: =IFERROR(AlphaSTD*MAX(AlphaTTI*(1+INDEX(ReliabilityModelGroup,A20,17)*G37)^BetaTTI-1,0)^BetaSTD*INDEX(ReliabilityModelGroup,A20,16)/INDEX(ReliabilityModelGroup,A20,17)*INDEX(RelAdjFactors,A20,5),0) -> 0.000 | J37: =IFERROR(AlphaSTD*MAX(AlphaTTI*(1+INDEX(ReliabilityModelGroup,A20,24)*H37)^BetaTTI-1,0)^BetaSTD*INDEX(ReliabilityModelGroup,A20,23)/INDEX(ReliabilityModelGroup,A20,24)*INDEX(RelAdjFactors,A20,5),0) -> 0.000 | K37: =MIN(C37*INDEX(ReliabilityModelGroup,A20,18),D37*INDEX(ReliabilityModelGroup,A20,25))*(I37-J37)*(INDEX(ReliabilityModelGroup,A20,12)*AnnualFactor) -> 0 | L37: =IF(AND(D37*INDEX(ReliabilityModelGroup,A20,25)>C37*INDEX(ReliabilityModelGroup,A20,18), Induced="Y"), (D37*INDEX(ReliabilityModelGroup,A20,25)-C37*INDEX(ReliabilityModelGroup,A20,18))*(I37-J37)*0.5*(INDEX(ReliabilityModelGroup,A20,12)*AnnualFactor), 0) -> 0 | M37: $0 | N37: $0 | P37: 2033 | Q37: =MAX(TREND(Q26:Q27,$P26:$P27,$P37),0) -> 0 | R37: =MAX(TREND(R26:R27,$P26:$P27,$P37),0) -> 0 | S37: =MAX(TREND(S26:S27,$P26:$P27,$P37),0) -> 0.0 | T37: =MAX(TREND(T26:T27,$P26:$P27,$P37),0) -> 0.0 | U37: =IFERROR(MAX(1/S37-1/INDEX(ReliabilityModelGroup,O20,17), 0),0) -> 0.000 | V37: =IFERROR(MAX(1/T37-1/INDEX(ReliabilityModelGroup,O20,24), 0),0) -> 0.000 | W37: =IFERROR(AlphaSTD*MAX(AlphaTTI*(1+INDEX(ReliabilityModelGroup,O20,17)*U37)^BetaTTI-1,0)^BetaSTD*INDEX(ReliabilityModelGroup,O20,16)/INDEX(ReliabilityModelGroup,O20,17)*INDEX(RelAdjFactors,O20,15),0) -> 0.000 | X37: =IFERROR(AlphaSTD*MAX(AlphaTTI*(1+INDEX(ReliabilityModelGroup,O20,24)*V37)^BetaTTI-1,0)^BetaSTD*INDEX(ReliabilityModelGroup,O20,23)/INDEX(ReliabilityModelGroup,O20,24)*INDEX(RelAdjFactors,O20,15),0) -> 0.000 | Y37: =MIN(Q37,R37)*(W37-X37)*(INDEX(ReliabilityModelGroup,A20,12)*AnnualFactor) -> 0 | Z37: =IF(AND(R37>Q37, Induced="Y"), (R37-Q37)*(W37-X37)*0.5*(INDEX(ReliabilityModelGroup,A20,12)*AnnualFactor), 0) -> 0 | AA37: $0 | AB37: $0 | AD37: 2036 | AE37: $0 | AG37: $0 | AI37: $0
B38: 2034 | C38: =MAX(TREND(C26:C27,$B26:$B27,$B38),0) -> 0 | D38: =MAX(TREND(D26:D27,$B26:$B27,$B38),0) -> 0 | E38: =MAX(TREND(E26:E27,$B26:$B27,$B38),0) -> 0.0 | F38: =MAX(TREND(F26:F27,$B26:$B27,$B38),0) -> 0.0 | G38: =IFERROR(MAX(1/E38-1/INDEX(ReliabilityModelGroup,A20,17), 0),0) -> 0.000 | H38: =IFERROR(MAX(1/F38-1/INDEX(ReliabilityModelGroup,A20,24), 0),0) -> 0.000 | I38: =IFERROR(AlphaSTD*MAX(AlphaTTI*(1+INDEX(ReliabilityModelGroup,A20,17)*G38)^BetaTTI-1,0)^BetaSTD*INDEX(ReliabilityModelGroup,A20,16)/INDEX(ReliabilityModelGroup,A20,17)*INDEX(RelAdjFactors,A20,5),0) -> 0.000 | J38: =IFERROR(AlphaSTD*MAX(AlphaTTI*(1+INDEX(ReliabilityModelGroup,A20,24)*H38)^BetaTTI-1,0)^BetaSTD*INDEX(ReliabilityModelGroup,A20,23)/INDEX(ReliabilityModelGroup,A20,24)*INDEX(RelAdjFactors,A20,5),0) -> 0.000 | K38: =MIN(C38*INDEX(ReliabilityModelGroup,A20,18),D38*INDEX(ReliabilityModelGroup,A20,25))*(I38-J38)*(INDEX(ReliabilityModelGroup,A20,12)*AnnualFactor) -> 0 | L38: =IF(AND(D38*INDEX(ReliabilityModelGroup,A20,25)>C38*INDEX(ReliabilityModelGroup,A20,18), Induced="Y"), (D38*INDEX(ReliabilityModelGroup,A20,25)-C38*INDEX(ReliabilityModelGroup,A20,18))*(I38-J38)*0.5*(INDEX(ReliabilityModelGroup,A20,12)*AnnualFactor), 0) -> 0 | M38: $0 | N38: $0 | P38: 2034 | Q38: =MAX(TREND(Q26:Q27,$P26:$P27,$P38),0) -> 0 | R38: =MAX(TREND(R26:R27,$P26:$P27,$P38),0) -> 0 | S38: =MAX(TREND(S26:S27,$P26:$P27,$P38),0) -> 0.0 | T38: =MAX(TREND(T26:T27,$P26:$P27,$P38),0) -> 0.0 | U38: =IFERROR(MAX(1/S38-1/INDEX(ReliabilityModelGroup,O20,17), 0),0) -> 0.000 | V38: =IFERROR(MAX(1/T38-1/INDEX(ReliabilityModelGroup,O20,24), 0),0) -> 0.000 | W38: =IFERROR(AlphaSTD*MAX(AlphaTTI*(1+INDEX(ReliabilityModelGroup,O20,17)*U38)^BetaTTI-1,0)^BetaSTD*INDEX(ReliabilityModelGroup,O20,16)/INDEX(ReliabilityModelGroup,O20,17)*INDEX(RelAdjFactors,O20,15),0) -> 0.000 | X38: =IFERROR(AlphaSTD*MAX(AlphaTTI*(1+INDEX(ReliabilityModelGroup,O20,24)*V38)^BetaTTI-1,0)^BetaSTD*INDEX(ReliabilityModelGroup,O20,23)/INDEX(ReliabilityModelGroup,O20,24)*INDEX(RelAdjFactors,O20,15),0) -> 0.000 | Y38: =MIN(Q38,R38)*(W38-X38)*(INDEX(ReliabilityModelGroup,A20,12)*AnnualFactor) -> 0 | Z38: =IF(AND(R38>Q38, Induced="Y"), (R38-Q38)*(W38-X38)*0.5*(INDEX(ReliabilityModelGroup,A20,12)*AnnualFactor), 0) -> 0 | AA38: $0 | AB38: $0 | AD38: 2037 | AE38: $0 | AG38: $0 | AI38: $0
B39: 2035 | C39: =MAX(TREND(C26:C27,$B26:$B27,$B39),0) -> 0 | D39: =MAX(TREND(D26:D27,$B26:$B27,$B39),0) -> 0 | E39: =MAX(TREND(E26:E27,$B26:$B27,$B39),0) -> 0.0 | F39: =MAX(TREND(F26:F27,$B26:$B27,$B39),0) -> 0.0 | G39: =IFERROR(MAX(1/E39-1/INDEX(ReliabilityModelGroup,A20,17), 0),0) -> 0.000 | H39: =IFERROR(MAX(1/F39-1/INDEX(ReliabilityModelGroup,A20,24), 0),0) -> 0.000 | I39: =IFERROR(AlphaSTD*MAX(AlphaTTI*(1+INDEX(ReliabilityModelGroup,A20,17)*G39)^BetaTTI-1,0)^BetaSTD*INDEX(ReliabilityModelGroup,A20,16)/INDEX(ReliabilityModelGroup,A20,17)*INDEX(RelAdjFactors,A20,5),0) -> 0.000 | J39: =IFERROR(AlphaSTD*MAX(AlphaTTI*(1+INDEX(ReliabilityModelGroup,A20,24)*H39)^BetaTTI-1,0)^BetaSTD*INDEX(ReliabilityModelGroup,A20,23)/INDEX(ReliabilityModelGroup,A20,24)*INDEX(RelAdjFactors,A20,5),0) -> 0.000 | K39: =MIN(C39*INDEX(ReliabilityModelGroup,A20,18),D39*INDEX(ReliabilityModelGroup,A20,25))*(I39-J39)*(INDEX(ReliabilityModelGroup,A20,12)*AnnualFactor) -> 0 | L39: =IF(AND(D39*INDEX(ReliabilityModelGroup,A20,25)>C39*INDEX(ReliabilityModelGroup,A20,18), Induced="Y"), (D39*INDEX(ReliabilityModelGroup,A20,25)-C39*INDEX(ReliabilityModelGroup,A20,18))*(I39-J39)*0.5*(INDEX(ReliabilityModelGroup,A20,12)*AnnualFactor), 0) -> 0 | M39: $0 | N39: $0 | P39: 2035 | Q39: =MAX(TREND(Q26:Q27,$P26:$P27,$P39),0) -> 0 | R39: =MAX(TREND(R26:R27,$P26:$P27,$P39),0) -> 0 | S39: =MAX(TREND(S26:S27,$P26:$P27,$P39),0) -> 0.0 | T39: =MAX(TREND(T26:T27,$P26:$P27,$P39),0) -> 0.0 | U39: =IFERROR(MAX(1/S39-1/INDEX(ReliabilityModelGroup,O20,17), 0),0) -> 0.000 | V39: =IFERROR(MAX(1/T39-1/INDEX(ReliabilityModelGroup,O20,24), 0),0) -> 0.000 | W39: =IFERROR(AlphaSTD*MAX(AlphaTTI*(1+INDEX(ReliabilityModelGroup,O20,17)*U39)^BetaTTI-1,0)^BetaSTD*INDEX(ReliabilityModelGroup,O20,16)/INDEX(ReliabilityModelGroup,O20,17)*INDEX(RelAdjFactors,O20,15),0) -> 0.000 | X39: =IFERROR(AlphaSTD*MAX(AlphaTTI*(1+INDEX(ReliabilityModelGroup,O20,24)*V39)^BetaTTI-1,0)^BetaSTD*INDEX(ReliabilityModelGroup,O20,23)/INDEX(ReliabilityModelGroup,O20,24)*INDEX(RelAdjFactors,O20,15),0) -> 0.000 | Y39: =MIN(Q39,R39)*(W39-X39)*(INDEX(ReliabilityModelGroup,A20,12)*AnnualFactor) -> 0 | Z39: =IF(AND(R39>Q39, Induced="Y"), (R39-Q39)*(W39-X39)*0.5*(INDEX(ReliabilityModelGroup,A20,12)*AnnualFactor), 0) -> 0 | AA39: $0 | AB39: $0 | AD39: 2038 | AE39: $0 | AG39: $0 | AI39: $0
B40: 2036 | C40: =MAX(TREND(C26:C27,$B26:$B27,$B40),0) -> 0 | D40: =MAX(TREND(D26:D27,$B26:$B27,$B40),0) -> 0 | E40: =MAX(TREND(E26:E27,$B26:$B27,$B40),0) -> 0.0 | F40: =MAX(TREND(F26:F27,$B26:$B27,$B40),0) -> 0.0 | G40: =IFERROR(MAX(1/E40-1/INDEX(ReliabilityModelGroup,A20,17), 0),0) -> 0.000 | H40: =IFERROR(MAX(1/F40-1/INDEX(ReliabilityModelGroup,A20,24), 0),0) -> 0.000 | I40: =IFERROR(AlphaSTD*MAX(AlphaTTI*(1+INDEX(ReliabilityModelGroup,A20,17)*G40)^BetaTTI-1,0)^BetaSTD*INDEX(ReliabilityModelGroup,A20,16)/INDEX(ReliabilityModelGroup,A20,17)*INDEX(RelAdjFactors,A20,5),0) -> 0.000 | J40: =IFERROR(AlphaSTD*MAX(AlphaTTI*(1+INDEX(ReliabilityModelGroup,A20,24)*H40)^BetaTTI-1,0)^BetaSTD*INDEX(ReliabilityModelGroup,A20,23)/INDEX(ReliabilityModelGroup,A20,24)*INDEX(RelAdjFactors,A20,5),0) -> 0.000 | K40: =MIN(C40*INDEX(ReliabilityModelGroup,A20,18),D40*INDEX(ReliabilityModelGroup,A20,25))*(I40-J40)*(INDEX(ReliabilityModelGroup,A20,12)*AnnualFactor) -> 0 | L40: =IF(AND(D40*INDEX(ReliabilityModelGroup,A20,25)>C40*INDEX(ReliabilityModelGroup,A20,18), Induced="Y"), (D40*INDEX(ReliabilityModelGroup,A20,25)-C40*INDEX(ReliabilityModelGroup,A20,18))*(I40-J40)*0.5*(INDEX(ReliabilityModelGroup,A20,12)*AnnualFactor), 0) -> 0 | M40: $0 | N40: $0 | P40: 2036 | Q40: =MAX(TREND(Q26:Q27,$P26:$P27,$P40),0) -> 0 | R40: =MAX(TREND(R26:R27,$P26:$P27,$P40),0) -> 0 | S40: =MAX(TREND(S26:S27,$P26:$P27,$P40),0) -> 0.0 | T40: =MAX(TREND(T26:T27,$P26:$P27,$P40),0) -> 0.0 | U40: =IFERROR(MAX(1/S40-1/INDEX(ReliabilityModelGroup,O20,17), 0),0) -> 0.000 | V40: =IFERROR(MAX(1/T40-1/INDEX(ReliabilityModelGroup,O20,24), 0),0) -> 0.000 | W40: =IFERROR(AlphaSTD*MAX(AlphaTTI*(1+INDEX(ReliabilityModelGroup,O20,17)*U40)^BetaTTI-1,0)^BetaSTD*INDEX(ReliabilityModelGroup,O20,16)/INDEX(ReliabilityModelGroup,O20,17)*INDEX(RelAdjFactors,O20,15),0) -> 0.000 | X40: =IFERROR(AlphaSTD*MAX(AlphaTTI*(1+INDEX(ReliabilityModelGroup,O20,24)*V40)^BetaTTI-1,0)^BetaSTD*INDEX(ReliabilityModelGroup,O20,23)/INDEX(ReliabilityModelGroup,O20,24)*INDEX(RelAdjFactors,O20,15),0) -> 0.000 | Y40: =MIN(Q40,R40)*(W40-X40)*(INDEX(ReliabilityModelGroup,A20,12)*AnnualFactor) -> 0 | Z40: =IF(AND(R40>Q40, Induced="Y"), (R40-Q40)*(W40-X40)*0.5*(INDEX(ReliabilityModelGroup,A20,12)*AnnualFactor), 0) -> 0 | AA40: $0 | AB40: $0 | AD40: 2039 | AE40: $0 | AG40: $0 | AI40: $0
B41: 2037 | C41: =MAX(TREND(C26:C27,$B26:$B27,$B41),0) -> 0 | D41: =MAX(TREND(D26:D27,$B26:$B27,$B41),0) -> 0 | E41: =MAX(TREND(E26:E27,$B26:$B27,$B41),0) -> 0.0 | F41: =MAX(TREND(F26:F27,$B26:$B27,$B41),0) -> 0.0 | G41: =IFERROR(MAX(1/E41-1/INDEX(ReliabilityModelGroup,A20,17), 0),0) -> 0.000 | H41: =IFERROR(MAX(1/F41-1/INDEX(ReliabilityModelGroup,A20,24), 0),0) -> 0.000 | I41: =IFERROR(AlphaSTD*MAX(AlphaTTI*(1+INDEX(ReliabilityModelGroup,A20,17)*G41)^BetaTTI-1,0)^BetaSTD*INDEX(ReliabilityModelGroup,A20,16)/INDEX(ReliabilityModelGroup,A20,17)*INDEX(RelAdjFactors,A20,5),0) -> 0.000 | J41: =IFERROR(AlphaSTD*MAX(AlphaTTI*(1+INDEX(ReliabilityModelGroup,A20,24)*H41)^BetaTTI-1,0)^BetaSTD*INDEX(ReliabilityModelGroup,A20,23)/INDEX(ReliabilityModelGroup,A20,24)*INDEX(RelAdjFactors,A20,5),0) -> 0.000 | K41: =MIN(C41*INDEX(ReliabilityModelGroup,A20,18),D41*INDEX(ReliabilityModelGroup,A20,25))*(I41-J41)*(INDEX(ReliabilityModelGroup,A20,12)*AnnualFactor) -> 0 | L41: =IF(AND(D41*INDEX(ReliabilityModelGroup,A20,25)>C41*INDEX(ReliabilityModelGroup,A20,18), Induced="Y"), (D41*INDEX(ReliabilityModelGroup,A20,25)-C41*INDEX(ReliabilityModelGroup,A20,18))*(I41-J41)*0.5*(INDEX(ReliabilityModelGroup,A20,12)*AnnualFactor), 0) -> 0 | M41: $0 | N41: $0 | P41: 2037 | Q41: =MAX(TREND(Q26:Q27,$P26:$P27,$P41),0) -> 0 | R41: =MAX(TREND(R26:R27,$P26:$P27,$P41),0) -> 0 | S41: =MAX(TREND(S26:S27,$P26:$P27,$P41),0) -> 0.0 | T41: =MAX(TREND(T26:T27,$P26:$P27,$P41),0) -> 0.0 | U41: =IFERROR(MAX(1/S41-1/INDEX(ReliabilityModelGroup,O20,17), 0),0) -> 0.000 | V41: =IFERROR(MAX(1/T41-1/INDEX(ReliabilityModelGroup,O20,24), 0),0) -> 0.000 | W41: =IFERROR(AlphaSTD*MAX(AlphaTTI*(1+INDEX(ReliabilityModelGroup,O20,17)*U41)^BetaTTI-1,0)^BetaSTD*INDEX(ReliabilityModelGroup,O20,16)/INDEX(ReliabilityModelGroup,O20,17)*INDEX(RelAdjFactors,O20,15),0) -> 0.000 | X41: =IFERROR(AlphaSTD*MAX(AlphaTTI*(1+INDEX(ReliabilityModelGroup,O20,24)*V41)^BetaTTI-1,0)^BetaSTD*INDEX(ReliabilityModelGroup,O20,23)/INDEX(ReliabilityModelGroup,O20,24)*INDEX(RelAdjFactors,O20,15),0) -> 0.000 | Y41: =MIN(Q41,R41)*(W41-X41)*(INDEX(ReliabilityModelGroup,A20,12)*AnnualFactor) -> 0 | Z41: =IF(AND(R41>Q41, Induced="Y"), (R41-Q41)*(W41-X41)*0.5*(INDEX(ReliabilityModelGroup,A20,12)*AnnualFactor), 0) -> 0 | AA41: $0 | AB41: $0 | AD41: 2040 | AE41: $0 | AG41: $0 | AI41: $0
B42: 2038 | C42: =MAX(TREND(C26:C27,$B26:$B27,$B42),0) -> 0 | D42: =MAX(TREND(D26:D27,$B26:$B27,$B42),0) -> 0 | E42: =MAX(TREND(E26:E27,$B26:$B27,$B42),0) -> 0.0 | F42: =MAX(TREND(F26:F27,$B26:$B27,$B42),0) -> 0.0 | G42: =IFERROR(MAX(1/E42-1/INDEX(ReliabilityModelGroup,A20,17), 0),0) -> 0.000 | H42: =IFERROR(MAX(1/F42-1/INDEX(ReliabilityModelGroup,A20,24), 0),0) -> 0.000 | I42: =IFERROR(AlphaSTD*MAX(AlphaTTI*(1+INDEX(ReliabilityModelGroup,A20,17)*G42)^BetaTTI-1,0)^BetaSTD*INDEX(ReliabilityModelGroup,A20,16)/INDEX(ReliabilityModelGroup,A20,17)*INDEX(RelAdjFactors,A20,5),0) -> 0.000 | J42: =IFERROR(AlphaSTD*MAX(AlphaTTI*(1+INDEX(ReliabilityModelGroup,A20,24)*H42)^BetaTTI-1,0)^BetaSTD*INDEX(ReliabilityModelGroup,A20,23)/INDEX(ReliabilityModelGroup,A20,24)*INDEX(RelAdjFactors,A20,5),0) -> 0.000 | K42: =MIN(C42*INDEX(ReliabilityModelGroup,A20,18),D42*INDEX(ReliabilityModelGroup,A20,25))*(I42-J42)*(INDEX(ReliabilityModelGroup,A20,12)*AnnualFactor) -> 0 | L42: =IF(AND(D42*INDEX(ReliabilityModelGroup,A20,25)>C42*INDEX(ReliabilityModelGroup,A20,18), Induced="Y"), (D42*INDEX(ReliabilityModelGroup,A20,25)-C42*INDEX(ReliabilityModelGroup,A20,18))*(I42-J42)*0.5*(INDEX(ReliabilityModelGroup,A20,12)*AnnualFactor), 0) -> 0 | M42: $0 | N42: $0 | P42: 2038 | Q42: =MAX(TREND(Q26:Q27,$P26:$P27,$P42),0) -> 0 | R42: =MAX(TREND(R26:R27,$P26:$P27,$P42),0) -> 0 | S42: =MAX(TREND(S26:S27,$P26:$P27,$P42),0) -> 0.0 | T42: =MAX(TREND(T26:T27,$P26:$P27,$P42),0) -> 0.0 | U42: =IFERROR(MAX(1/S42-1/INDEX(ReliabilityModelGroup,O20,17), 0),0) -> 0.000 | V42: =IFERROR(MAX(1/T42-1/INDEX(ReliabilityModelGroup,O20,24), 0),0) -> 0.000 | W42: =IFERROR(AlphaSTD*MAX(AlphaTTI*(1+INDEX(ReliabilityModelGroup,O20,17)*U42)^BetaTTI-1,0)^BetaSTD*INDEX(ReliabilityModelGroup,O20,16)/INDEX(ReliabilityModelGroup,O20,17)*INDEX(RelAdjFactors,O20,15),0) -> 0.000 | X42: =IFERROR(AlphaSTD*MAX(AlphaTTI*(1+INDEX(ReliabilityModelGroup,O20,24)*V42)^BetaTTI-1,0)^BetaSTD*INDEX(ReliabilityModelGroup,O20,23)/INDEX(ReliabilityModelGroup,O20,24)*INDEX(RelAdjFactors,O20,15),0) -> 0.000 | Y42: =MIN(Q42,R42)*(W42-X42)*(INDEX(ReliabilityModelGroup,A20,12)*AnnualFactor) -> 0 | Z42: =IF(AND(R42>Q42, Induced="Y"), (R42-Q42)*(W42-X42)*0.5*(INDEX(ReliabilityModelGroup,A20,12)*AnnualFactor), 0) -> 0 | AA42: $0 | AB42: $0 | AD42: 2041 | AE42: $0 | AG42: $0 | AI42: $0
B43: 2039 | C43: =MAX(TREND(C26:C27,$B26:$B27,$B43),0) -> 0 | D43: =MAX(TREND(D26:D27,$B26:$B27,$B43),0) -> 0 | E43: =MAX(TREND(E26:E27,$B26:$B27,$B43),0) -> 0.0 | F43: =MAX(TREND(F26:F27,$B26:$B27,$B43),0) -> 0.0 | G43: =IFERROR(MAX(1/E43-1/INDEX(ReliabilityModelGroup,A20,17), 0),0) -> 0.000 | H43: =IFERROR(MAX(1/F43-1/INDEX(ReliabilityModelGroup,A20,24), 0),0) -> 0.000 | I43: =IFERROR(AlphaSTD*MAX(AlphaTTI*(1+INDEX(ReliabilityModelGroup,A20,17)*G43)^BetaTTI-1,0)^BetaSTD*INDEX(ReliabilityModelGroup,A20,16)/INDEX(ReliabilityModelGroup,A20,17)*INDEX(RelAdjFactors,A20,5),0) -> 0.000 | J43: =IFERROR(AlphaSTD*MAX(AlphaTTI*(1+INDEX(ReliabilityModelGroup,A20,24)*H43)^BetaTTI-1,0)^BetaSTD*INDEX(ReliabilityModelGroup,A20,23)/INDEX(ReliabilityModelGroup,A20,24)*INDEX(RelAdjFactors,A20,5),0) -> 0.000 | K43: =MIN(C43*INDEX(ReliabilityModelGroup,A20,18),D43*INDEX(ReliabilityModelGroup,A20,25))*(I43-J43)*(INDEX(ReliabilityModelGroup,A20,12)*AnnualFactor) -> 0 | L43: =IF(AND(D43*INDEX(ReliabilityModelGroup,A20,25)>C43*INDEX(ReliabilityModelGroup,A20,18), Induced="Y"), (D43*INDEX(ReliabilityModelGroup,A20,25)-C43*INDEX(ReliabilityModelGroup,A20,18))*(I43-J43)*0.5*(INDEX(ReliabilityModelGroup,A20,12)*AnnualFactor), 0) -> 0 | M43: $0 | N43: $0 | P43: 2039 | Q43: =MAX(TREND(Q26:Q27,$P26:$P27,$P43),0) -> 0 | R43: =MAX(TREND(R26:R27,$P26:$P27,$P43),0) -> 0 | S43: =MAX(TREND(S26:S27,$P26:$P27,$P43),0) -> 0.0 | T43: =MAX(TREND(T26:T27,$P26:$P27,$P43),0) -> 0.0 | U43: =IFERROR(MAX(1/S43-1/INDEX(ReliabilityModelGroup,O20,17), 0),0) -> 0.000 | V43: =IFERROR(MAX(1/T43-1/INDEX(ReliabilityModelGroup,O20,24), 0),0) -> 0.000 | W43: =IFERROR(AlphaSTD*MAX(AlphaTTI*(1+INDEX(ReliabilityModelGroup,O20,17)*U43)^BetaTTI-1,0)^BetaSTD*INDEX(ReliabilityModelGroup,O20,16)/INDEX(ReliabilityModelGroup,O20,17)*INDEX(RelAdjFactors,O20,15),0) -> 0.000 | X43: =IFERROR(AlphaSTD*MAX(AlphaTTI*(1+INDEX(ReliabilityModelGroup,O20,24)*V43)^BetaTTI-1,0)^BetaSTD*INDEX(ReliabilityModelGroup,O20,23)/INDEX(ReliabilityModelGroup,O20,24)*INDEX(RelAdjFactors,O20,15),0) -> 0.000 | Y43: =MIN(Q43,R43)*(W43-X43)*(INDEX(ReliabilityModelGroup,A20,12)*AnnualFactor) -> 0 | Z43: =IF(AND(R43>Q43, Induced="Y"), (R43-Q43)*(W43-X43)*0.5*(INDEX(ReliabilityModelGroup,A20,12)*AnnualFactor), 0) -> 0 | AA43: $0 | AB43: $0 | AD43: 2042 | AE43: $0 | AG43: $0 | AI43: $0
B44: 2040 | C44: =MAX(TREND(C26:C27,$B26:$B27,$B44),0) -> 0 | D44: =MAX(TREND(D26:D27,$B26:$B27,$B44),0) -> 0 | E44: =MAX(TREND(E26:E27,$B26:$B27,$B44),0) -> 0.0 | F44: =MAX(TREND(F26:F27,$B26:$B27,$B44),0) -> 0.0 | G44: =IFERROR(MAX(1/E44-1/INDEX(ReliabilityModelGroup,A20,17), 0),0) -> 0.000 | H44: =IFERROR(MAX(1/F44-1/INDEX(ReliabilityModelGroup,A20,24), 0),0) -> 0.000 | I44: =IFERROR(AlphaSTD*MAX(AlphaTTI*(1+INDEX(ReliabilityModelGroup,A20,17)*G44)^BetaTTI-1,0)^BetaSTD*INDEX(ReliabilityModelGroup,A20,16)/INDEX(ReliabilityModelGroup,A20,17)*INDEX(RelAdjFactors,A20,5),0) -> 0.000 | J44: =IFERROR(AlphaSTD*MAX(AlphaTTI*(1+INDEX(ReliabilityModelGroup,A20,24)*H44)^BetaTTI-1,0)^BetaSTD*INDEX(ReliabilityModelGroup,A20,23)/INDEX(ReliabilityModelGroup,A20,24)*INDEX(RelAdjFactors,A20,5),0) -> 0.000 | K44: =MIN(C44*INDEX(ReliabilityModelGroup,A20,18),D44*INDEX(ReliabilityModelGroup,A20,25))*(I44-J44)*(INDEX(ReliabilityModelGroup,A20,12)*AnnualFactor) -> 0 | L44: =IF(AND(D44*INDEX(ReliabilityModelGroup,A20,25)>C44*INDEX(ReliabilityModelGroup,A20,18), Induced="Y"), (D44*INDEX(ReliabilityModelGroup,A20,25)-C44*INDEX(ReliabilityModelGroup,A20,18))*(I44-J44)*0.5*(INDEX(ReliabilityModelGroup,A20,12)*AnnualFactor), 0) -> 0 | M44: $0 | N44: $0 | P44: 2040 | Q44: =MAX(TREND(Q26:Q27,$P26:$P27,$P44),0) -> 0 | R44: =MAX(TREND(R26:R27,$P26:$P27,$P44),0) -> 0 | S44: =MAX(TREND(S26:S27,$P26:$P27,$P44),0) -> 0.0 | T44: =MAX(TREND(T26:T27,$P26:$P27,$P44),0) -> 0.0 | U44: =IFERROR(MAX(1/S44-1/INDEX(ReliabilityModelGroup,O20,17), 0),0) -> 0.000 | V44: =IFERROR(MAX(1/T44-1/INDEX(ReliabilityModelGroup,O20,24), 0),0) -> 0.000 | W44: =IFERROR(AlphaSTD*MAX(AlphaTTI*(1+INDEX(ReliabilityModelGroup,O20,17)*U44)^BetaTTI-1,0)^BetaSTD*INDEX(ReliabilityModelGroup,O20,16)/INDEX(ReliabilityModelGroup,O20,17)*INDEX(RelAdjFactors,O20,15),0) -> 0.000 | X44: =IFERROR(AlphaSTD*MAX(AlphaTTI*(1+INDEX(ReliabilityModelGroup,O20,24)*V44)^BetaTTI-1,0)^BetaSTD*INDEX(ReliabilityModelGroup,O20,23)/INDEX(ReliabilityModelGroup,O20,24)*INDEX(RelAdjFactors,O20,15),0) -> 0.000 | Y44: =MIN(Q44,R44)*(W44-X44)*(INDEX(ReliabilityModelGroup,A20,12)*AnnualFactor) -> 0 | Z44: =IF(AND(R44>Q44, Induced="Y"), (R44-Q44)*(W44-X44)*0.5*(INDEX(ReliabilityModelGroup,A20,12)*AnnualFactor), 0) -> 0 | AA44: $0 | AB44: $0 | AD44: 2043 | AE44: $0 | AG44: $0 | AI44: $0
B45: 2041 | C45: =MAX(TREND(C26:C27,$B26:$B27,$B45),0) -> 0 | D45: =MAX(TREND(D26:D27,$B26:$B27,$B45),0) -> 0 | E45: =MAX(TREND(E26:E27,$B26:$B27,$B45),0) -> 0.0 | F45: =MAX(TREND(F26:F27,$B26:$B27,$B45),0) -> 0.0 | G45: =IFERROR(MAX(1/E45-1/INDEX(ReliabilityModelGroup,A20,17), 0),0) -> 0.000 | H45: =IFERROR(MAX(1/F45-1/INDEX(ReliabilityModelGroup,A20,24), 0),0) -> 0.000 | I45: =IFERROR(AlphaSTD*MAX(AlphaTTI*(1+INDEX(ReliabilityModelGroup,A20,17)*G45)^BetaTTI-1,0)^BetaSTD*INDEX(ReliabilityModelGroup,A20,16)/INDEX(ReliabilityModelGroup,A20,17)*INDEX(RelAdjFactors,A20,5),0) -> 0.000 | J45: =IFERROR(AlphaSTD*MAX(AlphaTTI*(1+INDEX(ReliabilityModelGroup,A20,24)*H45)^BetaTTI-1,0)^BetaSTD*INDEX(ReliabilityModelGroup,A20,23)/INDEX(ReliabilityModelGroup,A20,24)*INDEX(RelAdjFactors,A20,5),0) -> 0.000 | K45: =MIN(C45*INDEX(ReliabilityModelGroup,A20,18),D45*INDEX(ReliabilityModelGroup,A20,25))*(I45-J45)*(INDEX(ReliabilityModelGroup,A20,12)*AnnualFactor) -> 0 | L45: =IF(AND(D45*INDEX(ReliabilityModelGroup,A20,25)>C45*INDEX(ReliabilityModelGroup,A20,18), Induced="Y"), (D45*INDEX(ReliabilityModelGroup,A20,25)-C45*INDEX(ReliabilityModelGroup,A20,18))*(I45-J45)*0.5*(INDEX(ReliabilityModelGroup,A20,12)*AnnualFactor), 0) -> 0 | M45: $0 | N45: $0 | P45: 2041 | Q45: =MAX(TREND(Q26:Q27,$P26:$P27,$P45),0) -> 0 | R45: =MAX(TREND(R26:R27,$P26:$P27,$P45),0) -> 0 | S45: =MAX(TREND(S26:S27,$P26:$P27,$P45),0) -> 0.0 | T45: =MAX(TREND(T26:T27,$P26:$P27,$P45),0) -> 0.0 | U45: =IFERROR(MAX(1/S45-1/INDEX(ReliabilityModelGroup,O20,17), 0),0) -> 0.000 | V45: =IFERROR(MAX(1/T45-1/INDEX(ReliabilityModelGroup,O20,24), 0),0) -> 0.000 | W45: =IFERROR(AlphaSTD*MAX(AlphaTTI*(1+INDEX(ReliabilityModelGroup,O20,17)*U45)^BetaTTI-1,0)^BetaSTD*INDEX(ReliabilityModelGroup,O20,16)/INDEX(ReliabilityModelGroup,O20,17)*INDEX(RelAdjFactors,O20,15),0) -> 0.000 | X45: =IFERROR(AlphaSTD*MAX(AlphaTTI*(1+INDEX(ReliabilityModelGroup,O20,24)*V45)^BetaTTI-1,0)^BetaSTD*INDEX(ReliabilityModelGroup,O20,23)/INDEX(ReliabilityModelGroup,O20,24)*INDEX(RelAdjFactors,O20,15),0) -> 0.000 | Y45: =MIN(Q45,R45)*(W45-X45)*(INDEX(ReliabilityModelGroup,A20,12)*AnnualFactor) -> 0 | Z45: =IF(AND(R45>Q45, Induced="Y"), (R45-Q45)*(W45-X45)*0.5*(INDEX(ReliabilityModelGroup,A20,12)*AnnualFactor), 0) -> 0 | AA45: $0 | AB45: $0 | AD45: 2044 | AE45: $0 | AG45: $0 | AI45: $0
B46: 2042 | C46: =MAX(TREND(C26:C27,$B26:$B27,$B46),0) -> 0 | D46: =MAX(TREND(D26:D27,$B26:$B27,$B46),0) -> 0 | E46: =MAX(TREND(E26:E27,$B26:$B27,$B46),0) -> 0.0 | F46: =MAX(TREND(F26:F27,$B26:$B27,$B46),0) -> 0.0 | G46: =IFERROR(MAX(1/E46-1/INDEX(ReliabilityModelGroup,A20,17), 0),0) -> 0.000 | H46: =IFERROR(MAX(1/F46-1/INDEX(ReliabilityModelGroup,A20,24), 0),0) -> 0.000 | I46: =IFERROR(AlphaSTD*MAX(AlphaTTI*(1+INDEX(ReliabilityModelGroup,A20,17)*G46)^BetaTTI-1,0)^BetaSTD*INDEX(ReliabilityModelGroup,A20,16)/INDEX(ReliabilityModelGroup,A20,17)*INDEX(RelAdjFactors,A20,5),0) -> 0.000 | J46: =IFERROR(AlphaSTD*MAX(AlphaTTI*(1+INDEX(ReliabilityModelGroup,A20,24)*H46)^BetaTTI-1,0)^BetaSTD*INDEX(ReliabilityModelGroup,A20,23)/INDEX(ReliabilityModelGroup,A20,24)*INDEX(RelAdjFactors,A20,5),0) -> 0.000 | K46: =MIN(C46*INDEX(ReliabilityModelGroup,A20,18),D46*INDEX(ReliabilityModelGroup,A20,25))*(I46-J46)*(INDEX(ReliabilityModelGroup,A20,12)*AnnualFactor) -> 0 | L46: =IF(AND(D46*INDEX(ReliabilityModelGroup,A20,25)>C46*INDEX(ReliabilityModelGroup,A20,18), Induced="Y"), (D46*INDEX(ReliabilityModelGroup,A20,25)-C46*INDEX(ReliabilityModelGroup,A20,18))*(I46-J46)*0.5*(INDEX(ReliabilityModelGroup,A20,12)*AnnualFactor), 0) -> 0 | M46: $0 | N46: $0 | P46: 2042 | Q46: =MAX(TREND(Q26:Q27,$P26:$P27,$P46),0) -> 0 | R46: =MAX(TREND(R26:R27,$P26:$P27,$P46),0) -> 0 | S46: =MAX(TREND(S26:S27,$P26:$P27,$P46),0) -> 0.0 | T46: =MAX(TREND(T26:T27,$P26:$P27,$P46),0) -> 0.0 | U46: =IFERROR(MAX(1/S46-1/INDEX(ReliabilityModelGroup,O20,17), 0),0) -> 0.000 | V46: =IFERROR(MAX(1/T46-1/INDEX(ReliabilityModelGroup,O20,24), 0),0) -> 0.000 | W46: =IFERROR(AlphaSTD*MAX(AlphaTTI*(1+INDEX(ReliabilityModelGroup,O20,17)*U46)^BetaTTI-1,0)^BetaSTD*INDEX(ReliabilityModelGroup,O20,16)/INDEX(ReliabilityModelGroup,O20,17)*INDEX(RelAdjFactors,O20,15),0) -> 0.000 | X46: =IFERROR(AlphaSTD*MAX(AlphaTTI*(1+INDEX(ReliabilityModelGroup,O20,24)*V46)^BetaTTI-1,0)^BetaSTD*INDEX(ReliabilityModelGroup,O20,23)/INDEX(ReliabilityModelGroup,O20,24)*INDEX(RelAdjFactors,O20,15),0) -> 0.000 | Y46: =MIN(Q46,R46)*(W46-X46)*(INDEX(ReliabilityModelGroup,A20,12)*AnnualFactor) -> 0 | Z46: =IF(AND(R46>Q46, Induced="Y"), (R46-Q46)*(W46-X46)*0.5*(INDEX(ReliabilityModelGroup,A20,12)*AnnualFactor), 0) -> 0 | AA46: $0 | AB46: $0 | AD46: 2045 | AE46: $0 | AG46: $0 | AI46: $0
